Workbook

Sheet Calendar
H1: Wednesday Fun Fours 2018/19 season
V5: =MAX(C6:E35) -> 0 | W5: =MAX(V6:X35) -> 0
A6: wk1 | B6: 2018-09-05
A7: wk2 | B7: 2018-09-12
A8: wk3 | B8: 2018-09-19
A9: wk4 | B9: 2018-09-26
A10: wk5 | B10: 2018-10-03
A11: wk6 | B11: 2018-10-10
A12: wk7 | B12: 2018-10-17
A13: wk8 | B13: 2018-10-24
A14: wk9 | B14: 2018-10-31
A15: wk10 | B15: 2018-11-07
A16: wk11 | B16: 2018-11-14
A17: wk12 | B17: 2018-11-28
A18: wk13 | B18: 2018-12-05
A19: wk14 | B19: 2018-12-12
A20: wk15 | B20: 2018-12-19
A21: wk16 | B21: 2019-01-02
A22: wk17 | B22: 2019-01-09
A23: wk18 | B23: 2019-01-16
A24: wk19 | B24: 2019-01-23
A25: wk20 | B25: 2019-01-30
A26: wk21 | B26: 2019-02-06
A27: wk22 | B27: 2019-02-13
A28: wk23 | B28: 2019-02-20
A29: wk24 | B29: 2019-02-27
A30: wk25 | B30: 2019-03-06
A31: wk26 | B31: 2019-03-13
A32: wk27 | B32: 2019-03-20
A33: wk28 | B33: 2019-03-27
A34: wk29 | B34: 2019-04-03
A35: wk30 | B35: 2019-04-10

Sheet P.Attendance
A1: Thunt6 | B1: R2 | C1: B2 | D1: k3 | E1: 16 | F1: Tyler Hunt | G1: =IF(INDIRECT("'" & $A1 & "'!" & C1)>1,(INDIRECT("'" & $A1 & "'!" & C1))," ") -> 30 | H1: =IF(INDIRECT("'" & $A1 & "'!" & D1)>1,(INDIRECT("'" & $A1 & "'!" & D1))," ") -> No | I1: =IF(INDIRECT("'" & $A1 & "'!" & B1)>1,(INDIRECT("'" & $A1 & "'!" & B1))," ") -> 5
A2: Rplasse6 | B2: R2 | C2: B2 | D2: k3 | E2: 10 | F2: Ron Plasse | G2: 30 | H2: No | I2: 6
A3: Dharkey6 | B3: R2 | C3: B2 | D3: k3 | E3: 10 | F3: Dick Harkey | G3: 30 | H3: No | I3: 7
A4: Ahellhake6 | B4: R2 | C4: B2 | D4: k3 | E4: 3 | F4: =AHellhake6!$B$3 -> Andy Hellhake | G4: 30 | H4: No | I4: 8
A5: Jwoodard6 | B5: R2 | C5: B2 | D5: k3 | E5: 4 | F5: =JWoodard6!$B$3 -> Jan Woodard | G5: 29 | H5: No | I5: 8
A6: Dbrazell6 | B6: R2 | C6: B2 | D6: k3 | E6: 6 | F6: =DBrazell6!B3 -> David Brazell | G6: 30 | H6: No | I6: 8
A7: Athomson6 | B7: R2 | C7: B2 | D7: k3 | E7: 3 | F7: =AThomson6!$B$3 -> Andy Thomson | G7: 30 | H7: No | I7: 9
A8: Tbrady6 | B8: R2 | C8: B2 | D8: k3 | E8: 5 | F8: =TBrady6!B3 -> Tim Brady | G8: 30 | H8: No | I8: 10
A9: TKummer6 | B9: R2 | C9: B2 | D9: k3 | E9: 16 | F9: Tammy Kummer | G9: 30 | H9: No | I9: 10
A10: Mharkey6 | B10: R2 | C10: B2 | D10: k3 | E10: 10 | F10: MaryAnn Harkey | G10: 30 | H10: No | I10: 11
A11: Mthomas6 | B11: R2 | C11: B2 | D11: k3 | E11: 2 | F11: =MThomas6!$B$3 -> Morgan Thomas | G11: 30 | H11: No | I11: 12
A12: Twoodard6 | B12: R2 | C12: B2 | D12: k3 | E12: 4 | F12: =TWoodard6!B3 -> Tom Woodard | G12: 29 | H12: No | I12: 12
A13: Kwade6 | B13: R2 | C13: B2 | D13: k3 | E13: 14 | F13: Kevin Wade | G13: 30 | H13: No | I13: 13
A14: Jbrady6 | B14: R2 | C14: B2 | D14: k3 | E14: 5 | F14: Jasmine Brady | G14: 30 | H14: No | I14: 16
A15: Lplasse6 | B15: R2 | C15: B2 | D15: k3 | E15: 10 | F15: LouAnn Plasse | G15: 30 | H15: No | I15: 16
A16: Pgreen6 | B16: R2 | C16: B2 | D16: k3 | E16: 4 | F16: =PGreen6!$B$3 -> Patty Green | G16: 30 | H16: No | I16: 17
A17: Mrobles6 | B17: R2 | C17: B2 | D17: k3 | E17: 2 | F17: =MRobles6!$B$3 -> Mary Robles | G17: 30 | H17: No | I17: 19
A18: Kcader6 | B18: R2 | C18: B2 | D18: k3 | E18: 7 | F18: Kristine Cader | G18: 30 | H18: No | I18: 19
A19: Ktockey6 | B19: R2 | C19: B2 | D19: k3 | E19: 5 | F19: Katie Tockey | G19: 30 | H19: No | I19: 20
A20: Lchilds6 | B20: R2 | C20: B2 | D20: k3 | E20: 5 | F20: =LChilds6!B3 -> Larry Childs | G20: 30 | H20: No | I20: 21
A21: Lruhl6 | B21: R2 | C21: B2 | D21: k3 | E21: 9 | F21: Lauren Ruhl | G21: 30 | H21: No | I21: 21
A22: Gruhl6 | B22: R2 | C22: B2 | D22: k3 | E22: 9 | F22: Ginny Ruhl | G22: 30 | H22: No | I22: 22
A23: Dgreen6 | B23: R2 | C23: B2 | D23: k3 | E23: 4 | F23: =DGreen6!B3 -> Dave Green | G23: 30 | H23: No | I23: 23
A24: Mfridley6 | B24: R2 | C24: B2 | D24: k3 | E24: 7 | F24: Marty Fridley | G24: 28 | H24: No | I24: 24
A25: Broffeld6 | B25: R2 | C25: B2 | D25: k3 | E25: 11 | F25: Bill Roffeld | G25: 30 | H25: No | I25: 24
A26: Mschirman6 | B26: R2 | C26: B2 | D26: k3 | E26: 8 | F26: Mike Schirman | G26: 30 | H26: No | I26: 27
A27: Bcahill6 | B27: R2 | C27: B2 | D27: k3 | E27: 12 | F27: Barbara Cahill | G27: 30 | H27: No | I27: 28
A28: Cconnell | B28: R2 | C28: B2 | D28: k3 | E28: 1 | F28: =CConnell!$B$3 -> Charlene Connell | G28: 9 | H28: No
A29: Corcutt | B29: R2 | C29: B2 | D29: k3 | E29: 1 | F29: =COrcutt!$B$3 -> Carolyn Orcutt | G29: 30 | H29: No
A30: Dsharma | B30: R2 | C30: B2 | D30: k3 | E30: 1 | F30: =DSharma!$B$3 -> Devi Sharma | G30: 30 | H30: No
A31: Mhealy | B31: R2 | C31: B2 | D31: k3 | E31: 1 | F31: =MHealy!$B$3 -> Margaret Healy | G31: 30 | H31: No
A32: Rsharma | B32: R2 | C32: B2 | D32: k3 | E32: 1 | F32: =RSharma!B3 -> Roshini Sharma | G32: 30 | H32: No
A33: Adennis | B33: R2 | C33: B2 | D33: k3 | E33: 2 | F33: =ADennis!$B$3 -> Alan Dennis | G33: =IF(INDIRECT("'" & $A33 & "'!" & C33)>1,(INDIRECT("'" & $A33 & "'!" & C33))," ") -> 29 | H33: =IF(INDIRECT("'" & $A33 & "'!" & D33)>1,(INDIRECT("'" & $A33 & "'!" & D33))," ") -> No | I33: =IF(INDIRECT("'" & $A33 & "'!" & B33)>1,(INDIRECT("'" & $A33 & "'!" & B33))," ") -> 
A34: Kmosser | B34: R2 | C34: B2 | D34: k3 | E34: 2 | F34: Ken Mosser | G34: 30 | H34: No
A35: Sanderson | B35: R2 | C35: B2 | D35: k3 | E35: 2 | F35: Stever Anderson | G35: 28 | H35: No
A36: Mdoyel | B36: R2 | C36: B2 | D36: k3 | E36: 3 | F36: =MDoyel!B3 -> Mike Doyel | G36: 30 | H36: No
A37: Pschaffer | B37: R2 | C37: B2 | D37: k3 | E37: 6 | F37: =PSchaffer!B3 -> Paul Schaffer | G37: 29 | H37: No
A38: Tsikes | B38: R2 | C38: B2 | D38: k3 | E38: 6 | F38: =TSikes!B3 -> Tim Sikes | G38: 30 | H38: No
A39: Aspohr | B39: R2 | C39: B2 | D39: k3 | E39: 7 | F39: Annette Spohr | G39: 29 | H39: No
A40: Lbouldridge | B40: R2 | C40: B2 | D40: k3 | E40: 7 | F40: Lena Bouldridge | G40: 30 | H40: No
A41: Lharjak | B41: R2 | C41: B2 | D41: k3 | E41: 7 | F41: Lisa Harjak | G41: 30 | H41: No
A42: Jorcutt | B42: R2 | C42: B2 | D42: k3 | E42: 8 | F42: John Orcutt | G42: 30 | H42: No
A43: Mstoufer | B43: R2 | C43: B2 | D43: k3 | E43: 8 | F43: Melissa Stoufer | G43: 30 | H43: No
A44: Mthomson | B44: R2 | C44: B2 | D44: k3 | E44: 8 | F44: Marilyn Thomson | G44: 30 | H44: No
A45: Dgoodwin | B45: R2 | C45: B2 | D45: k3 | E45: 9 | F45: David Goodwin | G45: 30 | H45: No
A46: Dhogan | B46: R2 | C46: B2 | D46: k3 | E46: 9 | F46: Duwayne Hogan | G46: 30 | H46: No
A47: Astern | B47: R2 | C47: B2 | D47: k3 | E47: 11 | F47: Allan Stern | G47: 30 | H47: No
A48: Chuygen | B48: R2 | C48: B2 | D48: k3 | E48: 11 | F48: Carole Huygen | G48: 30 | H48: No
A49: Mclark | B49: R2 | C49: B2 | D49: K3 | E49: 11 | F49: Matt Clark | G49: 30 | H49: No
A50: Sparsons | B50: R2 | C50: B2 | D50: k3 | E50: 11 | F50: Steve Parsons | G50: 17 | H50: No
A51: Bbisler | B51: R2 | C51: B2 | D51: k3 | E51: 12 | F51: Bob Bisler | G51: 30 | H51: No
A52: Cbrady | B52: R2 | C52: B2 | D52: k3 | E52: 13 | F52: Cheryl Brady | G52: 30 | H52: No
A53: Kdavis | B53: R2 | C53: B2 | D53: k3 | E53: 13 | F53: Ken Davis | G53: 30 | H53: No
A54: Lline | B54: R2 | C54: B2 | D54: k3 | E54: 13 | F54: Liz Line | G54: 30 | H54: No
A55: Rgiuliani | B55: R2 | C55: B2 | D55: k3 | E55: 13 | F55: Rich Giuliani | G55: 30 | H55: No
A56: Alongman | B56: R2 | C56: B2 | D56: k3 | E56: 15 | F56: Andrew Longman | G56: 26 | H56: No
A57: Ccamus | B57: R2 | C57: B2 | D57: k3 | E57: 15 | F57: Cassius Camus | G57: 30 | H57: No
A58: Dsilveri | B58: R2 | C58: B2 | D58: k3 | E58: 15 | F58: Drew Silveri | G58: 30 | H58: No
A59: Dsteenwyk | B59: R2 | C59: B2 | D59: k3 | E59: 15 | F59: Devin Steenwyk | G59: 30 | H59: No
A60: Rdecker | B60: R2 | C60: B2 | D60: k3 | E60: 15 | F60: Ryan Decker | G60: 30 | H60: No
A61: Bwibben | B61: R2 | C61: B2 | D61: k3 | E61: 16 | F61: Brian Wibben | G61: 30 | H61: No
A62: Tlewallen | B62: R2 | C62: B2 | D62: k3 | E62: 16 | F62: Tim Lewallen | G62: 30 | H62: No
E63: team#: | F63: Name: | G63: wk#: | H63: Perfect Attendance: | I63: Wky#:
A64: Sarrow6 | B64: R2 | C64: B2 | D64: k3 | E64: 14 | F64: Scott Arrow | G64: =IF(INDIRECT("'" & $A64 & "'!" & C64)>1,(INDIRECT("'" & $A64 & "'!" & C64))," ") -> 30 | H64: Yes | I64: =IF(INDIRECT("'" & $A64 & "'!" & B64)>1,(INDIRECT("'" & $A64 & "'!" & B64))," ") -> 13
A65: Rkummer6 | B65: R2 | C65: B2 | D65: k3 | E65: 6 | F65: =RKummer6!B3 -> Ray Kummer | G65: 30 | H65: Yes | I65: 18
A66: Tlang | B66: R2 | C66: B2 | D66: k3 | E66: 3 | F66: =TLang!$B$3 -> Tammy Lang | G66: 30 | H66: Yes
A67: Jbisler | B67: R2 | C67: B2 | D67: k3 | E67: 12 | F67: Josie Bisler | G67: 30 | H67: Yes
A68: Khough | B68: R2 | C68: B2 | D68: k3 | E68: 12 | F68: Kevin Hough | G68: 30 | H68: Yes
A69: Darrow | B69: R2 | C69: B2 | D69: k3 | E69: 14 | F69: Danny Arrow | G69: 30 | H69: Yes
A70: Edycus | B70: R2 | C70: B2 | D70: k3 | E70: 14 | F70: Eric Dycus | G70: 30 | H70: Yes
I71: 6 Over Avg
B72: R2 | C72: B2 | D72: k3

Sheet RSharma
H1: =Calendar!H1 -> Wednesday Fun Fours 2018/19 season | R1: 6-over wk:
A2: wk# | B2: =MAX(AB6:AB35) -> 30 | R2: 0
A3: Name: | B3: Roshini Sharma | I3: Perfect Attendance: | K3: =IF(SUM(AA6:AA35)<0.5,"Yes","No") -> No | L3: =_xlfn.IFS(AND(B2=30,K3="Yes"),"good",AND(B2<>30,K3="Yes"),"So Far",AND(B2<>30,K3="No")," ") -> 
A4: book average: | C4: 132 | H4: wky | I4: wky | J4: cumulative | L4: cumulative | P4: hdcp | Q4: high | R4: high | S4: high hcp | T4: high hcp
C5: g1 | D5: g2 | E5: g3 | H5: series | I5: average | J5: score | K5: games | L5: average | O5: hdcp | P5: series | Q5: series | R5: game | S5: series | T5: game | V5: =MAX(C6:E35) -> 182 | W5: =MAX(V6:X35) -> 273
A6: wk1 | B6: =Calendar!B6 -> 2018-09-05 | H6: =IF(COUNT(C6:E6)<1," ",SUM(C6:E6)) ->  | I6: =IF(COUNT(C6:E6)<1," ",TRUNC(H6/COUNT(C6:E6))) ->  | J6: =_xlfn.IFS(SUM(C6:E6)<1,"",SUM(C6:E6)>=1,SUM($C$6:E6)) ->  | K6: =_xlfn.IFS(COUNT(C6:E6)<1,"",COUNT($C$6:E6)>=1,COUNT($C$6:E6)) ->  | L6: =_xlfn.IFS(COUNT(C6:E6)<1,"",AND(COUNT($C$6:E6)<=9,$C$4>1),$C$4,COUNT(C6:E6)>=1,M6) ->  | M6: =IF(COUNT($C$6:E6)>=1,TRUNC(SUM($C$6:E6)/COUNT($C$6:E6)),0) -> 0 | N6: =IF(COUNT($C$6:E6)<=6,0,TRUNC((230-M5)*0.9)) -> 0 | O6: =_xlfn.IFS(SUM(C6:E6)<1,"",COUNT($C$6:E6)>9,TRUNC((230-M5)*(0.9)),COUNT($C$6:E6)<=9,0) ->  | P6: =_xlfn.IFS(SUM(C6:E6)<1,"",COUNT($C$6:E6)>9,N6*3+H6,COUNT($C$6:E6)<=9,0) ->  | Q6: =IF(H6=(MAX($H$6:$H$35)),H6," ") ->  | R6: =IF((OR(C6=$V$5,D6=$V$5,E6=$V$5)),$V$5," ") ->  | S6: =IF(COUNT($C$6:E6)>9,IF(P6=MAX($P$6:$P$35),P6," "),"") ->  | T6: =IF(OR(V6=$W$5,W6=$W$5,X6=$W$5),$W$5," ") ->  | V6: =IF(COUNT(C6:E6)<1,0,IF(COUNT($C$6:E6)>9,C6+N6,0)) -> 0 | W6: =IF(COUNT(C6:E6)<1,0,IF(COUNT($C$6:E6)>9,D6+N6,0)) -> 0 | X6: =IF(COUNT(C6:E6)<1,0,IF(COUNT($C$6:E6)>9,E6+N6,0)) -> 0 | AA6: =IF((MAX($AB$6:$AB$35))<AC6,0,IF(AB6=AC6,0,1)) -> 1 | AB6: =IF(COUNT(C6:E6)>0,AC6,0) -> 0 | AC6: 1
A7: wk2 | B7: =Calendar!B7 -> 2018-09-12 | I7: =IF(COUNT(C7:E7)<1," ",TRUNC(H7/COUNT(C7:E7))) ->  | J7: =_xlfn.IFS(SUM(C7:E7)<1,"",SUM(C7:E7)>=1,SUM($C$6:E7)) ->  | K7: =_xlfn.IFS(COUNT(C7:E7)<1,"",COUNT($C$6:E7)>=1,COUNT($C$6:E7)) ->  | L7: =_xlfn.IFS(COUNT(C7:E7)<1,"",AND(COUNT($C$6:E7)<=9,$C$4>1),$C$4,COUNT(C7:E7)>=1,M7) ->  | M7: =IF(COUNT($C$6:E7)>=1,TRUNC(SUM($C$6:E7)/COUNT($C$6:E7)),0) -> 0 | N7: =IF(COUNT($C$6:E7)<=6,0,TRUNC((230-M6)*0.9)) -> 0 | O7: =_xlfn.IFS(SUM(C7:E7)<1,"",COUNT($C$6:E7)>9,TRUNC((230-M6)*(0.9)),COUNT($C$6:E7)<=9,0) ->  | P7: =_xlfn.IFS(SUM(C7:E7)<1,"",COUNT($C$6:E7)>9,N7*3+H7,COUNT($C$6:E7)<=9,0) ->  | S7: =IF(COUNT($C$6:E7)>9,IF(P7=MAX($P$6:$P$35),P7," "),"") ->  | V7: =IF(COUNT(C7:E7)<1,0,IF(COUNT($C$6:E7)>9,C7+N7,0)) -> 0 | W7: =IF(COUNT(C7:E7)<1,0,IF(COUNT($C$6:E7)>9,D7+N7,0)) -> 0 | X7: =IF(COUNT(C7:E7)<1,0,IF(COUNT($C$6:E7)>9,E7+N7,0)) -> 0 | AA7: 1 | AB7: =IF(COUNT(C7:E7)>0,AC7,0) -> 0 | AC7: 2
A8: wk3 | B8: =Calendar!B8 -> 2018-09-19 | C8: 113 | D8: 128 | E8: 113 | H8: 354 | I8: 118 | J8: =_xlfn.IFS(SUM(C8:E8)<1,"",SUM(C8:E8)>=1,SUM($C$6:E8)) -> 354 | K8: =_xlfn.IFS(COUNT(C8:E8)<1,"",COUNT($C$6:E8)>=1,COUNT($C$6:E8)) -> 3 | L8: =_xlfn.IFS(COUNT(C8:E8)<1,"",AND(COUNT($C$6:E8)<=9,$C$4>1),$C$4,COUNT(C8:E8)>=1,M8) -> 132 | M8: =IF(COUNT($C$6:E8)>=1,TRUNC(SUM($C$6:E8)/COUNT($C$6:E8)),0) -> 118 | N8: =IF(COUNT($C$6:E8)<=6,0,TRUNC((230-M7)*0.9)) -> 0 | O8: =_xlfn.IFS(SUM(C8:E8)<1,"",COUNT($C$6:E8)>9,TRUNC((230-M7)*(0.9)),COUNT($C$6:E8)<=9,0) -> 0 | P8: =_xlfn.IFS(SUM(C8:E8)<1,"",COUNT($C$6:E8)>9,N8*3+H8,COUNT($C$6:E8)<=9,0) -> 0 | S8: =IF(COUNT($C$6:E8)>9,IF(P8=MAX($P$6:$P$35),P8," "),"") ->  | V8: =IF(COUNT(C8:E8)<1,0,IF(COUNT($C$6:E8)>9,C8+N8,0)) -> 0 | W8: =IF(COUNT(C8:E8)<1,0,IF(COUNT($C$6:E8)>9,D8+N8,0)) -> 0 | X8: =IF(COUNT(C8:E8)<1,0,IF(COUNT($C$6:E8)>9,E8+N8,0)) -> 0 | AA8: 0 | AB8: 3 | AC8: 3
A9: wk4 | B9: =Calendar!B9 -> 2018-09-26 | C9: 120 | D9: 147 | E9: 148 | H9: 415 | I9: 138 | J9: =_xlfn.IFS(SUM(C9:E9)<1,"",SUM(C9:E9)>=1,SUM($C$6:E9)) -> 769 | K9: =_xlfn.IFS(COUNT(C9:E9)<1,"",COUNT($C$6:E9)>=1,COUNT($C$6:E9)) -> 6 | L9: =_xlfn.IFS(COUNT(C9:E9)<1,"",AND(COUNT($C$6:E9)<=9,$C$4>1),$C$4,COUNT(C9:E9)>=1,M9) -> 132 | M9: =IF(COUNT($C$6:E9)>=1,TRUNC(SUM($C$6:E9)/COUNT($C$6:E9)),0) -> 128 | N9: =IF(COUNT($C$6:E9)<=6,0,TRUNC((230-M8)*0.9)) -> 0 | O9: =_xlfn.IFS(SUM(C9:E9)<1,"",COUNT($C$6:E9)>9,TRUNC((230-M8)*(0.9)),COUNT($C$6:E9)<=9,0) -> 0 | P9: =_xlfn.IFS(SUM(C9:E9)<1,"",COUNT($C$6:E9)>9,N9*3+H9,COUNT($C$6:E9)<=9,0) -> 0 | S9: =IF(COUNT($C$6:E9)>9,IF(P9=MAX($P$6:$P$35),P9," "),"") ->  | V9: =IF(COUNT(C9:E9)<1,0,IF(COUNT($C$6:E9)>9,C9+N9,0)) -> 0 | W9: =IF(COUNT(C9:E9)<1,0,IF(COUNT($C$6:E9)>9,D9+N9,0)) -> 0 | X9: =IF(COUNT(C9:E9)<1,0,IF(COUNT($C$6:E9)>9,E9+N9,0)) -> 0 | AA9: 0 | AB9: 4 | AC9: 4
A10: wk5 | B10: =Calendar!B10 -> 2018-10-03 | C10: 145 | D10: 107 | E10: 123 | H10: 375 | I10: 125 | J10: =_xlfn.IFS(SUM(C10:E10)<1,"",SUM(C10:E10)>=1,SUM($C$6:E10)) -> 1144 | K10: =_xlfn.IFS(COUNT(C10:E10)<1,"",COUNT($C$6:E10)>=1,COUNT($C$6:E10)) -> 9 | L10: =_xlfn.IFS(COUNT(C10:E10)<1,"",AND(COUNT($C$6:E10)<=9,$C$4>1),$C$4,COUNT(C10:E10)>=1,M10) -> 132 | M10: =IF(COUNT($C$6:E10)>=1,TRUNC(SUM($C$6:E10)/COUNT($C$6:E10)),0) -> 127 | N10: =IF(COUNT($C$6:E10)<=6,0,TRUNC((230-M9)*0.9)) -> 91 | O10: =_xlfn.IFS(SUM(C10:E10)<1,"",COUNT($C$6:E10)>9,TRUNC((230-M9)*(0.9)),COUNT($C$6:E10)<=9,0) -> 0 | P10: =_xlfn.IFS(SUM(C10:E10)<1,"",COUNT($C$6:E10)>9,N10*3+H10,COUNT($C$6:E10)<=9,0) -> 0 | S10: =IF(COUNT($C$6:E10)>9,IF(P10=MAX($P$6:$P$35),P10," "),"") ->  | V10: =IF(COUNT(C10:E10)<1,0,IF(COUNT($C$6:E10)>9,C10+N10,0)) -> 0 | W10: =IF(COUNT(C10:E10)<1,0,IF(COUNT($C$6:E10)>9,D10+N10,0)) -> 0 | X10: =IF(COUNT(C10:E10)<1,0,IF(COUNT($C$6:E10)>9,E10+N10,0)) -> 0 | AA10: 0 | AB10: 5 | AC10: 5
A11: wk6 | B11: =Calendar!B11 -> 2018-10-10 | C11: 166 | D11: 125 | E11: 146 | F11: =IF(COUNT(C11:E11)<1," ",IF(AND(C11>M10,D11>M10,E11>M10,COUNT($C$6:E10)>=15),"*"," ")) ->  | H11: 437 | I11: 145 | J11: =_xlfn.IFS(SUM(C11:E11)<1,"",SUM(C11:E11)>=1,SUM($C$6:E11)) -> 1581 | K11: =_xlfn.IFS(COUNT(C11:E11)<1,"",COUNT($C$6:E11)>=1,COUNT($C$6:E11)) -> 12 | L11: =_xlfn.IFS(COUNT(C11:E11)<1,"",AND(COUNT($C$6:E11)<=9,$C$4>1),$C$4,COUNT(C11:E11)>=1,M11) -> 131 | M11: =IF(COUNT($C$6:E11)>=1,TRUNC(SUM($C$6:E11)/COUNT($C$6:E11)),0) -> 131 | N11: =IF(COUNT($C$6:E11)<=6,0,TRUNC((230-M10)*0.9)) -> 92 | O11: =_xlfn.IFS(SUM(C11:E11)<1,"",COUNT($C$6:E11)>9,TRUNC((230-M10)*(0.9)),COUNT($C$6:E11)<=9,0) -> 92 | P11: =_xlfn.IFS(SUM(C11:E11)<1,"",COUNT($C$6:E11)>9,N11*3+H11,COUNT($C$6:E11)<=9,0) -> 713 | S11: =IF(COUNT($C$6:E11)>9,IF(P11=MAX($P$6:$P$35),P11," "),"") ->  | V11: =IF(COUNT(C11:E11)<1,0,IF(COUNT($C$6:E11)>9,C11+N11,0)) -> 258 | W11: =IF(COUNT(C11:E11)<1,0,IF(COUNT($C$6:E11)>9,D11+N11,0)) -> 217 | X11: =IF(COUNT(C11:E11)<1,0,IF(COUNT($C$6:E11)>9,E11+N11,0)) -> 238 | AA11: 0 | AB11: 6 | AC11: 6
A12: wk7 | B12: =Calendar!B12 -> 2018-10-17 | C12: 95 | D12: 115 | E12: 132 | F12: =IF(COUNT(C12:E12)<1," ",IF(AND(C12>M11,D12>M11,E12>M11,COUNT($C$6:E11)>=15),"*"," ")) ->  | G12: =IF(COUNT(C12:E12)<1," ",IF(AND(C12>M10,D12>M10,E12>M10,COUNT($C$6:E10)>=15),"*"," ")) ->  | H12: 342 | I12: 114 | J12: =_xlfn.IFS(SUM(C12:E12)<1,"",SUM(C12:E12)>=1,SUM($C$6:E12)) -> 1923 | K12: =_xlfn.IFS(COUNT(C12:E12)<1,"",COUNT($C$6:E12)>=1,COUNT($C$6:E12)) -> 15 | L12: =_xlfn.IFS(COUNT(C12:E12)<1,"",AND(COUNT($C$6:E12)<=9,$C$4>1),$C$4,COUNT(C12:E12)>=1,M12) -> 128 | M12: =IF(COUNT($C$6:E12)>=1,TRUNC(SUM($C$6:E12)/COUNT($C$6:E12)),0) -> 128 | N12: =IF(COUNT($C$6:E12)<=6,0,TRUNC((230-M11)*0.9)) -> 89 | O12: =_xlfn.IFS(SUM(C12:E12)<1,"",COUNT($C$6:E12)>9,TRUNC((230-M11)*(0.9)),COUNT($C$6:E12)<=9,0) -> 89 | P12: =_xlfn.IFS(SUM(C12:E12)<1,"",COUNT($C$6:E12)>9,N12*3+H12,COUNT($C$6:E12)<=9,0) -> 609 | S12: =IF(COUNT($C$6:E12)>9,IF(P12=MAX($P$6:$P$35),P12," "),"") ->  | V12: =IF(COUNT(C12:E12)<1,0,IF(COUNT($C$6:E12)>9,C12+N12,0)) -> 184 | W12: =IF(COUNT(C12:E12)<1,0,IF(COUNT($C$6:E12)>9,D12+N12,0)) -> 204 | X12: =IF(COUNT(C12:E12)<1,0,IF(COUNT($C$6:E12)>9,E12+N12,0)) -> 221 | AA12: 0 | AB12: 7 | AC12: 7
A13: wk8 | B13: =Calendar!B13 -> 2018-10-24 | C13: 131 | D13: 123 | E13: 102 | F13: =IF(COUNT(C13:E13)<1," ",IF(AND(C13>M12,D13>M12,E13>M12,COUNT($C$6:E12)>=15),"*"," ")) ->  | G13: =IF(COUNT(C13:E13)<1," ",IF(AND(C13>M11,D13>M11,E13>M11,COUNT($C$6:E11)>=15),"*"," ")) ->  | H13: 356 | I13: 118 | J13: =_xlfn.IFS(SUM(C13:E13)<1,"",SUM(C13:E13)>=1,SUM($C$6:E13)) -> 2279 | K13: =_xlfn.IFS(COUNT(C13:E13)<1,"",COUNT($C$6:E13)>=1,COUNT($C$6:E13)) -> 18 | L13: =_xlfn.IFS(COUNT(C13:E13)<1,"",AND(COUNT($C$6:E13)<=9,$C$4>1),$C$4,COUNT(C13:E13)>=1,M13) -> 126 | M13: =IF(COUNT($C$6:E13)>=1,TRUNC(SUM($C$6:E13)/COUNT($C$6:E13)),0) -> 126 | N13: =IF(COUNT($C$6:E13)<=6,0,TRUNC((230-M12)*0.9)) -> 91 | O13: =_xlfn.IFS(SUM(C13:E13)<1,"",COUNT($C$6:E13)>9,TRUNC((230-M12)*(0.9)),COUNT($C$6:E13)<=9,0) -> 91 | P13: =_xlfn.IFS(SUM(C13:E13)<1,"",COUNT($C$6:E13)>9,N13*3+H13,COUNT($C$6:E13)<=9,0) -> 629 | S13: =IF(COUNT($C$6:E13)>9,IF(P13=MAX($P$6:$P$35),P13," "),"") ->  | V13: =IF(COUNT(C13:E13)<1,0,IF(COUNT($C$6:E13)>9,C13+N13,0)) -> 222 | W13: =IF(COUNT(C13:E13)<1,0,IF(COUNT($C$6:E13)>9,D13+N13,0)) -> 214 | X13: =IF(COUNT(C13:E13)<1,0,IF(COUNT($C$6:E13)>9,E13+N13,0)) -> 193 | AA13: 0 | AB13: 8 | AC13: 8
A14: wk9 | B14: =Calendar!B14 -> 2018-10-31 | C14: 150 | D14: 125 | E14: 134 | F14: =IF(COUNT(C14:E14)<1," ",IF(AND(C14>M13,D14>M13,E14>M13,COUNT($C$6:E13)>=15),"*"," ")) ->  | G14: =IF(COUNT(C14:E14)<1," ",IF(AND(C14>M12,D14>M12,E14>M12,COUNT($C$6:E12)>=15),"*"," ")) ->  | H14: 409 | I14: 136 | J14: =_xlfn.IFS(SUM(C14:E14)<1,"",SUM(C14:E14)>=1,SUM($C$6:E14)) -> 2688 | K14: =_xlfn.IFS(COUNT(C14:E14)<1,"",COUNT($C$6:E14)>=1,COUNT($C$6:E14)) -> 21 | L14: =_xlfn.IFS(COUNT(C14:E14)<1,"",AND(COUNT($C$6:E14)<=9,$C$4>1),$C$4,COUNT(C14:E14)>=1,M14) -> 128 | M14: =IF(COUNT($C$6:E14)>=1,TRUNC(SUM($C$6:E14)/COUNT($C$6:E14)),0) -> 128 | N14: =IF(COUNT($C$6:E14)<=6,0,TRUNC((230-M13)*0.9)) -> 93 | O14: =_xlfn.IFS(SUM(C14:E14)<1,"",COUNT($C$6:E14)>9,TRUNC((230-M13)*(0.9)),COUNT($C$6:E14)<=9,0) -> 93 | P14: =_xlfn.IFS(SUM(C14:E14)<1,"",COUNT($C$6:E14)>9,N14*3+H14,COUNT($C$6:E14)<=9,0) -> 688 | S14: =IF(COUNT($C$6:E14)>9,IF(P14=MAX($P$6:$P$35),P14," "),"") ->  | V14: =IF(COUNT(C14:E14)<1,0,IF(COUNT($C$6:E14)>9,C14+N14,0)) -> 243 | W14: =IF(COUNT(C14:E14)<1,0,IF(COUNT($C$6:E14)>9,D14+N14,0)) -> 218 | X14: =IF(COUNT(C14:E14)<1,0,IF(COUNT($C$6:E14)>9,E14+N14,0)) -> 227 | AA14: 0 | AB14: 9 | AC14: 9
A15: wk10 | B15: =Calendar!B15 -> 2018-11-07 | F15: =IF(COUNT(C15:E15)<1," ",IF(AND(C15>M14,D15>M14,E15>M14,COUNT($C$6:E14)>=15),"*"," ")) ->  | G15: =IF(COUNT(C15:E15)<1," ",IF(AND(C15>M13,D15>M13,E15>M13,COUNT($C$6:E13)>=15),"*"," ")) ->  | J15: =_xlfn.IFS(SUM(C15:E15)<1,"",SUM(C15:E15)>=1,SUM($C$6:E15)) ->  | K15: =_xlfn.IFS(COUNT(C15:E15)<1,"",COUNT($C$6:E15)>=1,COUNT($C$6:E15)) ->  | L15: =_xlfn.IFS(COUNT(C15:E15)<1,"",AND(COUNT($C$6:E15)<=9,$C$4>1),$C$4,COUNT(C15:E15)>=1,M15) ->  | M15: =IF(COUNT($C$6:E15)>=1,TRUNC(SUM($C$6:E15)/COUNT($C$6:E15)),0) -> 128 | N15: =IF(COUNT($C$6:E15)<=6,0,TRUNC((230-M14)*0.9)) -> 91 | O15: =_xlfn.IFS(SUM(C15:E15)<1,"",COUNT($C$6:E15)>9,TRUNC((230-M14)*(0.9)),COUNT($C$6:E15)<=9,0) ->  | P15: =_xlfn.IFS(SUM(C15:E15)<1,"",COUNT($C$6:E15)>9,N15*3+H15,COUNT($C$6:E15)<=9,0) ->  | S15: =IF(COUNT($C$6:E15)>9,IF(P15=MAX($P$6:$P$35),P15," "),"") ->  | V15: =IF(COUNT(C15:E15)<1,0,IF(COUNT($C$6:E15)>9,C15+N15,0)) -> 0 | W15: =IF(COUNT(C15:E15)<1,0,IF(COUNT($C$6:E15)>9,D15+N15,0)) -> 0 | X15: =IF(COUNT(C15:E15)<1,0,IF(COUNT($C$6:E15)>9,E15+N15,0)) -> 0 | AA15: 1 | AB15: 0 | AC15: 10
A16: wk11 | B16: =Calendar!B16 -> 2018-11-14 | C16: 118 | D16: 144 | E16: 125 | F16: =IF(COUNT(C16:E16)<1," ",IF(AND(C16>M15,D16>M15,E16>M15,COUNT($C$6:E15)>=15),"*"," ")) ->  | G16: =IF(COUNT(C16:E16)<1," ",IF(AND(C16>M14,D16>M14,E16>M14,COUNT($C$6:E14)>=15),"*"," ")) ->  | H16: 387 | I16: 129 | J16: =_xlfn.IFS(SUM(C16:E16)<1,"",SUM(C16:E16)>=1,SUM($C$6:E16)) -> 3075 | K16: =_xlfn.IFS(COUNT(C16:E16)<1,"",COUNT($C$6:E16)>=1,COUNT($C$6:E16)) -> 24 | L16: =_xlfn.IFS(COUNT(C16:E16)<1,"",AND(COUNT($C$6:E16)<=9,$C$4>1),$C$4,COUNT(C16:E16)>=1,M16) -> 128 | M16: =IF(COUNT($C$6:E16)>=1,TRUNC(SUM($C$6:E16)/COUNT($C$6:E16)),0) -> 128 | N16: =IF(COUNT($C$6:E16)<=6,0,TRUNC((230-M15)*0.9)) -> 91 | O16: =_xlfn.IFS(SUM(C16:E16)<1,"",COUNT($C$6:E16)>9,TRUNC((230-M15)*(0.9)),COUNT($C$6:E16)<=9,0) -> 91 | P16: =_xlfn.IFS(SUM(C16:E16)<1,"",COUNT($C$6:E16)>9,N16*3+H16,COUNT($C$6:E16)<=9,0) -> 660 | S16: =IF(COUNT($C$6:E16)>9,IF(P16=MAX($P$6:$P$35),P16," "),"") ->  | V16: =IF(COUNT(C16:E16)<1,0,IF(COUNT($C$6:E16)>9,C16+N16,0)) -> 209 | W16: =IF(COUNT(C16:E16)<1,0,IF(COUNT($C$6:E16)>9,D16+N16,0)) -> 235 | X16: =IF(COUNT(C16:E16)<1,0,IF(COUNT($C$6:E16)>9,E16+N16,0)) -> 216 | AA16: 0 | AB16: 11 | AC16: 11
A17: wk12 | B17: =Calendar!B17 -> 2018-11-28 | C17: 131 | D17: 142 | E17: 143 | F17: =IF(COUNT(C17:E17)<1," ",IF(AND(C17>M16,D17>M16,E17>M16,COUNT($C$6:E16)>=15),"*"," ")) -> * | G17: =IF(COUNT(C17:E17)<1," ",IF(AND(C17>M15,D17>M15,E17>M15,COUNT($C$6:E15)>=15),"*"," ")) -> * | H17: 416 | I17: 138 | J17: =_xlfn.IFS(SUM(C17:E17)<1,"",SUM(C17:E17)>=1,SUM($C$6:E17)) -> 3491 | K17: =_xlfn.IFS(COUNT(C17:E17)<1,"",COUNT($C$6:E17)>=1,COUNT($C$6:E17)) -> 27 | L17: =_xlfn.IFS(COUNT(C17:E17)<1,"",AND(COUNT($C$6:E17)<=9,$C$4>1),$C$4,COUNT(C17:E17)>=1,M17) -> 129 | M17: =IF(COUNT($C$6:E17)>=1,TRUNC(SUM($C$6:E17)/COUNT($C$6:E17)),0) -> 129 | N17: =IF(COUNT($C$6:E17)<=6,0,TRUNC((230-M16)*0.9)) -> 91 | O17: =_xlfn.IFS(SUM(C17:E17)<1,"",COUNT($C$6:E17)>9,TRUNC((230-M16)*(0.9)),COUNT($C$6:E17)<=9,0) -> 91 | P17: =_xlfn.IFS(SUM(C17:E17)<1,"",COUNT($C$6:E17)>9,N17*3+H17,COUNT($C$6:E17)<=9,0) -> 689 | S17: =IF(COUNT($C$6:E17)>9,IF(P17=MAX($P$6:$P$35),P17," "),"") ->  | V17: =IF(COUNT(C17:E17)<1,0,IF(COUNT($C$6:E17)>9,C17+N17,0)) -> 222 | W17: =IF(COUNT(C17:E17)<1,0,IF(COUNT($C$6:E17)>9,D17+N17,0)) -> 233 | X17: =IF(COUNT(C17:E17)<1,0,IF(COUNT($C$6:E17)>9,E17+N17,0)) -> 234 | AA17: 0 | AB17: 12 | AC17: 12
A18: wk13 | B18: =Calendar!B18 -> 2018-12-05 | C18: 124 | D18: 111 | E18: 140 | F18: =IF(COUNT(C18:E18)<1," ",IF(AND(C18>M17,D18>M17,E18>M17,COUNT($C$6:E17)>=15),"*"," ")) ->  | G18: =IF(COUNT(C18:E18)<1," ",IF(AND(C18>M16,D18>M16,E18>M16,COUNT($C$6:E16)>=15),"*"," ")) ->  | H18: 375 | I18: 125 | J18: =_xlfn.IFS(SUM(C18:E18)<1,"",SUM(C18:E18)>=1,SUM($C$6:E18)) -> 3866 | K18: =_xlfn.IFS(COUNT(C18:E18)<1,"",COUNT($C$6:E18)>=1,COUNT($C$6:E18)) -> 30 | L18: =_xlfn.IFS(COUNT(C18:E18)<1,"",AND(COUNT($C$6:E18)<=9,$C$4>1),$C$4,COUNT(C18:E18)>=1,M18) -> 128 | M18: =IF(COUNT($C$6:E18)>=1,TRUNC(SUM($C$6:E18)/COUNT($C$6:E18)),0) -> 128 | N18: =IF(COUNT($C$6:E18)<=6,0,TRUNC((230-M17)*0.9)) -> 90 | O18: =_xlfn.IFS(SUM(C18:E18)<1,"",COUNT($C$6:E18)>9,TRUNC((230-M17)*(0.9)),COUNT($C$6:E18)<=9,0) -> 90 | P18: =_xlfn.IFS(SUM(C18:E18)<1,"",COUNT($C$6:E18)>9,N18*3+H18,COUNT($C$6:E18)<=9,0) -> 645 | S18: =IF(COUNT($C$6:E18)>9,IF(P18=MAX($P$6:$P$35),P18," "),"") ->  | V18: =IF(COUNT(C18:E18)<1,0,IF(COUNT($C$6:E18)>9,C18+N18,0)) -> 214 | W18: =IF(COUNT(C18:E18)<1,0,IF(COUNT($C$6:E18)>9,D18+N18,0)) -> 201 | X18: =IF(COUNT(C18:E18)<1,0,IF(COUNT($C$6:E18)>9,E18+N18,0)) -> 230 | AA18: 0 | AB18: 13 | AC18: 13
A19: wk14 | B19: =Calendar!B19 -> 2018-12-12 | C19: 127 | D19: 115 | E19: 108 | F19: =IF(COUNT(C19:E19)<1," ",IF(AND(C19>M18,D19>M18,E19>M18,COUNT($C$6:E18)>=15),"*"," ")) ->  | G19: =IF(COUNT(C19:E19)<1," ",IF(AND(C19>M17,D19>M17,E19>M17,COUNT($C$6:E17)>=15),"*"," ")) ->  | H19: 350 | I19: 116 | J19: =_xlfn.IFS(SUM(C19:E19)<1,"",SUM(C19:E19)>=1,SUM($C$6:E19)) -> 4216 | K19: =_xlfn.IFS(COUNT(C19:E19)<1,"",COUNT($C$6:E19)>=1,COUNT($C$6:E19)) -> 33 | L19: =_xlfn.IFS(COUNT(C19:E19)<1,"",AND(COUNT($C$6:E19)<=9,$C$4>1),$C$4,COUNT(C19:E19)>=1,M19) -> 127 | M19: =IF(COUNT($C$6:E19)>=1,TRUNC(SUM($C$6:E19)/COUNT($C$6:E19)),0) -> 127 | N19: =IF(COUNT($C$6:E19)<=6,0,TRUNC((230-M18)*0.9)) -> 91 | O19: =_xlfn.IFS(SUM(C19:E19)<1,"",COUNT($C$6:E19)>9,TRUNC((230-M18)*(0.9)),COUNT($C$6:E19)<=9,0) -> 91 | P19: =_xlfn.IFS(SUM(C19:E19)<1,"",COUNT($C$6:E19)>9,N19*3+H19,COUNT($C$6:E19)<=9,0) -> 623 | S19: =IF(COUNT($C$6:E19)>9,IF(P19=MAX($P$6:$P$35),P19," "),"") ->  | V19: =IF(COUNT(C19:E19)<1,0,IF(COUNT($C$6:E19)>9,C19+N19,0)) -> 218 | W19: =IF(COUNT(C19:E19)<1,0,IF(COUNT($C$6:E19)>9,D19+N19,0)) -> 206 | X19: =IF(COUNT(C19:E19)<1,0,IF(COUNT($C$6:E19)>9,E19+N19,0)) -> 199 | AA19: 0 | AB19: 14 | AC19: 14
A20: wk15 | B20: =Calendar!B20 -> 2018-12-19 | C20: 138 | D20: 114 | E20: 126 | F20: =IF(COUNT(C20:E20)<1," ",IF(AND(C20>M19,D20>M19,E20>M19,COUNT($C$6:E19)>=15),"*"," ")) ->  | G20: =IF(COUNT(C20:E20)<1," ",IF(AND(C20>M18,D20>M18,E20>M18,COUNT($C$6:E18)>=15),"*"," ")) ->  | H20: 378 | I20: 126 | J20: =_xlfn.IFS(SUM(C20:E20)<1,"",SUM(C20:E20)>=1,SUM($C$6:E20)) -> 4594 | K20: =_xlfn.IFS(COUNT(C20:E20)<1,"",COUNT($C$6:E20)>=1,COUNT($C$6:E20)) -> 36 | L20: =_xlfn.IFS(COUNT(C20:E20)<1,"",AND(COUNT($C$6:E20)<=9,$C$4>1),$C$4,COUNT(C20:E20)>=1,M20) -> 127 | M20: =IF(COUNT($C$6:E20)>=1,TRUNC(SUM($C$6:E20)/COUNT($C$6:E20)),0) -> 127 | N20: =IF(COUNT($C$6:E20)<=6,0,TRUNC((230-M19)*0.9)) -> 92 | O20: =_xlfn.IFS(SUM(C20:E20)<1,"",COUNT($C$6:E20)>9,TRUNC((230-M19)*(0.9)),COUNT($C$6:E20)<=9,0) -> 92 | P20: =_xlfn.IFS(SUM(C20:E20)<1,"",COUNT($C$6:E20)>9,N20*3+H20,COUNT($C$6:E20)<=9,0) -> 654 | S20: =IF(COUNT($C$6:E20)>9,IF(P20=MAX($P$6:$P$35),P20," "),"") ->  | V20: =IF(COUNT(C20:E20)<1,0,IF(COUNT($C$6:E20)>9,C20+N20,0)) -> 230 | W20: =IF(COUNT(C20:E20)<1,0,IF(COUNT($C$6:E20)>9,D20+N20,0)) -> 206 | X20: =IF(COUNT(C20:E20)<1,0,IF(COUNT($C$6:E20)>9,E20+N20,0)) -> 218 | AA20: 0 | AB20: 15 | AC20: 15
A21: wk16 | B21: =Calendar!B21 -> 2019-01-02 | C21: 114 | D21: 132 | E21: 140 | F21: =IF(COUNT(C21:E21)<1," ",IF(AND(C21>M20,D21>M20,E21>M20,COUNT($C$6:E20)>=15),"*"," ")) ->  | G21: =IF(COUNT(C21:E21)<1," ",IF(AND(C21>M19,D21>M19,E21>M19,COUNT($C$6:E19)>=15),"*"," ")) ->  | H21: 386 | I21: 128 | J21: =_xlfn.IFS(SUM(C21:E21)<1,"",SUM(C21:E21)>=1,SUM($C$6:E21)) -> 4980 | K21: =_xlfn.IFS(COUNT(C21:E21)<1,"",COUNT($C$6:E21)>=1,COUNT($C$6:E21)) -> 39 | L21: =_xlfn.IFS(COUNT(C21:E21)<1,"",AND(COUNT($C$6:E21)<=9,$C$4>1),$C$4,COUNT(C21:E21)>=1,M21) -> 127 | M21: =IF(COUNT($C$6:E21)>=1,TRUNC(SUM($C$6:E21)/COUNT($C$6:E21)),0) -> 127 | N21: =IF(COUNT($C$6:E21)<=6,0,TRUNC((230-M20)*0.9)) -> 92 | O21: =_xlfn.IFS(SUM(C21:E21)<1,"",COUNT($C$6:E21)>9,TRUNC((230-M20)*(0.9)),COUNT($C$6:E21)<=9,0) -> 92 | P21: =_xlfn.IFS(SUM(C21:E21)<1,"",COUNT($C$6:E21)>9,N21*3+H21,COUNT($C$6:E21)<=9,0) -> 662 | S21: =IF(COUNT($C$6:E21)>9,IF(P21=MAX($P$6:$P$35),P21," "),"") ->  | V21: =IF(COUNT(C21:E21)<1,0,IF(COUNT($C$6:E21)>9,C21+N21,0)) -> 206 | W21: =IF(COUNT(C21:E21)<1,0,IF(COUNT($C$6:E21)>9,D21+N21,0)) -> 224 | X21: =IF(COUNT(C21:E21)<1,0,IF(COUNT($C$6:E21)>9,E21+N21,0)) -> 232 | AA21: 0 | AB21: 16 | AC21: 16
A22: wk17 | B22: =Calendar!B22 -> 2019-01-09 | C22: 138 | D22: 110 | E22: 131 | F22: =IF(COUNT(C22:E22)<1," ",IF(AND(C22>M21,D22>M21,E22>M21,COUNT($C$6:E21)>=15),"*"," ")) ->  | G22: =IF(COUNT(C22:E22)<1," ",IF(AND(C22>M20,D22>M20,E22>M20,COUNT($C$6:E20)>=15),"*"," ")) ->  | H22: 379 | I22: 126 | J22: =_xlfn.IFS(SUM(C22:E22)<1,"",SUM(C22:E22)>=1,SUM($C$6:E22)) -> 5359 | K22: =_xlfn.IFS(COUNT(C22:E22)<1,"",COUNT($C$6:E22)>=1,COUNT($C$6:E22)) -> 42 | L22: =_xlfn.IFS(COUNT(C22:E22)<1,"",AND(COUNT($C$6:E22)<=9,$C$4>1),$C$4,COUNT(C22:E22)>=1,M22) -> 127 | M22: =IF(COUNT($C$6:E22)>=1,TRUNC(SUM($C$6:E22)/COUNT($C$6:E22)),0) -> 127 | N22: =IF(COUNT($C$6:E22)<=6,0,TRUNC((230-M21)*0.9)) -> 92 | O22: =_xlfn.IFS(SUM(C22:E22)<1,"",COUNT($C$6:E22)>9,TRUNC((230-M21)*(0.9)),COUNT($C$6:E22)<=9,0) -> 92 | P22: =_xlfn.IFS(SUM(C22:E22)<1,"",COUNT($C$6:E22)>9,N22*3+H22,COUNT($C$6:E22)<=9,0) -> 655 | S22: =IF(COUNT($C$6:E22)>9,IF(P22=MAX($P$6:$P$35),P22," "),"") ->  | V22: =IF(COUNT(C22:E22)<1,0,IF(COUNT($C$6:E22)>9,C22+N22,0)) -> 230 | W22: =IF(COUNT(C22:E22)<1,0,IF(COUNT($C$6:E22)>9,D22+N22,0)) -> 202 | X22: =IF(COUNT(C22:E22)<1,0,IF(COUNT($C$6:E22)>9,E22+N22,0)) -> 223 | AA22: 0 | AB22: 17 | AC22: 17
A23: wk18 | B23: =Calendar!B23 -> 2019-01-16 | F23: =IF(COUNT(C23:E23)<1," ",IF(AND(C23>M22,D23>M22,E23>M22,COUNT($C$6:E22)>=15),"*"," ")) ->  | G23: =IF(COUNT(C23:E23)<1," ",IF(AND(C23>M21,D23>M21,E23>M21,COUNT($C$6:E21)>=15),"*"," ")) ->  | J23: =_xlfn.IFS(SUM(C23:E23)<1,"",SUM(C23:E23)>=1,SUM($C$6:E23)) ->  | K23: =_xlfn.IFS(COUNT(C23:E23)<1,"",COUNT($C$6:E23)>=1,COUNT($C$6:E23)) ->  | L23: =_xlfn.IFS(COUNT(C23:E23)<1,"",AND(COUNT($C$6:E23)<=9,$C$4>1),$C$4,COUNT(C23:E23)>=1,M23) ->  | M23: =IF(COUNT($C$6:E23)>=1,TRUNC(SUM($C$6:E23)/COUNT($C$6:E23)),0) -> 127 | N23: =IF(COUNT($C$6:E23)<=6,0,TRUNC((230-M22)*0.9)) -> 92 | O23: =_xlfn.IFS(SUM(C23:E23)<1,"",COUNT($C$6:E23)>9,TRUNC((230-M22)*(0.9)),COUNT($C$6:E23)<=9,0) ->  | P23: =_xlfn.IFS(SUM(C23:E23)<1,"",COUNT($C$6:E23)>9,N23*3+H23,COUNT($C$6:E23)<=9,0) ->  | S23: =IF(COUNT($C$6:E23)>9,IF(P23=MAX($P$6:$P$35),P23," "),"") ->  | V23: =IF(COUNT(C23:E23)<1,0,IF(COUNT($C$6:E23)>9,C23+N23,0)) -> 0 | W23: =IF(COUNT(C23:E23)<1,0,IF(COUNT($C$6:E23)>9,D23+N23,0)) -> 0 | X23: =IF(COUNT(C23:E23)<1,0,IF(COUNT($C$6:E23)>9,E23+N23,0)) -> 0 | AA23: 1 | AB23: 0 | AC23: 18
A24: wk19 | B24: =Calendar!B24 -> 2019-01-23 | C24: 136 | D24: 115 | E24: 125 | F24: =IF(COUNT(C24:E24)<1," ",IF(AND(C24>M23,D24>M23,E24>M23,COUNT($C$6:E23)>=15),"*"," ")) ->  | G24: =IF(COUNT(C24:E24)<1," ",IF(AND(C24>M22,D24>M22,E24>M22,COUNT($C$6:E22)>=15),"*"," ")) ->  | H24: 376 | I24: 125 | J24: =_xlfn.IFS(SUM(C24:E24)<1,"",SUM(C24:E24)>=1,SUM($C$6:E24)) -> 5735 | K24: =_xlfn.IFS(COUNT(C24:E24)<1,"",COUNT($C$6:E24)>=1,COUNT($C$6:E24)) -> 45 | L24: =_xlfn.IFS(COUNT(C24:E24)<1,"",AND(COUNT($C$6:E24)<=9,$C$4>1),$C$4,COUNT(C24:E24)>=1,M24) -> 127 | M24: =IF(COUNT($C$6:E24)>=1,TRUNC(SUM($C$6:E24)/COUNT($C$6:E24)),0) -> 127 | N24: =IF(COUNT($C$6:E24)<=6,0,TRUNC((230-M23)*0.9)) -> 92 | O24: =_xlfn.IFS(SUM(C24:E24)<1,"",COUNT($C$6:E24)>9,TRUNC((230-M23)*(0.9)),COUNT($C$6:E24)<=9,0) -> 92 | P24: =_xlfn.IFS(SUM(C24:E24)<1,"",COUNT($C$6:E24)>9,N24*3+H24,COUNT($C$6:E24)<=9,0) -> 652 | S24: =IF(COUNT($C$6:E24)>9,IF(P24=MAX($P$6:$P$35),P24," "),"") ->  | V24: =IF(COUNT(C24:E24)<1,0,IF(COUNT($C$6:E24)>9,C24+N24,0)) -> 228 | W24: =IF(COUNT(C24:E24)<1,0,IF(COUNT($C$6:E24)>9,D24+N24,0)) -> 207 | X24: =IF(COUNT(C24:E24)<1,0,IF(COUNT($C$6:E24)>9,E24+N24,0)) -> 217 | AA24: 0 | AB24: 19 | AC24: 19
A25: wk20 | B25: =Calendar!B25 -> 2019-01-30 | C25: 119 | D25: 120 | E25: 144 | F25: =IF(COUNT(C25:E25)<1," ",IF(AND(C25>M24,D25>M24,E25>M24,COUNT($C$6:E24)>=15),"*"," ")) ->  | G25: =IF(COUNT(C25:E25)<1," ",IF(AND(C25>M23,D25>M23,E25>M23,COUNT($C$6:E23)>=15),"*"," ")) ->  | H25: 383 | I25: 127 | J25: =_xlfn.IFS(SUM(C25:E25)<1,"",SUM(C25:E25)>=1,SUM($C$6:E25)) -> 6118 | K25: =_xlfn.IFS(COUNT(C25:E25)<1,"",COUNT($C$6:E25)>=1,COUNT($C$6:E25)) -> 48 | L25: =_xlfn.IFS(COUNT(C25:E25)<1,"",AND(COUNT($C$6:E25)<=9,$C$4>1),$C$4,COUNT(C25:E25)>=1,M25) -> 127 | M25: =IF(COUNT($C$6:E25)>=1,TRUNC(SUM($C$6:E25)/COUNT($C$6:E25)),0) -> 127 | N25: =IF(COUNT($C$6:E25)<=6,0,TRUNC((230-M24)*0.9)) -> 92 | O25: =_xlfn.IFS(SUM(C25:E25)<1,"",COUNT($C$6:E25)>9,TRUNC((230-M24)*(0.9)),COUNT($C$6:E25)<=9,0) -> 92 | P25: =_xlfn.IFS(SUM(C25:E25)<1,"",COUNT($C$6:E25)>9,N25*3+H25,COUNT($C$6:E25)<=9,0) -> 659 | S25: =IF(COUNT($C$6:E25)>9,IF(P25=MAX($P$6:$P$35),P25," "),"") ->  | V25: =IF(COUNT(C25:E25)<1,0,IF(COUNT($C$6:E25)>9,C25+N25,0)) -> 211 | W25: =IF(COUNT(C25:E25)<1,0,IF(COUNT($C$6:E25)>9,D25+N25,0)) -> 212 | X25: =IF(COUNT(C25:E25)<1,0,IF(COUNT($C$6:E25)>9,E25+N25,0)) -> 236 | AA25: 0 | AB25: 20 | AC25: 20
A26: wk21 | B26: =Calendar!B26 -> 2019-02-06 | C26: 157 | D26: 129 | E26: 175 | F26: =IF(COUNT(C26:E26)<1," ",IF(AND(C26>M25,D26>M25,E26>M25,COUNT($C$6:E25)>=15),"*"," ")) -> * | G26: =IF(COUNT(C26:E26)<1," ",IF(AND(C26>M24,D26>M24,E26>M24,COUNT($C$6:E24)>=15),"*"," ")) -> * | H26: 461 | I26: 153 | J26: =_xlfn.IFS(SUM(C26:E26)<1,"",SUM(C26:E26)>=1,SUM($C$6:E26)) -> 6579 | K26: =_xlfn.IFS(COUNT(C26:E26)<1,"",COUNT($C$6:E26)>=1,COUNT($C$6:E26)) -> 51 | L26: =_xlfn.IFS(COUNT(C26:E26)<1,"",AND(COUNT($C$6:E26)<=9,$C$4>1),$C$4,COUNT(C26:E26)>=1,M26) -> 129 | M26: =IF(COUNT($C$6:E26)>=1,TRUNC(SUM($C$6:E26)/COUNT($C$6:E26)),0) -> 129 | N26: =IF(COUNT($C$6:E26)<=6,0,TRUNC((230-M25)*0.9)) -> 92 | O26: =_xlfn.IFS(SUM(C26:E26)<1,"",COUNT($C$6:E26)>9,TRUNC((230-M25)*(0.9)),COUNT($C$6:E26)<=9,0) -> 92 | P26: =_xlfn.IFS(SUM(C26:E26)<1,"",COUNT($C$6:E26)>9,N26*3+H26,COUNT($C$6:E26)<=9,0) -> 737 | Q26: 461 | S26: =IF(COUNT($C$6:E26)>9,IF(P26=MAX($P$6:$P$35),P26," "),"") -> 737 | V26: =IF(COUNT(C26:E26)<1,0,IF(COUNT($C$6:E26)>9,C26+N26,0)) -> 249 | W26: =IF(COUNT(C26:E26)<1,0,IF(COUNT($C$6:E26)>9,D26+N26,0)) -> 221 | X26: =IF(COUNT(C26:E26)<1,0,IF(COUNT($C$6:E26)>9,E26+N26,0)) -> 267 | AA26: 0 | AB26: 21 | AC26: 21
A27: wk22 | B27: =Calendar!B27 -> 2019-02-13 | C27: 120 | D27: 145 | E27: 134 | F27: =IF(COUNT(C27:E27)<1," ",IF(AND(C27>M26,D27>M26,E27>M26,COUNT($C$6:E26)>=15),"*"," ")) ->  | G27: =IF(COUNT(C27:E27)<1," ",IF(AND(C27>M25,D27>M25,E27>M25,COUNT($C$6:E25)>=15),"*"," ")) ->  | H27: 399 | I27: 133 | J27: =_xlfn.IFS(SUM(C27:E27)<1,"",SUM(C27:E27)>=1,SUM($C$6:E27)) -> 6978 | K27: =_xlfn.IFS(COUNT(C27:E27)<1,"",COUNT($C$6:E27)>=1,COUNT($C$6:E27)) -> 54 | L27: =_xlfn.IFS(COUNT(C27:E27)<1,"",AND(COUNT($C$6:E27)<=9,$C$4>1),$C$4,COUNT(C27:E27)>=1,M27) -> 129 | M27: =IF(COUNT($C$6:E27)>=1,TRUNC(SUM($C$6:E27)/COUNT($C$6:E27)),0) -> 129 | N27: =IF(COUNT($C$6:E27)<=6,0,TRUNC((230-M26)*0.9)) -> 90 | O27: =_xlfn.IFS(SUM(C27:E27)<1,"",COUNT($C$6:E27)>9,TRUNC((230-M26)*(0.9)),COUNT($C$6:E27)<=9,0) -> 90 | P27: =_xlfn.IFS(SUM(C27:E27)<1,"",COUNT($C$6:E27)>9,N27*3+H27,COUNT($C$6:E27)<=9,0) -> 669 | S27: =IF(COUNT($C$6:E27)>9,IF(P27=MAX($P$6:$P$35),P27," "),"") ->  | V27: =IF(COUNT(C27:E27)<1,0,IF(COUNT($C$6:E27)>9,C27+N27,0)) -> 210 | W27: =IF(COUNT(C27:E27)<1,0,IF(COUNT($C$6:E27)>9,D27+N27,0)) -> 235 | X27: =IF(COUNT(C27:E27)<1,0,IF(COUNT($C$6:E27)>9,E27+N27,0)) -> 224 | AA27: 0 | AB27: 22 | AC27: 22
A28: wk23 | B28: =Calendar!B28 -> 2019-02-20 | C28: 119 | D28: 117 | E28: 128 | F28: =IF(COUNT(C28:E28)<1," ",IF(AND(C28>M27,D28>M27,E28>M27,COUNT($C$6:E27)>=15),"*"," ")) ->  | G28: =IF(COUNT(C28:E28)<1," ",IF(AND(C28>M26,D28>M26,E28>M26,COUNT($C$6:E26)>=15),"*"," ")) ->  | H28: 364 | I28: 121 | J28: =_xlfn.IFS(SUM(C28:E28)<1,"",SUM(C28:E28)>=1,SUM($C$6:E28)) -> 7342 | K28: =_xlfn.IFS(COUNT(C28:E28)<1,"",COUNT($C$6:E28)>=1,COUNT($C$6:E28)) -> 57 | L28: =_xlfn.IFS(COUNT(C28:E28)<1,"",AND(COUNT($C$6:E28)<=9,$C$4>1),$C$4,COUNT(C28:E28)>=1,M28) -> 128 | M28: =IF(COUNT($C$6:E28)>=1,TRUNC(SUM($C$6:E28)/COUNT($C$6:E28)),0) -> 128 | N28: =IF(COUNT($C$6:E28)<=6,0,TRUNC((230-M27)*0.9)) -> 90 | O28: =_xlfn.IFS(SUM(C28:E28)<1,"",COUNT($C$6:E28)>9,TRUNC((230-M27)*(0.9)),COUNT($C$6:E28)<=9,0) -> 90 | P28: =_xlfn.IFS(SUM(C28:E28)<1,"",COUNT($C$6:E28)>9,N28*3+H28,COUNT($C$6:E28)<=9,0) -> 634 | S28: =IF(COUNT($C$6:E28)>9,IF(P28=MAX($P$6:$P$35),P28," "),"") ->  | V28: =IF(COUNT(C28:E28)<1,0,IF(COUNT($C$6:E28)>9,C28+N28,0)) -> 209 | W28: =IF(COUNT(C28:E28)<1,0,IF(COUNT($C$6:E28)>9,D28+N28,0)) -> 207 | X28: =IF(COUNT(C28:E28)<1,0,IF(COUNT($C$6:E28)>9,E28+N28,0)) -> 218 | AA28: 0 | AB28: 23 | AC28: 23
A29: wk24 | B29: =Calendar!B29 -> 2019-02-27 | C29: 123 | D29: 135 | E29: 141 | F29: =IF(COUNT(C29:E29)<1," ",IF(AND(C29>M28,D29>M28,E29>M28,COUNT($C$6:E28)>=15),"*"," ")) ->  | G29: =IF(COUNT(C29:E29)<1," ",IF(AND(C29>M27,D29>M27,E29>M27,COUNT($C$6:E27)>=15),"*"," ")) ->  | H29: 399 | I29: 133 | J29: =_xlfn.IFS(SUM(C29:E29)<1,"",SUM(C29:E29)>=1,SUM($C$6:E29)) -> 7741 | K29: =_xlfn.IFS(COUNT(C29:E29)<1,"",COUNT($C$6:E29)>=1,COUNT($C$6:E29)) -> 60 | L29: =_xlfn.IFS(COUNT(C29:E29)<1,"",AND(COUNT($C$6:E29)<=9,$C$4>1),$C$4,COUNT(C29:E29)>=1,M29) -> 129 | M29: =IF(COUNT($C$6:E29)>=1,TRUNC(SUM($C$6:E29)/COUNT($C$6:E29)),0) -> 129 | N29: =IF(COUNT($C$6:E29)<=6,0,TRUNC((230-M28)*0.9)) -> 91 | O29: =_xlfn.IFS(SUM(C29:E29)<1,"",COUNT($C$6:E29)>9,TRUNC((230-M28)*(0.9)),COUNT($C$6:E29)<=9,0) -> 91 | P29: =_xlfn.IFS(SUM(C29:E29)<1,"",COUNT($C$6:E29)>9,N29*3+H29,COUNT($C$6:E29)<=9,0) -> 672 | S29: =IF(COUNT($C$6:E29)>9,IF(P29=MAX($P$6:$P$35),P29," "),"") ->  | V29: =IF(COUNT(C29:E29)<1,0,IF(COUNT($C$6:E29)>9,C29+N29,0)) -> 214 | W29: =IF(COUNT(C29:E29)<1,0,IF(COUNT($C$6:E29)>9,D29+N29,0)) -> 226 | X29: =IF(COUNT(C29:E29)<1,0,IF(COUNT($C$6:E29)>9,E29+N29,0)) -> 232 | AA29: 0 | AB29: 24 | AC29: 24
A30: wk25 | B30: =Calendar!B30 -> 2019-03-06 | C30: 101 | D30: 103 | E30: 141 | F30: =IF(COUNT(C30:E30)<1," ",IF(AND(C30>M29,D30>M29,E30>M29,COUNT($C$6:E29)>=15),"*"," ")) ->  | G30: =IF(COUNT(C30:E30)<1," ",IF(AND(C30>M28,D30>M28,E30>M28,COUNT($C$6:E28)>=15),"*"," ")) ->  | H30: 345 | I30: 115 | J30: =_xlfn.IFS(SUM(C30:E30)<1,"",SUM(C30:E30)>=1,SUM($C$6:E30)) -> 8086 | K30: =_xlfn.IFS(COUNT(C30:E30)<1,"",COUNT($C$6:E30)>=1,COUNT($C$6:E30)) -> 63 | L30: =_xlfn.IFS(COUNT(C30:E30)<1,"",AND(COUNT($C$6:E30)<=9,$C$4>1),$C$4,COUNT(C30:E30)>=1,M30) -> 128 | M30: =IF(COUNT($C$6:E30)>=1,TRUNC(SUM($C$6:E30)/COUNT($C$6:E30)),0) -> 128 | N30: =IF(COUNT($C$6:E30)<=6,0,TRUNC((230-M29)*0.9)) -> 90 | O30: =_xlfn.IFS(SUM(C30:E30)<1,"",COUNT($C$6:E30)>9,TRUNC((230-M29)*(0.9)),COUNT($C$6:E30)<=9,0) -> 90 | P30: =_xlfn.IFS(SUM(C30:E30)<1,"",COUNT($C$6:E30)>9,N30*3+H30,COUNT($C$6:E30)<=9,0) -> 615 | S30: =IF(COUNT($C$6:E30)>9,IF(P30=MAX($P$6:$P$35),P30," "),"") ->  | V30: =IF(COUNT(C30:E30)<1,0,IF(COUNT($C$6:E30)>9,C30+N30,0)) -> 191 | W30: =IF(COUNT(C30:E30)<1,0,IF(COUNT($C$6:E30)>9,D30+N30,0)) -> 193 | X30: =IF(COUNT(C30:E30)<1,0,IF(COUNT($C$6:E30)>9,E30+N30,0)) -> 231 | AA30: 0 | AB30: 25 | AC30: 25
A31: wk26 | B31: =Calendar!B31 -> 2019-03-13 | C31: 142 | D31: 129 | E31: 105 | F31: =IF(COUNT(C31:E31)<1," ",IF(AND(C31>M30,D31>M30,E31>M30,COUNT($C$6:E30)>=15),"*"," ")) ->  | G31: =IF(COUNT(C31:E31)<1," ",IF(AND(C31>M29,D31>M29,E31>M29,COUNT($C$6:E29)>=15),"*"," ")) ->  | H31: 376 | I31: 125 | J31: =_xlfn.IFS(SUM(C31:E31)<1,"",SUM(C31:E31)>=1,SUM($C$6:E31)) -> 8462 | K31: =_xlfn.IFS(COUNT(C31:E31)<1,"",COUNT($C$6:E31)>=1,COUNT($C$6:E31)) -> 66 | L31: =_xlfn.IFS(COUNT(C31:E31)<1,"",AND(COUNT($C$6:E31)<=9,$C$4>1),$C$4,COUNT(C31:E31)>=1,M31) -> 128 | M31: =IF(COUNT($C$6:E31)>=1,TRUNC(SUM($C$6:E31)/COUNT($C$6:E31)),0) -> 128 | N31: =IF(COUNT($C$6:E31)<=6,0,TRUNC((230-M30)*0.9)) -> 91 | O31: =_xlfn.IFS(SUM(C31:E31)<1,"",COUNT($C$6:E31)>9,TRUNC((230-M30)*(0.9)),COUNT($C$6:E31)<=9,0) -> 91 | P31: =_xlfn.IFS(SUM(C31:E31)<1,"",COUNT($C$6:E31)>9,N31*3+H31,COUNT($C$6:E31)<=9,0) -> 649 | S31: =IF(COUNT($C$6:E31)>9,IF(P31=MAX($P$6:$P$35),P31," "),"") ->  | V31: =IF(COUNT(C31:E31)<1,0,IF(COUNT($C$6:E31)>9,C31+N31,0)) -> 233 | W31: =IF(COUNT(C31:E31)<1,0,IF(COUNT($C$6:E31)>9,D31+N31,0)) -> 220 | X31: =IF(COUNT(C31:E31)<1,0,IF(COUNT($C$6:E31)>9,E31+N31,0)) -> 196 | AA31: 0 | AB31: 26 | AC31: 26
A32: wk27 | B32: =Calendar!B32 -> 2019-03-20 | C32: 121 | D32: 160 | E32: 150 | F32: =IF(COUNT(C32:E32)<1," ",IF(AND(C32>M31,D32>M31,E32>M31,COUNT($C$6:E31)>=15),"*"," ")) ->  | G32: =IF(COUNT(C32:E32)<1," ",IF(AND(C32>M30,D32>M30,E32>M30,COUNT($C$6:E30)>=15),"*"," ")) ->  | H32: 431 | I32: 143 | J32: =_xlfn.IFS(SUM(C32:E32)<1,"",SUM(C32:E32)>=1,SUM($C$6:E32)) -> 8893 | K32: =_xlfn.IFS(COUNT(C32:E32)<1,"",COUNT($C$6:E32)>=1,COUNT($C$6:E32)) -> 69 | L32: =_xlfn.IFS(COUNT(C32:E32)<1,"",AND(COUNT($C$6:E32)<=9,$C$4>1),$C$4,COUNT(C32:E32)>=1,M32) -> 128 | M32: =IF(COUNT($C$6:E32)>=1,TRUNC(SUM($C$6:E32)/COUNT($C$6:E32)),0) -> 128 | N32: =IF(COUNT($C$6:E32)<=6,0,TRUNC((230-M31)*0.9)) -> 91 | O32: =_xlfn.IFS(SUM(C32:E32)<1,"",COUNT($C$6:E32)>9,TRUNC((230-M31)*(0.9)),COUNT($C$6:E32)<=9,0) -> 91 | P32: =_xlfn.IFS(SUM(C32:E32)<1,"",COUNT($C$6:E32)>9,N32*3+H32,COUNT($C$6:E32)<=9,0) -> 704 | S32: =IF(COUNT($C$6:E32)>9,IF(P32=MAX($P$6:$P$35),P32," "),"") ->  | V32: =IF(COUNT(C32:E32)<1,0,IF(COUNT($C$6:E32)>9,C32+N32,0)) -> 212 | W32: =IF(COUNT(C32:E32)<1,0,IF(COUNT($C$6:E32)>9,D32+N32,0)) -> 251 | X32: =IF(COUNT(C32:E32)<1,0,IF(COUNT($C$6:E32)>9,E32+N32,0)) -> 241 | AA32: 0 | AB32: 27 | AC32: 27
A33: wk28 | B33: =Calendar!B33 -> 2019-03-27 | C33: 145 | D33: 182 | E33: 126 | F33: =IF(COUNT(C33:E33)<1," ",IF(AND(C33>M32,D33>M32,E33>M32,COUNT($C$6:E32)>=15),"*"," ")) ->  | G33: =IF(COUNT(C33:E33)<1," ",IF(AND(C33>M31,D33>M31,E33>M31,COUNT($C$6:E31)>=15),"*"," ")) ->  | H33: 453 | I33: 151 | J33: =_xlfn.IFS(SUM(C33:E33)<1,"",SUM(C33:E33)>=1,SUM($C$6:E33)) -> 9346 | K33: =_xlfn.IFS(COUNT(C33:E33)<1,"",COUNT($C$6:E33)>=1,COUNT($C$6:E33)) -> 72 | L33: =_xlfn.IFS(COUNT(C33:E33)<1,"",AND(COUNT($C$6:E33)<=9,$C$4>1),$C$4,COUNT(C33:E33)>=1,M33) -> 129 | M33: =IF(COUNT($C$6:E33)>=1,TRUNC(SUM($C$6:E33)/COUNT($C$6:E33)),0) -> 129 | N33: =IF(COUNT($C$6:E33)<=6,0,TRUNC((230-M32)*0.9)) -> 91 | O33: =_xlfn.IFS(SUM(C33:E33)<1,"",COUNT($C$6:E33)>9,TRUNC((230-M32)*(0.9)),COUNT($C$6:E33)<=9,0) -> 91 | P33: =_xlfn.IFS(SUM(C33:E33)<1,"",COUNT($C$6:E33)>9,N33*3+H33,COUNT($C$6:E33)<=9,0) -> 726 | R33: 182 | S33: =IF(COUNT($C$6:E33)>9,IF(P33=MAX($P$6:$P$35),P33," "),"") ->  | T33: 273 | V33: =IF(COUNT(C33:E33)<1,0,IF(COUNT($C$6:E33)>9,C33+N33,0)) -> 236 | W33: =IF(COUNT(C33:E33)<1,0,IF(COUNT($C$6:E33)>9,D33+N33,0)) -> 273 | X33: =IF(COUNT(C33:E33)<1,0,IF(COUNT($C$6:E33)>9,E33+N33,0)) -> 217 | AA33: 0 | AB33: 28 | AC33: 28
A34: wk29 | B34: =Calendar!B34 -> 2019-04-03 | C34: 106 | D34: 107 | E34: 147 | F34: =IF(COUNT(C34:E34)<1," ",IF(AND(C34>M33,D34>M33,E34>M33,COUNT($C$6:E33)>=15),"*"," ")) ->  | G34: =IF(COUNT(C34:E34)<1," ",IF(AND(C34>M32,D34>M32,E34>M32,COUNT($C$6:E32)>=15),"*"," ")) ->  | H34: 360 | I34: 120 | J34: =_xlfn.IFS(SUM(C34:E34)<1,"",SUM(C34:E34)>=1,SUM($C$6:E34)) -> 9706 | K34: =_xlfn.IFS(COUNT(C34:E34)<1,"",COUNT($C$6:E34)>=1,COUNT($C$6:E34)) -> 75 | L34: =_xlfn.IFS(COUNT(C34:E34)<1,"",AND(COUNT($C$6:E34)<=9,$C$4>1),$C$4,COUNT(C34:E34)>=1,M34) -> 129 | M34: =IF(COUNT($C$6:E34)>=1,TRUNC(SUM($C$6:E34)/COUNT($C$6:E34)),0) -> 129 | N34: =IF(COUNT($C$6:E34)<=6,0,TRUNC((230-M33)*0.9)) -> 90 | O34: =_xlfn.IFS(SUM(C34:E34)<1,"",COUNT($C$6:E34)>9,TRUNC((230-M33)*(0.9)),COUNT($C$6:E34)<=9,0) -> 90 | P34: =_xlfn.IFS(SUM(C34:E34)<1,"",COUNT($C$6:E34)>9,N34*3+H34,COUNT($C$6:E34)<=9,0) -> 630 | S34: =IF(COUNT($C$6:E34)>9,IF(P34=MAX($P$6:$P$35),P34," "),"") ->  | V34: =IF(COUNT(C34:E34)<1,0,IF(COUNT($C$6:E34)>9,C34+N34,0)) -> 196 | W34: =IF(COUNT(C34:E34)<1,0,IF(COUNT($C$6:E34)>9,D34+N34,0)) -> 197 | X34: =IF(COUNT(C34:E34)<1,0,IF(COUNT($C$6:E34)>9,E34+N34,0)) -> 237 | AA34: 0 | AB34: 29 | AC34: 29
A35: wk30 | B35: =Calendar!B35 -> 2019-04-10 | C35: 116 | D35: 115 | E35: 129 | F35: =IF(COUNT(C35:E35)<1," ",IF(AND(C35>M34,D35>M34,E35>M34,COUNT($C$6:E34)>=15),"*"," ")) ->  | G35: =IF(COUNT(C35:E35)<1," ",IF(AND(C35>M33,D35>M33,E35>M33,COUNT($C$6:E33)>=15),"*"," ")) ->  | H35: 360 | I35: 120 | J35: =_xlfn.IFS(SUM(C35:E35)<1,"",SUM(C35:E35)>=1,SUM($C$6:E35)) -> 10066 | K35: =_xlfn.IFS(COUNT(C35:E35)<1,"",COUNT($C$6:E35)>=1,COUNT($C$6:E35)) -> 78 | L35: =_xlfn.IFS(COUNT(C35:E35)<1,"",AND(COUNT($C$6:E35)<=9,$C$4>1),$C$4,COUNT(C35:E35)>=1,M35) -> 129 | M35: =IF(COUNT($C$6:E35)>=1,TRUNC(SUM($C$6:E35)/COUNT($C$6:E35)),0) -> 129 | N35: =IF(COUNT($C$6:E35)<=6,0,TRUNC((230-M34)*0.9)) -> 90 | O35: =_xlfn.IFS(SUM(C35:E35)<1,"",COUNT($C$6:E35)>9,TRUNC((230-M34)*(0.9)),COUNT($C$6:E35)<=9,0) -> 90 | P35: =_xlfn.IFS(SUM(C35:E35)<1,"",COUNT($C$6:E35)>9,N35*3+H35,COUNT($C$6:E35)<=9,0) -> 630 | S35: =IF(COUNT($C$6:E35)>9,IF(P35=MAX($P$6:$P$35),P35," "),"") ->  | V35: =IF(COUNT(C35:E35)<1,0,IF(COUNT($C$6:E35)>9,C35+N35,0)) -> 206 | W35: =IF(COUNT(C35:E35)<1,0,IF(COUNT($C$6:E35)>9,D35+N35,0)) -> 205 | X35: =IF(COUNT(C35:E35)<1,0,IF(COUNT($C$6:E35)>9,E35+N35,0)) -> 219 | AA35: 0 | AB35: 30 | AC35: 30
C36: =(IF(COUNT(C6:C35)=0," ",(SUM(C6:C35))/COUNT(C6:C35))) -> 127.50 | D36: =(IF(COUNT(D6:D35)=0," ",(SUM(D6:D35))/COUNT(D6:D35))) -> 126.73 | E36: =(IF(COUNT(E6:E35)=0," ",(SUM(E6:E35))/COUNT(E6:E35))) -> 132.92

Sheet DSharma
H1: =Calendar!H1 -> Wednesday Fun Fours 2018/19 season | R1: 6-over wk:
A2: wk# | B2: =MAX(AB6:AB35) -> 30 | R2: 0
A3: Name: | B3: Devi Sharma | I3: Perfect Attendance: | K3: =IF(SUM(AA6:AA35)<0.5,"Yes","No") -> No | L3: =_xlfn.IFS(AND(B2=30,K3="Yes"),"good",AND(B2<>30,K3="Yes"),"So Far",AND(B2<>30,K3="No")," ") -> 
A4: book average: | C4: 113 | H4: wky | I4: wky | J4: cumulative | L4: cumulative | P4: hdcp | Q4: high | R4: high | S4: high hcp | T4: high hcp
C5: g1 | D5: g2 | E5: g3 | H5: series | I5: average | J5: score | K5: games | L5: average | O5: hdcp | P5: series | Q5: series | R5: game | S5: series | T5: game | V5: =MAX(C6:E35) -> 142 | W5: =MAX(V6:X35) -> 246
A6: wk1 | B6: =Calendar!B6 -> 2018-09-05 | C6: 112 | D6: 138 | E6: 121 | H6: =IF(COUNT(C6:E6)<1," ",SUM(C6:E6)) -> 371 | I6: =IF(COUNT(C6:E6)<1," ",TRUNC(H6/COUNT(C6:E6))) -> 123 | J6: =_xlfn.IFS(SUM(C6:E6)<1,"",SUM(C6:E6)>=1,SUM($C$6:E6)) -> 371 | K6: =_xlfn.IFS(COUNT(C6:E6)<1,"",COUNT($C$6:E6)>=1,COUNT($C$6:E6)) -> 3 | L6: =_xlfn.IFS(COUNT(C6:E6)<1,"",AND(COUNT($C$6:E6)<=9,$C$4>1),$C$4,COUNT(C6:E6)>=1,M6) -> 113 | M6: =IF(COUNT($C$6:E6)>=1,TRUNC(SUM($C$6:E6)/COUNT($C$6:E6)),0) -> 123 | N6: =IF(COUNT($C$6:E6)<=6,0,TRUNC((230-M5)*0.9)) -> 0 | O6: =_xlfn.IFS(SUM(C6:E6)<1,"",COUNT($C$6:E6)>9,TRUNC((230-M5)*(0.9)),COUNT($C$6:E6)<=9,0) -> 0 | P6: =_xlfn.IFS(SUM(C6:E6)<1,"",COUNT($C$6:E6)>9,N6*3+H6,COUNT($C$6:E6)<=9,0) -> 0 | Q6: =IF(H6=(MAX($H$6:$H$35)),H6," ") ->  | R6: =IF((OR(C6=$V$5,D6=$V$5,E6=$V$5)),$V$5," ") ->  | S6: =IF(COUNT($C$6:E6)>9,IF(P6=MAX($P$6:$P$35),P6," "),"") ->  | T6: =IF(OR(V6=$W$5,W6=$W$5,X6=$W$5),$W$5," ") ->  | V6: =IF(COUNT(C6:E6)<1,0,IF(COUNT($C$6:E6)>9,C6+N6,0)) -> 0 | W6: =IF(COUNT(C6:E6)<1,0,IF(COUNT($C$6:E6)>9,D6+N6,0)) -> 0 | X6: =IF(COUNT(C6:E6)<1,0,IF(COUNT($C$6:E6)>9,E6+N6,0)) -> 0 | AA6: =IF((MAX($AB$6:$AB$35))<AC6,0,IF(AB6=AC6,0,1)) -> 0 | AB6: =IF(COUNT(C6:E6)>0,AC6,0) -> 1 | AC6: 1
A7: wk2 | B7: =Calendar!B7 -> 2018-09-12 | C7: 108 | D7: 105 | E7: 127 | H7: 340 | I7: =IF(COUNT(C7:E7)<1," ",TRUNC(H7/COUNT(C7:E7))) -> 113 | J7: =_xlfn.IFS(SUM(C7:E7)<1,"",SUM(C7:E7)>=1,SUM($C$6:E7)) -> 711 | K7: =_xlfn.IFS(COUNT(C7:E7)<1,"",COUNT($C$6:E7)>=1,COUNT($C$6:E7)) -> 6 | L7: =_xlfn.IFS(COUNT(C7:E7)<1,"",AND(COUNT($C$6:E7)<=9,$C$4>1),$C$4,COUNT(C7:E7)>=1,M7) -> 113 | M7: =IF(COUNT($C$6:E7)>=1,TRUNC(SUM($C$6:E7)/COUNT($C$6:E7)),0) -> 118 | N7: =IF(COUNT($C$6:E7)<=6,0,TRUNC((230-M6)*0.9)) -> 0 | O7: =_xlfn.IFS(SUM(C7:E7)<1,"",COUNT($C$6:E7)>9,TRUNC((230-M6)*(0.9)),COUNT($C$6:E7)<=9,0) -> 0 | P7: =_xlfn.IFS(SUM(C7:E7)<1,"",COUNT($C$6:E7)>9,N7*3+H7,COUNT($C$6:E7)<=9,0) -> 0 | S7: =IF(COUNT($C$6:E7)>9,IF(P7=MAX($P$6:$P$35),P7," "),"") ->  | V7: =IF(COUNT(C7:E7)<1,0,IF(COUNT($C$6:E7)>9,C7+N7,0)) -> 0 | W7: =IF(COUNT(C7:E7)<1,0,IF(COUNT($C$6:E7)>9,D7+N7,0)) -> 0 | X7: =IF(COUNT(C7:E7)<1,0,IF(COUNT($C$6:E7)>9,E7+N7,0)) -> 0 | AA7: 0 | AB7: =IF(COUNT(C7:E7)>0,AC7,0) -> 2 | AC7: 2
A8: wk3 | B8: =Calendar!B8 -> 2018-09-19 | C8: 142 | D8: 112 | E8: 123 | H8: 377 | I8: 125 | J8: =_xlfn.IFS(SUM(C8:E8)<1,"",SUM(C8:E8)>=1,SUM($C$6:E8)) -> 1088 | K8: =_xlfn.IFS(COUNT(C8:E8)<1,"",COUNT($C$6:E8)>=1,COUNT($C$6:E8)) -> 9 | L8: =_xlfn.IFS(COUNT(C8:E8)<1,"",AND(COUNT($C$6:E8)<=9,$C$4>1),$C$4,COUNT(C8:E8)>=1,M8) -> 113 | M8: =IF(COUNT($C$6:E8)>=1,TRUNC(SUM($C$6:E8)/COUNT($C$6:E8)),0) -> 120 | N8: =IF(COUNT($C$6:E8)<=6,0,TRUNC((230-M7)*0.9)) -> 100 | O8: =_xlfn.IFS(SUM(C8:E8)<1,"",COUNT($C$6:E8)>9,TRUNC((230-M7)*(0.9)),COUNT($C$6:E8)<=9,0) -> 0 | P8: =_xlfn.IFS(SUM(C8:E8)<1,"",COUNT($C$6:E8)>9,N8*3+H8,COUNT($C$6:E8)<=9,0) -> 0 | R8: 142 | S8: =IF(COUNT($C$6:E8)>9,IF(P8=MAX($P$6:$P$35),P8," "),"") ->  | V8: =IF(COUNT(C8:E8)<1,0,IF(COUNT($C$6:E8)>9,C8+N8,0)) -> 0 | W8: =IF(COUNT(C8:E8)<1,0,IF(COUNT($C$6:E8)>9,D8+N8,0)) -> 0 | X8: =IF(COUNT(C8:E8)<1,0,IF(COUNT($C$6:E8)>9,E8+N8,0)) -> 0 | AA8: 0 | AB8: 3 | AC8: 3
A9: wk4 | B9: =Calendar!B9 -> 2018-09-26 | C9: 106 | D9: 85 | E9: 141 | H9: 332 | I9: 110 | J9: =_xlfn.IFS(SUM(C9:E9)<1,"",SUM(C9:E9)>=1,SUM($C$6:E9)) -> 1420 | K9: =_xlfn.IFS(COUNT(C9:E9)<1,"",COUNT($C$6:E9)>=1,COUNT($C$6:E9)) -> 12 | L9: =_xlfn.IFS(COUNT(C9:E9)<1,"",AND(COUNT($C$6:E9)<=9,$C$4>1),$C$4,COUNT(C9:E9)>=1,M9) -> 118 | M9: =IF(COUNT($C$6:E9)>=1,TRUNC(SUM($C$6:E9)/COUNT($C$6:E9)),0) -> 118 | N9: =IF(COUNT($C$6:E9)<=6,0,TRUNC((230-M8)*0.9)) -> 99 | O9: =_xlfn.IFS(SUM(C9:E9)<1,"",COUNT($C$6:E9)>9,TRUNC((230-M8)*(0.9)),COUNT($C$6:E9)<=9,0) -> 99 | P9: =_xlfn.IFS(SUM(C9:E9)<1,"",COUNT($C$6:E9)>9,N9*3+H9,COUNT($C$6:E9)<=9,0) -> 629 | S9: =IF(COUNT($C$6:E9)>9,IF(P9=MAX($P$6:$P$35),P9," "),"") ->  | V9: =IF(COUNT(C9:E9)<1,0,IF(COUNT($C$6:E9)>9,C9+N9,0)) -> 205 | W9: =IF(COUNT(C9:E9)<1,0,IF(COUNT($C$6:E9)>9,D9+N9,0)) -> 184 | X9: =IF(COUNT(C9:E9)<1,0,IF(COUNT($C$6:E9)>9,E9+N9,0)) -> 240 | AA9: 0 | AB9: 4 | AC9: 4
A10: wk5 | B10: =Calendar!B10 -> 2018-10-03 | C10: 119 | D10: 102 | E10: 114 | F10: =IF(COUNT(C10:E10)<1," ",IF(AND(C10>M9,D10>M9,E10>M9,COUNT($C$6:E9)>=12),"*"," ")) ->  | H10: 335 | I10: 111 | J10: =_xlfn.IFS(SUM(C10:E10)<1,"",SUM(C10:E10)>=1,SUM($C$6:E10)) -> 1755 | K10: =_xlfn.IFS(COUNT(C10:E10)<1,"",COUNT($C$6:E10)>=1,COUNT($C$6:E10)) -> 15 | L10: =_xlfn.IFS(COUNT(C10:E10)<1,"",AND(COUNT($C$6:E10)<=9,$C$4>1),$C$4,COUNT(C10:E10)>=1,M10) -> 117 | M10: =IF(COUNT($C$6:E10)>=1,TRUNC(SUM($C$6:E10)/COUNT($C$6:E10)),0) -> 117 | N10: =IF(COUNT($C$6:E10)<=6,0,TRUNC((230-M9)*0.9)) -> 100 | O10: =_xlfn.IFS(SUM(C10:E10)<1,"",COUNT($C$6:E10)>9,TRUNC((230-M9)*(0.9)),COUNT($C$6:E10)<=9,0) -> 100 | P10: =_xlfn.IFS(SUM(C10:E10)<1,"",COUNT($C$6:E10)>9,N10*3+H10,COUNT($C$6:E10)<=9,0) -> 635 | S10: =IF(COUNT($C$6:E10)>9,IF(P10=MAX($P$6:$P$35),P10," "),"") ->  | V10: =IF(COUNT(C10:E10)<1,0,IF(COUNT($C$6:E10)>9,C10+N10,0)) -> 219 | W10: =IF(COUNT(C10:E10)<1,0,IF(COUNT($C$6:E10)>9,D10+N10,0)) -> 202 | X10: =IF(COUNT(C10:E10)<1,0,IF(COUNT($C$6:E10)>9,E10+N10,0)) -> 214 | AA10: 0 | AB10: 5 | AC10: 5
A11: wk6 | B11: =Calendar!B11 -> 2018-10-10 | F11: =IF(COUNT(C11:E11)<1," ",IF(AND(C11>M10,D11>M10,E11>M10,COUNT($C$6:E10)>=12),"*"," ")) ->  | G11: =IF(COUNT(C11:E11)<1," ",IF(AND(C11>M9,D11>M9,E11>M9,COUNT($C$6:E9)>=12),"*"," ")) ->  | J11: =_xlfn.IFS(SUM(C11:E11)<1,"",SUM(C11:E11)>=1,SUM($C$6:E11)) ->  | K11: =_xlfn.IFS(COUNT(C11:E11)<1,"",COUNT($C$6:E11)>=1,COUNT($C$6:E11)) ->  | L11: =_xlfn.IFS(COUNT(C11:E11)<1,"",AND(COUNT($C$6:E11)<=9,$C$4>1),$C$4,COUNT(C11:E11)>=1,M11) ->  | M11: =IF(COUNT($C$6:E11)>=1,TRUNC(SUM($C$6:E11)/COUNT($C$6:E11)),0) -> 117 | N11: =IF(COUNT($C$6:E11)<=6,0,TRUNC((230-M10)*0.9)) -> 101 | O11: =_xlfn.IFS(SUM(C11:E11)<1,"",COUNT($C$6:E11)>9,TRUNC((230-M10)*(0.9)),COUNT($C$6:E11)<=9,0) ->  | P11: =_xlfn.IFS(SUM(C11:E11)<1,"",COUNT($C$6:E11)>9,N11*3+H11,COUNT($C$6:E11)<=9,0) ->  | S11: =IF(COUNT($C$6:E11)>9,IF(P11=MAX($P$6:$P$35),P11," "),"") ->  | V11: =IF(COUNT(C11:E11)<1,0,IF(COUNT($C$6:E11)>9,C11+N11,0)) -> 0 | W11: =IF(COUNT(C11:E11)<1,0,IF(COUNT($C$6:E11)>9,D11+N11,0)) -> 0 | X11: =IF(COUNT(C11:E11)<1,0,IF(COUNT($C$6:E11)>9,E11+N11,0)) -> 0 | AA11: 1 | AB11: 0 | AC11: 6
A12: wk7 | B12: =Calendar!B12 -> 2018-10-17 | C12: 102 | D12: 130 | E12: 114 | F12: =IF(COUNT(C12:E12)<1," ",IF(AND(C12>M11,D12>M11,E12>M11,COUNT($C$6:E11)>=12),"*"," ")) ->  | G12: =IF(COUNT(C12:E12)<1," ",IF(AND(C12>M10,D12>M10,E12>M10,COUNT($C$6:E10)>=12),"*"," ")) ->  | H12: 346 | I12: 115 | J12: =_xlfn.IFS(SUM(C12:E12)<1,"",SUM(C12:E12)>=1,SUM($C$6:E12)) -> 2101 | K12: =_xlfn.IFS(COUNT(C12:E12)<1,"",COUNT($C$6:E12)>=1,COUNT($C$6:E12)) -> 18 | L12: =_xlfn.IFS(COUNT(C12:E12)<1,"",AND(COUNT($C$6:E12)<=9,$C$4>1),$C$4,COUNT(C12:E12)>=1,M12) -> 116 | M12: =IF(COUNT($C$6:E12)>=1,TRUNC(SUM($C$6:E12)/COUNT($C$6:E12)),0) -> 116 | N12: =IF(COUNT($C$6:E12)<=6,0,TRUNC((230-M11)*0.9)) -> 101 | O12: =_xlfn.IFS(SUM(C12:E12)<1,"",COUNT($C$6:E12)>9,TRUNC((230-M11)*(0.9)),COUNT($C$6:E12)<=9,0) -> 101 | P12: =_xlfn.IFS(SUM(C12:E12)<1,"",COUNT($C$6:E12)>9,N12*3+H12,COUNT($C$6:E12)<=9,0) -> 649 | S12: =IF(COUNT($C$6:E12)>9,IF(P12=MAX($P$6:$P$35),P12," "),"") ->  | V12: =IF(COUNT(C12:E12)<1,0,IF(COUNT($C$6:E12)>9,C12+N12,0)) -> 203 | W12: =IF(COUNT(C12:E12)<1,0,IF(COUNT($C$6:E12)>9,D12+N12,0)) -> 231 | X12: =IF(COUNT(C12:E12)<1,0,IF(COUNT($C$6:E12)>9,E12+N12,0)) -> 215 | AA12: 0 | AB12: 7 | AC12: 7
A13: wk8 | B13: =Calendar!B13 -> 2018-10-24 | C13: 131 | D13: 102 | E13: 108 | F13: =IF(COUNT(C13:E13)<1," ",IF(AND(C13>M12,D13>M12,E13>M12,COUNT($C$6:E12)>=12),"*"," ")) ->  | G13: =IF(COUNT(C13:E13)<1," ",IF(AND(C13>M11,D13>M11,E13>M11,COUNT($C$6:E11)>=12),"*"," ")) ->  | H13: 341 | I13: 113 | J13: =_xlfn.IFS(SUM(C13:E13)<1,"",SUM(C13:E13)>=1,SUM($C$6:E13)) -> 2442 | K13: =_xlfn.IFS(COUNT(C13:E13)<1,"",COUNT($C$6:E13)>=1,COUNT($C$6:E13)) -> 21 | L13: =_xlfn.IFS(COUNT(C13:E13)<1,"",AND(COUNT($C$6:E13)<=9,$C$4>1),$C$4,COUNT(C13:E13)>=1,M13) -> 116 | M13: =IF(COUNT($C$6:E13)>=1,TRUNC(SUM($C$6:E13)/COUNT($C$6:E13)),0) -> 116 | N13: =IF(COUNT($C$6:E13)<=6,0,TRUNC((230-M12)*0.9)) -> 102 | O13: =_xlfn.IFS(SUM(C13:E13)<1,"",COUNT($C$6:E13)>9,TRUNC((230-M12)*(0.9)),COUNT($C$6:E13)<=9,0) -> 102 | P13: =_xlfn.IFS(SUM(C13:E13)<1,"",COUNT($C$6:E13)>9,N13*3+H13,COUNT($C$6:E13)<=9,0) -> 647 | S13: =IF(COUNT($C$6:E13)>9,IF(P13=MAX($P$6:$P$35),P13," "),"") ->  | V13: =IF(COUNT(C13:E13)<1,0,IF(COUNT($C$6:E13)>9,C13+N13,0)) -> 233 | W13: =IF(COUNT(C13:E13)<1,0,IF(COUNT($C$6:E13)>9,D13+N13,0)) -> 204 | X13: =IF(COUNT(C13:E13)<1,0,IF(COUNT($C$6:E13)>9,E13+N13,0)) -> 210 | AA13: 0 | AB13: 8 | AC13: 8
A14: wk9 | B14: =Calendar!B14 -> 2018-10-31 | C14: 91 | D14: 91 | E14: 127 | F14: =IF(COUNT(C14:E14)<1," ",IF(AND(C14>M13,D14>M13,E14>M13,COUNT($C$6:E13)>=12),"*"," ")) ->  | G14: =IF(COUNT(C14:E14)<1," ",IF(AND(C14>M12,D14>M12,E14>M12,COUNT($C$6:E12)>=12),"*"," ")) ->  | H14: 309 | I14: 103 | J14: =_xlfn.IFS(SUM(C14:E14)<1,"",SUM(C14:E14)>=1,SUM($C$6:E14)) -> 2751 | K14: =_xlfn.IFS(COUNT(C14:E14)<1,"",COUNT($C$6:E14)>=1,COUNT($C$6:E14)) -> 24 | L14: =_xlfn.IFS(COUNT(C14:E14)<1,"",AND(COUNT($C$6:E14)<=9,$C$4>1),$C$4,COUNT(C14:E14)>=1,M14) -> 114 | M14: =IF(COUNT($C$6:E14)>=1,TRUNC(SUM($C$6:E14)/COUNT($C$6:E14)),0) -> 114 | N14: =IF(COUNT($C$6:E14)<=6,0,TRUNC((230-M13)*0.9)) -> 102 | O14: =_xlfn.IFS(SUM(C14:E14)<1,"",COUNT($C$6:E14)>9,TRUNC((230-M13)*(0.9)),COUNT($C$6:E14)<=9,0) -> 102 | P14: =_xlfn.IFS(SUM(C14:E14)<1,"",COUNT($C$6:E14)>9,N14*3+H14,COUNT($C$6:E14)<=9,0) -> 615 | S14: =IF(COUNT($C$6:E14)>9,IF(P14=MAX($P$6:$P$35),P14," "),"") ->  | V14: =IF(COUNT(C14:E14)<1,0,IF(COUNT($C$6:E14)>9,C14+N14,0)) -> 193 | W14: =IF(COUNT(C14:E14)<1,0,IF(COUNT($C$6:E14)>9,D14+N14,0)) -> 193 | X14: =IF(COUNT(C14:E14)<1,0,IF(COUNT($C$6:E14)>9,E14+N14,0)) -> 229 | AA14: 0 | AB14: 9 | AC14: 9
A15: wk10 | B15: =Calendar!B15 -> 2018-11-07 | F15: =IF(COUNT(C15:E15)<1," ",IF(AND(C15>M14,D15>M14,E15>M14,COUNT($C$6:E14)>=12),"*"," ")) ->  | G15: =IF(COUNT(C15:E15)<1," ",IF(AND(C15>M13,D15>M13,E15>M13,COUNT($C$6:E13)>=12),"*"," ")) ->  | J15: =_xlfn.IFS(SUM(C15:E15)<1,"",SUM(C15:E15)>=1,SUM($C$6:E15)) ->  | K15: =_xlfn.IFS(COUNT(C15:E15)<1,"",COUNT($C$6:E15)>=1,COUNT($C$6:E15)) ->  | L15: =_xlfn.IFS(COUNT(C15:E15)<1,"",AND(COUNT($C$6:E15)<=9,$C$4>1),$C$4,COUNT(C15:E15)>=1,M15) ->  | M15: =IF(COUNT($C$6:E15)>=1,TRUNC(SUM($C$6:E15)/COUNT($C$6:E15)),0) -> 114 | N15: =IF(COUNT($C$6:E15)<=6,0,TRUNC((230-M14)*0.9)) -> 104 | O15: =_xlfn.IFS(SUM(C15:E15)<1,"",COUNT($C$6:E15)>9,TRUNC((230-M14)*(0.9)),COUNT($C$6:E15)<=9,0) ->  | P15: =_xlfn.IFS(SUM(C15:E15)<1,"",COUNT($C$6:E15)>9,N15*3+H15,COUNT($C$6:E15)<=9,0) ->  | S15: =IF(COUNT($C$6:E15)>9,IF(P15=MAX($P$6:$P$35),P15," "),"") ->  | V15: =IF(COUNT(C15:E15)<1,0,IF(COUNT($C$6:E15)>9,C15+N15,0)) -> 0 | W15: =IF(COUNT(C15:E15)<1,0,IF(COUNT($C$6:E15)>9,D15+N15,0)) -> 0 | X15: =IF(COUNT(C15:E15)<1,0,IF(COUNT($C$6:E15)>9,E15+N15,0)) -> 0 | AA15: 1 | AB15: 0 | AC15: 10
A16: wk11 | B16: =Calendar!B16 -> 2018-11-14 | C16: 120 | D16: 120 | E16: 105 | F16: =IF(COUNT(C16:E16)<1," ",IF(AND(C16>M15,D16>M15,E16>M15,COUNT($C$6:E15)>=12),"*"," ")) ->  | G16: =IF(COUNT(C16:E16)<1," ",IF(AND(C16>M14,D16>M14,E16>M14,COUNT($C$6:E14)>=12),"*"," ")) ->  | H16: 345 | I16: 115 | J16: =_xlfn.IFS(SUM(C16:E16)<1,"",SUM(C16:E16)>=1,SUM($C$6:E16)) -> 3096 | K16: =_xlfn.IFS(COUNT(C16:E16)<1,"",COUNT($C$6:E16)>=1,COUNT($C$6:E16)) -> 27 | L16: =_xlfn.IFS(COUNT(C16:E16)<1,"",AND(COUNT($C$6:E16)<=9,$C$4>1),$C$4,COUNT(C16:E16)>=1,M16) -> 114 | M16: =IF(COUNT($C$6:E16)>=1,TRUNC(SUM($C$6:E16)/COUNT($C$6:E16)),0) -> 114 | N16: =IF(COUNT($C$6:E16)<=6,0,TRUNC((230-M15)*0.9)) -> 104 | O16: =_xlfn.IFS(SUM(C16:E16)<1,"",COUNT($C$6:E16)>9,TRUNC((230-M15)*(0.9)),COUNT($C$6:E16)<=9,0) -> 104 | P16: =_xlfn.IFS(SUM(C16:E16)<1,"",COUNT($C$6:E16)>9,N16*3+H16,COUNT($C$6:E16)<=9,0) -> 657 | S16: =IF(COUNT($C$6:E16)>9,IF(P16=MAX($P$6:$P$35),P16," "),"") ->  | V16: =IF(COUNT(C16:E16)<1,0,IF(COUNT($C$6:E16)>9,C16+N16,0)) -> 224 | W16: =IF(COUNT(C16:E16)<1,0,IF(COUNT($C$6:E16)>9,D16+N16,0)) -> 224 | X16: =IF(COUNT(C16:E16)<1,0,IF(COUNT($C$6:E16)>9,E16+N16,0)) -> 209 | AA16: 0 | AB16: 11 | AC16: 11
A17: wk12 | B17: =Calendar!B17 -> 2018-11-28 | C17: 105 | D17: 120 | E17: 134 | F17: =IF(COUNT(C17:E17)<1," ",IF(AND(C17>M16,D17>M16,E17>M16,COUNT($C$6:E16)>=12),"*"," ")) ->  | G17: =IF(COUNT(C17:E17)<1," ",IF(AND(C17>M15,D17>M15,E17>M15,COUNT($C$6:E15)>=12),"*"," ")) ->  | H17: 359 | I17: 119 | J17: =_xlfn.IFS(SUM(C17:E17)<1,"",SUM(C17:E17)>=1,SUM($C$6:E17)) -> 3455 | K17: =_xlfn.IFS(COUNT(C17:E17)<1,"",COUNT($C$6:E17)>=1,COUNT($C$6:E17)) -> 30 | L17: =_xlfn.IFS(COUNT(C17:E17)<1,"",AND(COUNT($C$6:E17)<=9,$C$4>1),$C$4,COUNT(C17:E17)>=1,M17) -> 115 | M17: =IF(COUNT($C$6:E17)>=1,TRUNC(SUM($C$6:E17)/COUNT($C$6:E17)),0) -> 115 | N17: =IF(COUNT($C$6:E17)<=6,0,TRUNC((230-M16)*0.9)) -> 104 | O17: =_xlfn.IFS(SUM(C17:E17)<1,"",COUNT($C$6:E17)>9,TRUNC((230-M16)*(0.9)),COUNT($C$6:E17)<=9,0) -> 104 | P17: =_xlfn.IFS(SUM(C17:E17)<1,"",COUNT($C$6:E17)>9,N17*3+H17,COUNT($C$6:E17)<=9,0) -> 671 | S17: =IF(COUNT($C$6:E17)>9,IF(P17=MAX($P$6:$P$35),P17," "),"") ->  | V17: =IF(COUNT(C17:E17)<1,0,IF(COUNT($C$6:E17)>9,C17+N17,0)) -> 209 | W17: =IF(COUNT(C17:E17)<1,0,IF(COUNT($C$6:E17)>9,D17+N17,0)) -> 224 | X17: =IF(COUNT(C17:E17)<1,0,IF(COUNT($C$6:E17)>9,E17+N17,0)) -> 238 | AA17: 0 | AB17: 12 | AC17: 12
A18: wk13 | B18: =Calendar!B18 -> 2018-12-05 | C18: 109 | D18: 111 | E18: 110 | F18: =IF(COUNT(C18:E18)<1," ",IF(AND(C18>M17,D18>M17,E18>M17,COUNT($C$6:E17)>=12),"*"," ")) ->  | G18: =IF(COUNT(C18:E18)<1," ",IF(AND(C18>M16,D18>M16,E18>M16,COUNT($C$6:E16)>=12),"*"," ")) ->  | H18: 330 | I18: 110 | J18: =_xlfn.IFS(SUM(C18:E18)<1,"",SUM(C18:E18)>=1,SUM($C$6:E18)) -> 3785 | K18: =_xlfn.IFS(COUNT(C18:E18)<1,"",COUNT($C$6:E18)>=1,COUNT($C$6:E18)) -> 33 | L18: =_xlfn.IFS(COUNT(C18:E18)<1,"",AND(COUNT($C$6:E18)<=9,$C$4>1),$C$4,COUNT(C18:E18)>=1,M18) -> 114 | M18: =IF(COUNT($C$6:E18)>=1,TRUNC(SUM($C$6:E18)/COUNT($C$6:E18)),0) -> 114 | N18: =IF(COUNT($C$6:E18)<=6,0,TRUNC((230-M17)*0.9)) -> 103 | O18: =_xlfn.IFS(SUM(C18:E18)<1,"",COUNT($C$6:E18)>9,TRUNC((230-M17)*(0.9)),COUNT($C$6:E18)<=9,0) -> 103 | P18: =_xlfn.IFS(SUM(C18:E18)<1,"",COUNT($C$6:E18)>9,N18*3+H18,COUNT($C$6:E18)<=9,0) -> 639 | S18: =IF(COUNT($C$6:E18)>9,IF(P18=MAX($P$6:$P$35),P18," "),"") ->  | V18: =IF(COUNT(C18:E18)<1,0,IF(COUNT($C$6:E18)>9,C18+N18,0)) -> 212 | W18: =IF(COUNT(C18:E18)<1,0,IF(COUNT($C$6:E18)>9,D18+N18,0)) -> 214 | X18: =IF(COUNT(C18:E18)<1,0,IF(COUNT($C$6:E18)>9,E18+N18,0)) -> 213 | AA18: 0 | AB18: 13 | AC18: 13
A19: wk14 | B19: =Calendar!B19 -> 2018-12-12 | C19: 104 | D19: 114 | E19: 123 | F19: =IF(COUNT(C19:E19)<1," ",IF(AND(C19>M18,D19>M18,E19>M18,COUNT($C$6:E18)>=12),"*"," ")) ->  | G19: =IF(COUNT(C19:E19)<1," ",IF(AND(C19>M17,D19>M17,E19>M17,COUNT($C$6:E17)>=12),"*"," ")) ->  | H19: 341 | I19: 113 | J19: =_xlfn.IFS(SUM(C19:E19)<1,"",SUM(C19:E19)>=1,SUM($C$6:E19)) -> 4126 | K19: =_xlfn.IFS(COUNT(C19:E19)<1,"",COUNT($C$6:E19)>=1,COUNT($C$6:E19)) -> 36 | L19: =_xlfn.IFS(COUNT(C19:E19)<1,"",AND(COUNT($C$6:E19)<=9,$C$4>1),$C$4,COUNT(C19:E19)>=1,M19) -> 114 | M19: =IF(COUNT($C$6:E19)>=1,TRUNC(SUM($C$6:E19)/COUNT($C$6:E19)),0) -> 114 | N19: =IF(COUNT($C$6:E19)<=6,0,TRUNC((230-M18)*0.9)) -> 104 | O19: =_xlfn.IFS(SUM(C19:E19)<1,"",COUNT($C$6:E19)>9,TRUNC((230-M18)*(0.9)),COUNT($C$6:E19)<=9,0) -> 104 | P19: =_xlfn.IFS(SUM(C19:E19)<1,"",COUNT($C$6:E19)>9,N19*3+H19,COUNT($C$6:E19)<=9,0) -> 653 | S19: =IF(COUNT($C$6:E19)>9,IF(P19=MAX($P$6:$P$35),P19," "),"") ->  | V19: =IF(COUNT(C19:E19)<1,0,IF(COUNT($C$6:E19)>9,C19+N19,0)) -> 208 | W19: =IF(COUNT(C19:E19)<1,0,IF(COUNT($C$6:E19)>9,D19+N19,0)) -> 218 | X19: =IF(COUNT(C19:E19)<1,0,IF(COUNT($C$6:E19)>9,E19+N19,0)) -> 227 | AA19: 0 | AB19: 14 | AC19: 14
A20: wk15 | B20: =Calendar!B20 -> 2018-12-19 | C20: 99 | D20: 98 | E20: 109 | F20: =IF(COUNT(C20:E20)<1," ",IF(AND(C20>M19,D20>M19,E20>M19,COUNT($C$6:E19)>=12),"*"," ")) ->  | G20: =IF(COUNT(C20:E20)<1," ",IF(AND(C20>M18,D20>M18,E20>M18,COUNT($C$6:E18)>=12),"*"," ")) ->  | H20: 306 | I20: 102 | J20: =_xlfn.IFS(SUM(C20:E20)<1,"",SUM(C20:E20)>=1,SUM($C$6:E20)) -> 4432 | K20: =_xlfn.IFS(COUNT(C20:E20)<1,"",COUNT($C$6:E20)>=1,COUNT($C$6:E20)) -> 39 | L20: =_xlfn.IFS(COUNT(C20:E20)<1,"",AND(COUNT($C$6:E20)<=9,$C$4>1),$C$4,COUNT(C20:E20)>=1,M20) -> 113 | M20: =IF(COUNT($C$6:E20)>=1,TRUNC(SUM($C$6:E20)/COUNT($C$6:E20)),0) -> 113 | N20: =IF(COUNT($C$6:E20)<=6,0,TRUNC((230-M19)*0.9)) -> 104 | O20: =_xlfn.IFS(SUM(C20:E20)<1,"",COUNT($C$6:E20)>9,TRUNC((230-M19)*(0.9)),COUNT($C$6:E20)<=9,0) -> 104 | P20: =_xlfn.IFS(SUM(C20:E20)<1,"",COUNT($C$6:E20)>9,N20*3+H20,COUNT($C$6:E20)<=9,0) -> 618 | S20: =IF(COUNT($C$6:E20)>9,IF(P20=MAX($P$6:$P$35),P20," "),"") ->  | V20: =IF(COUNT(C20:E20)<1,0,IF(COUNT($C$6:E20)>9,C20+N20,0)) -> 203 | W20: =IF(COUNT(C20:E20)<1,0,IF(COUNT($C$6:E20)>9,D20+N20,0)) -> 202 | X20: =IF(COUNT(C20:E20)<1,0,IF(COUNT($C$6:E20)>9,E20+N20,0)) -> 213 | AA20: 0 | AB20: 15 | AC20: 15
A21: wk16 | B21: =Calendar!B21 -> 2019-01-02 | C21: 87 | D21: 92 | E21: 105 | F21: =IF(COUNT(C21:E21)<1," ",IF(AND(C21>M20,D21>M20,E21>M20,COUNT($C$6:E20)>=12),"*"," ")) ->  | G21: =IF(COUNT(C21:E21)<1," ",IF(AND(C21>M19,D21>M19,E21>M19,COUNT($C$6:E19)>=12),"*"," ")) ->  | H21: 284 | I21: 94 | J21: =_xlfn.IFS(SUM(C21:E21)<1,"",SUM(C21:E21)>=1,SUM($C$6:E21)) -> 4716 | K21: =_xlfn.IFS(COUNT(C21:E21)<1,"",COUNT($C$6:E21)>=1,COUNT($C$6:E21)) -> 42 | L21: =_xlfn.IFS(COUNT(C21:E21)<1,"",AND(COUNT($C$6:E21)<=9,$C$4>1),$C$4,COUNT(C21:E21)>=1,M21) -> 112 | M21: =IF(COUNT($C$6:E21)>=1,TRUNC(SUM($C$6:E21)/COUNT($C$6:E21)),0) -> 112 | N21: =IF(COUNT($C$6:E21)<=6,0,TRUNC((230-M20)*0.9)) -> 105 | O21: =_xlfn.IFS(SUM(C21:E21)<1,"",COUNT($C$6:E21)>9,TRUNC((230-M20)*(0.9)),COUNT($C$6:E21)<=9,0) -> 105 | P21: =_xlfn.IFS(SUM(C21:E21)<1,"",COUNT($C$6:E21)>9,N21*3+H21,COUNT($C$6:E21)<=9,0) -> 599 | S21: =IF(COUNT($C$6:E21)>9,IF(P21=MAX($P$6:$P$35),P21," "),"") ->  | V21: =IF(COUNT(C21:E21)<1,0,IF(COUNT($C$6:E21)>9,C21+N21,0)) -> 192 | W21: =IF(COUNT(C21:E21)<1,0,IF(COUNT($C$6:E21)>9,D21+N21,0)) -> 197 | X21: =IF(COUNT(C21:E21)<1,0,IF(COUNT($C$6:E21)>9,E21+N21,0)) -> 210 | AA21: 0 | AB21: 16 | AC21: 16
A22: wk17 | B22: =Calendar!B22 -> 2019-01-09 | C22: 93 | D22: 111 | E22: 92 | F22: =IF(COUNT(C22:E22)<1," ",IF(AND(C22>M21,D22>M21,E22>M21,COUNT($C$6:E21)>=12),"*"," ")) ->  | G22: =IF(COUNT(C22:E22)<1," ",IF(AND(C22>M20,D22>M20,E22>M20,COUNT($C$6:E20)>=12),"*"," ")) ->  | H22: 296 | I22: 98 | J22: =_xlfn.IFS(SUM(C22:E22)<1,"",SUM(C22:E22)>=1,SUM($C$6:E22)) -> 5012 | K22: =_xlfn.IFS(COUNT(C22:E22)<1,"",COUNT($C$6:E22)>=1,COUNT($C$6:E22)) -> 45 | L22: =_xlfn.IFS(COUNT(C22:E22)<1,"",AND(COUNT($C$6:E22)<=9,$C$4>1),$C$4,COUNT(C22:E22)>=1,M22) -> 111 | M22: =IF(COUNT($C$6:E22)>=1,TRUNC(SUM($C$6:E22)/COUNT($C$6:E22)),0) -> 111 | N22: =IF(COUNT($C$6:E22)<=6,0,TRUNC((230-M21)*0.9)) -> 106 | O22: =_xlfn.IFS(SUM(C22:E22)<1,"",COUNT($C$6:E22)>9,TRUNC((230-M21)*(0.9)),COUNT($C$6:E22)<=9,0) -> 106 | P22: =_xlfn.IFS(SUM(C22:E22)<1,"",COUNT($C$6:E22)>9,N22*3+H22,COUNT($C$6:E22)<=9,0) -> 614 | S22: =IF(COUNT($C$6:E22)>9,IF(P22=MAX($P$6:$P$35),P22," "),"") ->  | V22: =IF(COUNT(C22:E22)<1,0,IF(COUNT($C$6:E22)>9,C22+N22,0)) -> 199 | W22: =IF(COUNT(C22:E22)<1,0,IF(COUNT($C$6:E22)>9,D22+N22,0)) -> 217 | X22: =IF(COUNT(C22:E22)<1,0,IF(COUNT($C$6:E22)>9,E22+N22,0)) -> 198 | AA22: 0 | AB22: 17 | AC22: 17
A23: wk18 | B23: =Calendar!B23 -> 2019-01-16 | F23: =IF(COUNT(C23:E23)<1," ",IF(AND(C23>M22,D23>M22,E23>M22,COUNT($C$6:E22)>=12),"*"," ")) ->  | G23: =IF(COUNT(C23:E23)<1," ",IF(AND(C23>M21,D23>M21,E23>M21,COUNT($C$6:E21)>=12),"*"," ")) ->  | J23: =_xlfn.IFS(SUM(C23:E23)<1,"",SUM(C23:E23)>=1,SUM($C$6:E23)) ->  | K23: =_xlfn.IFS(COUNT(C23:E23)<1,"",COUNT($C$6:E23)>=1,COUNT($C$6:E23)) ->  | L23: =_xlfn.IFS(COUNT(C23:E23)<1,"",AND(COUNT($C$6:E23)<=9,$C$4>1),$C$4,COUNT(C23:E23)>=1,M23) ->  | M23: =IF(COUNT($C$6:E23)>=1,TRUNC(SUM($C$6:E23)/COUNT($C$6:E23)),0) -> 111 | N23: =IF(COUNT($C$6:E23)<=6,0,TRUNC((230-M22)*0.9)) -> 107 | O23: =_xlfn.IFS(SUM(C23:E23)<1,"",COUNT($C$6:E23)>9,TRUNC((230-M22)*(0.9)),COUNT($C$6:E23)<=9,0) ->  | P23: =_xlfn.IFS(SUM(C23:E23)<1,"",COUNT($C$6:E23)>9,N23*3+H23,COUNT($C$6:E23)<=9,0) ->  | S23: =IF(COUNT($C$6:E23)>9,IF(P23=MAX($P$6:$P$35),P23," "),"") ->  | V23: =IF(COUNT(C23:E23)<1,0,IF(COUNT($C$6:E23)>9,C23+N23,0)) -> 0 | W23: =IF(COUNT(C23:E23)<1,0,IF(COUNT($C$6:E23)>9,D23+N23,0)) -> 0 | X23: =IF(COUNT(C23:E23)<1,0,IF(COUNT($C$6:E23)>9,E23+N23,0)) -> 0 | AA23: 1 | AB23: 0 | AC23: 18
A24: wk19 | B24: =Calendar!B24 -> 2019-01-23 | C24: 112 | D24: 115 | E24: 96 | F24: =IF(COUNT(C24:E24)<1," ",IF(AND(C24>M23,D24>M23,E24>M23,COUNT($C$6:E23)>=12),"*"," ")) ->  | G24: =IF(COUNT(C24:E24)<1," ",IF(AND(C24>M22,D24>M22,E24>M22,COUNT($C$6:E22)>=12),"*"," ")) ->  | H24: 323 | I24: 107 | J24: =_xlfn.IFS(SUM(C24:E24)<1,"",SUM(C24:E24)>=1,SUM($C$6:E24)) -> 5335 | K24: =_xlfn.IFS(COUNT(C24:E24)<1,"",COUNT($C$6:E24)>=1,COUNT($C$6:E24)) -> 48 | L24: =_xlfn.IFS(COUNT(C24:E24)<1,"",AND(COUNT($C$6:E24)<=9,$C$4>1),$C$4,COUNT(C24:E24)>=1,M24) -> 111 | M24: =IF(COUNT($C$6:E24)>=1,TRUNC(SUM($C$6:E24)/COUNT($C$6:E24)),0) -> 111 | N24: =IF(COUNT($C$6:E24)<=6,0,TRUNC((230-M23)*0.9)) -> 107 | O24: =_xlfn.IFS(SUM(C24:E24)<1,"",COUNT($C$6:E24)>9,TRUNC((230-M23)*(0.9)),COUNT($C$6:E24)<=9,0) -> 107 | P24: =_xlfn.IFS(SUM(C24:E24)<1,"",COUNT($C$6:E24)>9,N24*3+H24,COUNT($C$6:E24)<=9,0) -> 644 | S24: =IF(COUNT($C$6:E24)>9,IF(P24=MAX($P$6:$P$35),P24," "),"") ->  | V24: =IF(COUNT(C24:E24)<1,0,IF(COUNT($C$6:E24)>9,C24+N24,0)) -> 219 | W24: =IF(COUNT(C24:E24)<1,0,IF(COUNT($C$6:E24)>9,D24+N24,0)) -> 222 | X24: =IF(COUNT(C24:E24)<1,0,IF(COUNT($C$6:E24)>9,E24+N24,0)) -> 203 | AA24: 0 | AB24: 19 | AC24: 19
A25: wk20 | B25: =Calendar!B25 -> 2019-01-30 | C25: 86 | D25: 107 | E25: 112 | F25: =IF(COUNT(C25:E25)<1," ",IF(AND(C25>M24,D25>M24,E25>M24,COUNT($C$6:E24)>=12),"*"," ")) ->  | G25: =IF(COUNT(C25:E25)<1," ",IF(AND(C25>M23,D25>M23,E25>M23,COUNT($C$6:E23)>=12),"*"," ")) ->  | H25: 305 | I25: 101 | J25: =_xlfn.IFS(SUM(C25:E25)<1,"",SUM(C25:E25)>=1,SUM($C$6:E25)) -> 5640 | K25: =_xlfn.IFS(COUNT(C25:E25)<1,"",COUNT($C$6:E25)>=1,COUNT($C$6:E25)) -> 51 | L25: =_xlfn.IFS(COUNT(C25:E25)<1,"",AND(COUNT($C$6:E25)<=9,$C$4>1),$C$4,COUNT(C25:E25)>=1,M25) -> 110 | M25: =IF(COUNT($C$6:E25)>=1,TRUNC(SUM($C$6:E25)/COUNT($C$6:E25)),0) -> 110 | N25: =IF(COUNT($C$6:E25)<=6,0,TRUNC((230-M24)*0.9)) -> 107 | O25: =_xlfn.IFS(SUM(C25:E25)<1,"",COUNT($C$6:E25)>9,TRUNC((230-M24)*(0.9)),COUNT($C$6:E25)<=9,0) -> 107 | P25: =_xlfn.IFS(SUM(C25:E25)<1,"",COUNT($C$6:E25)>9,N25*3+H25,COUNT($C$6:E25)<=9,0) -> 626 | S25: =IF(COUNT($C$6:E25)>9,IF(P25=MAX($P$6:$P$35),P25," "),"") ->  | V25: =IF(COUNT(C25:E25)<1,0,IF(COUNT($C$6:E25)>9,C25+N25,0)) -> 193 | W25: =IF(COUNT(C25:E25)<1,0,IF(COUNT($C$6:E25)>9,D25+N25,0)) -> 214 | X25: =IF(COUNT(C25:E25)<1,0,IF(COUNT($C$6:E25)>9,E25+N25,0)) -> 219 | AA25: 0 | AB25: 20 | AC25: 20
A26: wk21 | B26: =Calendar!B26 -> 2019-02-06 | C26: 117 | D26: 135 | E26: 124 | F26: =IF(COUNT(C26:E26)<1," ",IF(AND(C26>M25,D26>M25,E26>M25,COUNT($C$6:E25)>=12),"*"," ")) -> * | G26: =IF(COUNT(C26:E26)<1," ",IF(AND(C26>M24,D26>M24,E26>M24,COUNT($C$6:E24)>=12),"*"," ")) -> * | H26: 376 | I26: 125 | J26: =_xlfn.IFS(SUM(C26:E26)<1,"",SUM(C26:E26)>=1,SUM($C$6:E26)) -> 6016 | K26: =_xlfn.IFS(COUNT(C26:E26)<1,"",COUNT($C$6:E26)>=1,COUNT($C$6:E26)) -> 54 | L26: =_xlfn.IFS(COUNT(C26:E26)<1,"",AND(COUNT($C$6:E26)<=9,$C$4>1),$C$4,COUNT(C26:E26)>=1,M26) -> 111 | M26: =IF(COUNT($C$6:E26)>=1,TRUNC(SUM($C$6:E26)/COUNT($C$6:E26)),0) -> 111 | N26: =IF(COUNT($C$6:E26)<=6,0,TRUNC((230-M25)*0.9)) -> 108 | O26: =_xlfn.IFS(SUM(C26:E26)<1,"",COUNT($C$6:E26)>9,TRUNC((230-M25)*(0.9)),COUNT($C$6:E26)<=9,0) -> 108 | P26: =_xlfn.IFS(SUM(C26:E26)<1,"",COUNT($C$6:E26)>9,N26*3+H26,COUNT($C$6:E26)<=9,0) -> 700 | S26: =IF(COUNT($C$6:E26)>9,IF(P26=MAX($P$6:$P$35),P26," "),"") ->  | V26: =IF(COUNT(C26:E26)<1,0,IF(COUNT($C$6:E26)>9,C26+N26,0)) -> 225 | W26: =IF(COUNT(C26:E26)<1,0,IF(COUNT($C$6:E26)>9,D26+N26,0)) -> 243 | X26: =IF(COUNT(C26:E26)<1,0,IF(COUNT($C$6:E26)>9,E26+N26,0)) -> 232 | AA26: 0 | AB26: 21 | AC26: 21
A27: wk22 | B27: =Calendar!B27 -> 2019-02-13 | C27: 103 | D27: 97 | E27: 113 | F27: =IF(COUNT(C27:E27)<1," ",IF(AND(C27>M26,D27>M26,E27>M26,COUNT($C$6:E26)>=12),"*"," ")) ->  | G27: =IF(COUNT(C27:E27)<1," ",IF(AND(C27>M25,D27>M25,E27>M25,COUNT($C$6:E25)>=12),"*"," ")) ->  | H27: 313 | I27: 104 | J27: =_xlfn.IFS(SUM(C27:E27)<1,"",SUM(C27:E27)>=1,SUM($C$6:E27)) -> 6329 | K27: =_xlfn.IFS(COUNT(C27:E27)<1,"",COUNT($C$6:E27)>=1,COUNT($C$6:E27)) -> 57 | L27: =_xlfn.IFS(COUNT(C27:E27)<1,"",AND(COUNT($C$6:E27)<=9,$C$4>1),$C$4,COUNT(C27:E27)>=1,M27) -> 111 | M27: =IF(COUNT($C$6:E27)>=1,TRUNC(SUM($C$6:E27)/COUNT($C$6:E27)),0) -> 111 | N27: =IF(COUNT($C$6:E27)<=6,0,TRUNC((230-M26)*0.9)) -> 107 | O27: =_xlfn.IFS(SUM(C27:E27)<1,"",COUNT($C$6:E27)>9,TRUNC((230-M26)*(0.9)),COUNT($C$6:E27)<=9,0) -> 107 | P27: =_xlfn.IFS(SUM(C27:E27)<1,"",COUNT($C$6:E27)>9,N27*3+H27,COUNT($C$6:E27)<=9,0) -> 634 | S27: =IF(COUNT($C$6:E27)>9,IF(P27=MAX($P$6:$P$35),P27," "),"") ->  | V27: =IF(COUNT(C27:E27)<1,0,IF(COUNT($C$6:E27)>9,C27+N27,0)) -> 210 | W27: =IF(COUNT(C27:E27)<1,0,IF(COUNT($C$6:E27)>9,D27+N27,0)) -> 204 | X27: =IF(COUNT(C27:E27)<1,0,IF(COUNT($C$6:E27)>9,E27+N27,0)) -> 220 | AA27: 0 | AB27: 22 | AC27: 22
A28: wk23 | B28: =Calendar!B28 -> 2019-02-20 | C28: 129 | D28: 125 | E28: 117 | F28: =IF(COUNT(C28:E28)<1," ",IF(AND(C28>M27,D28>M27,E28>M27,COUNT($C$6:E27)>=12),"*"," ")) -> * | G28: =IF(COUNT(C28:E28)<1," ",IF(AND(C28>M26,D28>M26,E28>M26,COUNT($C$6:E26)>=12),"*"," ")) -> * | H28: 371 | I28: 123 | J28: =_xlfn.IFS(SUM(C28:E28)<1,"",SUM(C28:E28)>=1,SUM($C$6:E28)) -> 6700 | K28: =_xlfn.IFS(COUNT(C28:E28)<1,"",COUNT($C$6:E28)>=1,COUNT($C$6:E28)) -> 60 | L28: =_xlfn.IFS(COUNT(C28:E28)<1,"",AND(COUNT($C$6:E28)<=9,$C$4>1),$C$4,COUNT(C28:E28)>=1,M28) -> 111 | M28: =IF(COUNT($C$6:E28)>=1,TRUNC(SUM($C$6:E28)/COUNT($C$6:E28)),0) -> 111 | N28: =IF(COUNT($C$6:E28)<=6,0,TRUNC((230-M27)*0.9)) -> 107 | O28: =_xlfn.IFS(SUM(C28:E28)<1,"",COUNT($C$6:E28)>9,TRUNC((230-M27)*(0.9)),COUNT($C$6:E28)<=9,0) -> 107 | P28: =_xlfn.IFS(SUM(C28:E28)<1,"",COUNT($C$6:E28)>9,N28*3+H28,COUNT($C$6:E28)<=9,0) -> 692 | S28: =IF(COUNT($C$6:E28)>9,IF(P28=MAX($P$6:$P$35),P28," "),"") ->  | V28: =IF(COUNT(C28:E28)<1,0,IF(COUNT($C$6:E28)>9,C28+N28,0)) -> 236 | W28: =IF(COUNT(C28:E28)<1,0,IF(COUNT($C$6:E28)>9,D28+N28,0)) -> 232 | X28: =IF(COUNT(C28:E28)<1,0,IF(COUNT($C$6:E28)>9,E28+N28,0)) -> 224 | AA28: 0 | AB28: 23 | AC28: 23
A29: wk24 | B29: =Calendar!B29 -> 2019-02-27 | F29: =IF(COUNT(C29:E29)<1," ",IF(AND(C29>M28,D29>M28,E29>M28,COUNT($C$6:E28)>=12),"*"," ")) ->  | G29: =IF(COUNT(C29:E29)<1," ",IF(AND(C29>M27,D29>M27,E29>M27,COUNT($C$6:E27)>=12),"*"," ")) ->  | J29: =_xlfn.IFS(SUM(C29:E29)<1,"",SUM(C29:E29)>=1,SUM($C$6:E29)) ->  | K29: =_xlfn.IFS(COUNT(C29:E29)<1,"",COUNT($C$6:E29)>=1,COUNT($C$6:E29)) ->  | L29: =_xlfn.IFS(COUNT(C29:E29)<1,"",AND(COUNT($C$6:E29)<=9,$C$4>1),$C$4,COUNT(C29:E29)>=1,M29) ->  | M29: =IF(COUNT($C$6:E29)>=1,TRUNC(SUM($C$6:E29)/COUNT($C$6:E29)),0) -> 111 | N29: =IF(COUNT($C$6:E29)<=6,0,TRUNC((230-M28)*0.9)) -> 107 | O29: =_xlfn.IFS(SUM(C29:E29)<1,"",COUNT($C$6:E29)>9,TRUNC((230-M28)*(0.9)),COUNT($C$6:E29)<=9,0) ->  | P29: =_xlfn.IFS(SUM(C29:E29)<1,"",COUNT($C$6:E29)>9,N29*3+H29,COUNT($C$6:E29)<=9,0) ->  | S29: =IF(COUNT($C$6:E29)>9,IF(P29=MAX($P$6:$P$35),P29," "),"") ->  | V29: =IF(COUNT(C29:E29)<1,0,IF(COUNT($C$6:E29)>9,C29+N29,0)) -> 0 | W29: =IF(COUNT(C29:E29)<1,0,IF(COUNT($C$6:E29)>9,D29+N29,0)) -> 0 | X29: =IF(COUNT(C29:E29)<1,0,IF(COUNT($C$6:E29)>9,E29+N29,0)) -> 0 | AA29: 1 | AB29: 0 | AC29: 24
A30: wk25 | B30: =Calendar!B30 -> 2019-03-06 | C30: 118 | D30: 112 | E30: 117 | F30: =IF(COUNT(C30:E30)<1," ",IF(AND(C30>M29,D30>M29,E30>M29,COUNT($C$6:E29)>=12),"*"," ")) -> * | G30: =IF(COUNT(C30:E30)<1," ",IF(AND(C30>M28,D30>M28,E30>M28,COUNT($C$6:E28)>=12),"*"," ")) -> * | H30: 347 | I30: 115 | J30: =_xlfn.IFS(SUM(C30:E30)<1,"",SUM(C30:E30)>=1,SUM($C$6:E30)) -> 7047 | K30: =_xlfn.IFS(COUNT(C30:E30)<1,"",COUNT($C$6:E30)>=1,COUNT($C$6:E30)) -> 63 | L30: =_xlfn.IFS(COUNT(C30:E30)<1,"",AND(COUNT($C$6:E30)<=9,$C$4>1),$C$4,COUNT(C30:E30)>=1,M30) -> 111 | M30: =IF(COUNT($C$6:E30)>=1,TRUNC(SUM($C$6:E30)/COUNT($C$6:E30)),0) -> 111 | N30: =IF(COUNT($C$6:E30)<=6,0,TRUNC((230-M29)*0.9)) -> 107 | O30: =_xlfn.IFS(SUM(C30:E30)<1,"",COUNT($C$6:E30)>9,TRUNC((230-M29)*(0.9)),COUNT($C$6:E30)<=9,0) -> 107 | P30: =_xlfn.IFS(SUM(C30:E30)<1,"",COUNT($C$6:E30)>9,N30*3+H30,COUNT($C$6:E30)<=9,0) -> 668 | S30: =IF(COUNT($C$6:E30)>9,IF(P30=MAX($P$6:$P$35),P30," "),"") ->  | V30: =IF(COUNT(C30:E30)<1,0,IF(COUNT($C$6:E30)>9,C30+N30,0)) -> 225 | W30: =IF(COUNT(C30:E30)<1,0,IF(COUNT($C$6:E30)>9,D30+N30,0)) -> 219 | X30: =IF(COUNT(C30:E30)<1,0,IF(COUNT($C$6:E30)>9,E30+N30,0)) -> 224 | AA30: 0 | AB30: 25 | AC30: 25
A31: wk26 | B31: =Calendar!B31 -> 2019-03-13 | C31: 102 | D31: 111 | E31: 96 | F31: =IF(COUNT(C31:E31)<1," ",IF(AND(C31>M30,D31>M30,E31>M30,COUNT($C$6:E30)>=12),"*"," ")) ->  | G31: =IF(COUNT(C31:E31)<1," ",IF(AND(C31>M29,D31>M29,E31>M29,COUNT($C$6:E29)>=12),"*"," ")) ->  | H31: 309 | I31: 103 | J31: =_xlfn.IFS(SUM(C31:E31)<1,"",SUM(C31:E31)>=1,SUM($C$6:E31)) -> 7356 | K31: =_xlfn.IFS(COUNT(C31:E31)<1,"",COUNT($C$6:E31)>=1,COUNT($C$6:E31)) -> 66 | L31: =_xlfn.IFS(COUNT(C31:E31)<1,"",AND(COUNT($C$6:E31)<=9,$C$4>1),$C$4,COUNT(C31:E31)>=1,M31) -> 111 | M31: =IF(COUNT($C$6:E31)>=1,TRUNC(SUM($C$6:E31)/COUNT($C$6:E31)),0) -> 111 | N31: =IF(COUNT($C$6:E31)<=6,0,TRUNC((230-M30)*0.9)) -> 107 | O31: =_xlfn.IFS(SUM(C31:E31)<1,"",COUNT($C$6:E31)>9,TRUNC((230-M30)*(0.9)),COUNT($C$6:E31)<=9,0) -> 107 | P31: =_xlfn.IFS(SUM(C31:E31)<1,"",COUNT($C$6:E31)>9,N31*3+H31,COUNT($C$6:E31)<=9,0) -> 630 | S31: =IF(COUNT($C$6:E31)>9,IF(P31=MAX($P$6:$P$35),P31," "),"") ->  | V31: =IF(COUNT(C31:E31)<1,0,IF(COUNT($C$6:E31)>9,C31+N31,0)) -> 209 | W31: =IF(COUNT(C31:E31)<1,0,IF(COUNT($C$6:E31)>9,D31+N31,0)) -> 218 | X31: =IF(COUNT(C31:E31)<1,0,IF(COUNT($C$6:E31)>9,E31+N31,0)) -> 203 | AA31: 0 | AB31: 26 | AC31: 26
A32: wk27 | B32: =Calendar!B32 -> 2019-03-20 | C32: 105 | D32: 97 | E32: 90 | F32: =IF(COUNT(C32:E32)<1," ",IF(AND(C32>M31,D32>M31,E32>M31,COUNT($C$6:E31)>=12),"*"," ")) ->  | G32: =IF(COUNT(C32:E32)<1," ",IF(AND(C32>M30,D32>M30,E32>M30,COUNT($C$6:E30)>=12),"*"," ")) ->  | H32: 292 | I32: 97 | J32: =_xlfn.IFS(SUM(C32:E32)<1,"",SUM(C32:E32)>=1,SUM($C$6:E32)) -> 7648 | K32: =_xlfn.IFS(COUNT(C32:E32)<1,"",COUNT($C$6:E32)>=1,COUNT($C$6:E32)) -> 69 | L32: =_xlfn.IFS(COUNT(C32:E32)<1,"",AND(COUNT($C$6:E32)<=9,$C$4>1),$C$4,COUNT(C32:E32)>=1,M32) -> 110 | M32: =IF(COUNT($C$6:E32)>=1,TRUNC(SUM($C$6:E32)/COUNT($C$6:E32)),0) -> 110 | N32: =IF(COUNT($C$6:E32)<=6,0,TRUNC((230-M31)*0.9)) -> 107 | O32: =_xlfn.IFS(SUM(C32:E32)<1,"",COUNT($C$6:E32)>9,TRUNC((230-M31)*(0.9)),COUNT($C$6:E32)<=9,0) -> 107 | P32: =_xlfn.IFS(SUM(C32:E32)<1,"",COUNT($C$6:E32)>9,N32*3+H32,COUNT($C$6:E32)<=9,0) -> 613 | S32: =IF(COUNT($C$6:E32)>9,IF(P32=MAX($P$6:$P$35),P32," "),"") ->  | V32: =IF(COUNT(C32:E32)<1,0,IF(COUNT($C$6:E32)>9,C32+N32,0)) -> 212 | W32: =IF(COUNT(C32:E32)<1,0,IF(COUNT($C$6:E32)>9,D32+N32,0)) -> 204 | X32: =IF(COUNT(C32:E32)<1,0,IF(COUNT($C$6:E32)>9,E32+N32,0)) -> 197 | AA32: 0 | AB32: 27 | AC32: 27
A33: wk28 | B33: =Calendar!B33 -> 2019-03-27 | C33: 109 | D33: 84 | E33: 117 | F33: =IF(COUNT(C33:E33)<1," ",IF(AND(C33>M32,D33>M32,E33>M32,COUNT($C$6:E32)>=12),"*"," ")) ->  | G33: =IF(COUNT(C33:E33)<1," ",IF(AND(C33>M31,D33>M31,E33>M31,COUNT($C$6:E31)>=12),"*"," ")) ->  | H33: 310 | I33: 103 | J33: =_xlfn.IFS(SUM(C33:E33)<1,"",SUM(C33:E33)>=1,SUM($C$6:E33)) -> 7958 | K33: =_xlfn.IFS(COUNT(C33:E33)<1,"",COUNT($C$6:E33)>=1,COUNT($C$6:E33)) -> 72 | L33: =_xlfn.IFS(COUNT(C33:E33)<1,"",AND(COUNT($C$6:E33)<=9,$C$4>1),$C$4,COUNT(C33:E33)>=1,M33) -> 110 | M33: =IF(COUNT($C$6:E33)>=1,TRUNC(SUM($C$6:E33)/COUNT($C$6:E33)),0) -> 110 | N33: =IF(COUNT($C$6:E33)<=6,0,TRUNC((230-M32)*0.9)) -> 108 | O33: =_xlfn.IFS(SUM(C33:E33)<1,"",COUNT($C$6:E33)>9,TRUNC((230-M32)*(0.9)),COUNT($C$6:E33)<=9,0) -> 108 | P33: =_xlfn.IFS(SUM(C33:E33)<1,"",COUNT($C$6:E33)>9,N33*3+H33,COUNT($C$6:E33)<=9,0) -> 634 | S33: =IF(COUNT($C$6:E33)>9,IF(P33=MAX($P$6:$P$35),P33," "),"") ->  | V33: =IF(COUNT(C33:E33)<1,0,IF(COUNT($C$6:E33)>9,C33+N33,0)) -> 217 | W33: =IF(COUNT(C33:E33)<1,0,IF(COUNT($C$6:E33)>9,D33+N33,0)) -> 192 | X33: =IF(COUNT(C33:E33)<1,0,IF(COUNT($C$6:E33)>9,E33+N33,0)) -> 225 | AA33: 0 | AB33: 28 | AC33: 28
A34: wk29 | B34: =Calendar!B34 -> 2019-04-03 | C34: 138 | D34: 116 | E34: 126 | F34: =IF(COUNT(C34:E34)<1," ",IF(AND(C34>M33,D34>M33,E34>M33,COUNT($C$6:E33)>=12),"*"," ")) -> * | G34: =IF(COUNT(C34:E34)<1," ",IF(AND(C34>M32,D34>M32,E34>M32,COUNT($C$6:E32)>=12),"*"," ")) -> * | H34: 380 | I34: 126 | J34: =_xlfn.IFS(SUM(C34:E34)<1,"",SUM(C34:E34)>=1,SUM($C$6:E34)) -> 8338 | K34: =_xlfn.IFS(COUNT(C34:E34)<1,"",COUNT($C$6:E34)>=1,COUNT($C$6:E34)) -> 75 | L34: =_xlfn.IFS(COUNT(C34:E34)<1,"",AND(COUNT($C$6:E34)<=9,$C$4>1),$C$4,COUNT(C34:E34)>=1,M34) -> 111 | M34: =IF(COUNT($C$6:E34)>=1,TRUNC(SUM($C$6:E34)/COUNT($C$6:E34)),0) -> 111 | N34: =IF(COUNT($C$6:E34)<=6,0,TRUNC((230-M33)*0.9)) -> 108 | O34: =_xlfn.IFS(SUM(C34:E34)<1,"",COUNT($C$6:E34)>9,TRUNC((230-M33)*(0.9)),COUNT($C$6:E34)<=9,0) -> 108 | P34: =_xlfn.IFS(SUM(C34:E34)<1,"",COUNT($C$6:E34)>9,N34*3+H34,COUNT($C$6:E34)<=9,0) -> 704 | Q34: 380 | S34: =IF(COUNT($C$6:E34)>9,IF(P34=MAX($P$6:$P$35),P34," "),"") -> 704 | T34: 246 | V34: =IF(COUNT(C34:E34)<1,0,IF(COUNT($C$6:E34)>9,C34+N34,0)) -> 246 | W34: =IF(COUNT(C34:E34)<1,0,IF(COUNT($C$6:E34)>9,D34+N34,0)) -> 224 | X34: =IF(COUNT(C34:E34)<1,0,IF(COUNT($C$6:E34)>9,E34+N34,0)) -> 234 | AA34: 0 | AB34: 29 | AC34: 29
A35: wk30 | B35: =Calendar!B35 -> 2019-04-10 | C35: 120 | D35: 110 | E35: 131 | F35: =IF(COUNT(C35:E35)<1," ",IF(AND(C35>M34,D35>M34,E35>M34,COUNT($C$6:E34)>=12),"*"," ")) ->  | G35: =IF(COUNT(C35:E35)<1," ",IF(AND(C35>M33,D35>M33,E35>M33,COUNT($C$6:E33)>=12),"*"," ")) ->  | H35: 361 | I35: 120 | J35: =_xlfn.IFS(SUM(C35:E35)<1,"",SUM(C35:E35)>=1,SUM($C$6:E35)) -> 8699 | K35: =_xlfn.IFS(COUNT(C35:E35)<1,"",COUNT($C$6:E35)>=1,COUNT($C$6:E35)) -> 78 | L35: =_xlfn.IFS(COUNT(C35:E35)<1,"",AND(COUNT($C$6:E35)<=9,$C$4>1),$C$4,COUNT(C35:E35)>=1,M35) -> 111 | M35: =IF(COUNT($C$6:E35)>=1,TRUNC(SUM($C$6:E35)/COUNT($C$6:E35)),0) -> 111 | N35: =IF(COUNT($C$6:E35)<=6,0,TRUNC((230-M34)*0.9)) -> 107 | O35: =_xlfn.IFS(SUM(C35:E35)<1,"",COUNT($C$6:E35)>9,TRUNC((230-M34)*(0.9)),COUNT($C$6:E35)<=9,0) -> 107 | P35: =_xlfn.IFS(SUM(C35:E35)<1,"",COUNT($C$6:E35)>9,N35*3+H35,COUNT($C$6:E35)<=9,0) -> 682 | S35: =IF(COUNT($C$6:E35)>9,IF(P35=MAX($P$6:$P$35),P35," "),"") ->  | V35: =IF(COUNT(C35:E35)<1,0,IF(COUNT($C$6:E35)>9,C35+N35,0)) -> 227 | W35: =IF(COUNT(C35:E35)<1,0,IF(COUNT($C$6:E35)>9,D35+N35,0)) -> 217 | X35: =IF(COUNT(C35:E35)<1,0,IF(COUNT($C$6:E35)>9,E35+N35,0)) -> 238 | AA35: 0 | AB35: 30 | AC35: 30
C36: =(IF(COUNT(C6:C35)=0," ",(SUM(C6:C35))/COUNT(C6:C35))) -> 110.27 | D36: =(IF(COUNT(D6:D35)=0," ",(SUM(D6:D35))/COUNT(D6:D35))) -> 109.23 | E36: =(IF(COUNT(E6:E35)=0," ",(SUM(E6:E35))/COUNT(E6:E35))) -> 115.08

Sheet COrcutt
H1: =Calendar!H1 -> Wednesday Fun Fours 2018/19 season | R1: 6-over wk:
A2: wk# | B2: =MAX(AB6:AB35) -> 30 | R2: 0
A3: Name: | B3: Carolyn Orcutt | I3: Perfect Attendance: | K3: =IF(SUM(AA6:AA35)<0.5,"Yes","No") -> No | L3: =_xlfn.IFS(AND(B2=30,K3="Yes"),"good",AND(B2<>30,K3="Yes"),"So Far",AND(B2<>30,K3="No")," ") -> 
A4: book average: | H4: wky | I4: wky | J4: cumulative | L4: cumulative | P4: hdcp | Q4: high | R4: high | S4: high hcp | T4: high hcp
C5: g1 | D5: g2 | E5: g3 | H5: series | I5: average | J5: score | K5: games | L5: average | O5: hdcp | P5: series | Q5: series | R5: game | S5: series | T5: game | V5: =MAX(C6:E35) -> 138 | W5: =MAX(V6:X35) -> 260
A6: wk1 | B6: =Calendar!B6 -> 2018-09-05 | C6: 89 | D6: 93 | E6: 105 | H6: =IF(COUNT(C6:E6)<1," ",SUM(C6:E6)) -> 287 | I6: =IF(COUNT(C6:E6)<1," ",TRUNC(H6/COUNT(C6:E6))) -> 95 | J6: =_xlfn.IFS(SUM(C6:E6)<1,"",SUM(C6:E6)>=1,SUM($C$6:E6)) -> 287 | K6: =_xlfn.IFS(COUNT(C6:E6)<1,"",COUNT($C$6:E6)>=1,COUNT($C$6:E6)) -> 3 | L6: =_xlfn.IFS(COUNT(C6:E6)<1,"",AND(COUNT($C$6:E6)<=9,$C$4>1),$C$4,COUNT(C6:E6)>=1,M6) -> 95 | M6: =IF(COUNT($C$6:E6)>=1,TRUNC(SUM($C$6:E6)/COUNT($C$6:E6)),0) -> 95 | N6: =IF(COUNT($C$6:E6)<=6,0,TRUNC((230-M5)*0.9)) -> 0 | O6: =_xlfn.IFS(SUM(C6:E6)<1,"",COUNT($C$6:E6)>9,TRUNC((230-M5)*(0.9)),COUNT($C$6:E6)<=9,0) -> 0 | P6: =_xlfn.IFS(SUM(C6:E6)<1,"",COUNT($C$6:E6)>9,N6*3+H6,COUNT($C$6:E6)<=9,0) -> 0 | Q6: =IF(H6=(MAX($H$6:$H$35)),H6," ") ->  | R6: =IF((OR(C6=$V$5,D6=$V$5,E6=$V$5)),$V$5," ") ->  | S6: =IF(COUNT($C$6:E6)>9,IF(P6=MAX($P$6:$P$35),P6," "),"") ->  | T6: =IF(OR(V6=$W$5,W6=$W$5,X6=$W$5),$W$5," ") ->  | V6: =IF(COUNT(C6:E6)<1,0,IF(COUNT($C$6:E6)>9,C6+N6,0)) -> 0 | W6: =IF(COUNT(C6:E6)<1,0,IF(COUNT($C$6:E6)>9,D6+N6,0)) -> 0 | X6: =IF(COUNT(C6:E6)<1,0,IF(COUNT($C$6:E6)>9,E6+N6,0)) -> 0 | AA6: =IF((MAX($AB$6:$AB$35))<AC6,0,IF(AB6=AC6,0,1)) -> 0 | AB6: =IF(COUNT(C6:E6)>0,AC6,0) -> 1 | AC6: 1
A7: wk2 | B7: =Calendar!B7 -> 2018-09-12 | I7: =IF(COUNT(C7:E7)<1," ",TRUNC(H7/COUNT(C7:E7))) ->  | J7: =_xlfn.IFS(SUM(C7:E7)<1,"",SUM(C7:E7)>=1,SUM($C$6:E7)) ->  | K7: =_xlfn.IFS(COUNT(C7:E7)<1,"",COUNT($C$6:E7)>=1,COUNT($C$6:E7)) ->  | L7: =_xlfn.IFS(COUNT(C7:E7)<1,"",AND(COUNT($C$6:E7)<=9,$C$4>1),$C$4,COUNT(C7:E7)>=1,M7) ->  | M7: =IF(COUNT($C$6:E7)>=1,TRUNC(SUM($C$6:E7)/COUNT($C$6:E7)),0) -> 95 | N7: =IF(COUNT($C$6:E7)<=6,0,TRUNC((230-M6)*0.9)) -> 0 | O7: =_xlfn.IFS(SUM(C7:E7)<1,"",COUNT($C$6:E7)>9,TRUNC((230-M6)*(0.9)),COUNT($C$6:E7)<=9,0) ->  | P7: =_xlfn.IFS(SUM(C7:E7)<1,"",COUNT($C$6:E7)>9,N7*3+H7,COUNT($C$6:E7)<=9,0) ->  | S7: =IF(COUNT($C$6:E7)>9,IF(P7=MAX($P$6:$P$35),P7," "),"") ->  | V7: =IF(COUNT(C7:E7)<1,0,IF(COUNT($C$6:E7)>9,C7+N7,0)) -> 0 | W7: =IF(COUNT(C7:E7)<1,0,IF(COUNT($C$6:E7)>9,D7+N7,0)) -> 0 | X7: =IF(COUNT(C7:E7)<1,0,IF(COUNT($C$6:E7)>9,E7+N7,0)) -> 0 | AA7: 1 | AB7: =IF(COUNT(C7:E7)>0,AC7,0) -> 0 | AC7: 2
A8: wk3 | B8: =Calendar!B8 -> 2018-09-19 | C8: 88 | D8: 130 | E8: 86 | H8: 304 | I8: 101 | J8: =_xlfn.IFS(SUM(C8:E8)<1,"",SUM(C8:E8)>=1,SUM($C$6:E8)) -> 591 | K8: =_xlfn.IFS(COUNT(C8:E8)<1,"",COUNT($C$6:E8)>=1,COUNT($C$6:E8)) -> 6 | L8: =_xlfn.IFS(COUNT(C8:E8)<1,"",AND(COUNT($C$6:E8)<=9,$C$4>1),$C$4,COUNT(C8:E8)>=1,M8) -> 98 | M8: =IF(COUNT($C$6:E8)>=1,TRUNC(SUM($C$6:E8)/COUNT($C$6:E8)),0) -> 98 | N8: =IF(COUNT($C$6:E8)<=6,0,TRUNC((230-M7)*0.9)) -> 0 | O8: =_xlfn.IFS(SUM(C8:E8)<1,"",COUNT($C$6:E8)>9,TRUNC((230-M7)*(0.9)),COUNT($C$6:E8)<=9,0) -> 0 | P8: =_xlfn.IFS(SUM(C8:E8)<1,"",COUNT($C$6:E8)>9,N8*3+H8,COUNT($C$6:E8)<=9,0) -> 0 | S8: =IF(COUNT($C$6:E8)>9,IF(P8=MAX($P$6:$P$35),P8," "),"") ->  | V8: =IF(COUNT(C8:E8)<1,0,IF(COUNT($C$6:E8)>9,C8+N8,0)) -> 0 | W8: =IF(COUNT(C8:E8)<1,0,IF(COUNT($C$6:E8)>9,D8+N8,0)) -> 0 | X8: =IF(COUNT(C8:E8)<1,0,IF(COUNT($C$6:E8)>9,E8+N8,0)) -> 0 | AA8: 0 | AB8: 3 | AC8: 3
A9: wk4 | B9: =Calendar!B9 -> 2018-09-26 | C9: 87 | D9: 85 | E9: 74 | H9: 246 | I9: 82 | J9: =_xlfn.IFS(SUM(C9:E9)<1,"",SUM(C9:E9)>=1,SUM($C$6:E9)) -> 837 | K9: =_xlfn.IFS(COUNT(C9:E9)<1,"",COUNT($C$6:E9)>=1,COUNT($C$6:E9)) -> 9 | L9: =_xlfn.IFS(COUNT(C9:E9)<1,"",AND(COUNT($C$6:E9)<=9,$C$4>1),$C$4,COUNT(C9:E9)>=1,M9) -> 93 | M9: =IF(COUNT($C$6:E9)>=1,TRUNC(SUM($C$6:E9)/COUNT($C$6:E9)),0) -> 93 | N9: =IF(COUNT($C$6:E9)<=6,0,TRUNC((230-M8)*0.9)) -> 118 | O9: =_xlfn.IFS(SUM(C9:E9)<1,"",COUNT($C$6:E9)>9,TRUNC((230-M8)*(0.9)),COUNT($C$6:E9)<=9,0) -> 0 | P9: =_xlfn.IFS(SUM(C9:E9)<1,"",COUNT($C$6:E9)>9,N9*3+H9,COUNT($C$6:E9)<=9,0) -> 0 | S9: =IF(COUNT($C$6:E9)>9,IF(P9=MAX($P$6:$P$35),P9," "),"") ->  | V9: =IF(COUNT(C9:E9)<1,0,IF(COUNT($C$6:E9)>9,C9+N9,0)) -> 0 | W9: =IF(COUNT(C9:E9)<1,0,IF(COUNT($C$6:E9)>9,D9+N9,0)) -> 0 | X9: =IF(COUNT(C9:E9)<1,0,IF(COUNT($C$6:E9)>9,E9+N9,0)) -> 0 | AA9: 0 | AB9: 4 | AC9: 4
A10: wk5 | B10: =Calendar!B10 -> 2018-10-03 | C10: 83 | D10: 97 | E10: 87 | F10: =IF(COUNT(C10:E10)<1," ",IF(AND(C10>M9,D10>M9,E10>M9,COUNT($C$6:E9)>=12),"*"," ")) ->  | H10: 267 | I10: 89 | J10: =_xlfn.IFS(SUM(C10:E10)<1,"",SUM(C10:E10)>=1,SUM($C$6:E10)) -> 1104 | K10: =_xlfn.IFS(COUNT(C10:E10)<1,"",COUNT($C$6:E10)>=1,COUNT($C$6:E10)) -> 12 | L10: =_xlfn.IFS(COUNT(C10:E10)<1,"",AND(COUNT($C$6:E10)<=9,$C$4>1),$C$4,COUNT(C10:E10)>=1,M10) -> 92 | M10: =IF(COUNT($C$6:E10)>=1,TRUNC(SUM($C$6:E10)/COUNT($C$6:E10)),0) -> 92 | N10: =IF(COUNT($C$6:E10)<=6,0,TRUNC((230-M9)*0.9)) -> 123 | O10: =_xlfn.IFS(SUM(C10:E10)<1,"",COUNT($C$6:E10)>9,TRUNC((230-M9)*(0.9)),COUNT($C$6:E10)<=9,0) -> 123 | P10: =_xlfn.IFS(SUM(C10:E10)<1,"",COUNT($C$6:E10)>9,N10*3+H10,COUNT($C$6:E10)<=9,0) -> 636 | S10: =IF(COUNT($C$6:E10)>9,IF(P10=MAX($P$6:$P$35),P10," "),"") ->  | V10: =IF(COUNT(C10:E10)<1,0,IF(COUNT($C$6:E10)>9,C10+N10,0)) -> 206 | W10: =IF(COUNT(C10:E10)<1,0,IF(COUNT($C$6:E10)>9,D10+N10,0)) -> 220 | X10: =IF(COUNT(C10:E10)<1,0,IF(COUNT($C$6:E10)>9,E10+N10,0)) -> 210 | AA10: 0 | AB10: 5 | AC10: 5
A11: wk6 | B11: =Calendar!B11 -> 2018-10-10 | C11: 99 | D11: 100 | E11: 98 | F11: =IF(COUNT(C11:E11)<1," ",IF(AND(C11>M10,D11>M10,E11>M10,COUNT($C$6:E10)>=12),"*"," ")) -> * | G11: =IF(COUNT(C11:E11)<1," ",IF(AND(C11>M9,D11>M9,E11>M9,COUNT($C$6:E9)>=12),"*"," ")) ->  | H11: 297 | I11: 99 | J11: =_xlfn.IFS(SUM(C11:E11)<1,"",SUM(C11:E11)>=1,SUM($C$6:E11)) -> 1401 | K11: =_xlfn.IFS(COUNT(C11:E11)<1,"",COUNT($C$6:E11)>=1,COUNT($C$6:E11)) -> 15 | L11: =_xlfn.IFS(COUNT(C11:E11)<1,"",AND(COUNT($C$6:E11)<=9,$C$4>1),$C$4,COUNT(C11:E11)>=1,M11) -> 93 | M11: =IF(COUNT($C$6:E11)>=1,TRUNC(SUM($C$6:E11)/COUNT($C$6:E11)),0) -> 93 | N11: =IF(COUNT($C$6:E11)<=6,0,TRUNC((230-M10)*0.9)) -> 124 | O11: =_xlfn.IFS(SUM(C11:E11)<1,"",COUNT($C$6:E11)>9,TRUNC((230-M10)*(0.9)),COUNT($C$6:E11)<=9,0) -> 124 | P11: =_xlfn.IFS(SUM(C11:E11)<1,"",COUNT($C$6:E11)>9,N11*3+H11,COUNT($C$6:E11)<=9,0) -> 669 | S11: =IF(COUNT($C$6:E11)>9,IF(P11=MAX($P$6:$P$35),P11," "),"") ->  | V11: =IF(COUNT(C11:E11)<1,0,IF(COUNT($C$6:E11)>9,C11+N11,0)) -> 223 | W11: =IF(COUNT(C11:E11)<1,0,IF(COUNT($C$6:E11)>9,D11+N11,0)) -> 224 | X11: =IF(COUNT(C11:E11)<1,0,IF(COUNT($C$6:E11)>9,E11+N11,0)) -> 222 | AA11: 0 | AB11: 6 | AC11: 6
A12: wk7 | B12: =Calendar!B12 -> 2018-10-17 | F12: =IF(COUNT(C12:E12)<1," ",IF(AND(C12>M11,D12>M11,E12>M11,COUNT($C$6:E11)>=12),"*"," ")) ->  | G12: =IF(COUNT(C12:E12)<1," ",IF(AND(C12>M10,D12>M10,E12>M10,COUNT($C$6:E10)>=12),"*"," ")) ->  | J12: =_xlfn.IFS(SUM(C12:E12)<1,"",SUM(C12:E12)>=1,SUM($C$6:E12)) ->  | K12: =_xlfn.IFS(COUNT(C12:E12)<1,"",COUNT($C$6:E12)>=1,COUNT($C$6:E12)) ->  | L12: =_xlfn.IFS(COUNT(C12:E12)<1,"",AND(COUNT($C$6:E12)<=9,$C$4>1),$C$4,COUNT(C12:E12)>=1,M12) ->  | M12: =IF(COUNT($C$6:E12)>=1,TRUNC(SUM($C$6:E12)/COUNT($C$6:E12)),0) -> 93 | N12: =IF(COUNT($C$6:E12)<=6,0,TRUNC((230-M11)*0.9)) -> 123 | O12: =_xlfn.IFS(SUM(C12:E12)<1,"",COUNT($C$6:E12)>9,TRUNC((230-M11)*(0.9)),COUNT($C$6:E12)<=9,0) ->  | P12: =_xlfn.IFS(SUM(C12:E12)<1,"",COUNT($C$6:E12)>9,N12*3+H12,COUNT($C$6:E12)<=9,0) ->  | S12: =IF(COUNT($C$6:E12)>9,IF(P12=MAX($P$6:$P$35),P12," "),"") ->  | V12: =IF(COUNT(C12:E12)<1,0,IF(COUNT($C$6:E12)>9,C12+N12,0)) -> 0 | W12: =IF(COUNT(C12:E12)<1,0,IF(COUNT($C$6:E12)>9,D12+N12,0)) -> 0 | X12: =IF(COUNT(C12:E12)<1,0,IF(COUNT($C$6:E12)>9,E12+N12,0)) -> 0 | AA12: 1 | AB12: 0 | AC12: 7
A13: wk8 | B13: =Calendar!B13 -> 2018-10-24 | C13: 77 | D13: 115 | E13: 95 | F13: =IF(COUNT(C13:E13)<1," ",IF(AND(C13>M12,D13>M12,E13>M12,COUNT($C$6:E12)>=12),"*"," ")) ->  | G13: =IF(COUNT(C13:E13)<1," ",IF(AND(C13>M11,D13>M11,E13>M11,COUNT($C$6:E11)>=12),"*"," ")) ->  | H13: 287 | I13: 95 | J13: =_xlfn.IFS(SUM(C13:E13)<1,"",SUM(C13:E13)>=1,SUM($C$6:E13)) -> 1688 | K13: =_xlfn.IFS(COUNT(C13:E13)<1,"",COUNT($C$6:E13)>=1,COUNT($C$6:E13)) -> 18 | L13: =_xlfn.IFS(COUNT(C13:E13)<1,"",AND(COUNT($C$6:E13)<=9,$C$4>1),$C$4,COUNT(C13:E13)>=1,M13) -> 93 | M13: =IF(COUNT($C$6:E13)>=1,TRUNC(SUM($C$6:E13)/COUNT($C$6:E13)),0) -> 93 | N13: =IF(COUNT($C$6:E13)<=6,0,TRUNC((230-M12)*0.9)) -> 123 | O13: =_xlfn.IFS(SUM(C13:E13)<1,"",COUNT($C$6:E13)>9,TRUNC((230-M12)*(0.9)),COUNT($C$6:E13)<=9,0) -> 123 | P13: =_xlfn.IFS(SUM(C13:E13)<1,"",COUNT($C$6:E13)>9,N13*3+H13,COUNT($C$6:E13)<=9,0) -> 656 | S13: =IF(COUNT($C$6:E13)>9,IF(P13=MAX($P$6:$P$35),P13," "),"") ->  | V13: =IF(COUNT(C13:E13)<1,0,IF(COUNT($C$6:E13)>9,C13+N13,0)) -> 200 | W13: =IF(COUNT(C13:E13)<1,0,IF(COUNT($C$6:E13)>9,D13+N13,0)) -> 238 | X13: =IF(COUNT(C13:E13)<1,0,IF(COUNT($C$6:E13)>9,E13+N13,0)) -> 218 | AA13: 0 | AB13: 8 | AC13: 8
A14: wk9 | B14: =Calendar!B14 -> 2018-10-31 | C14: 114 | D14: 115 | E14: 97 | F14: =IF(COUNT(C14:E14)<1," ",IF(AND(C14>M13,D14>M13,E14>M13,COUNT($C$6:E13)>=12),"*"," ")) -> * | G14: =IF(COUNT(C14:E14)<1," ",IF(AND(C14>M12,D14>M12,E14>M12,COUNT($C$6:E12)>=12),"*"," ")) -> * | H14: 326 | I14: 108 | J14: =_xlfn.IFS(SUM(C14:E14)<1,"",SUM(C14:E14)>=1,SUM($C$6:E14)) -> 2014 | K14: =_xlfn.IFS(COUNT(C14:E14)<1,"",COUNT($C$6:E14)>=1,COUNT($C$6:E14)) -> 21 | L14: =_xlfn.IFS(COUNT(C14:E14)<1,"",AND(COUNT($C$6:E14)<=9,$C$4>1),$C$4,COUNT(C14:E14)>=1,M14) -> 95 | M14: =IF(COUNT($C$6:E14)>=1,TRUNC(SUM($C$6:E14)/COUNT($C$6:E14)),0) -> 95 | N14: =IF(COUNT($C$6:E14)<=6,0,TRUNC((230-M13)*0.9)) -> 123 | O14: =_xlfn.IFS(SUM(C14:E14)<1,"",COUNT($C$6:E14)>9,TRUNC((230-M13)*(0.9)),COUNT($C$6:E14)<=9,0) -> 123 | P14: =_xlfn.IFS(SUM(C14:E14)<1,"",COUNT($C$6:E14)>9,N14*3+H14,COUNT($C$6:E14)<=9,0) -> 695 | S14: =IF(COUNT($C$6:E14)>9,IF(P14=MAX($P$6:$P$35),P14," "),"") ->  | V14: =IF(COUNT(C14:E14)<1,0,IF(COUNT($C$6:E14)>9,C14+N14,0)) -> 237 | W14: =IF(COUNT(C14:E14)<1,0,IF(COUNT($C$6:E14)>9,D14+N14,0)) -> 238 | X14: =IF(COUNT(C14:E14)<1,0,IF(COUNT($C$6:E14)>9,E14+N14,0)) -> 220 | AA14: 0 | AB14: 9 | AC14: 9
A15: wk10 | B15: =Calendar!B15 -> 2018-11-07 | C15: 96 | D15: 93 | E15: 118 | F15: =IF(COUNT(C15:E15)<1," ",IF(AND(C15>M14,D15>M14,E15>M14,COUNT($C$6:E14)>=12),"*"," ")) ->  | G15: =IF(COUNT(C15:E15)<1," ",IF(AND(C15>M13,D15>M13,E15>M13,COUNT($C$6:E13)>=12),"*"," ")) ->  | H15: 307 | I15: 102 | J15: =_xlfn.IFS(SUM(C15:E15)<1,"",SUM(C15:E15)>=1,SUM($C$6:E15)) -> 2321 | K15: =_xlfn.IFS(COUNT(C15:E15)<1,"",COUNT($C$6:E15)>=1,COUNT($C$6:E15)) -> 24 | L15: =_xlfn.IFS(COUNT(C15:E15)<1,"",AND(COUNT($C$6:E15)<=9,$C$4>1),$C$4,COUNT(C15:E15)>=1,M15) -> 96 | M15: =IF(COUNT($C$6:E15)>=1,TRUNC(SUM($C$6:E15)/COUNT($C$6:E15)),0) -> 96 | N15: =IF(COUNT($C$6:E15)<=6,0,TRUNC((230-M14)*0.9)) -> 121 | O15: =_xlfn.IFS(SUM(C15:E15)<1,"",COUNT($C$6:E15)>9,TRUNC((230-M14)*(0.9)),COUNT($C$6:E15)<=9,0) -> 121 | P15: =_xlfn.IFS(SUM(C15:E15)<1,"",COUNT($C$6:E15)>9,N15*3+H15,COUNT($C$6:E15)<=9,0) -> 670 | S15: =IF(COUNT($C$6:E15)>9,IF(P15=MAX($P$6:$P$35),P15," "),"") ->  | V15: =IF(COUNT(C15:E15)<1,0,IF(COUNT($C$6:E15)>9,C15+N15,0)) -> 217 | W15: =IF(COUNT(C15:E15)<1,0,IF(COUNT($C$6:E15)>9,D15+N15,0)) -> 214 | X15: =IF(COUNT(C15:E15)<1,0,IF(COUNT($C$6:E15)>9,E15+N15,0)) -> 239 | AA15: 0 | AB15: 10 | AC15: 10
A16: wk11 | B16: =Calendar!B16 -> 2018-11-14 | C16: 67 | D16: 63 | E16: 102 | F16: =IF(COUNT(C16:E16)<1," ",IF(AND(C16>M15,D16>M15,E16>M15,COUNT($C$6:E15)>=12),"*"," ")) ->  | G16: =IF(COUNT(C16:E16)<1," ",IF(AND(C16>M14,D16>M14,E16>M14,COUNT($C$6:E14)>=12),"*"," ")) ->  | H16: 232 | I16: 77 | J16: =_xlfn.IFS(SUM(C16:E16)<1,"",SUM(C16:E16)>=1,SUM($C$6:E16)) -> 2553 | K16: =_xlfn.IFS(COUNT(C16:E16)<1,"",COUNT($C$6:E16)>=1,COUNT($C$6:E16)) -> 27 | L16: =_xlfn.IFS(COUNT(C16:E16)<1,"",AND(COUNT($C$6:E16)<=9,$C$4>1),$C$4,COUNT(C16:E16)>=1,M16) -> 94 | M16: =IF(COUNT($C$6:E16)>=1,TRUNC(SUM($C$6:E16)/COUNT($C$6:E16)),0) -> 94 | N16: =IF(COUNT($C$6:E16)<=6,0,TRUNC((230-M15)*0.9)) -> 120 | O16: =_xlfn.IFS(SUM(C16:E16)<1,"",COUNT($C$6:E16)>9,TRUNC((230-M15)*(0.9)),COUNT($C$6:E16)<=9,0) -> 120 | P16: =_xlfn.IFS(SUM(C16:E16)<1,"",COUNT($C$6:E16)>9,N16*3+H16,COUNT($C$6:E16)<=9,0) -> 592 | S16: =IF(COUNT($C$6:E16)>9,IF(P16=MAX($P$6:$P$35),P16," "),"") ->  | V16: =IF(COUNT(C16:E16)<1,0,IF(COUNT($C$6:E16)>9,C16+N16,0)) -> 187 | W16: =IF(COUNT(C16:E16)<1,0,IF(COUNT($C$6:E16)>9,D16+N16,0)) -> 183 | X16: =IF(COUNT(C16:E16)<1,0,IF(COUNT($C$6:E16)>9,E16+N16,0)) -> 222 | AA16: 0 | AB16: 11 | AC16: 11
A17: wk12 | B17: =Calendar!B17 -> 2018-11-28 | C17: 85 | D17: 124 | E17: 83 | F17: =IF(COUNT(C17:E17)<1," ",IF(AND(C17>M16,D17>M16,E17>M16,COUNT($C$6:E16)>=12),"*"," ")) ->  | G17: =IF(COUNT(C17:E17)<1," ",IF(AND(C17>M15,D17>M15,E17>M15,COUNT($C$6:E15)>=12),"*"," ")) ->  | H17: 292 | I17: 97 | J17: =_xlfn.IFS(SUM(C17:E17)<1,"",SUM(C17:E17)>=1,SUM($C$6:E17)) -> 2845 | K17: =_xlfn.IFS(COUNT(C17:E17)<1,"",COUNT($C$6:E17)>=1,COUNT($C$6:E17)) -> 30 | L17: =_xlfn.IFS(COUNT(C17:E17)<1,"",AND(COUNT($C$6:E17)<=9,$C$4>1),$C$4,COUNT(C17:E17)>=1,M17) -> 94 | M17: =IF(COUNT($C$6:E17)>=1,TRUNC(SUM($C$6:E17)/COUNT($C$6:E17)),0) -> 94 | N17: =IF(COUNT($C$6:E17)<=6,0,TRUNC((230-M16)*0.9)) -> 122 | O17: =_xlfn.IFS(SUM(C17:E17)<1,"",COUNT($C$6:E17)>9,TRUNC((230-M16)*(0.9)),COUNT($C$6:E17)<=9,0) -> 122 | P17: =_xlfn.IFS(SUM(C17:E17)<1,"",COUNT($C$6:E17)>9,N17*3+H17,COUNT($C$6:E17)<=9,0) -> 658 | S17: =IF(COUNT($C$6:E17)>9,IF(P17=MAX($P$6:$P$35),P17," "),"") ->  | V17: =IF(COUNT(C17:E17)<1,0,IF(COUNT($C$6:E17)>9,C17+N17,0)) -> 207 | W17: =IF(COUNT(C17:E17)<1,0,IF(COUNT($C$6:E17)>9,D17+N17,0)) -> 246 | X17: =IF(COUNT(C17:E17)<1,0,IF(COUNT($C$6:E17)>9,E17+N17,0)) -> 205 | AA17: 0 | AB17: 12 | AC17: 12
A18: wk13 | B18: =Calendar!B18 -> 2018-12-05 | C18: 87 | D18: 104 | E18: 110 | F18: =IF(COUNT(C18:E18)<1," ",IF(AND(C18>M17,D18>M17,E18>M17,COUNT($C$6:E17)>=12),"*"," ")) ->  | G18: =IF(COUNT(C18:E18)<1," ",IF(AND(C18>M16,D18>M16,E18>M16,COUNT($C$6:E16)>=12),"*"," ")) ->  | H18: 301 | I18: 100 | J18: =_xlfn.IFS(SUM(C18:E18)<1,"",SUM(C18:E18)>=1,SUM($C$6:E18)) -> 3146 | K18: =_xlfn.IFS(COUNT(C18:E18)<1,"",COUNT($C$6:E18)>=1,COUNT($C$6:E18)) -> 33 | L18: =_xlfn.IFS(COUNT(C18:E18)<1,"",AND(COUNT($C$6:E18)<=9,$C$4>1),$C$4,COUNT(C18:E18)>=1,M18) -> 95 | M18: =IF(COUNT($C$6:E18)>=1,TRUNC(SUM($C$6:E18)/COUNT($C$6:E18)),0) -> 95 | N18: =IF(COUNT($C$6:E18)<=6,0,TRUNC((230-M17)*0.9)) -> 122 | O18: =_xlfn.IFS(SUM(C18:E18)<1,"",COUNT($C$6:E18)>9,TRUNC((230-M17)*(0.9)),COUNT($C$6:E18)<=9,0) -> 122 | P18: =_xlfn.IFS(SUM(C18:E18)<1,"",COUNT($C$6:E18)>9,N18*3+H18,COUNT($C$6:E18)<=9,0) -> 667 | S18: =IF(COUNT($C$6:E18)>9,IF(P18=MAX($P$6:$P$35),P18," "),"") ->  | V18: =IF(COUNT(C18:E18)<1,0,IF(COUNT($C$6:E18)>9,C18+N18,0)) -> 209 | W18: =IF(COUNT(C18:E18)<1,0,IF(COUNT($C$6:E18)>9,D18+N18,0)) -> 226 | X18: =IF(COUNT(C18:E18)<1,0,IF(COUNT($C$6:E18)>9,E18+N18,0)) -> 232 | AA18: 0 | AB18: 13 | AC18: 13
A19: wk14 | B19: =Calendar!B19 -> 2018-12-12 | C19: 95 | D19: 76 | E19: 89 | F19: =IF(COUNT(C19:E19)<1," ",IF(AND(C19>M18,D19>M18,E19>M18,COUNT($C$6:E18)>=12),"*"," ")) ->  | G19: =IF(COUNT(C19:E19)<1," ",IF(AND(C19>M17,D19>M17,E19>M17,COUNT($C$6:E17)>=12),"*"," ")) ->  | H19: 260 | I19: 86 | J19: =_xlfn.IFS(SUM(C19:E19)<1,"",SUM(C19:E19)>=1,SUM($C$6:E19)) -> 3406 | K19: =_xlfn.IFS(COUNT(C19:E19)<1,"",COUNT($C$6:E19)>=1,COUNT($C$6:E19)) -> 36 | L19: =_xlfn.IFS(COUNT(C19:E19)<1,"",AND(COUNT($C$6:E19)<=9,$C$4>1),$C$4,COUNT(C19:E19)>=1,M19) -> 94 | M19: =IF(COUNT($C$6:E19)>=1,TRUNC(SUM($C$6:E19)/COUNT($C$6:E19)),0) -> 94 | N19: =IF(COUNT($C$6:E19)<=6,0,TRUNC((230-M18)*0.9)) -> 121 | O19: =_xlfn.IFS(SUM(C19:E19)<1,"",COUNT($C$6:E19)>9,TRUNC((230-M18)*(0.9)),COUNT($C$6:E19)<=9,0) -> 121 | P19: =_xlfn.IFS(SUM(C19:E19)<1,"",COUNT($C$6:E19)>9,N19*3+H19,COUNT($C$6:E19)<=9,0) -> 623 | S19: =IF(COUNT($C$6:E19)>9,IF(P19=MAX($P$6:$P$35),P19," "),"") ->  | V19: =IF(COUNT(C19:E19)<1,0,IF(COUNT($C$6:E19)>9,C19+N19,0)) -> 216 | W19: =IF(COUNT(C19:E19)<1,0,IF(COUNT($C$6:E19)>9,D19+N19,0)) -> 197 | X19: =IF(COUNT(C19:E19)<1,0,IF(COUNT($C$6:E19)>9,E19+N19,0)) -> 210 | AA19: 0 | AB19: 14 | AC19: 14
A20: wk15 | B20: =Calendar!B20 -> 2018-12-19 | C20: 76 | D20: 113 | E20: 100 | F20: =IF(COUNT(C20:E20)<1," ",IF(AND(C20>M19,D20>M19,E20>M19,COUNT($C$6:E19)>=12),"*"," ")) ->  | G20: =IF(COUNT(C20:E20)<1," ",IF(AND(C20>M18,D20>M18,E20>M18,COUNT($C$6:E18)>=12),"*"," ")) ->  | H20: 289 | I20: 96 | J20: =_xlfn.IFS(SUM(C20:E20)<1,"",SUM(C20:E20)>=1,SUM($C$6:E20)) -> 3695 | K20: =_xlfn.IFS(COUNT(C20:E20)<1,"",COUNT($C$6:E20)>=1,COUNT($C$6:E20)) -> 39 | L20: =_xlfn.IFS(COUNT(C20:E20)<1,"",AND(COUNT($C$6:E20)<=9,$C$4>1),$C$4,COUNT(C20:E20)>=1,M20) -> 94 | M20: =IF(COUNT($C$6:E20)>=1,TRUNC(SUM($C$6:E20)/COUNT($C$6:E20)),0) -> 94 | N20: =IF(COUNT($C$6:E20)<=6,0,TRUNC((230-M19)*0.9)) -> 122 | O20: =_xlfn.IFS(SUM(C20:E20)<1,"",COUNT($C$6:E20)>9,TRUNC((230-M19)*(0.9)),COUNT($C$6:E20)<=9,0) -> 122 | P20: =_xlfn.IFS(SUM(C20:E20)<1,"",COUNT($C$6:E20)>9,N20*3+H20,COUNT($C$6:E20)<=9,0) -> 655 | S20: =IF(COUNT($C$6:E20)>9,IF(P20=MAX($P$6:$P$35),P20," "),"") ->  | V20: =IF(COUNT(C20:E20)<1,0,IF(COUNT($C$6:E20)>9,C20+N20,0)) -> 198 | W20: =IF(COUNT(C20:E20)<1,0,IF(COUNT($C$6:E20)>9,D20+N20,0)) -> 235 | X20: =IF(COUNT(C20:E20)<1,0,IF(COUNT($C$6:E20)>9,E20+N20,0)) -> 222 | AA20: 0 | AB20: 15 | AC20: 15
A21: wk16 | B21: =Calendar!B21 -> 2019-01-02 | C21: 95 | D21: 89 | E21: 127 | F21: =IF(COUNT(C21:E21)<1," ",IF(AND(C21>M20,D21>M20,E21>M20,COUNT($C$6:E20)>=12),"*"," ")) ->  | G21: =IF(COUNT(C21:E21)<1," ",IF(AND(C21>M19,D21>M19,E21>M19,COUNT($C$6:E19)>=12),"*"," ")) ->  | H21: 311 | I21: 103 | J21: =_xlfn.IFS(SUM(C21:E21)<1,"",SUM(C21:E21)>=1,SUM($C$6:E21)) -> 4006 | K21: =_xlfn.IFS(COUNT(C21:E21)<1,"",COUNT($C$6:E21)>=1,COUNT($C$6:E21)) -> 42 | L21: =_xlfn.IFS(COUNT(C21:E21)<1,"",AND(COUNT($C$6:E21)<=9,$C$4>1),$C$4,COUNT(C21:E21)>=1,M21) -> 95 | M21: =IF(COUNT($C$6:E21)>=1,TRUNC(SUM($C$6:E21)/COUNT($C$6:E21)),0) -> 95 | N21: =IF(COUNT($C$6:E21)<=6,0,TRUNC((230-M20)*0.9)) -> 122 | O21: =_xlfn.IFS(SUM(C21:E21)<1,"",COUNT($C$6:E21)>9,TRUNC((230-M20)*(0.9)),COUNT($C$6:E21)<=9,0) -> 122 | P21: =_xlfn.IFS(SUM(C21:E21)<1,"",COUNT($C$6:E21)>9,N21*3+H21,COUNT($C$6:E21)<=9,0) -> 677 | S21: =IF(COUNT($C$6:E21)>9,IF(P21=MAX($P$6:$P$35),P21," "),"") ->  | V21: =IF(COUNT(C21:E21)<1,0,IF(COUNT($C$6:E21)>9,C21+N21,0)) -> 217 | W21: =IF(COUNT(C21:E21)<1,0,IF(COUNT($C$6:E21)>9,D21+N21,0)) -> 211 | X21: =IF(COUNT(C21:E21)<1,0,IF(COUNT($C$6:E21)>9,E21+N21,0)) -> 249 | AA21: 0 | AB21: 16 | AC21: 16
A22: wk17 | B22: =Calendar!B22 -> 2019-01-09 | C22: 90 | D22: 85 | E22: 86 | F22: =IF(COUNT(C22:E22)<1," ",IF(AND(C22>M21,D22>M21,E22>M21,COUNT($C$6:E21)>=12),"*"," ")) ->  | G22: =IF(COUNT(C22:E22)<1," ",IF(AND(C22>M20,D22>M20,E22>M20,COUNT($C$6:E20)>=12),"*"," ")) ->  | H22: 261 | I22: 87 | J22: =_xlfn.IFS(SUM(C22:E22)<1,"",SUM(C22:E22)>=1,SUM($C$6:E22)) -> 4267 | K22: =_xlfn.IFS(COUNT(C22:E22)<1,"",COUNT($C$6:E22)>=1,COUNT($C$6:E22)) -> 45 | L22: =_xlfn.IFS(COUNT(C22:E22)<1,"",AND(COUNT($C$6:E22)<=9,$C$4>1),$C$4,COUNT(C22:E22)>=1,M22) -> 94 | M22: =IF(COUNT($C$6:E22)>=1,TRUNC(SUM($C$6:E22)/COUNT($C$6:E22)),0) -> 94 | N22: =IF(COUNT($C$6:E22)<=6,0,TRUNC((230-M21)*0.9)) -> 121 | O22: =_xlfn.IFS(SUM(C22:E22)<1,"",COUNT($C$6:E22)>9,TRUNC((230-M21)*(0.9)),COUNT($C$6:E22)<=9,0) -> 121 | P22: =_xlfn.IFS(SUM(C22:E22)<1,"",COUNT($C$6:E22)>9,N22*3+H22,COUNT($C$6:E22)<=9,0) -> 624 | S22: =IF(COUNT($C$6:E22)>9,IF(P22=MAX($P$6:$P$35),P22," "),"") ->  | V22: =IF(COUNT(C22:E22)<1,0,IF(COUNT($C$6:E22)>9,C22+N22,0)) -> 211 | W22: =IF(COUNT(C22:E22)<1,0,IF(COUNT($C$6:E22)>9,D22+N22,0)) -> 206 | X22: =IF(COUNT(C22:E22)<1,0,IF(COUNT($C$6:E22)>9,E22+N22,0)) -> 207 | AA22: 0 | AB22: 17 | AC22: 17
A23: wk18 | B23: =Calendar!B23 -> 2019-01-16 | C23: 97 | D23: 101 | E23: 89 | F23: =IF(COUNT(C23:E23)<1," ",IF(AND(C23>M22,D23>M22,E23>M22,COUNT($C$6:E22)>=12),"*"," ")) ->  | G23: =IF(COUNT(C23:E23)<1," ",IF(AND(C23>M21,D23>M21,E23>M21,COUNT($C$6:E21)>=12),"*"," ")) ->  | H23: 287 | I23: 95 | J23: =_xlfn.IFS(SUM(C23:E23)<1,"",SUM(C23:E23)>=1,SUM($C$6:E23)) -> 4554 | K23: =_xlfn.IFS(COUNT(C23:E23)<1,"",COUNT($C$6:E23)>=1,COUNT($C$6:E23)) -> 48 | L23: =_xlfn.IFS(COUNT(C23:E23)<1,"",AND(COUNT($C$6:E23)<=9,$C$4>1),$C$4,COUNT(C23:E23)>=1,M23) -> 94 | M23: =IF(COUNT($C$6:E23)>=1,TRUNC(SUM($C$6:E23)/COUNT($C$6:E23)),0) -> 94 | N23: =IF(COUNT($C$6:E23)<=6,0,TRUNC((230-M22)*0.9)) -> 122 | O23: =_xlfn.IFS(SUM(C23:E23)<1,"",COUNT($C$6:E23)>9,TRUNC((230-M22)*(0.9)),COUNT($C$6:E23)<=9,0) -> 122 | P23: =_xlfn.IFS(SUM(C23:E23)<1,"",COUNT($C$6:E23)>9,N23*3+H23,COUNT($C$6:E23)<=9,0) -> 653 | S23: =IF(COUNT($C$6:E23)>9,IF(P23=MAX($P$6:$P$35),P23," "),"") ->  | V23: =IF(COUNT(C23:E23)<1,0,IF(COUNT($C$6:E23)>9,C23+N23,0)) -> 219 | W23: =IF(COUNT(C23:E23)<1,0,IF(COUNT($C$6:E23)>9,D23+N23,0)) -> 223 | X23: =IF(COUNT(C23:E23)<1,0,IF(COUNT($C$6:E23)>9,E23+N23,0)) -> 211 | AA23: 0 | AB23: 18 | AC23: 18
A24: wk19 | B24: =Calendar!B24 -> 2019-01-23 | C24: 101 | D24: 138 | E24: 94 | F24: =IF(COUNT(C24:E24)<1," ",IF(AND(C24>M23,D24>M23,E24>M23,COUNT($C$6:E23)>=12),"*"," ")) ->  | G24: =IF(COUNT(C24:E24)<1," ",IF(AND(C24>M22,D24>M22,E24>M22,COUNT($C$6:E22)>=12),"*"," ")) ->  | H24: 333 | I24: 111 | J24: =_xlfn.IFS(SUM(C24:E24)<1,"",SUM(C24:E24)>=1,SUM($C$6:E24)) -> 4887 | K24: =_xlfn.IFS(COUNT(C24:E24)<1,"",COUNT($C$6:E24)>=1,COUNT($C$6:E24)) -> 51 | L24: =_xlfn.IFS(COUNT(C24:E24)<1,"",AND(COUNT($C$6:E24)<=9,$C$4>1),$C$4,COUNT(C24:E24)>=1,M24) -> 95 | M24: =IF(COUNT($C$6:E24)>=1,TRUNC(SUM($C$6:E24)/COUNT($C$6:E24)),0) -> 95 | N24: =IF(COUNT($C$6:E24)<=6,0,TRUNC((230-M23)*0.9)) -> 122 | O24: =_xlfn.IFS(SUM(C24:E24)<1,"",COUNT($C$6:E24)>9,TRUNC((230-M23)*(0.9)),COUNT($C$6:E24)<=9,0) -> 122 | P24: =_xlfn.IFS(SUM(C24:E24)<1,"",COUNT($C$6:E24)>9,N24*3+H24,COUNT($C$6:E24)<=9,0) -> 699 | R24: 138 | S24: =IF(COUNT($C$6:E24)>9,IF(P24=MAX($P$6:$P$35),P24," "),"") -> 699 | T24: 260 | V24: =IF(COUNT(C24:E24)<1,0,IF(COUNT($C$6:E24)>9,C24+N24,0)) -> 223 | W24: =IF(COUNT(C24:E24)<1,0,IF(COUNT($C$6:E24)>9,D24+N24,0)) -> 260 | X24: =IF(COUNT(C24:E24)<1,0,IF(COUNT($C$6:E24)>9,E24+N24,0)) -> 216 | AA24: 0 | AB24: 19 | AC24: 19
A25: wk20 | B25: =Calendar!B25 -> 2019-01-30 | C25: 94 | D25: 104 | E25: 77 | F25: =IF(COUNT(C25:E25)<1," ",IF(AND(C25>M24,D25>M24,E25>M24,COUNT($C$6:E24)>=12),"*"," ")) ->  | G25: =IF(COUNT(C25:E25)<1," ",IF(AND(C25>M23,D25>M23,E25>M23,COUNT($C$6:E23)>=12),"*"," ")) ->  | H25: 275 | I25: 91 | J25: =_xlfn.IFS(SUM(C25:E25)<1,"",SUM(C25:E25)>=1,SUM($C$6:E25)) -> 5162 | K25: =_xlfn.IFS(COUNT(C25:E25)<1,"",COUNT($C$6:E25)>=1,COUNT($C$6:E25)) -> 54 | L25: =_xlfn.IFS(COUNT(C25:E25)<1,"",AND(COUNT($C$6:E25)<=9,$C$4>1),$C$4,COUNT(C25:E25)>=1,M25) -> 95 | M25: =IF(COUNT($C$6:E25)>=1,TRUNC(SUM($C$6:E25)/COUNT($C$6:E25)),0) -> 95 | N25: =IF(COUNT($C$6:E25)<=6,0,TRUNC((230-M24)*0.9)) -> 121 | O25: =_xlfn.IFS(SUM(C25:E25)<1,"",COUNT($C$6:E25)>9,TRUNC((230-M24)*(0.9)),COUNT($C$6:E25)<=9,0) -> 121 | P25: =_xlfn.IFS(SUM(C25:E25)<1,"",COUNT($C$6:E25)>9,N25*3+H25,COUNT($C$6:E25)<=9,0) -> 638 | S25: =IF(COUNT($C$6:E25)>9,IF(P25=MAX($P$6:$P$35),P25," "),"") ->  | V25: =IF(COUNT(C25:E25)<1,0,IF(COUNT($C$6:E25)>9,C25+N25,0)) -> 215 | W25: =IF(COUNT(C25:E25)<1,0,IF(COUNT($C$6:E25)>9,D25+N25,0)) -> 225 | X25: =IF(COUNT(C25:E25)<1,0,IF(COUNT($C$6:E25)>9,E25+N25,0)) -> 198 | AA25: 0 | AB25: 20 | AC25: 20
A26: wk21 | B26: =Calendar!B26 -> 2019-02-06 | C26: 110 | D26: 99 | E26: 88 | F26: =IF(COUNT(C26:E26)<1," ",IF(AND(C26>M25,D26>M25,E26>M25,COUNT($C$6:E25)>=12),"*"," ")) ->  | G26: =IF(COUNT(C26:E26)<1," ",IF(AND(C26>M24,D26>M24,E26>M24,COUNT($C$6:E24)>=12),"*"," ")) ->  | H26: 297 | I26: 99 | J26: =_xlfn.IFS(SUM(C26:E26)<1,"",SUM(C26:E26)>=1,SUM($C$6:E26)) -> 5459 | K26: =_xlfn.IFS(COUNT(C26:E26)<1,"",COUNT($C$6:E26)>=1,COUNT($C$6:E26)) -> 57 | L26: =_xlfn.IFS(COUNT(C26:E26)<1,"",AND(COUNT($C$6:E26)<=9,$C$4>1),$C$4,COUNT(C26:E26)>=1,M26) -> 95 | M26: =IF(COUNT($C$6:E26)>=1,TRUNC(SUM($C$6:E26)/COUNT($C$6:E26)),0) -> 95 | N26: =IF(COUNT($C$6:E26)<=6,0,TRUNC((230-M25)*0.9)) -> 121 | O26: =_xlfn.IFS(SUM(C26:E26)<1,"",COUNT($C$6:E26)>9,TRUNC((230-M25)*(0.9)),COUNT($C$6:E26)<=9,0) -> 121 | P26: =_xlfn.IFS(SUM(C26:E26)<1,"",COUNT($C$6:E26)>9,N26*3+H26,COUNT($C$6:E26)<=9,0) -> 660 | S26: =IF(COUNT($C$6:E26)>9,IF(P26=MAX($P$6:$P$35),P26," "),"") ->  | V26: =IF(COUNT(C26:E26)<1,0,IF(COUNT($C$6:E26)>9,C26+N26,0)) -> 231 | W26: =IF(COUNT(C26:E26)<1,0,IF(COUNT($C$6:E26)>9,D26+N26,0)) -> 220 | X26: =IF(COUNT(C26:E26)<1,0,IF(COUNT($C$6:E26)>9,E26+N26,0)) -> 209 | AA26: 0 | AB26: 21 | AC26: 21
A27: wk22 | B27: =Calendar!B27 -> 2019-02-13 | C27: 85 | D27: 102 | E27: 117 | F27: =IF(COUNT(C27:E27)<1," ",IF(AND(C27>M26,D27>M26,E27>M26,COUNT($C$6:E26)>=12),"*"," ")) ->  | G27: =IF(COUNT(C27:E27)<1," ",IF(AND(C27>M25,D27>M25,E27>M25,COUNT($C$6:E25)>=12),"*"," ")) ->  | H27: 304 | I27: 101 | J27: =_xlfn.IFS(SUM(C27:E27)<1,"",SUM(C27:E27)>=1,SUM($C$6:E27)) -> 5763 | K27: =_xlfn.IFS(COUNT(C27:E27)<1,"",COUNT($C$6:E27)>=1,COUNT($C$6:E27)) -> 60 | L27: =_xlfn.IFS(COUNT(C27:E27)<1,"",AND(COUNT($C$6:E27)<=9,$C$4>1),$C$4,COUNT(C27:E27)>=1,M27) -> 96 | M27: =IF(COUNT($C$6:E27)>=1,TRUNC(SUM($C$6:E27)/COUNT($C$6:E27)),0) -> 96 | N27: =IF(COUNT($C$6:E27)<=6,0,TRUNC((230-M26)*0.9)) -> 121 | O27: =_xlfn.IFS(SUM(C27:E27)<1,"",COUNT($C$6:E27)>9,TRUNC((230-M26)*(0.9)),COUNT($C$6:E27)<=9,0) -> 121 | P27: =_xlfn.IFS(SUM(C27:E27)<1,"",COUNT($C$6:E27)>9,N27*3+H27,COUNT($C$6:E27)<=9,0) -> 667 | S27: =IF(COUNT($C$6:E27)>9,IF(P27=MAX($P$6:$P$35),P27," "),"") ->  | V27: =IF(COUNT(C27:E27)<1,0,IF(COUNT($C$6:E27)>9,C27+N27,0)) -> 206 | W27: =IF(COUNT(C27:E27)<1,0,IF(COUNT($C$6:E27)>9,D27+N27,0)) -> 223 | X27: =IF(COUNT(C27:E27)<1,0,IF(COUNT($C$6:E27)>9,E27+N27,0)) -> 238 | AA27: 0 | AB27: 22 | AC27: 22
A28: wk23 | B28: =Calendar!B28 -> 2019-02-20 | C28: 113 | D28: 90 | E28: 107 | F28: =IF(COUNT(C28:E28)<1," ",IF(AND(C28>M27,D28>M27,E28>M27,COUNT($C$6:E27)>=12),"*"," ")) ->  | G28: =IF(COUNT(C28:E28)<1," ",IF(AND(C28>M26,D28>M26,E28>M26,COUNT($C$6:E26)>=12),"*"," ")) ->  | H28: 310 | I28: 103 | J28: =_xlfn.IFS(SUM(C28:E28)<1,"",SUM(C28:E28)>=1,SUM($C$6:E28)) -> 6073 | K28: =_xlfn.IFS(COUNT(C28:E28)<1,"",COUNT($C$6:E28)>=1,COUNT($C$6:E28)) -> 63 | L28: =_xlfn.IFS(COUNT(C28:E28)<1,"",AND(COUNT($C$6:E28)<=9,$C$4>1),$C$4,COUNT(C28:E28)>=1,M28) -> 96 | M28: =IF(COUNT($C$6:E28)>=1,TRUNC(SUM($C$6:E28)/COUNT($C$6:E28)),0) -> 96 | N28: =IF(COUNT($C$6:E28)<=6,0,TRUNC((230-M27)*0.9)) -> 120 | O28: =_xlfn.IFS(SUM(C28:E28)<1,"",COUNT($C$6:E28)>9,TRUNC((230-M27)*(0.9)),COUNT($C$6:E28)<=9,0) -> 120 | P28: =_xlfn.IFS(SUM(C28:E28)<1,"",COUNT($C$6:E28)>9,N28*3+H28,COUNT($C$6:E28)<=9,0) -> 670 | S28: =IF(COUNT($C$6:E28)>9,IF(P28=MAX($P$6:$P$35),P28," "),"") ->  | V28: =IF(COUNT(C28:E28)<1,0,IF(COUNT($C$6:E28)>9,C28+N28,0)) -> 233 | W28: =IF(COUNT(C28:E28)<1,0,IF(COUNT($C$6:E28)>9,D28+N28,0)) -> 210 | X28: =IF(COUNT(C28:E28)<1,0,IF(COUNT($C$6:E28)>9,E28+N28,0)) -> 227 | AA28: 0 | AB28: 23 | AC28: 23
A29: wk24 | B29: =Calendar!B29 -> 2019-02-27 | C29: 94 | D29: 110 | E29: 124 | F29: =IF(COUNT(C29:E29)<1," ",IF(AND(C29>M28,D29>M28,E29>M28,COUNT($C$6:E28)>=12),"*"," ")) ->  | G29: =IF(COUNT(C29:E29)<1," ",IF(AND(C29>M27,D29>M27,E29>M27,COUNT($C$6:E27)>=12),"*"," ")) ->  | H29: 328 | I29: 109 | J29: =_xlfn.IFS(SUM(C29:E29)<1,"",SUM(C29:E29)>=1,SUM($C$6:E29)) -> 6401 | K29: =_xlfn.IFS(COUNT(C29:E29)<1,"",COUNT($C$6:E29)>=1,COUNT($C$6:E29)) -> 66 | L29: =_xlfn.IFS(COUNT(C29:E29)<1,"",AND(COUNT($C$6:E29)<=9,$C$4>1),$C$4,COUNT(C29:E29)>=1,M29) -> 96 | M29: =IF(COUNT($C$6:E29)>=1,TRUNC(SUM($C$6:E29)/COUNT($C$6:E29)),0) -> 96 | N29: =IF(COUNT($C$6:E29)<=6,0,TRUNC((230-M28)*0.9)) -> 120 | O29: =_xlfn.IFS(SUM(C29:E29)<1,"",COUNT($C$6:E29)>9,TRUNC((230-M28)*(0.9)),COUNT($C$6:E29)<=9,0) -> 120 | P29: =_xlfn.IFS(SUM(C29:E29)<1,"",COUNT($C$6:E29)>9,N29*3+H29,COUNT($C$6:E29)<=9,0) -> 688 | S29: =IF(COUNT($C$6:E29)>9,IF(P29=MAX($P$6:$P$35),P29," "),"") ->  | V29: =IF(COUNT(C29:E29)<1,0,IF(COUNT($C$6:E29)>9,C29+N29,0)) -> 214 | W29: =IF(COUNT(C29:E29)<1,0,IF(COUNT($C$6:E29)>9,D29+N29,0)) -> 230 | X29: =IF(COUNT(C29:E29)<1,0,IF(COUNT($C$6:E29)>9,E29+N29,0)) -> 244 | AA29: 0 | AB29: 24 | AC29: 24
A30: wk25 | B30: =Calendar!B30 -> 2019-03-06 | C30: 94 | D30: 78 | E30: 81 | F30: =IF(COUNT(C30:E30)<1," ",IF(AND(C30>M29,D30>M29,E30>M29,COUNT($C$6:E29)>=12),"*"," ")) ->  | G30: =IF(COUNT(C30:E30)<1," ",IF(AND(C30>M28,D30>M28,E30>M28,COUNT($C$6:E28)>=12),"*"," ")) ->  | H30: 253 | I30: 84 | J30: =_xlfn.IFS(SUM(C30:E30)<1,"",SUM(C30:E30)>=1,SUM($C$6:E30)) -> 6654 | K30: =_xlfn.IFS(COUNT(C30:E30)<1,"",COUNT($C$6:E30)>=1,COUNT($C$6:E30)) -> 69 | L30: =_xlfn.IFS(COUNT(C30:E30)<1,"",AND(COUNT($C$6:E30)<=9,$C$4>1),$C$4,COUNT(C30:E30)>=1,M30) -> 96 | M30: =IF(COUNT($C$6:E30)>=1,TRUNC(SUM($C$6:E30)/COUNT($C$6:E30)),0) -> 96 | N30: =IF(COUNT($C$6:E30)<=6,0,TRUNC((230-M29)*0.9)) -> 120 | O30: =_xlfn.IFS(SUM(C30:E30)<1,"",COUNT($C$6:E30)>9,TRUNC((230-M29)*(0.9)),COUNT($C$6:E30)<=9,0) -> 120 | P30: =_xlfn.IFS(SUM(C30:E30)<1,"",COUNT($C$6:E30)>9,N30*3+H30,COUNT($C$6:E30)<=9,0) -> 613 | S30: =IF(COUNT($C$6:E30)>9,IF(P30=MAX($P$6:$P$35),P30," "),"") ->  | V30: =IF(COUNT(C30:E30)<1,0,IF(COUNT($C$6:E30)>9,C30+N30,0)) -> 214 | W30: =IF(COUNT(C30:E30)<1,0,IF(COUNT($C$6:E30)>9,D30+N30,0)) -> 198 | X30: =IF(COUNT(C30:E30)<1,0,IF(COUNT($C$6:E30)>9,E30+N30,0)) -> 201 | AA30: 0 | AB30: 25 | AC30: 25
A31: wk26 | B31: =Calendar!B31 -> 2019-03-13 | C31: 94 | D31: 122 | E31: 82 | F31: =IF(COUNT(C31:E31)<1," ",IF(AND(C31>M30,D31>M30,E31>M30,COUNT($C$6:E30)>=12),"*"," ")) ->  | G31: =IF(COUNT(C31:E31)<1," ",IF(AND(C31>M29,D31>M29,E31>M29,COUNT($C$6:E29)>=12),"*"," ")) ->  | H31: 298 | I31: 99 | J31: =_xlfn.IFS(SUM(C31:E31)<1,"",SUM(C31:E31)>=1,SUM($C$6:E31)) -> 6952 | K31: =_xlfn.IFS(COUNT(C31:E31)<1,"",COUNT($C$6:E31)>=1,COUNT($C$6:E31)) -> 72 | L31: =_xlfn.IFS(COUNT(C31:E31)<1,"",AND(COUNT($C$6:E31)<=9,$C$4>1),$C$4,COUNT(C31:E31)>=1,M31) -> 96 | M31: =IF(COUNT($C$6:E31)>=1,TRUNC(SUM($C$6:E31)/COUNT($C$6:E31)),0) -> 96 | N31: =IF(COUNT($C$6:E31)<=6,0,TRUNC((230-M30)*0.9)) -> 120 | O31: =_xlfn.IFS(SUM(C31:E31)<1,"",COUNT($C$6:E31)>9,TRUNC((230-M30)*(0.9)),COUNT($C$6:E31)<=9,0) -> 120 | P31: =_xlfn.IFS(SUM(C31:E31)<1,"",COUNT($C$6:E31)>9,N31*3+H31,COUNT($C$6:E31)<=9,0) -> 658 | S31: =IF(COUNT($C$6:E31)>9,IF(P31=MAX($P$6:$P$35),P31," "),"") ->  | V31: =IF(COUNT(C31:E31)<1,0,IF(COUNT($C$6:E31)>9,C31+N31,0)) -> 214 | W31: =IF(COUNT(C31:E31)<1,0,IF(COUNT($C$6:E31)>9,D31+N31,0)) -> 242 | X31: =IF(COUNT(C31:E31)<1,0,IF(COUNT($C$6:E31)>9,E31+N31,0)) -> 202 | AA31: 0 | AB31: 26 | AC31: 26
A32: wk27 | B32: =Calendar!B32 -> 2019-03-20 | C32: 123 | D32: 119 | E32: 94 | F32: =IF(COUNT(C32:E32)<1," ",IF(AND(C32>M31,D32>M31,E32>M31,COUNT($C$6:E31)>=12),"*"," ")) ->  | G32: =IF(COUNT(C32:E32)<1," ",IF(AND(C32>M30,D32>M30,E32>M30,COUNT($C$6:E30)>=12),"*"," ")) ->  | H32: 336 | I32: 112 | J32: =_xlfn.IFS(SUM(C32:E32)<1,"",SUM(C32:E32)>=1,SUM($C$6:E32)) -> 7288 | K32: =_xlfn.IFS(COUNT(C32:E32)<1,"",COUNT($C$6:E32)>=1,COUNT($C$6:E32)) -> 75 | L32: =_xlfn.IFS(COUNT(C32:E32)<1,"",AND(COUNT($C$6:E32)<=9,$C$4>1),$C$4,COUNT(C32:E32)>=1,M32) -> 97 | M32: =IF(COUNT($C$6:E32)>=1,TRUNC(SUM($C$6:E32)/COUNT($C$6:E32)),0) -> 97 | N32: =IF(COUNT($C$6:E32)<=6,0,TRUNC((230-M31)*0.9)) -> 120 | O32: =_xlfn.IFS(SUM(C32:E32)<1,"",COUNT($C$6:E32)>9,TRUNC((230-M31)*(0.9)),COUNT($C$6:E32)<=9,0) -> 120 | P32: =_xlfn.IFS(SUM(C32:E32)<1,"",COUNT($C$6:E32)>9,N32*3+H32,COUNT($C$6:E32)<=9,0) -> 696 | Q32: 336 | S32: =IF(COUNT($C$6:E32)>9,IF(P32=MAX($P$6:$P$35),P32," "),"") ->  | V32: =IF(COUNT(C32:E32)<1,0,IF(COUNT($C$6:E32)>9,C32+N32,0)) -> 243 | W32: =IF(COUNT(C32:E32)<1,0,IF(COUNT($C$6:E32)>9,D32+N32,0)) -> 239 | X32: =IF(COUNT(C32:E32)<1,0,IF(COUNT($C$6:E32)>9,E32+N32,0)) -> 214 | AA32: 0 | AB32: 27 | AC32: 27
A33: wk28 | B33: =Calendar!B33 -> 2019-03-27 | C33: 78 | D33: 78 | E33: 81 | F33: =IF(COUNT(C33:E33)<1," ",IF(AND(C33>M32,D33>M32,E33>M32,COUNT($C$6:E32)>=12),"*"," ")) ->  | G33: =IF(COUNT(C33:E33)<1," ",IF(AND(C33>M31,D33>M31,E33>M31,COUNT($C$6:E31)>=12),"*"," ")) ->  | H33: 237 | I33: 79 | J33: =_xlfn.IFS(SUM(C33:E33)<1,"",SUM(C33:E33)>=1,SUM($C$6:E33)) -> 7525 | K33: =_xlfn.IFS(COUNT(C33:E33)<1,"",COUNT($C$6:E33)>=1,COUNT($C$6:E33)) -> 78 | L33: =_xlfn.IFS(COUNT(C33:E33)<1,"",AND(COUNT($C$6:E33)<=9,$C$4>1),$C$4,COUNT(C33:E33)>=1,M33) -> 96 | M33: =IF(COUNT($C$6:E33)>=1,TRUNC(SUM($C$6:E33)/COUNT($C$6:E33)),0) -> 96 | N33: =IF(COUNT($C$6:E33)<=6,0,TRUNC((230-M32)*0.9)) -> 119 | O33: =_xlfn.IFS(SUM(C33:E33)<1,"",COUNT($C$6:E33)>9,TRUNC((230-M32)*(0.9)),COUNT($C$6:E33)<=9,0) -> 119 | P33: =_xlfn.IFS(SUM(C33:E33)<1,"",COUNT($C$6:E33)>9,N33*3+H33,COUNT($C$6:E33)<=9,0) -> 594 | S33: =IF(COUNT($C$6:E33)>9,IF(P33=MAX($P$6:$P$35),P33," "),"") ->  | V33: =IF(COUNT(C33:E33)<1,0,IF(COUNT($C$6:E33)>9,C33+N33,0)) -> 197 | W33: =IF(COUNT(C33:E33)<1,0,IF(COUNT($C$6:E33)>9,D33+N33,0)) -> 197 | X33: =IF(COUNT(C33:E33)<1,0,IF(COUNT($C$6:E33)>9,E33+N33,0)) -> 200 | AA33: 0 | AB33: 28 | AC33: 28
A34: wk29 | B34: =Calendar!B34 -> 2019-04-03 | C34: 114 | D34: 105 | E34: 79 | F34: =IF(COUNT(C34:E34)<1," ",IF(AND(C34>M33,D34>M33,E34>M33,COUNT($C$6:E33)>=12),"*"," ")) ->  | G34: =IF(COUNT(C34:E34)<1," ",IF(AND(C34>M32,D34>M32,E34>M32,COUNT($C$6:E32)>=12),"*"," ")) ->  | H34: 298 | I34: 99 | J34: =_xlfn.IFS(SUM(C34:E34)<1,"",SUM(C34:E34)>=1,SUM($C$6:E34)) -> 7823 | K34: =_xlfn.IFS(COUNT(C34:E34)<1,"",COUNT($C$6:E34)>=1,COUNT($C$6:E34)) -> 81 | L34: =_xlfn.IFS(COUNT(C34:E34)<1,"",AND(COUNT($C$6:E34)<=9,$C$4>1),$C$4,COUNT(C34:E34)>=1,M34) -> 96 | M34: =IF(COUNT($C$6:E34)>=1,TRUNC(SUM($C$6:E34)/COUNT($C$6:E34)),0) -> 96 | N34: =IF(COUNT($C$6:E34)<=6,0,TRUNC((230-M33)*0.9)) -> 120 | O34: =_xlfn.IFS(SUM(C34:E34)<1,"",COUNT($C$6:E34)>9,TRUNC((230-M33)*(0.9)),COUNT($C$6:E34)<=9,0) -> 120 | P34: =_xlfn.IFS(SUM(C34:E34)<1,"",COUNT($C$6:E34)>9,N34*3+H34,COUNT($C$6:E34)<=9,0) -> 658 | S34: =IF(COUNT($C$6:E34)>9,IF(P34=MAX($P$6:$P$35),P34," "),"") ->  | V34: =IF(COUNT(C34:E34)<1,0,IF(COUNT($C$6:E34)>9,C34+N34,0)) -> 234 | W34: =IF(COUNT(C34:E34)<1,0,IF(COUNT($C$6:E34)>9,D34+N34,0)) -> 225 | X34: =IF(COUNT(C34:E34)<1,0,IF(COUNT($C$6:E34)>9,E34+N34,0)) -> 199 | AA34: 0 | AB34: 29 | AC34: 29
A35: wk30 | B35: =Calendar!B35 -> 2019-04-10 | C35: 96 | D35: 107 | E35: 78 | F35: =IF(COUNT(C35:E35)<1," ",IF(AND(C35>M34,D35>M34,E35>M34,COUNT($C$6:E34)>=12),"*"," ")) ->  | G35: =IF(COUNT(C35:E35)<1," ",IF(AND(C35>M33,D35>M33,E35>M33,COUNT($C$6:E33)>=12),"*"," ")) ->  | H35: 281 | I35: 93 | J35: =_xlfn.IFS(SUM(C35:E35)<1,"",SUM(C35:E35)>=1,SUM($C$6:E35)) -> 8104 | K35: =_xlfn.IFS(COUNT(C35:E35)<1,"",COUNT($C$6:E35)>=1,COUNT($C$6:E35)) -> 84 | L35: =_xlfn.IFS(COUNT(C35:E35)<1,"",AND(COUNT($C$6:E35)<=9,$C$4>1),$C$4,COUNT(C35:E35)>=1,M35) -> 96 | M35: =IF(COUNT($C$6:E35)>=1,TRUNC(SUM($C$6:E35)/COUNT($C$6:E35)),0) -> 96 | N35: =IF(COUNT($C$6:E35)<=6,0,TRUNC((230-M34)*0.9)) -> 120 | O35: =_xlfn.IFS(SUM(C35:E35)<1,"",COUNT($C$6:E35)>9,TRUNC((230-M34)*(0.9)),COUNT($C$6:E35)<=9,0) -> 120 | P35: =_xlfn.IFS(SUM(C35:E35)<1,"",COUNT($C$6:E35)>9,N35*3+H35,COUNT($C$6:E35)<=9,0) -> 641 | S35: =IF(COUNT($C$6:E35)>9,IF(P35=MAX($P$6:$P$35),P35," "),"") ->  | V35: =IF(COUNT(C35:E35)<1,0,IF(COUNT($C$6:E35)>9,C35+N35,0)) -> 216 | W35: =IF(COUNT(C35:E35)<1,0,IF(COUNT($C$6:E35)>9,D35+N35,0)) -> 227 | X35: =IF(COUNT(C35:E35)<1,0,IF(COUNT($C$6:E35)>9,E35+N35,0)) -> 198 | AA35: 0 | AB35: 30 | AC35: 30
C36: =(IF(COUNT(C6:C35)=0," ",(SUM(C6:C35))/COUNT(C6:C35))) -> 93.61 | D36: =(IF(COUNT(D6:D35)=0," ",(SUM(D6:D35))/COUNT(D6:D35))) -> 101.25 | E36: =(IF(COUNT(E6:E35)=0," ",(SUM(E6:E35))/COUNT(E6:E35))) -> 94.57

Sheet MHealy
H1: =Calendar!H1 -> Wednesday Fun Fours 2018/19 season | R1: 6-over wk:
A2: wk# | B2: =MAX(AB6:AB35) -> 30
A3: Name: | B3: Margaret Healy | I3: Perfect Attendance: | K3: =IF(SUM(AA6:AA35)<0.5,"Yes","No") -> No | L3: =_xlfn.IFS(AND(B2=30,K3="Yes"),"good",AND(B2<>30,K3="Yes"),"So Far",AND(B2<>30,K3="No")," ") -> 
A4: book average: | C4: 139 | H4: wky | I4: wky | J4: cumulative | L4: cumulative | P4: hdcp | Q4: high | R4: high | S4: high hcp | T4: high hcp
C5: g1 | D5: g2 | E5: g3 | H5: series | I5: average | J5: score | K5: games | L5: average | O5: hdcp | P5: series | Q5: series | R5: game | S5: series | T5: game | V5: =MAX(C6:E35) -> 182 | W5: =MAX(V6:X35) -> 258
A6: wk1 | B6: =Calendar!B6 -> 2018-09-05 | H6: =IF(COUNT(C6:E6)<1," ",SUM(C6:E6)) ->  | I6: =IF(COUNT(C6:E6)<1," ",TRUNC(H6/COUNT(C6:E6))) ->  | J6: =_xlfn.IFS(SUM(C6:E6)<1,"",SUM(C6:E6)>=1,SUM($C$6:E6)) ->  | K6: =_xlfn.IFS(COUNT(C6:E6)<1,"",COUNT($C$6:E6)>=1,COUNT($C$6:E6)) ->  | L6: =_xlfn.IFS(COUNT(C6:E6)<1,"",AND(COUNT($C$6:E6)<=9,$C$4>1),$C$4,COUNT(C6:E6)>=1,M6) ->  | M6: =IF(COUNT($C$6:E6)>=1,TRUNC(SUM($C$6:E6)/COUNT($C$6:E6)),0) -> 0 | N6: =IF(COUNT($C$6:E6)<=6,0,TRUNC((230-M5)*0.9)) -> 0 | O6: =_xlfn.IFS(SUM(C6:E6)<1,"",COUNT($C$6:E6)>9,TRUNC((230-M5)*(0.9)),COUNT($C$6:E6)<=9,0) ->  | P6: =_xlfn.IFS(SUM(C6:E6)<1,"",COUNT($C$6:E6)>9,N6*3+H6,COUNT($C$6:E6)<=9,0) ->  | Q6: =IF(H6=(MAX($H$6:$H$35)),H6," ") ->  | R6: =IF((OR(C6=$V$5,D6=$V$5,E6=$V$5)),$V$5," ") ->  | S6: =IF(COUNT($C$6:E6)>9,IF(P6=MAX($P$6:$P$35),P6," "),"") ->  | T6: =IF(OR(V6=$W$5,W6=$W$5,X6=$W$5),$W$5," ") ->  | V6: =IF(COUNT(C6:E6)<1,0,IF(COUNT($C$6:E6)>9,C6+N6,0)) -> 0 | W6: =IF(COUNT(C6:E6)<1,0,IF(COUNT($C$6:E6)>9,D6+N6,0)) -> 0 | X6: =IF(COUNT(C6:E6)<1,0,IF(COUNT($C$6:E6)>9,E6+N6,0)) -> 0 | AA6: =IF((MAX($AB$6:$AB$35))<AC6,0,IF(AB6=AC6,0,1)) -> 1 | AB6: =IF(COUNT(C6:E6)>0,AC6,0) -> 0 | AC6: 1
A7: wk2 | B7: =Calendar!B7 -> 2018-09-12 | I7: =IF(COUNT(C7:E7)<1," ",TRUNC(H7/COUNT(C7:E7))) ->  | J7: =_xlfn.IFS(SUM(C7:E7)<1,"",SUM(C7:E7)>=1,SUM($C$6:E7)) ->  | K7: =_xlfn.IFS(COUNT(C7:E7)<1,"",COUNT($C$6:E7)>=1,COUNT($C$6:E7)) ->  | L7: =_xlfn.IFS(COUNT(C7:E7)<1,"",AND(COUNT($C$6:E7)<=9,$C$4>1),$C$4,COUNT(C7:E7)>=1,M7) ->  | M7: =IF(COUNT($C$6:E7)>=1,TRUNC(SUM($C$6:E7)/COUNT($C$6:E7)),0) -> 0 | N7: =IF(COUNT($C$6:E7)<=6,0,TRUNC((230-M6)*0.9)) -> 0 | O7: =_xlfn.IFS(SUM(C7:E7)<1,"",COUNT($C$6:E7)>9,TRUNC((230-M6)*(0.9)),COUNT($C$6:E7)<=9,0) ->  | P7: =_xlfn.IFS(SUM(C7:E7)<1,"",COUNT($C$6:E7)>9,N7*3+H7,COUNT($C$6:E7)<=9,0) ->  | S7: =IF(COUNT($C$6:E7)>9,IF(P7=MAX($P$6:$P$35),P7," "),"") ->  | V7: =IF(COUNT(C7:E7)<1,0,IF(COUNT($C$6:E7)>9,C7+N7,0)) -> 0 | W7: =IF(COUNT(C7:E7)<1,0,IF(COUNT($C$6:E7)>9,D7+N7,0)) -> 0 | X7: =IF(COUNT(C7:E7)<1,0,IF(COUNT($C$6:E7)>9,E7+N7,0)) -> 0 | AA7: 1 | AB7: =IF(COUNT(C7:E7)>0,AC7,0) -> 0 | AC7: 2
A8: wk3 | B8: =Calendar!B8 -> 2018-09-19 | J8: =_xlfn.IFS(SUM(C8:E8)<1,"",SUM(C8:E8)>=1,SUM($C$6:E8)) ->  | K8: =_xlfn.IFS(COUNT(C8:E8)<1,"",COUNT($C$6:E8)>=1,COUNT($C$6:E8)) ->  | L8: =_xlfn.IFS(COUNT(C8:E8)<1,"",AND(COUNT($C$6:E8)<=9,$C$4>1),$C$4,COUNT(C8:E8)>=1,M8) ->  | M8: =IF(COUNT($C$6:E8)>=1,TRUNC(SUM($C$6:E8)/COUNT($C$6:E8)),0) -> 0 | N8: =IF(COUNT($C$6:E8)<=6,0,TRUNC((230-M7)*0.9)) -> 0 | O8: =_xlfn.IFS(SUM(C8:E8)<1,"",COUNT($C$6:E8)>9,TRUNC((230-M7)*(0.9)),COUNT($C$6:E8)<=9,0) ->  | P8: =_xlfn.IFS(SUM(C8:E8)<1,"",COUNT($C$6:E8)>9,N8*3+H8,COUNT($C$6:E8)<=9,0) ->  | S8: =IF(COUNT($C$6:E8)>9,IF(P8=MAX($P$6:$P$35),P8," "),"") ->  | V8: =IF(COUNT(C8:E8)<1,0,IF(COUNT($C$6:E8)>9,C8+N8,0)) -> 0 | W8: =IF(COUNT(C8:E8)<1,0,IF(COUNT($C$6:E8)>9,D8+N8,0)) -> 0 | X8: =IF(COUNT(C8:E8)<1,0,IF(COUNT($C$6:E8)>9,E8+N8,0)) -> 0 | AA8: 1 | AB8: 0 | AC8: 3
A9: wk4 | B9: =Calendar!B9 -> 2018-09-26 | J9: =_xlfn.IFS(SUM(C9:E9)<1,"",SUM(C9:E9)>=1,SUM($C$6:E9)) ->  | K9: =_xlfn.IFS(COUNT(C9:E9)<1,"",COUNT($C$6:E9)>=1,COUNT($C$6:E9)) ->  | L9: =_xlfn.IFS(COUNT(C9:E9)<1,"",AND(COUNT($C$6:E9)<=9,$C$4>1),$C$4,COUNT(C9:E9)>=1,M9) ->  | M9: =IF(COUNT($C$6:E9)>=1,TRUNC(SUM($C$6:E9)/COUNT($C$6:E9)),0) -> 0 | N9: =IF(COUNT($C$6:E9)<=6,0,TRUNC((230-M8)*0.9)) -> 0 | O9: =_xlfn.IFS(SUM(C9:E9)<1,"",COUNT($C$6:E9)>9,TRUNC((230-M8)*(0.9)),COUNT($C$6:E9)<=9,0) ->  | P9: =_xlfn.IFS(SUM(C9:E9)<1,"",COUNT($C$6:E9)>9,N9*3+H9,COUNT($C$6:E9)<=9,0) ->  | S9: =IF(COUNT($C$6:E9)>9,IF(P9=MAX($P$6:$P$35),P9," "),"") ->  | V9: =IF(COUNT(C9:E9)<1,0,IF(COUNT($C$6:E9)>9,C9+N9,0)) -> 0 | W9: =IF(COUNT(C9:E9)<1,0,IF(COUNT($C$6:E9)>9,D9+N9,0)) -> 0 | X9: =IF(COUNT(C9:E9)<1,0,IF(COUNT($C$6:E9)>9,E9+N9,0)) -> 0 | AA9: 1 | AB9: 0 | AC9: 4
A10: wk5 | B10: =Calendar!B10 -> 2018-10-03 | F10: =IF(COUNT(C10:E10)<1," ",IF(AND(C10>M9,D10>M9,E10>M9,COUNT($C$6:E9)>=12),"*"," ")) ->  | J10: =_xlfn.IFS(SUM(C10:E10)<1,"",SUM(C10:E10)>=1,SUM($C$6:E10)) ->  | K10: =_xlfn.IFS(COUNT(C10:E10)<1,"",COUNT($C$6:E10)>=1,COUNT($C$6:E10)) ->  | L10: =_xlfn.IFS(COUNT(C10:E10)<1,"",AND(COUNT($C$6:E10)<=9,$C$4>1),$C$4,COUNT(C10:E10)>=1,M10) ->  | M10: =IF(COUNT($C$6:E10)>=1,TRUNC(SUM($C$6:E10)/COUNT($C$6:E10)),0) -> 0 | N10: =IF(COUNT($C$6:E10)<=6,0,TRUNC((230-M9)*0.9)) -> 0 | O10: =_xlfn.IFS(SUM(C10:E10)<1,"",COUNT($C$6:E10)>9,TRUNC((230-M9)*(0.9)),COUNT($C$6:E10)<=9,0) ->  | P10: =_xlfn.IFS(SUM(C10:E10)<1,"",COUNT($C$6:E10)>9,N10*3+H10,COUNT($C$6:E10)<=9,0) ->  | S10: =IF(COUNT($C$6:E10)>9,IF(P10=MAX($P$6:$P$35),P10," "),"") ->  | V10: =IF(COUNT(C10:E10)<1,0,IF(COUNT($C$6:E10)>9,C10+N10,0)) -> 0 | W10: =IF(COUNT(C10:E10)<1,0,IF(COUNT($C$6:E10)>9,D10+N10,0)) -> 0 | X10: =IF(COUNT(C10:E10)<1,0,IF(COUNT($C$6:E10)>9,E10+N10,0)) -> 0 | AA10: 1 | AB10: 0 | AC10: 5
A11: wk6 | B11: =Calendar!B11 -> 2018-10-10 | F11: =IF(COUNT(C11:E11)<1," ",IF(AND(C11>M10,D11>M10,E11>M10,COUNT($C$6:E10)>=12),"*"," ")) ->  | G11: =IF(COUNT(C11:E11)<1," ",IF(AND(C11>M9,D11>M9,E11>M9,COUNT($C$6:E9)>=12),"*"," ")) ->  | J11: =_xlfn.IFS(SUM(C11:E11)<1,"",SUM(C11:E11)>=1,SUM($C$6:E11)) ->  | K11: =_xlfn.IFS(COUNT(C11:E11)<1,"",COUNT($C$6:E11)>=1,COUNT($C$6:E11)) ->  | L11: =_xlfn.IFS(COUNT(C11:E11)<1,"",AND(COUNT($C$6:E11)<=9,$C$4>1),$C$4,COUNT(C11:E11)>=1,M11) ->  | M11: =IF(COUNT($C$6:E11)>=1,TRUNC(SUM($C$6:E11)/COUNT($C$6:E11)),0) -> 0 | N11: =IF(COUNT($C$6:E11)<=6,0,TRUNC((230-M10)*0.9)) -> 0 | O11: =_xlfn.IFS(SUM(C11:E11)<1,"",COUNT($C$6:E11)>9,TRUNC((230-M10)*(0.9)),COUNT($C$6:E11)<=9,0) ->  | P11: =_xlfn.IFS(SUM(C11:E11)<1,"",COUNT($C$6:E11)>9,N11*3+H11,COUNT($C$6:E11)<=9,0) ->  | S11: =IF(COUNT($C$6:E11)>9,IF(P11=MAX($P$6:$P$35),P11," "),"") ->  | V11: =IF(COUNT(C11:E11)<1,0,IF(COUNT($C$6:E11)>9,C11+N11,0)) -> 0 | W11: =IF(COUNT(C11:E11)<1,0,IF(COUNT($C$6:E11)>9,D11+N11,0)) -> 0 | X11: =IF(COUNT(C11:E11)<1,0,IF(COUNT($C$6:E11)>9,E11+N11,0)) -> 0 | AA11: 1 | AB11: 0 | AC11: 6
A12: wk7 | B12: =Calendar!B12 -> 2018-10-17 | F12: =IF(COUNT(C12:E12)<1," ",IF(AND(C12>M11,D12>M11,E12>M11,COUNT($C$6:E11)>=12),"*"," ")) ->  | G12: =IF(COUNT(C12:E12)<1," ",IF(AND(C12>M10,D12>M10,E12>M10,COUNT($C$6:E10)>=12),"*"," ")) ->  | J12: =_xlfn.IFS(SUM(C12:E12)<1,"",SUM(C12:E12)>=1,SUM($C$6:E12)) ->  | K12: =_xlfn.IFS(COUNT(C12:E12)<1,"",COUNT($C$6:E12)>=1,COUNT($C$6:E12)) ->  | L12: =_xlfn.IFS(COUNT(C12:E12)<1,"",AND(COUNT($C$6:E12)<=9,$C$4>1),$C$4,COUNT(C12:E12)>=1,M12) ->  | M12: =IF(COUNT($C$6:E12)>=1,TRUNC(SUM($C$6:E12)/COUNT($C$6:E12)),0) -> 0 | N12: =IF(COUNT($C$6:E12)<=6,0,TRUNC((230-M11)*0.9)) -> 0 | O12: =_xlfn.IFS(SUM(C12:E12)<1,"",COUNT($C$6:E12)>9,TRUNC((230-M11)*(0.9)),COUNT($C$6:E12)<=9,0) ->  | P12: =_xlfn.IFS(SUM(C12:E12)<1,"",COUNT($C$6:E12)>9,N12*3+H12,COUNT($C$6:E12)<=9,0) ->  | S12: =IF(COUNT($C$6:E12)>9,IF(P12=MAX($P$6:$P$35),P12," "),"") ->  | V12: =IF(COUNT(C12:E12)<1,0,IF(COUNT($C$6:E12)>9,C12+N12,0)) -> 0 | W12: =IF(COUNT(C12:E12)<1,0,IF(COUNT($C$6:E12)>9,D12+N12,0)) -> 0 | X12: =IF(COUNT(C12:E12)<1,0,IF(COUNT($C$6:E12)>9,E12+N12,0)) -> 0 | AA12: 1 | AB12: 0 | AC12: 7
A13: wk8 | B13: =Calendar!B13 -> 2018-10-24 | F13: =IF(COUNT(C13:E13)<1," ",IF(AND(C13>M12,D13>M12,E13>M12,COUNT($C$6:E12)>=12),"*"," ")) ->  | G13: =IF(COUNT(C13:E13)<1," ",IF(AND(C13>M11,D13>M11,E13>M11,COUNT($C$6:E11)>=12),"*"," ")) ->  | J13: =_xlfn.IFS(SUM(C13:E13)<1,"",SUM(C13:E13)>=1,SUM($C$6:E13)) ->  | K13: =_xlfn.IFS(COUNT(C13:E13)<1,"",COUNT($C$6:E13)>=1,COUNT($C$6:E13)) ->  | L13: =_xlfn.IFS(COUNT(C13:E13)<1,"",AND(COUNT($C$6:E13)<=9,$C$4>1),$C$4,COUNT(C13:E13)>=1,M13) ->  | M13: =IF(COUNT($C$6:E13)>=1,TRUNC(SUM($C$6:E13)/COUNT($C$6:E13)),0) -> 0 | N13: =IF(COUNT($C$6:E13)<=6,0,TRUNC((230-M12)*0.9)) -> 0 | O13: =_xlfn.IFS(SUM(C13:E13)<1,"",COUNT($C$6:E13)>9,TRUNC((230-M12)*(0.9)),COUNT($C$6:E13)<=9,0) ->  | P13: =_xlfn.IFS(SUM(C13:E13)<1,"",COUNT($C$6:E13)>9,N13*3+H13,COUNT($C$6:E13)<=9,0) ->  | S13: =IF(COUNT($C$6:E13)>9,IF(P13=MAX($P$6:$P$35),P13," "),"") ->  | V13: =IF(COUNT(C13:E13)<1,0,IF(COUNT($C$6:E13)>9,C13+N13,0)) -> 0 | W13: =IF(COUNT(C13:E13)<1,0,IF(COUNT($C$6:E13)>9,D13+N13,0)) -> 0 | X13: =IF(COUNT(C13:E13)<1,0,IF(COUNT($C$6:E13)>9,E13+N13,0)) -> 0 | AA13: 1 | AB13: 0 | AC13: 8
A14: wk9 | B14: =Calendar!B14 -> 2018-10-31 | F14: =IF(COUNT(C14:E14)<1," ",IF(AND(C14>M13,D14>M13,E14>M13,COUNT($C$6:E13)>=12),"*"," ")) ->  | G14: =IF(COUNT(C14:E14)<1," ",IF(AND(C14>M12,D14>M12,E14>M12,COUNT($C$6:E12)>=12),"*"," ")) ->  | J14: =_xlfn.IFS(SUM(C14:E14)<1,"",SUM(C14:E14)>=1,SUM($C$6:E14)) ->  | K14: =_xlfn.IFS(COUNT(C14:E14)<1,"",COUNT($C$6:E14)>=1,COUNT($C$6:E14)) ->  | L14: =_xlfn.IFS(COUNT(C14:E14)<1,"",AND(COUNT($C$6:E14)<=9,$C$4>1),$C$4,COUNT(C14:E14)>=1,M14) ->  | M14: =IF(COUNT($C$6:E14)>=1,TRUNC(SUM($C$6:E14)/COUNT($C$6:E14)),0) -> 0 | N14: =IF(COUNT($C$6:E14)<=6,0,TRUNC((230-M13)*0.9)) -> 0 | O14: =_xlfn.IFS(SUM(C14:E14)<1,"",COUNT($C$6:E14)>9,TRUNC((230-M13)*(0.9)),COUNT($C$6:E14)<=9,0) ->  | P14: =_xlfn.IFS(SUM(C14:E14)<1,"",COUNT($C$6:E14)>9,N14*3+H14,COUNT($C$6:E14)<=9,0) ->  | S14: =IF(COUNT($C$6:E14)>9,IF(P14=MAX($P$6:$P$35),P14," "),"") ->  | V14: =IF(COUNT(C14:E14)<1,0,IF(COUNT($C$6:E14)>9,C14+N14,0)) -> 0 | W14: =IF(COUNT(C14:E14)<1,0,IF(COUNT($C$6:E14)>9,D14+N14,0)) -> 0 | X14: =IF(COUNT(C14:E14)<1,0,IF(COUNT($C$6:E14)>9,E14+N14,0)) -> 0 | AA14: 1 | AB14: 0 | AC14: 9
A15: wk10 | B15: =Calendar!B15 -> 2018-11-07 | F15: =IF(COUNT(C15:E15)<1," ",IF(AND(C15>M14,D15>M14,E15>M14,COUNT($C$6:E14)>=12),"*"," ")) ->  | G15: =IF(COUNT(C15:E15)<1," ",IF(AND(C15>M13,D15>M13,E15>M13,COUNT($C$6:E13)>=12),"*"," ")) ->  | J15: =_xlfn.IFS(SUM(C15:E15)<1,"",SUM(C15:E15)>=1,SUM($C$6:E15)) ->  | K15: =_xlfn.IFS(COUNT(C15:E15)<1,"",COUNT($C$6:E15)>=1,COUNT($C$6:E15)) ->  | L15: =_xlfn.IFS(COUNT(C15:E15)<1,"",AND(COUNT($C$6:E15)<=9,$C$4>1),$C$4,COUNT(C15:E15)>=1,M15) ->  | M15: =IF(COUNT($C$6:E15)>=1,TRUNC(SUM($C$6:E15)/COUNT($C$6:E15)),0) -> 0 | N15: =IF(COUNT($C$6:E15)<=6,0,TRUNC((230-M14)*0.9)) -> 0 | O15: =_xlfn.IFS(SUM(C15:E15)<1,"",COUNT($C$6:E15)>9,TRUNC((230-M14)*(0.9)),COUNT($C$6:E15)<=9,0) ->  | P15: =_xlfn.IFS(SUM(C15:E15)<1,"",COUNT($C$6:E15)>9,N15*3+H15,COUNT($C$6:E15)<=9,0) ->  | S15: =IF(COUNT($C$6:E15)>9,IF(P15=MAX($P$6:$P$35),P15," "),"") ->  | V15: =IF(COUNT(C15:E15)<1,0,IF(COUNT($C$6:E15)>9,C15+N15,0)) -> 0 | W15: =IF(COUNT(C15:E15)<1,0,IF(COUNT($C$6:E15)>9,D15+N15,0)) -> 0 | X15: =IF(COUNT(C15:E15)<1,0,IF(COUNT($C$6:E15)>9,E15+N15,0)) -> 0 | AA15: 1 | AB15: 0 | AC15: 10
A16: wk11 | B16: =Calendar!B16 -> 2018-11-14 | F16: =IF(COUNT(C16:E16)<1," ",IF(AND(C16>M15,D16>M15,E16>M15,COUNT($C$6:E15)>=12),"*"," ")) ->  | G16: =IF(COUNT(C16:E16)<1," ",IF(AND(C16>M14,D16>M14,E16>M14,COUNT($C$6:E14)>=12),"*"," ")) ->  | J16: =_xlfn.IFS(SUM(C16:E16)<1,"",SUM(C16:E16)>=1,SUM($C$6:E16)) ->  | K16: =_xlfn.IFS(COUNT(C16:E16)<1,"",COUNT($C$6:E16)>=1,COUNT($C$6:E16)) ->  | L16: =_xlfn.IFS(COUNT(C16:E16)<1,"",AND(COUNT($C$6:E16)<=9,$C$4>1),$C$4,COUNT(C16:E16)>=1,M16) ->  | M16: =IF(COUNT($C$6:E16)>=1,TRUNC(SUM($C$6:E16)/COUNT($C$6:E16)),0) -> 0 | N16: =IF(COUNT($C$6:E16)<=6,0,TRUNC((230-M15)*0.9)) -> 0 | O16: =_xlfn.IFS(SUM(C16:E16)<1,"",COUNT($C$6:E16)>9,TRUNC((230-M15)*(0.9)),COUNT($C$6:E16)<=9,0) ->  | P16: =_xlfn.IFS(SUM(C16:E16)<1,"",COUNT($C$6:E16)>9,N16*3+H16,COUNT($C$6:E16)<=9,0) ->  | S16: =IF(COUNT($C$6:E16)>9,IF(P16=MAX($P$6:$P$35),P16," "),"") ->  | V16: =IF(COUNT(C16:E16)<1,0,IF(COUNT($C$6:E16)>9,C16+N16,0)) -> 0 | W16: =IF(COUNT(C16:E16)<1,0,IF(COUNT($C$6:E16)>9,D16+N16,0)) -> 0 | X16: =IF(COUNT(C16:E16)<1,0,IF(COUNT($C$6:E16)>9,E16+N16,0)) -> 0 | AA16: 1 | AB16: 0 | AC16: 11
A17: wk12 | B17: =Calendar!B17 -> 2018-11-28 | F17: =IF(COUNT(C17:E17)<1," ",IF(AND(C17>M16,D17>M16,E17>M16,COUNT($C$6:E16)>=12),"*"," ")) ->  | G17: =IF(COUNT(C17:E17)<1," ",IF(AND(C17>M15,D17>M15,E17>M15,COUNT($C$6:E15)>=12),"*"," ")) ->  | J17: =_xlfn.IFS(SUM(C17:E17)<1,"",SUM(C17:E17)>=1,SUM($C$6:E17)) ->  | K17: =_xlfn.IFS(COUNT(C17:E17)<1,"",COUNT($C$6:E17)>=1,COUNT($C$6:E17)) ->  | L17: =_xlfn.IFS(COUNT(C17:E17)<1,"",AND(COUNT($C$6:E17)<=9,$C$4>1),$C$4,COUNT(C17:E17)>=1,M17) ->  | M17: =IF(COUNT($C$6:E17)>=1,TRUNC(SUM($C$6:E17)/COUNT($C$6:E17)),0) -> 0 | N17: =IF(COUNT($C$6:E17)<=6,0,TRUNC((230-M16)*0.9)) -> 0 | O17: =_xlfn.IFS(SUM(C17:E17)<1,"",COUNT($C$6:E17)>9,TRUNC((230-M16)*(0.9)),COUNT($C$6:E17)<=9,0) ->  | P17: =_xlfn.IFS(SUM(C17:E17)<1,"",COUNT($C$6:E17)>9,N17*3+H17,COUNT($C$6:E17)<=9,0) ->  | S17: =IF(COUNT($C$6:E17)>9,IF(P17=MAX($P$6:$P$35),P17," "),"") ->  | V17: =IF(COUNT(C17:E17)<1,0,IF(COUNT($C$6:E17)>9,C17+N17,0)) -> 0 | W17: =IF(COUNT(C17:E17)<1,0,IF(COUNT($C$6:E17)>9,D17+N17,0)) -> 0 | X17: =IF(COUNT(C17:E17)<1,0,IF(COUNT($C$6:E17)>9,E17+N17,0)) -> 0 | AA17: 1 | AB17: 0 | AC17: 12
A18: wk13 | B18: =Calendar!B18 -> 2018-12-05 | F18: =IF(COUNT(C18:E18)<1," ",IF(AND(C18>M17,D18>M17,E18>M17,COUNT($C$6:E17)>=12),"*"," ")) ->  | G18: =IF(COUNT(C18:E18)<1," ",IF(AND(C18>M16,D18>M16,E18>M16,COUNT($C$6:E16)>=12),"*"," ")) ->  | J18: =_xlfn.IFS(SUM(C18:E18)<1,"",SUM(C18:E18)>=1,SUM($C$6:E18)) ->  | K18: =_xlfn.IFS(COUNT(C18:E18)<1,"",COUNT($C$6:E18)>=1,COUNT($C$6:E18)) ->  | L18: =_xlfn.IFS(COUNT(C18:E18)<1,"",AND(COUNT($C$6:E18)<=9,$C$4>1),$C$4,COUNT(C18:E18)>=1,M18) ->  | M18: =IF(COUNT($C$6:E18)>=1,TRUNC(SUM($C$6:E18)/COUNT($C$6:E18)),0) -> 0 | N18: =IF(COUNT($C$6:E18)<=6,0,TRUNC((230-M17)*0.9)) -> 0 | O18: =_xlfn.IFS(SUM(C18:E18)<1,"",COUNT($C$6:E18)>9,TRUNC((230-M17)*(0.9)),COUNT($C$6:E18)<=9,0) ->  | P18: =_xlfn.IFS(SUM(C18:E18)<1,"",COUNT($C$6:E18)>9,N18*3+H18,COUNT($C$6:E18)<=9,0) ->  | S18: =IF(COUNT($C$6:E18)>9,IF(P18=MAX($P$6:$P$35),P18," "),"") ->  | V18: =IF(COUNT(C18:E18)<1,0,IF(COUNT($C$6:E18)>9,C18+N18,0)) -> 0 | W18: =IF(COUNT(C18:E18)<1,0,IF(COUNT($C$6:E18)>9,D18+N18,0)) -> 0 | X18: =IF(COUNT(C18:E18)<1,0,IF(COUNT($C$6:E18)>9,E18+N18,0)) -> 0 | AA18: 1 | AB18: 0 | AC18: 13
A19: wk14 | B19: =Calendar!B19 -> 2018-12-12 | D19: 151 | E19: 114 | F19: =IF(COUNT(C19:E19)<1," ",IF(AND(C19>M18,D19>M18,E19>M18,COUNT($C$6:E18)>=12),"*"," ")) ->  | G19: =IF(COUNT(C19:E19)<1," ",IF(AND(C19>M17,D19>M17,E19>M17,COUNT($C$6:E17)>=12),"*"," ")) ->  | H19: 265 | I19: 132 | J19: =_xlfn.IFS(SUM(C19:E19)<1,"",SUM(C19:E19)>=1,SUM($C$6:E19)) -> 265 | K19: =_xlfn.IFS(COUNT(C19:E19)<1,"",COUNT($C$6:E19)>=1,COUNT($C$6:E19)) -> 2 | L19: =_xlfn.IFS(COUNT(C19:E19)<1,"",AND(COUNT($C$6:E19)<=9,$C$4>1),$C$4,COUNT(C19:E19)>=1,M19) -> 139 | M19: =IF(COUNT($C$6:E19)>=1,TRUNC(SUM($C$6:E19)/COUNT($C$6:E19)),0) -> 132 | N19: =IF(COUNT($C$6:E19)<=6,0,TRUNC((230-M18)*0.9)) -> 0 | O19: =_xlfn.IFS(SUM(C19:E19)<1,"",COUNT($C$6:E19)>9,TRUNC((230-M18)*(0.9)),COUNT($C$6:E19)<=9,0) -> 0 | P19: =_xlfn.IFS(SUM(C19:E19)<1,"",COUNT($C$6:E19)>9,N19*3+H19,COUNT($C$6:E19)<=9,0) -> 0 | S19: =IF(COUNT($C$6:E19)>9,IF(P19=MAX($P$6:$P$35),P19," "),"") ->  | V19: =IF(COUNT(C19:E19)<1,0,IF(COUNT($C$6:E19)>9,C19+N19,0)) -> 0 | W19: =IF(COUNT(C19:E19)<1,0,IF(COUNT($C$6:E19)>9,D19+N19,0)) -> 0 | X19: =IF(COUNT(C19:E19)<1,0,IF(COUNT($C$6:E19)>9,E19+N19,0)) -> 0 | AA19: 0 | AB19: 14 | AC19: 14
A20: wk15 | B20: =Calendar!B20 -> 2018-12-19 | C20: 182 | D20: 140 | E20: 114 | F20: =IF(COUNT(C20:E20)<1," ",IF(AND(C20>M19,D20>M19,E20>M19,COUNT($C$6:E19)>=12),"*"," ")) ->  | G20: =IF(COUNT(C20:E20)<1," ",IF(AND(C20>M18,D20>M18,E20>M18,COUNT($C$6:E18)>=12),"*"," ")) ->  | H20: 436 | I20: 145 | J20: =_xlfn.IFS(SUM(C20:E20)<1,"",SUM(C20:E20)>=1,SUM($C$6:E20)) -> 701 | K20: =_xlfn.IFS(COUNT(C20:E20)<1,"",COUNT($C$6:E20)>=1,COUNT($C$6:E20)) -> 5 | L20: =_xlfn.IFS(COUNT(C20:E20)<1,"",AND(COUNT($C$6:E20)<=9,$C$4>1),$C$4,COUNT(C20:E20)>=1,M20) -> 139 | M20: =IF(COUNT($C$6:E20)>=1,TRUNC(SUM($C$6:E20)/COUNT($C$6:E20)),0) -> 140 | N20: =IF(COUNT($C$6:E20)<=6,0,TRUNC((230-M19)*0.9)) -> 0 | O20: =_xlfn.IFS(SUM(C20:E20)<1,"",COUNT($C$6:E20)>9,TRUNC((230-M19)*(0.9)),COUNT($C$6:E20)<=9,0) -> 0 | P20: =_xlfn.IFS(SUM(C20:E20)<1,"",COUNT($C$6:E20)>9,N20*3+H20,COUNT($C$6:E20)<=9,0) -> 0 | R20: 182 | S20: =IF(COUNT($C$6:E20)>9,IF(P20=MAX($P$6:$P$35),P20," "),"") ->  | V20: =IF(COUNT(C20:E20)<1,0,IF(COUNT($C$6:E20)>9,C20+N20,0)) -> 0 | W20: =IF(COUNT(C20:E20)<1,0,IF(COUNT($C$6:E20)>9,D20+N20,0)) -> 0 | X20: =IF(COUNT(C20:E20)<1,0,IF(COUNT($C$6:E20)>9,E20+N20,0)) -> 0 | AA20: 0 | AB20: 15 | AC20: 15
A21: wk16 | B21: =Calendar!B21 -> 2019-01-02 | C21: 118 | D21: 106 | E21: 132 | F21: =IF(COUNT(C21:E21)<1," ",IF(AND(C21>M20,D21>M20,E21>M20,COUNT($C$6:E20)>=12),"*"," ")) ->  | G21: =IF(COUNT(C21:E21)<1," ",IF(AND(C21>M19,D21>M19,E21>M19,COUNT($C$6:E19)>=12),"*"," ")) ->  | H21: 356 | I21: 118 | J21: =_xlfn.IFS(SUM(C21:E21)<1,"",SUM(C21:E21)>=1,SUM($C$6:E21)) -> 1057 | K21: =_xlfn.IFS(COUNT(C21:E21)<1,"",COUNT($C$6:E21)>=1,COUNT($C$6:E21)) -> 8 | L21: =_xlfn.IFS(COUNT(C21:E21)<1,"",AND(COUNT($C$6:E21)<=9,$C$4>1),$C$4,COUNT(C21:E21)>=1,M21) -> 139 | M21: =IF(COUNT($C$6:E21)>=1,TRUNC(SUM($C$6:E21)/COUNT($C$6:E21)),0) -> 132 | N21: =IF(COUNT($C$6:E21)<=6,0,TRUNC((230-M20)*0.9)) -> 81 | O21: =_xlfn.IFS(SUM(C21:E21)<1,"",COUNT($C$6:E21)>9,TRUNC((230-M20)*(0.9)),COUNT($C$6:E21)<=9,0) -> 0 | P21: =_xlfn.IFS(SUM(C21:E21)<1,"",COUNT($C$6:E21)>9,N21*3+H21,COUNT($C$6:E21)<=9,0) -> 0 | S21: =IF(COUNT($C$6:E21)>9,IF(P21=MAX($P$6:$P$35),P21," "),"") ->  | V21: =IF(COUNT(C21:E21)<1,0,IF(COUNT($C$6:E21)>9,C21+N21,0)) -> 0 | W21: =IF(COUNT(C21:E21)<1,0,IF(COUNT($C$6:E21)>9,D21+N21,0)) -> 0 | X21: =IF(COUNT(C21:E21)<1,0,IF(COUNT($C$6:E21)>9,E21+N21,0)) -> 0 | AA21: 0 | AB21: 16 | AC21: 16
A22: wk17 | B22: =Calendar!B22 -> 2019-01-09 | C22: 148 | D22: 114 | E22: 146 | F22: =IF(COUNT(C22:E22)<1," ",IF(AND(C22>M21,D22>M21,E22>M21,COUNT($C$6:E21)>=12),"*"," ")) ->  | G22: =IF(COUNT(C22:E22)<1," ",IF(AND(C22>M20,D22>M20,E22>M20,COUNT($C$6:E20)>=12),"*"," ")) ->  | H22: 408 | I22: 136 | J22: =_xlfn.IFS(SUM(C22:E22)<1,"",SUM(C22:E22)>=1,SUM($C$6:E22)) -> 1465 | K22: =_xlfn.IFS(COUNT(C22:E22)<1,"",COUNT($C$6:E22)>=1,COUNT($C$6:E22)) -> 11 | L22: =_xlfn.IFS(COUNT(C22:E22)<1,"",AND(COUNT($C$6:E22)<=9,$C$4>1),$C$4,COUNT(C22:E22)>=1,M22) -> 133 | M22: =IF(COUNT($C$6:E22)>=1,TRUNC(SUM($C$6:E22)/COUNT($C$6:E22)),0) -> 133 | N22: =IF(COUNT($C$6:E22)<=6,0,TRUNC((230-M21)*0.9)) -> 88 | O22: =_xlfn.IFS(SUM(C22:E22)<1,"",COUNT($C$6:E22)>9,TRUNC((230-M21)*(0.9)),COUNT($C$6:E22)<=9,0) -> 88 | P22: =_xlfn.IFS(SUM(C22:E22)<1,"",COUNT($C$6:E22)>9,N22*3+H22,COUNT($C$6:E22)<=9,0) -> 672 | S22: =IF(COUNT($C$6:E22)>9,IF(P22=MAX($P$6:$P$35),P22," "),"") ->  | V22: =IF(COUNT(C22:E22)<1,0,IF(COUNT($C$6:E22)>9,C22+N22,0)) -> 236 | W22: =IF(COUNT(C22:E22)<1,0,IF(COUNT($C$6:E22)>9,D22+N22,0)) -> 202 | X22: =IF(COUNT(C22:E22)<1,0,IF(COUNT($C$6:E22)>9,E22+N22,0)) -> 234 | AA22: 0 | AB22: 17 | AC22: 17
A23: wk18 | B23: =Calendar!B23 -> 2019-01-16 | C23: 103 | D23: 167 | E23: 135 | F23: =IF(COUNT(C23:E23)<1," ",IF(AND(C23>M22,D23>M22,E23>M22,COUNT($C$6:E22)>=12),"*"," ")) ->  | G23: =IF(COUNT(C23:E23)<1," ",IF(AND(C23>M21,D23>M21,E23>M21,COUNT($C$6:E21)>=12),"*"," ")) ->  | H23: 405 | I23: 135 | J23: =_xlfn.IFS(SUM(C23:E23)<1,"",SUM(C23:E23)>=1,SUM($C$6:E23)) -> 1870 | K23: =_xlfn.IFS(COUNT(C23:E23)<1,"",COUNT($C$6:E23)>=1,COUNT($C$6:E23)) -> 14 | L23: =_xlfn.IFS(COUNT(C23:E23)<1,"",AND(COUNT($C$6:E23)<=9,$C$4>1),$C$4,COUNT(C23:E23)>=1,M23) -> 133 | M23: =IF(COUNT($C$6:E23)>=1,TRUNC(SUM($C$6:E23)/COUNT($C$6:E23)),0) -> 133 | N23: =IF(COUNT($C$6:E23)<=6,0,TRUNC((230-M22)*0.9)) -> 87 | O23: =_xlfn.IFS(SUM(C23:E23)<1,"",COUNT($C$6:E23)>9,TRUNC((230-M22)*(0.9)),COUNT($C$6:E23)<=9,0) -> 87 | P23: =_xlfn.IFS(SUM(C23:E23)<1,"",COUNT($C$6:E23)>9,N23*3+H23,COUNT($C$6:E23)<=9,0) -> 666 | S23: =IF(COUNT($C$6:E23)>9,IF(P23=MAX($P$6:$P$35),P23," "),"") ->  | V23: =IF(COUNT(C23:E23)<1,0,IF(COUNT($C$6:E23)>9,C23+N23,0)) -> 190 | W23: =IF(COUNT(C23:E23)<1,0,IF(COUNT($C$6:E23)>9,D23+N23,0)) -> 254 | X23: =IF(COUNT(C23:E23)<1,0,IF(COUNT($C$6:E23)>9,E23+N23,0)) -> 222 | AA23: 0 | AB23: 18 | AC23: 18
A24: wk19 | B24: =Calendar!B24 -> 2019-01-23 | C24: 99 | D24: 149 | E24: 135 | F24: =IF(COUNT(C24:E24)<1," ",IF(AND(C24>M23,D24>M23,E24>M23,COUNT($C$6:E23)>=12),"*"," ")) ->  | G24: =IF(COUNT(C24:E24)<1," ",IF(AND(C24>M22,D24>M22,E24>M22,COUNT($C$6:E22)>=12),"*"," ")) ->  | H24: 383 | I24: 127 | J24: =_xlfn.IFS(SUM(C24:E24)<1,"",SUM(C24:E24)>=1,SUM($C$6:E24)) -> 2253 | K24: =_xlfn.IFS(COUNT(C24:E24)<1,"",COUNT($C$6:E24)>=1,COUNT($C$6:E24)) -> 17 | L24: =_xlfn.IFS(COUNT(C24:E24)<1,"",AND(COUNT($C$6:E24)<=9,$C$4>1),$C$4,COUNT(C24:E24)>=1,M24) -> 132 | M24: =IF(COUNT($C$6:E24)>=1,TRUNC(SUM($C$6:E24)/COUNT($C$6:E24)),0) -> 132 | N24: =IF(COUNT($C$6:E24)<=6,0,TRUNC((230-M23)*0.9)) -> 87 | O24: =_xlfn.IFS(SUM(C24:E24)<1,"",COUNT($C$6:E24)>9,TRUNC((230-M23)*(0.9)),COUNT($C$6:E24)<=9,0) -> 87 | P24: =_xlfn.IFS(SUM(C24:E24)<1,"",COUNT($C$6:E24)>9,N24*3+H24,COUNT($C$6:E24)<=9,0) -> 644 | S24: =IF(COUNT($C$6:E24)>9,IF(P24=MAX($P$6:$P$35),P24," "),"") ->  | V24: =IF(COUNT(C24:E24)<1,0,IF(COUNT($C$6:E24)>9,C24+N24,0)) -> 186 | W24: =IF(COUNT(C24:E24)<1,0,IF(COUNT($C$6:E24)>9,D24+N24,0)) -> 236 | X24: =IF(COUNT(C24:E24)<1,0,IF(COUNT($C$6:E24)>9,E24+N24,0)) -> 222 | AA24: 0 | AB24: 19 | AC24: 19
A25: wk20 | B25: =Calendar!B25 -> 2019-01-30 | D25: 131 | E25: 117 | F25: =IF(COUNT(C25:E25)<1," ",IF(AND(C25>M24,D25>M24,E25>M24,COUNT($C$6:E24)>=12),"*"," ")) ->  | G25: =IF(COUNT(C25:E25)<1," ",IF(AND(C25>M23,D25>M23,E25>M23,COUNT($C$6:E23)>=12),"*"," ")) ->  | H25: 248 | I25: 124 | J25: =_xlfn.IFS(SUM(C25:E25)<1,"",SUM(C25:E25)>=1,SUM($C$6:E25)) -> 2501 | K25: =_xlfn.IFS(COUNT(C25:E25)<1,"",COUNT($C$6:E25)>=1,COUNT($C$6:E25)) -> 19 | L25: =_xlfn.IFS(COUNT(C25:E25)<1,"",AND(COUNT($C$6:E25)<=9,$C$4>1),$C$4,COUNT(C25:E25)>=1,M25) -> 131 | M25: =IF(COUNT($C$6:E25)>=1,TRUNC(SUM($C$6:E25)/COUNT($C$6:E25)),0) -> 131 | N25: =IF(COUNT($C$6:E25)<=6,0,TRUNC((230-M24)*0.9)) -> 88 | O25: =_xlfn.IFS(SUM(C25:E25)<1,"",COUNT($C$6:E25)>9,TRUNC((230-M24)*(0.9)),COUNT($C$6:E25)<=9,0) -> 88 | P25: =_xlfn.IFS(SUM(C25:E25)<1,"",COUNT($C$6:E25)>9,N25*3+H25,COUNT($C$6:E25)<=9,0) -> 512 | S25: =IF(COUNT($C$6:E25)>9,IF(P25=MAX($P$6:$P$35),P25," "),"") ->  | V25: =IF(COUNT(C25:E25)<1,0,IF(COUNT($C$6:E25)>9,C25+N25,0)) -> 88 | W25: =IF(COUNT(C25:E25)<1,0,IF(COUNT($C$6:E25)>9,D25+N25,0)) -> 219 | X25: =IF(COUNT(C25:E25)<1,0,IF(COUNT($C$6:E25)>9,E25+N25,0)) -> 205 | AA25: 0 | AB25: 20 | AC25: 20
A26: wk21 | B26: =Calendar!B26 -> 2019-02-06 | C26: 137 | D26: 132 | E26: 145 | F26: =IF(COUNT(C26:E26)<1," ",IF(AND(C26>M25,D26>M25,E26>M25,COUNT($C$6:E25)>=12),"*"," ")) -> * | G26: =IF(COUNT(C26:E26)<1," ",IF(AND(C26>M24,D26>M24,E26>M24,COUNT($C$6:E24)>=12),"*"," ")) ->  | H26: 414 | I26: 138 | J26: =_xlfn.IFS(SUM(C26:E26)<1,"",SUM(C26:E26)>=1,SUM($C$6:E26)) -> 2915 | K26: =_xlfn.IFS(COUNT(C26:E26)<1,"",COUNT($C$6:E26)>=1,COUNT($C$6:E26)) -> 22 | L26: =_xlfn.IFS(COUNT(C26:E26)<1,"",AND(COUNT($C$6:E26)<=9,$C$4>1),$C$4,COUNT(C26:E26)>=1,M26) -> 132 | M26: =IF(COUNT($C$6:E26)>=1,TRUNC(SUM($C$6:E26)/COUNT($C$6:E26)),0) -> 132 | N26: =IF(COUNT($C$6:E26)<=6,0,TRUNC((230-M25)*0.9)) -> 89 | O26: =_xlfn.IFS(SUM(C26:E26)<1,"",COUNT($C$6:E26)>9,TRUNC((230-M25)*(0.9)),COUNT($C$6:E26)<=9,0) -> 89 | P26: =_xlfn.IFS(SUM(C26:E26)<1,"",COUNT($C$6:E26)>9,N26*3+H26,COUNT($C$6:E26)<=9,0) -> 681 | S26: =IF(COUNT($C$6:E26)>9,IF(P26=MAX($P$6:$P$35),P26," "),"") ->  | V26: =IF(COUNT(C26:E26)<1,0,IF(COUNT($C$6:E26)>9,C26+N26,0)) -> 226 | W26: =IF(COUNT(C26:E26)<1,0,IF(COUNT($C$6:E26)>9,D26+N26,0)) -> 221 | X26: =IF(COUNT(C26:E26)<1,0,IF(COUNT($C$6:E26)>9,E26+N26,0)) -> 234 | AA26: 0 | AB26: 21 | AC26: 21
A27: wk22 | B27: =Calendar!B27 -> 2019-02-13 | C27: 138 | D27: 129 | E27: 131 | F27: =IF(COUNT(C27:E27)<1," ",IF(AND(C27>M26,D27>M26,E27>M26,COUNT($C$6:E26)>=12),"*"," ")) ->  | G27: =IF(COUNT(C27:E27)<1," ",IF(AND(C27>M25,D27>M25,E27>M25,COUNT($C$6:E25)>=12),"*"," ")) ->  | H27: 398 | I27: 132 | J27: =_xlfn.IFS(SUM(C27:E27)<1,"",SUM(C27:E27)>=1,SUM($C$6:E27)) -> 3313 | K27: =_xlfn.IFS(COUNT(C27:E27)<1,"",COUNT($C$6:E27)>=1,COUNT($C$6:E27)) -> 25 | L27: =_xlfn.IFS(COUNT(C27:E27)<1,"",AND(COUNT($C$6:E27)<=9,$C$4>1),$C$4,COUNT(C27:E27)>=1,M27) -> 132 | M27: =IF(COUNT($C$6:E27)>=1,TRUNC(SUM($C$6:E27)/COUNT($C$6:E27)),0) -> 132 | N27: =IF(COUNT($C$6:E27)<=6,0,TRUNC((230-M26)*0.9)) -> 88 | O27: =_xlfn.IFS(SUM(C27:E27)<1,"",COUNT($C$6:E27)>9,TRUNC((230-M26)*(0.9)),COUNT($C$6:E27)<=9,0) -> 88 | P27: =_xlfn.IFS(SUM(C27:E27)<1,"",COUNT($C$6:E27)>9,N27*3+H27,COUNT($C$6:E27)<=9,0) -> 662 | S27: =IF(COUNT($C$6:E27)>9,IF(P27=MAX($P$6:$P$35),P27," "),"") ->  | V27: =IF(COUNT(C27:E27)<1,0,IF(COUNT($C$6:E27)>9,C27+N27,0)) -> 226 | W27: =IF(COUNT(C27:E27)<1,0,IF(COUNT($C$6:E27)>9,D27+N27,0)) -> 217 | X27: =IF(COUNT(C27:E27)<1,0,IF(COUNT($C$6:E27)>9,E27+N27,0)) -> 219 | AA27: 0 | AB27: 22 | AC27: 22
A28: wk23 | B28: =Calendar!B28 -> 2019-02-20 | C28: 129 | D28: 150 | E28: 144 | F28: =IF(COUNT(C28:E28)<1," ",IF(AND(C28>M27,D28>M27,E28>M27,COUNT($C$6:E27)>=12),"*"," ")) ->  | G28: =IF(COUNT(C28:E28)<1," ",IF(AND(C28>M26,D28>M26,E28>M26,COUNT($C$6:E26)>=12),"*"," ")) ->  | H28: 423 | I28: 141 | J28: =_xlfn.IFS(SUM(C28:E28)<1,"",SUM(C28:E28)>=1,SUM($C$6:E28)) -> 3736 | K28: =_xlfn.IFS(COUNT(C28:E28)<1,"",COUNT($C$6:E28)>=1,COUNT($C$6:E28)) -> 28 | L28: =_xlfn.IFS(COUNT(C28:E28)<1,"",AND(COUNT($C$6:E28)<=9,$C$4>1),$C$4,COUNT(C28:E28)>=1,M28) -> 133 | M28: =IF(COUNT($C$6:E28)>=1,TRUNC(SUM($C$6:E28)/COUNT($C$6:E28)),0) -> 133 | N28: =IF(COUNT($C$6:E28)<=6,0,TRUNC((230-M27)*0.9)) -> 88 | O28: =_xlfn.IFS(SUM(C28:E28)<1,"",COUNT($C$6:E28)>9,TRUNC((230-M27)*(0.9)),COUNT($C$6:E28)<=9,0) -> 88 | P28: =_xlfn.IFS(SUM(C28:E28)<1,"",COUNT($C$6:E28)>9,N28*3+H28,COUNT($C$6:E28)<=9,0) -> 687 | S28: =IF(COUNT($C$6:E28)>9,IF(P28=MAX($P$6:$P$35),P28," "),"") ->  | V28: =IF(COUNT(C28:E28)<1,0,IF(COUNT($C$6:E28)>9,C28+N28,0)) -> 217 | W28: =IF(COUNT(C28:E28)<1,0,IF(COUNT($C$6:E28)>9,D28+N28,0)) -> 238 | X28: =IF(COUNT(C28:E28)<1,0,IF(COUNT($C$6:E28)>9,E28+N28,0)) -> 232 | AA28: 0 | AB28: 23 | AC28: 23
A29: wk24 | B29: =Calendar!B29 -> 2019-02-27 | C29: 122 | D29: 142 | E29: 156 | F29: =IF(COUNT(C29:E29)<1," ",IF(AND(C29>M28,D29>M28,E29>M28,COUNT($C$6:E28)>=12),"*"," ")) ->  | G29: =IF(COUNT(C29:E29)<1," ",IF(AND(C29>M27,D29>M27,E29>M27,COUNT($C$6:E27)>=12),"*"," ")) ->  | H29: 420 | I29: 140 | J29: =_xlfn.IFS(SUM(C29:E29)<1,"",SUM(C29:E29)>=1,SUM($C$6:E29)) -> 4156 | K29: =_xlfn.IFS(COUNT(C29:E29)<1,"",COUNT($C$6:E29)>=1,COUNT($C$6:E29)) -> 31 | L29: =_xlfn.IFS(COUNT(C29:E29)<1,"",AND(COUNT($C$6:E29)<=9,$C$4>1),$C$4,COUNT(C29:E29)>=1,M29) -> 134 | M29: =IF(COUNT($C$6:E29)>=1,TRUNC(SUM($C$6:E29)/COUNT($C$6:E29)),0) -> 134 | N29: =IF(COUNT($C$6:E29)<=6,0,TRUNC((230-M28)*0.9)) -> 87 | O29: =_xlfn.IFS(SUM(C29:E29)<1,"",COUNT($C$6:E29)>9,TRUNC((230-M28)*(0.9)),COUNT($C$6:E29)<=9,0) -> 87 | P29: =_xlfn.IFS(SUM(C29:E29)<1,"",COUNT($C$6:E29)>9,N29*3+H29,COUNT($C$6:E29)<=9,0) -> 681 | S29: =IF(COUNT($C$6:E29)>9,IF(P29=MAX($P$6:$P$35),P29," "),"") ->  | V29: =IF(COUNT(C29:E29)<1,0,IF(COUNT($C$6:E29)>9,C29+N29,0)) -> 209 | W29: =IF(COUNT(C29:E29)<1,0,IF(COUNT($C$6:E29)>9,D29+N29,0)) -> 229 | X29: =IF(COUNT(C29:E29)<1,0,IF(COUNT($C$6:E29)>9,E29+N29,0)) -> 243 | AA29: 0 | AB29: 24 | AC29: 24
A30: wk25 | B30: =Calendar!B30 -> 2019-03-06 | C30: 146 | D30: 100 | E30: 102 | F30: =IF(COUNT(C30:E30)<1," ",IF(AND(C30>M29,D30>M29,E30>M29,COUNT($C$6:E29)>=12),"*"," ")) ->  | G30: =IF(COUNT(C30:E30)<1," ",IF(AND(C30>M28,D30>M28,E30>M28,COUNT($C$6:E28)>=12),"*"," ")) ->  | H30: 348 | I30: 116 | J30: =_xlfn.IFS(SUM(C30:E30)<1,"",SUM(C30:E30)>=1,SUM($C$6:E30)) -> 4504 | K30: =_xlfn.IFS(COUNT(C30:E30)<1,"",COUNT($C$6:E30)>=1,COUNT($C$6:E30)) -> 34 | L30: =_xlfn.IFS(COUNT(C30:E30)<1,"",AND(COUNT($C$6:E30)<=9,$C$4>1),$C$4,COUNT(C30:E30)>=1,M30) -> 132 | M30: =IF(COUNT($C$6:E30)>=1,TRUNC(SUM($C$6:E30)/COUNT($C$6:E30)),0) -> 132 | N30: =IF(COUNT($C$6:E30)<=6,0,TRUNC((230-M29)*0.9)) -> 86 | O30: =_xlfn.IFS(SUM(C30:E30)<1,"",COUNT($C$6:E30)>9,TRUNC((230-M29)*(0.9)),COUNT($C$6:E30)<=9,0) -> 86 | P30: =_xlfn.IFS(SUM(C30:E30)<1,"",COUNT($C$6:E30)>9,N30*3+H30,COUNT($C$6:E30)<=9,0) -> 606 | S30: =IF(COUNT($C$6:E30)>9,IF(P30=MAX($P$6:$P$35),P30," "),"") ->  | V30: =IF(COUNT(C30:E30)<1,0,IF(COUNT($C$6:E30)>9,C30+N30,0)) -> 232 | W30: =IF(COUNT(C30:E30)<1,0,IF(COUNT($C$6:E30)>9,D30+N30,0)) -> 186 | X30: =IF(COUNT(C30:E30)<1,0,IF(COUNT($C$6:E30)>9,E30+N30,0)) -> 188 | AA30: 0 | AB30: 25 | AC30: 25
A31: wk26 | B31: =Calendar!B31 -> 2019-03-13 | C31: 130 | D31: 113 | E31: 133 | F31: =IF(COUNT(C31:E31)<1," ",IF(AND(C31>M30,D31>M30,E31>M30,COUNT($C$6:E30)>=12),"*"," ")) ->  | G31: =IF(COUNT(C31:E31)<1," ",IF(AND(C31>M29,D31>M29,E31>M29,COUNT($C$6:E29)>=12),"*"," ")) ->  | H31: 376 | I31: 125 | J31: =_xlfn.IFS(SUM(C31:E31)<1,"",SUM(C31:E31)>=1,SUM($C$6:E31)) -> 4880 | K31: =_xlfn.IFS(COUNT(C31:E31)<1,"",COUNT($C$6:E31)>=1,COUNT($C$6:E31)) -> 37 | L31: =_xlfn.IFS(COUNT(C31:E31)<1,"",AND(COUNT($C$6:E31)<=9,$C$4>1),$C$4,COUNT(C31:E31)>=1,M31) -> 131 | M31: =IF(COUNT($C$6:E31)>=1,TRUNC(SUM($C$6:E31)/COUNT($C$6:E31)),0) -> 131 | N31: =IF(COUNT($C$6:E31)<=6,0,TRUNC((230-M30)*0.9)) -> 88 | O31: =_xlfn.IFS(SUM(C31:E31)<1,"",COUNT($C$6:E31)>9,TRUNC((230-M30)*(0.9)),COUNT($C$6:E31)<=9,0) -> 88 | P31: =_xlfn.IFS(SUM(C31:E31)<1,"",COUNT($C$6:E31)>9,N31*3+H31,COUNT($C$6:E31)<=9,0) -> 640 | S31: =IF(COUNT($C$6:E31)>9,IF(P31=MAX($P$6:$P$35),P31," "),"") ->  | V31: =IF(COUNT(C31:E31)<1,0,IF(COUNT($C$6:E31)>9,C31+N31,0)) -> 218 | W31: =IF(COUNT(C31:E31)<1,0,IF(COUNT($C$6:E31)>9,D31+N31,0)) -> 201 | X31: =IF(COUNT(C31:E31)<1,0,IF(COUNT($C$6:E31)>9,E31+N31,0)) -> 221 | AA31: 0 | AB31: 26 | AC31: 26
A32: wk27 | B32: =Calendar!B32 -> 2019-03-20 | C32: 157 | D32: 144 | E32: 126 | F32: =IF(COUNT(C32:E32)<1," ",IF(AND(C32>M31,D32>M31,E32>M31,COUNT($C$6:E31)>=12),"*"," ")) ->  | G32: =IF(COUNT(C32:E32)<1," ",IF(AND(C32>M30,D32>M30,E32>M30,COUNT($C$6:E30)>=12),"*"," ")) ->  | H32: 427 | I32: 142 | J32: =_xlfn.IFS(SUM(C32:E32)<1,"",SUM(C32:E32)>=1,SUM($C$6:E32)) -> 5307 | K32: =_xlfn.IFS(COUNT(C32:E32)<1,"",COUNT($C$6:E32)>=1,COUNT($C$6:E32)) -> 40 | L32: =_xlfn.IFS(COUNT(C32:E32)<1,"",AND(COUNT($C$6:E32)<=9,$C$4>1),$C$4,COUNT(C32:E32)>=1,M32) -> 132 | M32: =IF(COUNT($C$6:E32)>=1,TRUNC(SUM($C$6:E32)/COUNT($C$6:E32)),0) -> 132 | N32: =IF(COUNT($C$6:E32)<=6,0,TRUNC((230-M31)*0.9)) -> 89 | O32: =_xlfn.IFS(SUM(C32:E32)<1,"",COUNT($C$6:E32)>9,TRUNC((230-M31)*(0.9)),COUNT($C$6:E32)<=9,0) -> 89 | P32: =_xlfn.IFS(SUM(C32:E32)<1,"",COUNT($C$6:E32)>9,N32*3+H32,COUNT($C$6:E32)<=9,0) -> 694 | S32: =IF(COUNT($C$6:E32)>9,IF(P32=MAX($P$6:$P$35),P32," "),"") ->  | V32: =IF(COUNT(C32:E32)<1,0,IF(COUNT($C$6:E32)>9,C32+N32,0)) -> 246 | W32: =IF(COUNT(C32:E32)<1,0,IF(COUNT($C$6:E32)>9,D32+N32,0)) -> 233 | X32: =IF(COUNT(C32:E32)<1,0,IF(COUNT($C$6:E32)>9,E32+N32,0)) -> 215 | AA32: 0 | AB32: 27 | AC32: 27
A33: wk28 | B33: =Calendar!B33 -> 2019-03-27 | C33: 170 | D33: 148 | E33: 110 | F33: =IF(COUNT(C33:E33)<1," ",IF(AND(C33>M32,D33>M32,E33>M32,COUNT($C$6:E32)>=12),"*"," ")) ->  | G33: =IF(COUNT(C33:E33)<1," ",IF(AND(C33>M31,D33>M31,E33>M31,COUNT($C$6:E31)>=12),"*"," ")) ->  | H33: 428 | I33: 142 | J33: =_xlfn.IFS(SUM(C33:E33)<1,"",SUM(C33:E33)>=1,SUM($C$6:E33)) -> 5735 | K33: =_xlfn.IFS(COUNT(C33:E33)<1,"",COUNT($C$6:E33)>=1,COUNT($C$6:E33)) -> 43 | L33: =_xlfn.IFS(COUNT(C33:E33)<1,"",AND(COUNT($C$6:E33)<=9,$C$4>1),$C$4,COUNT(C33:E33)>=1,M33) -> 133 | M33: =IF(COUNT($C$6:E33)>=1,TRUNC(SUM($C$6:E33)/COUNT($C$6:E33)),0) -> 133 | N33: =IF(COUNT($C$6:E33)<=6,0,TRUNC((230-M32)*0.9)) -> 88 | O33: =_xlfn.IFS(SUM(C33:E33)<1,"",COUNT($C$6:E33)>9,TRUNC((230-M32)*(0.9)),COUNT($C$6:E33)<=9,0) -> 88 | P33: =_xlfn.IFS(SUM(C33:E33)<1,"",COUNT($C$6:E33)>9,N33*3+H33,COUNT($C$6:E33)<=9,0) -> 692 | S33: =IF(COUNT($C$6:E33)>9,IF(P33=MAX($P$6:$P$35),P33," "),"") ->  | T33: 258 | V33: =IF(COUNT(C33:E33)<1,0,IF(COUNT($C$6:E33)>9,C33+N33,0)) -> 258 | W33: =IF(COUNT(C33:E33)<1,0,IF(COUNT($C$6:E33)>9,D33+N33,0)) -> 236 | X33: =IF(COUNT(C33:E33)<1,0,IF(COUNT($C$6:E33)>9,E33+N33,0)) -> 198 | AA33: 0 | AB33: 28 | AC33: 28
A34: wk29 | B34: =Calendar!B34 -> 2019-04-03 | C34: 154 | D34: 166 | E34: 140 | F34: =IF(COUNT(C34:E34)<1," ",IF(AND(C34>M33,D34>M33,E34>M33,COUNT($C$6:E33)>=12),"*"," ")) -> * | G34: =IF(COUNT(C34:E34)<1," ",IF(AND(C34>M32,D34>M32,E34>M32,COUNT($C$6:E32)>=12),"*"," ")) -> * | H34: 460 | I34: 153 | J34: =_xlfn.IFS(SUM(C34:E34)<1,"",SUM(C34:E34)>=1,SUM($C$6:E34)) -> 6195 | K34: =_xlfn.IFS(COUNT(C34:E34)<1,"",COUNT($C$6:E34)>=1,COUNT($C$6:E34)) -> 46 | L34: =_xlfn.IFS(COUNT(C34:E34)<1,"",AND(COUNT($C$6:E34)<=9,$C$4>1),$C$4,COUNT(C34:E34)>=1,M34) -> 134 | M34: =IF(COUNT($C$6:E34)>=1,TRUNC(SUM($C$6:E34)/COUNT($C$6:E34)),0) -> 134 | N34: =IF(COUNT($C$6:E34)<=6,0,TRUNC((230-M33)*0.9)) -> 87 | O34: =_xlfn.IFS(SUM(C34:E34)<1,"",COUNT($C$6:E34)>9,TRUNC((230-M33)*(0.9)),COUNT($C$6:E34)<=9,0) -> 87 | P34: =_xlfn.IFS(SUM(C34:E34)<1,"",COUNT($C$6:E34)>9,N34*3+H34,COUNT($C$6:E34)<=9,0) -> 721 | Q34: 460 | S34: =IF(COUNT($C$6:E34)>9,IF(P34=MAX($P$6:$P$35),P34," "),"") -> 721 | V34: =IF(COUNT(C34:E34)<1,0,IF(COUNT($C$6:E34)>9,C34+N34,0)) -> 241 | W34: =IF(COUNT(C34:E34)<1,0,IF(COUNT($C$6:E34)>9,D34+N34,0)) -> 253 | X34: =IF(COUNT(C34:E34)<1,0,IF(COUNT($C$6:E34)>9,E34+N34,0)) -> 227 | AA34: 0 | AB34: 29 | AC34: 29
A35: wk30 | B35: =Calendar!B35 -> 2019-04-10 | C35: 127 | D35: 122 | E35: 117 | F35: =IF(COUNT(C35:E35)<1," ",IF(AND(C35>M34,D35>M34,E35>M34,COUNT($C$6:E34)>=12),"*"," ")) ->  | G35: =IF(COUNT(C35:E35)<1," ",IF(AND(C35>M33,D35>M33,E35>M33,COUNT($C$6:E33)>=12),"*"," ")) ->  | H35: 366 | I35: 122 | J35: =_xlfn.IFS(SUM(C35:E35)<1,"",SUM(C35:E35)>=1,SUM($C$6:E35)) -> 6561 | K35: =_xlfn.IFS(COUNT(C35:E35)<1,"",COUNT($C$6:E35)>=1,COUNT($C$6:E35)) -> 49 | L35: =_xlfn.IFS(COUNT(C35:E35)<1,"",AND(COUNT($C$6:E35)<=9,$C$4>1),$C$4,COUNT(C35:E35)>=1,M35) -> 133 | M35: =IF(COUNT($C$6:E35)>=1,TRUNC(SUM($C$6:E35)/COUNT($C$6:E35)),0) -> 133 | N35: =IF(COUNT($C$6:E35)<=6,0,TRUNC((230-M34)*0.9)) -> 86 | O35: =_xlfn.IFS(SUM(C35:E35)<1,"",COUNT($C$6:E35)>9,TRUNC((230-M34)*(0.9)),COUNT($C$6:E35)<=9,0) -> 86 | P35: =_xlfn.IFS(SUM(C35:E35)<1,"",COUNT($C$6:E35)>9,N35*3+H35,COUNT($C$6:E35)<=9,0) -> 624 | S35: =IF(COUNT($C$6:E35)>9,IF(P35=MAX($P$6:$P$35),P35," "),"") ->  | V35: =IF(COUNT(C35:E35)<1,0,IF(COUNT($C$6:E35)>9,C35+N35,0)) -> 213 | W35: =IF(COUNT(C35:E35)<1,0,IF(COUNT($C$6:E35)>9,D35+N35,0)) -> 208 | X35: =IF(COUNT(C35:E35)<1,0,IF(COUNT($C$6:E35)>9,E35+N35,0)) -> 203 | AA35: 0 | AB35: 30 | AC35: 30
C36: =(IF(COUNT(C6:C35)=0," ",(SUM(C6:C35))/COUNT(C6:C35))) -> 137.33 | D36: =(IF(COUNT(D6:D35)=0," ",(SUM(D6:D35))/COUNT(D6:D35))) -> 135.53 | E36: =(IF(COUNT(E6:E35)=0," ",(SUM(E6:E35))/COUNT(E6:E35))) -> 129.24

Sheet CConnell
H1: =Calendar!H1 -> Wednesday Fun Fours 2018/19 season | R1: 6-over wk:
A2: wk# | B2: =MAX(AB6:AB35) -> 9 | R2: 0
A3: Name: | B3: Charlene Connell | I3: Perfect Attendance: | K3: =IF(SUM(AA6:AA35)<0.5,"Yes","No") -> No | L3: =_xlfn.IFS(AND(B2=30,K3="Yes"),"good",AND(B2<>30,K3="Yes"),"So Far",AND(B2<>30,K3="No")," ") -> 
A4: book average: | C4: 124 | H4: wky | I4: wky | J4: cumulative | L4: cumulative | P4: hdcp | Q4: high | R4: high | S4: high hcp | T4: high hcp
C5: g1 | D5: g2 | E5: g3 | H5: series | I5: average | J5: score | K5: games | L5: average | O5: hdcp | P5: series | Q5: series | R5: game | S5: series | T5: game | V5: =MAX(C6:E35) -> 133 | W5: =MAX(V6:X35) -> 0
A6: wk1 | B6: =Calendar!B6 -> 2018-09-05 | H6: =IF(COUNT(C6:E6)<1," ",SUM(C6:E6)) ->  | I6: =IF(COUNT(C6:E6)<1," ",TRUNC(H6/COUNT(C6:E6))) ->  | J6: =_xlfn.IFS(SUM(C6:E6)<1,"",SUM(C6:E6)>=1,SUM($C$6:E6)) ->  | K6: =_xlfn.IFS(COUNT(C6:E6)<1,"",COUNT($C$6:E6)>=1,COUNT($C$6:E6)) ->  | L6: =_xlfn.IFS(COUNT(C6:E6)<1,"",AND(COUNT($C$6:E6)<=9,$C$4>1),$C$4,COUNT(C6:E6)>=1,M6) ->  | M6: =IF(COUNT($C$6:E6)>=1,TRUNC(SUM($C$6:E6)/COUNT($C$6:E6)),0) -> 0 | N6: =IF(COUNT($C$6:E6)<=6,0,TRUNC((230-M5)*0.9)) -> 0 | O6: =_xlfn.IFS(SUM(C6:E6)<1,"",COUNT($C$6:E6)>9,TRUNC((230-M5)*(0.9)),COUNT($C$6:E6)<=9,0) ->  | P6: =_xlfn.IFS(SUM(C6:E6)<1,"",COUNT($C$6:E6)>9,N6*3+H6,COUNT($C$6:E6)<=9,0) ->  | Q6: =IF(H6=(MAX($H$6:$H$35)),H6," ") ->  | R6: =IF((OR(C6=$V$5,D6=$V$5,E6=$V$5)),$V$5," ") ->  | S6: =IF(COUNT($C$6:E6)>9,IF(P6=MAX($P$6:$P$35),P6," "),"") ->  | T6: =IF(OR(V6=$W$5,W6=$W$5,X6=$W$5),$W$5," ") -> 0 | V6: =IF(COUNT(C6:E6)<1,0,IF(COUNT($C$6:E6)>9,C6+N6,0)) -> 0 | W6: =IF(COUNT(C6:E6)<1,0,IF(COUNT($C$6:E6)>9,D6+N6,0)) -> 0 | X6: =IF(COUNT(C6:E6)<1,0,IF(COUNT($C$6:E6)>9,E6+N6,0)) -> 0 | AA6: =IF((MAX($AB$6:$AB$35))<AC6,0,IF(AB6=AC6,0,1)) -> 1 | AB6: =IF(COUNT(C6:E6)>0,AC6,0) -> 0 | AC6: 1
A7: wk2 | B7: =Calendar!B7 -> 2018-09-12 | C7: 110 | D7: 124 | E7: 111 | H7: 345 | I7: =IF(COUNT(C7:E7)<1," ",TRUNC(H7/COUNT(C7:E7))) -> 115 | J7: =_xlfn.IFS(SUM(C7:E7)<1,"",SUM(C7:E7)>=1,SUM($C$6:E7)) -> 345 | K7: =_xlfn.IFS(COUNT(C7:E7)<1,"",COUNT($C$6:E7)>=1,COUNT($C$6:E7)) -> 3 | L7: =_xlfn.IFS(COUNT(C7:E7)<1,"",AND(COUNT($C$6:E7)<=9,$C$4>1),$C$4,COUNT(C7:E7)>=1,M7) -> 124 | M7: =IF(COUNT($C$6:E7)>=1,TRUNC(SUM($C$6:E7)/COUNT($C$6:E7)),0) -> 115 | N7: =IF(COUNT($C$6:E7)<=6,0,TRUNC((230-M6)*0.9)) -> 0 | O7: =_xlfn.IFS(SUM(C7:E7)<1,"",COUNT($C$6:E7)>9,TRUNC((230-M6)*(0.9)),COUNT($C$6:E7)<=9,0) -> 0 | P7: =_xlfn.IFS(SUM(C7:E7)<1,"",COUNT($C$6:E7)>9,N7*3+H7,COUNT($C$6:E7)<=9,0) -> 0 | S7: =IF(COUNT($C$6:E7)>9,IF(P7=MAX($P$6:$P$35),P7," "),"") ->  | T7: 0 | V7: =IF(COUNT(C7:E7)<1,0,IF(COUNT($C$6:E7)>9,C7+N7,0)) -> 0 | W7: =IF(COUNT(C7:E7)<1,0,IF(COUNT($C$6:E7)>9,D7+N7,0)) -> 0 | X7: =IF(COUNT(C7:E7)<1,0,IF(COUNT($C$6:E7)>9,E7+N7,0)) -> 0 | AA7: 0 | AB7: =IF(COUNT(C7:E7)>0,AC7,0) -> 2 | AC7: 2
A8: wk3 | B8: =Calendar!B8 -> 2018-09-19 | J8: =_xlfn.IFS(SUM(C8:E8)<1,"",SUM(C8:E8)>=1,SUM($C$6:E8)) ->  | K8: =_xlfn.IFS(COUNT(C8:E8)<1,"",COUNT($C$6:E8)>=1,COUNT($C$6:E8)) ->  | L8: =_xlfn.IFS(COUNT(C8:E8)<1,"",AND(COUNT($C$6:E8)<=9,$C$4>1),$C$4,COUNT(C8:E8)>=1,M8) ->  | M8: =IF(COUNT($C$6:E8)>=1,TRUNC(SUM($C$6:E8)/COUNT($C$6:E8)),0) -> 115 | N8: =IF(COUNT($C$6:E8)<=6,0,TRUNC((230-M7)*0.9)) -> 0 | O8: =_xlfn.IFS(SUM(C8:E8)<1,"",COUNT($C$6:E8)>9,TRUNC((230-M7)*(0.9)),COUNT($C$6:E8)<=9,0) ->  | P8: =_xlfn.IFS(SUM(C8:E8)<1,"",COUNT($C$6:E8)>9,N8*3+H8,COUNT($C$6:E8)<=9,0) ->  | S8: =IF(COUNT($C$6:E8)>9,IF(P8=MAX($P$6:$P$35),P8," "),"") ->  | T8: 0 | V8: =IF(COUNT(C8:E8)<1,0,IF(COUNT($C$6:E8)>9,C8+N8,0)) -> 0 | W8: =IF(COUNT(C8:E8)<1,0,IF(COUNT($C$6:E8)>9,D8+N8,0)) -> 0 | X8: =IF(COUNT(C8:E8)<1,0,IF(COUNT($C$6:E8)>9,E8+N8,0)) -> 0 | AA8: 1 | AB8: 0 | AC8: 3
A9: wk4 | B9: =Calendar!B9 -> 2018-09-26 | J9: =_xlfn.IFS(SUM(C9:E9)<1,"",SUM(C9:E9)>=1,SUM($C$6:E9)) ->  | K9: =_xlfn.IFS(COUNT(C9:E9)<1,"",COUNT($C$6:E9)>=1,COUNT($C$6:E9)) ->  | L9: =_xlfn.IFS(COUNT(C9:E9)<1,"",AND(COUNT($C$6:E9)<=9,$C$4>1),$C$4,COUNT(C9:E9)>=1,M9) ->  | M9: =IF(COUNT($C$6:E9)>=1,TRUNC(SUM($C$6:E9)/COUNT($C$6:E9)),0) -> 115 | N9: =IF(COUNT($C$6:E9)<=6,0,TRUNC((230-M8)*0.9)) -> 0 | O9: =_xlfn.IFS(SUM(C9:E9)<1,"",COUNT($C$6:E9)>9,TRUNC((230-M8)*(0.9)),COUNT($C$6:E9)<=9,0) ->  | P9: =_xlfn.IFS(SUM(C9:E9)<1,"",COUNT($C$6:E9)>9,N9*3+H9,COUNT($C$6:E9)<=9,0) ->  | S9: =IF(COUNT($C$6:E9)>9,IF(P9=MAX($P$6:$P$35),P9," "),"") ->  | T9: 0 | V9: =IF(COUNT(C9:E9)<1,0,IF(COUNT($C$6:E9)>9,C9+N9,0)) -> 0 | W9: =IF(COUNT(C9:E9)<1,0,IF(COUNT($C$6:E9)>9,D9+N9,0)) -> 0 | X9: =IF(COUNT(C9:E9)<1,0,IF(COUNT($C$6:E9)>9,E9+N9,0)) -> 0 | AA9: 1 | AB9: 0 | AC9: 4
A10: wk5 | B10: =Calendar!B10 -> 2018-10-03 | F10: =IF(COUNT(C10:E10)<1," ",IF(AND(C10>M9,D10>M9,E10>M9,COUNT($C$6:E9)>=12),"*"," ")) ->  | J10: =_xlfn.IFS(SUM(C10:E10)<1,"",SUM(C10:E10)>=1,SUM($C$6:E10)) ->  | K10: =_xlfn.IFS(COUNT(C10:E10)<1,"",COUNT($C$6:E10)>=1,COUNT($C$6:E10)) ->  | L10: =_xlfn.IFS(COUNT(C10:E10)<1,"",AND(COUNT($C$6:E10)<=9,$C$4>1),$C$4,COUNT(C10:E10)>=1,M10) ->  | M10: =IF(COUNT($C$6:E10)>=1,TRUNC(SUM($C$6:E10)/COUNT($C$6:E10)),0) -> 115 | N10: =IF(COUNT($C$6:E10)<=6,0,TRUNC((230-M9)*0.9)) -> 0 | O10: =_xlfn.IFS(SUM(C10:E10)<1,"",COUNT($C$6:E10)>9,TRUNC((230-M9)*(0.9)),COUNT($C$6:E10)<=9,0) ->  | P10: =_xlfn.IFS(SUM(C10:E10)<1,"",COUNT($C$6:E10)>9,N10*3+H10,COUNT($C$6:E10)<=9,0) ->  | S10: =IF(COUNT($C$6:E10)>9,IF(P10=MAX($P$6:$P$35),P10," "),"") ->  | T10: 0 | V10: =IF(COUNT(C10:E10)<1,0,IF(COUNT($C$6:E10)>9,C10+N10,0)) -> 0 | W10: =IF(COUNT(C10:E10)<1,0,IF(COUNT($C$6:E10)>9,D10+N10,0)) -> 0 | X10: =IF(COUNT(C10:E10)<1,0,IF(COUNT($C$6:E10)>9,E10+N10,0)) -> 0 | AA10: 1 | AB10: 0 | AC10: 5
A11: wk6 | B11: =Calendar!B11 -> 2018-10-10 | F11: =IF(COUNT(C11:E11)<1," ",IF(AND(C11>M10,D11>M10,E11>M10,COUNT($C$6:E10)>=12),"*"," ")) ->  | G11: =IF(COUNT(C11:E11)<1," ",IF(AND(C11>M9,D11>M9,E11>M9,COUNT($C$6:E9)>=12),"*"," ")) ->  | J11: =_xlfn.IFS(SUM(C11:E11)<1,"",SUM(C11:E11)>=1,SUM($C$6:E11)) ->  | K11: =_xlfn.IFS(COUNT(C11:E11)<1,"",COUNT($C$6:E11)>=1,COUNT($C$6:E11)) ->  | L11: =_xlfn.IFS(COUNT(C11:E11)<1,"",AND(COUNT($C$6:E11)<=9,$C$4>1),$C$4,COUNT(C11:E11)>=1,M11) ->  | M11: =IF(COUNT($C$6:E11)>=1,TRUNC(SUM($C$6:E11)/COUNT($C$6:E11)),0) -> 115 | N11: =IF(COUNT($C$6:E11)<=6,0,TRUNC((230-M10)*0.9)) -> 0 | O11: =_xlfn.IFS(SUM(C11:E11)<1,"",COUNT($C$6:E11)>9,TRUNC((230-M10)*(0.9)),COUNT($C$6:E11)<=9,0) ->  | P11: =_xlfn.IFS(SUM(C11:E11)<1,"",COUNT($C$6:E11)>9,N11*3+H11,COUNT($C$6:E11)<=9,0) ->  | S11: =IF(COUNT($C$6:E11)>9,IF(P11=MAX($P$6:$P$35),P11," "),"") ->  | T11: 0 | V11: =IF(COUNT(C11:E11)<1,0,IF(COUNT($C$6:E11)>9,C11+N11,0)) -> 0 | W11: =IF(COUNT(C11:E11)<1,0,IF(COUNT($C$6:E11)>9,D11+N11,0)) -> 0 | X11: =IF(COUNT(C11:E11)<1,0,IF(COUNT($C$6:E11)>9,E11+N11,0)) -> 0 | AA11: 1 | AB11: 0 | AC11: 6
A12: wk7 | B12: =Calendar!B12 -> 2018-10-17 | F12: =IF(COUNT(C12:E12)<1," ",IF(AND(C12>M11,D12>M11,E12>M11,COUNT($C$6:E11)>=12),"*"," ")) ->  | G12: =IF(COUNT(C12:E12)<1," ",IF(AND(C12>M10,D12>M10,E12>M10,COUNT($C$6:E10)>=12),"*"," ")) ->  | J12: =_xlfn.IFS(SUM(C12:E12)<1,"",SUM(C12:E12)>=1,SUM($C$6:E12)) ->  | K12: =_xlfn.IFS(COUNT(C12:E12)<1,"",COUNT($C$6:E12)>=1,COUNT($C$6:E12)) ->  | L12: =_xlfn.IFS(COUNT(C12:E12)<1,"",AND(COUNT($C$6:E12)<=9,$C$4>1),$C$4,COUNT(C12:E12)>=1,M12) ->  | M12: =IF(COUNT($C$6:E12)>=1,TRUNC(SUM($C$6:E12)/COUNT($C$6:E12)),0) -> 115 | N12: =IF(COUNT($C$6:E12)<=6,0,TRUNC((230-M11)*0.9)) -> 0 | O12: =_xlfn.IFS(SUM(C12:E12)<1,"",COUNT($C$6:E12)>9,TRUNC((230-M11)*(0.9)),COUNT($C$6:E12)<=9,0) ->  | P12: =_xlfn.IFS(SUM(C12:E12)<1,"",COUNT($C$6:E12)>9,N12*3+H12,COUNT($C$6:E12)<=9,0) ->  | S12: =IF(COUNT($C$6:E12)>9,IF(P12=MAX($P$6:$P$35),P12," "),"") ->  | T12: 0 | V12: =IF(COUNT(C12:E12)<1,0,IF(COUNT($C$6:E12)>9,C12+N12,0)) -> 0 | W12: =IF(COUNT(C12:E12)<1,0,IF(COUNT($C$6:E12)>9,D12+N12,0)) -> 0 | X12: =IF(COUNT(C12:E12)<1,0,IF(COUNT($C$6:E12)>9,E12+N12,0)) -> 0 | AA12: 1 | AB12: 0 | AC12: 7
A13: wk8 | B13: =Calendar!B13 -> 2018-10-24 | C13: 128 | D13: 127 | E13: 117 | F13: =IF(COUNT(C13:E13)<1," ",IF(AND(C13>M12,D13>M12,E13>M12,COUNT($C$6:E12)>=12),"*"," ")) ->  | G13: =IF(COUNT(C13:E13)<1," ",IF(AND(C13>M11,D13>M11,E13>M11,COUNT($C$6:E11)>=12),"*"," ")) ->  | H13: 372 | I13: 124 | J13: =_xlfn.IFS(SUM(C13:E13)<1,"",SUM(C13:E13)>=1,SUM($C$6:E13)) -> 717 | K13: =_xlfn.IFS(COUNT(C13:E13)<1,"",COUNT($C$6:E13)>=1,COUNT($C$6:E13)) -> 6 | L13: =_xlfn.IFS(COUNT(C13:E13)<1,"",AND(COUNT($C$6:E13)<=9,$C$4>1),$C$4,COUNT(C13:E13)>=1,M13) -> 124 | M13: =IF(COUNT($C$6:E13)>=1,TRUNC(SUM($C$6:E13)/COUNT($C$6:E13)),0) -> 119 | N13: =IF(COUNT($C$6:E13)<=6,0,TRUNC((230-M12)*0.9)) -> 0 | O13: =_xlfn.IFS(SUM(C13:E13)<1,"",COUNT($C$6:E13)>9,TRUNC((230-M12)*(0.9)),COUNT($C$6:E13)<=9,0) -> 0 | P13: =_xlfn.IFS(SUM(C13:E13)<1,"",COUNT($C$6:E13)>9,N13*3+H13,COUNT($C$6:E13)<=9,0) -> 0 | S13: =IF(COUNT($C$6:E13)>9,IF(P13=MAX($P$6:$P$35),P13," "),"") ->  | T13: 0 | V13: =IF(COUNT(C13:E13)<1,0,IF(COUNT($C$6:E13)>9,C13+N13,0)) -> 0 | W13: =IF(COUNT(C13:E13)<1,0,IF(COUNT($C$6:E13)>9,D13+N13,0)) -> 0 | X13: =IF(COUNT(C13:E13)<1,0,IF(COUNT($C$6:E13)>9,E13+N13,0)) -> 0 | AA13: 0 | AB13: 8 | AC13: 8
A14: wk9 | B14: =Calendar!B14 -> 2018-10-31 | C14: 129 | D14: 133 | E14: 131 | F14: =IF(COUNT(C14:E14)<1," ",IF(AND(C14>M13,D14>M13,E14>M13,COUNT($C$6:E13)>=12),"*"," ")) ->  | G14: =IF(COUNT(C14:E14)<1," ",IF(AND(C14>M12,D14>M12,E14>M12,COUNT($C$6:E12)>=12),"*"," ")) ->  | H14: 393 | I14: 131 | J14: =_xlfn.IFS(SUM(C14:E14)<1,"",SUM(C14:E14)>=1,SUM($C$6:E14)) -> 1110 | K14: =_xlfn.IFS(COUNT(C14:E14)<1,"",COUNT($C$6:E14)>=1,COUNT($C$6:E14)) -> 9 | L14: =_xlfn.IFS(COUNT(C14:E14)<1,"",AND(COUNT($C$6:E14)<=9,$C$4>1),$C$4,COUNT(C14:E14)>=1,M14) -> 124 | M14: =IF(COUNT($C$6:E14)>=1,TRUNC(SUM($C$6:E14)/COUNT($C$6:E14)),0) -> 123 | N14: =IF(COUNT($C$6:E14)<=6,0,TRUNC((230-M13)*0.9)) -> 99 | O14: =_xlfn.IFS(SUM(C14:E14)<1,"",COUNT($C$6:E14)>9,TRUNC((230-M13)*(0.9)),COUNT($C$6:E14)<=9,0) -> 0 | P14: =_xlfn.IFS(SUM(C14:E14)<1,"",COUNT($C$6:E14)>9,N14*3+H14,COUNT($C$6:E14)<=9,0) -> 0 | Q14: 393 | R14: 133 | S14: =IF(COUNT($C$6:E14)>9,IF(P14=MAX($P$6:$P$35),P14," "),"") ->  | T14: 0 | V14: =IF(COUNT(C14:E14)<1,0,IF(COUNT($C$6:E14)>9,C14+N14,0)) -> 0 | W14: =IF(COUNT(C14:E14)<1,0,IF(COUNT($C$6:E14)>9,D14+N14,0)) -> 0 | X14: =IF(COUNT(C14:E14)<1,0,IF(COUNT($C$6:E14)>9,E14+N14,0)) -> 0 | AA14: 0 | AB14: 9 | AC14: 9
A15: wk10 | B15: =Calendar!B15 -> 2018-11-07 | F15: =IF(COUNT(C15:E15)<1," ",IF(AND(C15>M14,D15>M14,E15>M14,COUNT($C$6:E14)>=12),"*"," ")) ->  | G15: =IF(COUNT(C15:E15)<1," ",IF(AND(C15>M13,D15>M13,E15>M13,COUNT($C$6:E13)>=12),"*"," ")) ->  | J15: =_xlfn.IFS(SUM(C15:E15)<1,"",SUM(C15:E15)>=1,SUM($C$6:E15)) ->  | K15: =_xlfn.IFS(COUNT(C15:E15)<1,"",COUNT($C$6:E15)>=1,COUNT($C$6:E15)) ->  | L15: =_xlfn.IFS(COUNT(C15:E15)<1,"",AND(COUNT($C$6:E15)<=9,$C$4>1),$C$4,COUNT(C15:E15)>=1,M15) ->  | M15: =IF(COUNT($C$6:E15)>=1,TRUNC(SUM($C$6:E15)/COUNT($C$6:E15)),0) -> 123 | N15: =IF(COUNT($C$6:E15)<=6,0,TRUNC((230-M14)*0.9)) -> 96 | O15: =_xlfn.IFS(SUM(C15:E15)<1,"",COUNT($C$6:E15)>9,TRUNC((230-M14)*(0.9)),COUNT($C$6:E15)<=9,0) ->  | P15: =_xlfn.IFS(SUM(C15:E15)<1,"",COUNT($C$6:E15)>9,N15*3+H15,COUNT($C$6:E15)<=9,0) ->  | S15: =IF(COUNT($C$6:E15)>9,IF(P15=MAX($P$6:$P$35),P15," "),"") ->  | T15: 0 | V15: =IF(COUNT(C15:E15)<1,0,IF(COUNT($C$6:E15)>9,C15+N15,0)) -> 0 | W15: =IF(COUNT(C15:E15)<1,0,IF(COUNT($C$6:E15)>9,D15+N15,0)) -> 0 | X15: =IF(COUNT(C15:E15)<1,0,IF(COUNT($C$6:E15)>9,E15+N15,0)) -> 0 | AA15: 0 | AB15: 0 | AC15: 10
A16: wk11 | B16: =Calendar!B16 -> 2018-11-14 | F16: =IF(COUNT(C16:E16)<1," ",IF(AND(C16>M15,D16>M15,E16>M15,COUNT($C$6:E15)>=12),"*"," ")) ->  | G16: =IF(COUNT(C16:E16)<1," ",IF(AND(C16>M14,D16>M14,E16>M14,COUNT($C$6:E14)>=12),"*"," ")) ->  | J16: =_xlfn.IFS(SUM(C16:E16)<1,"",SUM(C16:E16)>=1,SUM($C$6:E16)) ->  | K16: =_xlfn.IFS(COUNT(C16:E16)<1,"",COUNT($C$6:E16)>=1,COUNT($C$6:E16)) ->  | L16: =_xlfn.IFS(COUNT(C16:E16)<1,"",AND(COUNT($C$6:E16)<=9,$C$4>1),$C$4,COUNT(C16:E16)>=1,M16) ->  | M16: =IF(COUNT($C$6:E16)>=1,TRUNC(SUM($C$6:E16)/COUNT($C$6:E16)),0) -> 123 | N16: =IF(COUNT($C$6:E16)<=6,0,TRUNC((230-M15)*0.9)) -> 96 | O16: =_xlfn.IFS(SUM(C16:E16)<1,"",COUNT($C$6:E16)>9,TRUNC((230-M15)*(0.9)),COUNT($C$6:E16)<=9,0) ->  | P16: =_xlfn.IFS(SUM(C16:E16)<1,"",COUNT($C$6:E16)>9,N16*3+H16,COUNT($C$6:E16)<=9,0) ->  | S16: =IF(COUNT($C$6:E16)>9,IF(P16=MAX($P$6:$P$35),P16," "),"") ->  | T16: 0 | V16: =IF(COUNT(C16:E16)<1,0,IF(COUNT($C$6:E16)>9,C16+N16,0)) -> 0 | W16: =IF(COUNT(C16:E16)<1,0,IF(COUNT($C$6:E16)>9,D16+N16,0)) -> 0 | X16: =IF(COUNT(C16:E16)<1,0,IF(COUNT($C$6:E16)>9,E16+N16,0)) -> 0 | AA16: 0 | AB16: 0 | AC16: 11
A17: wk12 | B17: =Calendar!B17 -> 2018-11-28 | F17: =IF(COUNT(C17:E17)<1," ",IF(AND(C17>M16,D17>M16,E17>M16,COUNT($C$6:E16)>=12),"*"," ")) ->  | G17: =IF(COUNT(C17:E17)<1," ",IF(AND(C17>M15,D17>M15,E17>M15,COUNT($C$6:E15)>=12),"*"," ")) ->  | J17: =_xlfn.IFS(SUM(C17:E17)<1,"",SUM(C17:E17)>=1,SUM($C$6:E17)) ->  | K17: =_xlfn.IFS(COUNT(C17:E17)<1,"",COUNT($C$6:E17)>=1,COUNT($C$6:E17)) ->  | L17: =_xlfn.IFS(COUNT(C17:E17)<1,"",AND(COUNT($C$6:E17)<=9,$C$4>1),$C$4,COUNT(C17:E17)>=1,M17) ->  | M17: =IF(COUNT($C$6:E17)>=1,TRUNC(SUM($C$6:E17)/COUNT($C$6:E17)),0) -> 123 | N17: =IF(COUNT($C$6:E17)<=6,0,TRUNC((230-M16)*0.9)) -> 96 | O17: =_xlfn.IFS(SUM(C17:E17)<1,"",COUNT($C$6:E17)>9,TRUNC((230-M16)*(0.9)),COUNT($C$6:E17)<=9,0) ->  | P17: =_xlfn.IFS(SUM(C17:E17)<1,"",COUNT($C$6:E17)>9,N17*3+H17,COUNT($C$6:E17)<=9,0) ->  | S17: =IF(COUNT($C$6:E17)>9,IF(P17=MAX($P$6:$P$35),P17," "),"") ->  | T17: 0 | V17: =IF(COUNT(C17:E17)<1,0,IF(COUNT($C$6:E17)>9,C17+N17,0)) -> 0 | W17: =IF(COUNT(C17:E17)<1,0,IF(COUNT($C$6:E17)>9,D17+N17,0)) -> 0 | X17: =IF(COUNT(C17:E17)<1,0,IF(COUNT($C$6:E17)>9,E17+N17,0)) -> 0 | AA17: 0 | AB17: 0 | AC17: 12
A18: wk13 | B18: =Calendar!B18 -> 2018-12-05 | F18: =IF(COUNT(C18:E18)<1," ",IF(AND(C18>M17,D18>M17,E18>M17,COUNT($C$6:E17)>=12),"*"," ")) ->  | G18: =IF(COUNT(C18:E18)<1," ",IF(AND(C18>M16,D18>M16,E18>M16,COUNT($C$6:E16)>=12),"*"," ")) ->  | J18: =_xlfn.IFS(SUM(C18:E18)<1,"",SUM(C18:E18)>=1,SUM($C$6:E18)) ->  | K18: =_xlfn.IFS(COUNT(C18:E18)<1,"",COUNT($C$6:E18)>=1,COUNT($C$6:E18)) ->  | L18: =_xlfn.IFS(COUNT(C18:E18)<1,"",AND(COUNT($C$6:E18)<=9,$C$4>1),$C$4,COUNT(C18:E18)>=1,M18) ->  | M18: =IF(COUNT($C$6:E18)>=1,TRUNC(SUM($C$6:E18)/COUNT($C$6:E18)),0) -> 123 | N18: =IF(COUNT($C$6:E18)<=6,0,TRUNC((230-M17)*0.9)) -> 96 | O18: =_xlfn.IFS(SUM(C18:E18)<1,"",COUNT($C$6:E18)>9,TRUNC((230-M17)*(0.9)),COUNT($C$6:E18)<=9,0) ->  | P18: =_xlfn.IFS(SUM(C18:E18)<1,"",COUNT($C$6:E18)>9,N18*3+H18,COUNT($C$6:E18)<=9,0) ->  | S18: =IF(COUNT($C$6:E18)>9,IF(P18=MAX($P$6:$P$35),P18," "),"") ->  | T18: 0 | V18: =IF(COUNT(C18:E18)<1,0,IF(COUNT($C$6:E18)>9,C18+N18,0)) -> 0 | W18: =IF(COUNT(C18:E18)<1,0,IF(COUNT($C$6:E18)>9,D18+N18,0)) -> 0 | X18: =IF(COUNT(C18:E18)<1,0,IF(COUNT($C$6:E18)>9,E18+N18,0)) -> 0 | AA18: 0 | AB18: 0 | AC18: 13
A19: wk14 | B19: =Calendar!B19 -> 2018-12-12 | F19: =IF(COUNT(C19:E19)<1," ",IF(AND(C19>M18,D19>M18,E19>M18,COUNT($C$6:E18)>=12),"*"," ")) ->  | G19: =IF(COUNT(C19:E19)<1," ",IF(AND(C19>M17,D19>M17,E19>M17,COUNT($C$6:E17)>=12),"*"," ")) ->  | J19: =_xlfn.IFS(SUM(C19:E19)<1,"",SUM(C19:E19)>=1,SUM($C$6:E19)) ->  | K19: =_xlfn.IFS(COUNT(C19:E19)<1,"",COUNT($C$6:E19)>=1,COUNT($C$6:E19)) ->  | L19: =_xlfn.IFS(COUNT(C19:E19)<1,"",AND(COUNT($C$6:E19)<=9,$C$4>1),$C$4,COUNT(C19:E19)>=1,M19) ->  | M19: =IF(COUNT($C$6:E19)>=1,TRUNC(SUM($C$6:E19)/COUNT($C$6:E19)),0) -> 123 | N19: =IF(COUNT($C$6:E19)<=6,0,TRUNC((230-M18)*0.9)) -> 96 | O19: =_xlfn.IFS(SUM(C19:E19)<1,"",COUNT($C$6:E19)>9,TRUNC((230-M18)*(0.9)),COUNT($C$6:E19)<=9,0) ->  | P19: =_xlfn.IFS(SUM(C19:E19)<1,"",COUNT($C$6:E19)>9,N19*3+H19,COUNT($C$6:E19)<=9,0) ->  | S19: =IF(COUNT($C$6:E19)>9,IF(P19=MAX($P$6:$P$35),P19," "),"") ->  | T19: 0 | V19: =IF(COUNT(C19:E19)<1,0,IF(COUNT($C$6:E19)>9,C19+N19,0)) -> 0 | W19: =IF(COUNT(C19:E19)<1,0,IF(COUNT($C$6:E19)>9,D19+N19,0)) -> 0 | X19: =IF(COUNT(C19:E19)<1,0,IF(COUNT($C$6:E19)>9,E19+N19,0)) -> 0 | AA19: 0 | AB19: 0 | AC19: 14
A20: wk15 | B20: =Calendar!B20 -> 2018-12-19 | F20: =IF(COUNT(C20:E20)<1," ",IF(AND(C20>M19,D20>M19,E20>M19,COUNT($C$6:E19)>=12),"*"," ")) ->  | G20: =IF(COUNT(C20:E20)<1," ",IF(AND(C20>M18,D20>M18,E20>M18,COUNT($C$6:E18)>=12),"*"," ")) ->  | J20: =_xlfn.IFS(SUM(C20:E20)<1,"",SUM(C20:E20)>=1,SUM($C$6:E20)) ->  | K20: =_xlfn.IFS(COUNT(C20:E20)<1,"",COUNT($C$6:E20)>=1,COUNT($C$6:E20)) ->  | L20: =_xlfn.IFS(COUNT(C20:E20)<1,"",AND(COUNT($C$6:E20)<=9,$C$4>1),$C$4,COUNT(C20:E20)>=1,M20) ->  | M20: =IF(COUNT($C$6:E20)>=1,TRUNC(SUM($C$6:E20)/COUNT($C$6:E20)),0) -> 123 | N20: =IF(COUNT($C$6:E20)<=6,0,TRUNC((230-M19)*0.9)) -> 96 | O20: =_xlfn.IFS(SUM(C20:E20)<1,"",COUNT($C$6:E20)>9,TRUNC((230-M19)*(0.9)),COUNT($C$6:E20)<=9,0) ->  | P20: =_xlfn.IFS(SUM(C20:E20)<1,"",COUNT($C$6:E20)>9,N20*3+H20,COUNT($C$6:E20)<=9,0) ->  | S20: =IF(COUNT($C$6:E20)>9,IF(P20=MAX($P$6:$P$35),P20," "),"") ->  | T20: 0 | V20: =IF(COUNT(C20:E20)<1,0,IF(COUNT($C$6:E20)>9,C20+N20,0)) -> 0 | W20: =IF(COUNT(C20:E20)<1,0,IF(COUNT($C$6:E20)>9,D20+N20,0)) -> 0 | X20: =IF(COUNT(C20:E20)<1,0,IF(COUNT($C$6:E20)>9,E20+N20,0)) -> 0 | AA20: 0 | AB20: 0 | AC20: 15
A21: wk16 | B21: =Calendar!B21 -> 2019-01-02 | F21: =IF(COUNT(C21:E21)<1," ",IF(AND(C21>M20,D21>M20,E21>M20,COUNT($C$6:E20)>=12),"*"," ")) ->  | G21: =IF(COUNT(C21:E21)<1," ",IF(AND(C21>M19,D21>M19,E21>M19,COUNT($C$6:E19)>=12),"*"," ")) ->  | J21: =_xlfn.IFS(SUM(C21:E21)<1,"",SUM(C21:E21)>=1,SUM($C$6:E21)) ->  | K21: =_xlfn.IFS(COUNT(C21:E21)<1,"",COUNT($C$6:E21)>=1,COUNT($C$6:E21)) ->  | L21: =_xlfn.IFS(COUNT(C21:E21)<1,"",AND(COUNT($C$6:E21)<=9,$C$4>1),$C$4,COUNT(C21:E21)>=1,M21) ->  | M21: =IF(COUNT($C$6:E21)>=1,TRUNC(SUM($C$6:E21)/COUNT($C$6:E21)),0) -> 123 | N21: =IF(COUNT($C$6:E21)<=6,0,TRUNC((230-M20)*0.9)) -> 96 | O21: =_xlfn.IFS(SUM(C21:E21)<1,"",COUNT($C$6:E21)>9,TRUNC((230-M20)*(0.9)),COUNT($C$6:E21)<=9,0) ->  | P21: =_xlfn.IFS(SUM(C21:E21)<1,"",COUNT($C$6:E21)>9,N21*3+H21,COUNT($C$6:E21)<=9,0) ->  | S21: =IF(COUNT($C$6:E21)>9,IF(P21=MAX($P$6:$P$35),P21," "),"") ->  | T21: 0 | V21: =IF(COUNT(C21:E21)<1,0,IF(COUNT($C$6:E21)>9,C21+N21,0)) -> 0 | W21: =IF(COUNT(C21:E21)<1,0,IF(COUNT($C$6:E21)>9,D21+N21,0)) -> 0 | X21: =IF(COUNT(C21:E21)<1,0,IF(COUNT($C$6:E21)>9,E21+N21,0)) -> 0 | AA21: 0 | AB21: 0 | AC21: 16
A22: wk17 | B22: =Calendar!B22 -> 2019-01-09 | F22: =IF(COUNT(C22:E22)<1," ",IF(AND(C22>M21,D22>M21,E22>M21,COUNT($C$6:E21)>=12),"*"," ")) ->  | G22: =IF(COUNT(C22:E22)<1," ",IF(AND(C22>M20,D22>M20,E22>M20,COUNT($C$6:E20)>=12),"*"," ")) ->  | J22: =_xlfn.IFS(SUM(C22:E22)<1,"",SUM(C22:E22)>=1,SUM($C$6:E22)) ->  | K22: =_xlfn.IFS(COUNT(C22:E22)<1,"",COUNT($C$6:E22)>=1,COUNT($C$6:E22)) ->  | L22: =_xlfn.IFS(COUNT(C22:E22)<1,"",AND(COUNT($C$6:E22)<=9,$C$4>1),$C$4,COUNT(C22:E22)>=1,M22) ->  | M22: =IF(COUNT($C$6:E22)>=1,TRUNC(SUM($C$6:E22)/COUNT($C$6:E22)),0) -> 123 | N22: =IF(COUNT($C$6:E22)<=6,0,TRUNC((230-M21)*0.9)) -> 96 | O22: =_xlfn.IFS(SUM(C22:E22)<1,"",COUNT($C$6:E22)>9,TRUNC((230-M21)*(0.9)),COUNT($C$6:E22)<=9,0) ->  | P22: =_xlfn.IFS(SUM(C22:E22)<1,"",COUNT($C$6:E22)>9,N22*3+H22,COUNT($C$6:E22)<=9,0) ->  | S22: =IF(COUNT($C$6:E22)>9,IF(P22=MAX($P$6:$P$35),P22," "),"") ->  | T22: 0 | V22: =IF(COUNT(C22:E22)<1,0,IF(COUNT($C$6:E22)>9,C22+N22,0)) -> 0 | W22: =IF(COUNT(C22:E22)<1,0,IF(COUNT($C$6:E22)>9,D22+N22,0)) -> 0 | X22: =IF(COUNT(C22:E22)<1,0,IF(COUNT($C$6:E22)>9,E22+N22,0)) -> 0 | AA22: 0 | AB22: 0 | AC22: 17
A23: wk18 | B23: =Calendar!B23 -> 2019-01-16 | F23: =IF(COUNT(C23:E23)<1," ",IF(AND(C23>M22,D23>M22,E23>M22,COUNT($C$6:E22)>=12),"*"," ")) ->  | G23: =IF(COUNT(C23:E23)<1," ",IF(AND(C23>M21,D23>M21,E23>M21,COUNT($C$6:E21)>=12),"*"," ")) ->  | J23: =_xlfn.IFS(SUM(C23:E23)<1,"",SUM(C23:E23)>=1,SUM($C$6:E23)) ->  | K23: =_xlfn.IFS(COUNT(C23:E23)<1,"",COUNT($C$6:E23)>=1,COUNT($C$6:E23)) ->  | L23: =_xlfn.IFS(COUNT(C23:E23)<1,"",AND(COUNT($C$6:E23)<=9,$C$4>1),$C$4,COUNT(C23:E23)>=1,M23) ->  | M23: =IF(COUNT($C$6:E23)>=1,TRUNC(SUM($C$6:E23)/COUNT($C$6:E23)),0) -> 123 | N23: =IF(COUNT($C$6:E23)<=6,0,TRUNC((230-M22)*0.9)) -> 96 | O23: =_xlfn.IFS(SUM(C23:E23)<1,"",COUNT($C$6:E23)>9,TRUNC((230-M22)*(0.9)),COUNT($C$6:E23)<=9,0) ->  | P23: =_xlfn.IFS(SUM(C23:E23)<1,"",COUNT($C$6:E23)>9,N23*3+H23,COUNT($C$6:E23)<=9,0) ->  | S23: =IF(COUNT($C$6:E23)>9,IF(P23=MAX($P$6:$P$35),P23," "),"") ->  | T23: 0 | V23: =IF(COUNT(C23:E23)<1,0,IF(COUNT($C$6:E23)>9,C23+N23,0)) -> 0 | W23: =IF(COUNT(C23:E23)<1,0,IF(COUNT($C$6:E23)>9,D23+N23,0)) -> 0 | X23: =IF(COUNT(C23:E23)<1,0,IF(COUNT($C$6:E23)>9,E23+N23,0)) -> 0 | AA23: 0 | AB23: 0 | AC23: 18
A24: wk19 | B24: =Calendar!B24 -> 2019-01-23 | F24: =IF(COUNT(C24:E24)<1," ",IF(AND(C24>M23,D24>M23,E24>M23,COUNT($C$6:E23)>=12),"*"," ")) ->  | G24: =IF(COUNT(C24:E24)<1," ",IF(AND(C24>M22,D24>M22,E24>M22,COUNT($C$6:E22)>=12),"*"," ")) ->  | J24: =_xlfn.IFS(SUM(C24:E24)<1,"",SUM(C24:E24)>=1,SUM($C$6:E24)) ->  | K24: =_xlfn.IFS(COUNT(C24:E24)<1,"",COUNT($C$6:E24)>=1,COUNT($C$6:E24)) ->  | L24: =_xlfn.IFS(COUNT(C24:E24)<1,"",AND(COUNT($C$6:E24)<=9,$C$4>1),$C$4,COUNT(C24:E24)>=1,M24) ->  | M24: =IF(COUNT($C$6:E24)>=1,TRUNC(SUM($C$6:E24)/COUNT($C$6:E24)),0) -> 123 | N24: =IF(COUNT($C$6:E24)<=6,0,TRUNC((230-M23)*0.9)) -> 96 | O24: =_xlfn.IFS(SUM(C24:E24)<1,"",COUNT($C$6:E24)>9,TRUNC((230-M23)*(0.9)),COUNT($C$6:E24)<=9,0) ->  | P24: =_xlfn.IFS(SUM(C24:E24)<1,"",COUNT($C$6:E24)>9,N24*3+H24,COUNT($C$6:E24)<=9,0) ->  | S24: =IF(COUNT($C$6:E24)>9,IF(P24=MAX($P$6:$P$35),P24," "),"") ->  | T24: 0 | V24: =IF(COUNT(C24:E24)<1,0,IF(COUNT($C$6:E24)>9,C24+N24,0)) -> 0 | W24: =IF(COUNT(C24:E24)<1,0,IF(COUNT($C$6:E24)>9,D24+N24,0)) -> 0 | X24: =IF(COUNT(C24:E24)<1,0,IF(COUNT($C$6:E24)>9,E24+N24,0)) -> 0 | AA24: 0 | AB24: 0 | AC24: 19
A25: wk20 | B25: =Calendar!B25 -> 2019-01-30 | F25: =IF(COUNT(C25:E25)<1," ",IF(AND(C25>M24,D25>M24,E25>M24,COUNT($C$6:E24)>=12),"*"," ")) ->  | G25: =IF(COUNT(C25:E25)<1," ",IF(AND(C25>M23,D25>M23,E25>M23,COUNT($C$6:E23)>=12),"*"," ")) ->  | J25: =_xlfn.IFS(SUM(C25:E25)<1,"",SUM(C25:E25)>=1,SUM($C$6:E25)) ->  | K25: =_xlfn.IFS(COUNT(C25:E25)<1,"",COUNT($C$6:E25)>=1,COUNT($C$6:E25)) ->  | L25: =_xlfn.IFS(COUNT(C25:E25)<1,"",AND(COUNT($C$6:E25)<=9,$C$4>1),$C$4,COUNT(C25:E25)>=1,M25) ->  | M25: =IF(COUNT($C$6:E25)>=1,TRUNC(SUM($C$6:E25)/COUNT($C$6:E25)),0) -> 123 | N25: =IF(COUNT($C$6:E25)<=6,0,TRUNC((230-M24)*0.9)) -> 96 | O25: =_xlfn.IFS(SUM(C25:E25)<1,"",COUNT($C$6:E25)>9,TRUNC((230-M24)*(0.9)),COUNT($C$6:E25)<=9,0) ->  | P25: =_xlfn.IFS(SUM(C25:E25)<1,"",COUNT($C$6:E25)>9,N25*3+H25,COUNT($C$6:E25)<=9,0) ->  | S25: =IF(COUNT($C$6:E25)>9,IF(P25=MAX($P$6:$P$35),P25," "),"") ->  | T25: 0 | V25: =IF(COUNT(C25:E25)<1,0,IF(COUNT($C$6:E25)>9,C25+N25,0)) -> 0 | W25: =IF(COUNT(C25:E25)<1,0,IF(COUNT($C$6:E25)>9,D25+N25,0)) -> 0 | X25: =IF(COUNT(C25:E25)<1,0,IF(COUNT($C$6:E25)>9,E25+N25,0)) -> 0 | AA25: 0 | AB25: 0 | AC25: 20
A26: wk21 | B26: =Calendar!B26 -> 2019-02-06 | F26: =IF(COUNT(C26:E26)<1," ",IF(AND(C26>M25,D26>M25,E26>M25,COUNT($C$6:E25)>=12),"*"," ")) ->  | G26: =IF(COUNT(C26:E26)<1," ",IF(AND(C26>M24,D26>M24,E26>M24,COUNT($C$6:E24)>=12),"*"," ")) ->  | J26: =_xlfn.IFS(SUM(C26:E26)<1,"",SUM(C26:E26)>=1,SUM($C$6:E26)) ->  | K26: =_xlfn.IFS(COUNT(C26:E26)<1,"",COUNT($C$6:E26)>=1,COUNT($C$6:E26)) ->  | L26: =_xlfn.IFS(COUNT(C26:E26)<1,"",AND(COUNT($C$6:E26)<=9,$C$4>1),$C$4,COUNT(C26:E26)>=1,M26) ->  | M26: =IF(COUNT($C$6:E26)>=1,TRUNC(SUM($C$6:E26)/COUNT($C$6:E26)),0) -> 123 | N26: =IF(COUNT($C$6:E26)<=6,0,TRUNC((230-M25)*0.9)) -> 96 | O26: =_xlfn.IFS(SUM(C26:E26)<1,"",COUNT($C$6:E26)>9,TRUNC((230-M25)*(0.9)),COUNT($C$6:E26)<=9,0) ->  | P26: =_xlfn.IFS(SUM(C26:E26)<1,"",COUNT($C$6:E26)>9,N26*3+H26,COUNT($C$6:E26)<=9,0) ->  | S26: =IF(COUNT($C$6:E26)>9,IF(P26=MAX($P$6:$P$35),P26," "),"") ->  | T26: 0 | V26: =IF(COUNT(C26:E26)<1,0,IF(COUNT($C$6:E26)>9,C26+N26,0)) -> 0 | W26: =IF(COUNT(C26:E26)<1,0,IF(COUNT($C$6:E26)>9,D26+N26,0)) -> 0 | X26: =IF(COUNT(C26:E26)<1,0,IF(COUNT($C$6:E26)>9,E26+N26,0)) -> 0 | AA26: 0 | AB26: 0 | AC26: 21
A27: wk22 | B27: =Calendar!B27 -> 2019-02-13 | F27: =IF(COUNT(C27:E27)<1," ",IF(AND(C27>M26,D27>M26,E27>M26,COUNT($C$6:E26)>=12),"*"," ")) ->  | G27: =IF(COUNT(C27:E27)<1," ",IF(AND(C27>M25,D27>M25,E27>M25,COUNT($C$6:E25)>=12),"*"," ")) ->  | J27: =_xlfn.IFS(SUM(C27:E27)<1,"",SUM(C27:E27)>=1,SUM($C$6:E27)) ->  | K27: =_xlfn.IFS(COUNT(C27:E27)<1,"",COUNT($C$6:E27)>=1,COUNT($C$6:E27)) ->  | L27: =_xlfn.IFS(COUNT(C27:E27)<1,"",AND(COUNT($C$6:E27)<=9,$C$4>1),$C$4,COUNT(C27:E27)>=1,M27) ->  | M27: =IF(COUNT($C$6:E27)>=1,TRUNC(SUM($C$6:E27)/COUNT($C$6:E27)),0) -> 123 | N27: =IF(COUNT($C$6:E27)<=6,0,TRUNC((230-M26)*0.9)) -> 96 | O27: =_xlfn.IFS(SUM(C27:E27)<1,"",COUNT($C$6:E27)>9,TRUNC((230-M26)*(0.9)),COUNT($C$6:E27)<=9,0) ->  | P27: =_xlfn.IFS(SUM(C27:E27)<1,"",COUNT($C$6:E27)>9,N27*3+H27,COUNT($C$6:E27)<=9,0) ->  | S27: =IF(COUNT($C$6:E27)>9,IF(P27=MAX($P$6:$P$35),P27," "),"") ->  | T27: 0 | V27: =IF(COUNT(C27:E27)<1,0,IF(COUNT($C$6:E27)>9,C27+N27,0)) -> 0 | W27: =IF(COUNT(C27:E27)<1,0,IF(COUNT($C$6:E27)>9,D27+N27,0)) -> 0 | X27: =IF(COUNT(C27:E27)<1,0,IF(COUNT($C$6:E27)>9,E27+N27,0)) -> 0 | AA27: 0 | AB27: 0 | AC27: 22
A28: wk23 | B28: =Calendar!B28 -> 2019-02-20 | F28: =IF(COUNT(C28:E28)<1," ",IF(AND(C28>M27,D28>M27,E28>M27,COUNT($C$6:E27)>=12),"*"," ")) ->  | G28: =IF(COUNT(C28:E28)<1," ",IF(AND(C28>M26,D28>M26,E28>M26,COUNT($C$6:E26)>=12),"*"," ")) ->  | J28: =_xlfn.IFS(SUM(C28:E28)<1,"",SUM(C28:E28)>=1,SUM($C$6:E28)) ->  | K28: =_xlfn.IFS(COUNT(C28:E28)<1,"",COUNT($C$6:E28)>=1,COUNT($C$6:E28)) ->  | L28: =_xlfn.IFS(COUNT(C28:E28)<1,"",AND(COUNT($C$6:E28)<=9,$C$4>1),$C$4,COUNT(C28:E28)>=1,M28) ->  | M28: =IF(COUNT($C$6:E28)>=1,TRUNC(SUM($C$6:E28)/COUNT($C$6:E28)),0) -> 123 | N28: =IF(COUNT($C$6:E28)<=6,0,TRUNC((230-M27)*0.9)) -> 96 | O28: =_xlfn.IFS(SUM(C28:E28)<1,"",COUNT($C$6:E28)>9,TRUNC((230-M27)*(0.9)),COUNT($C$6:E28)<=9,0) ->  | P28: =_xlfn.IFS(SUM(C28:E28)<1,"",COUNT($C$6:E28)>9,N28*3+H28,COUNT($C$6:E28)<=9,0) ->  | S28: =IF(COUNT($C$6:E28)>9,IF(P28=MAX($P$6:$P$35),P28," "),"") ->  | T28: 0 | V28: =IF(COUNT(C28:E28)<1,0,IF(COUNT($C$6:E28)>9,C28+N28,0)) -> 0 | W28: =IF(COUNT(C28:E28)<1,0,IF(COUNT($C$6:E28)>9,D28+N28,0)) -> 0 | X28: =IF(COUNT(C28:E28)<1,0,IF(COUNT($C$6:E28)>9,E28+N28,0)) -> 0 | AA28: 0 | AB28: 0 | AC28: 23
A29: wk24 | B29: =Calendar!B29 -> 2019-02-27 | F29: =IF(COUNT(C29:E29)<1," ",IF(AND(C29>M28,D29>M28,E29>M28,COUNT($C$6:E28)>=12),"*"," ")) ->  | G29: =IF(COUNT(C29:E29)<1," ",IF(AND(C29>M27,D29>M27,E29>M27,COUNT($C$6:E27)>=12),"*"," ")) ->  | J29: =_xlfn.IFS(SUM(C29:E29)<1,"",SUM(C29:E29)>=1,SUM($C$6:E29)) ->  | K29: =_xlfn.IFS(COUNT(C29:E29)<1,"",COUNT($C$6:E29)>=1,COUNT($C$6:E29)) ->  | L29: =_xlfn.IFS(COUNT(C29:E29)<1,"",AND(COUNT($C$6:E29)<=9,$C$4>1),$C$4,COUNT(C29:E29)>=1,M29) ->  | M29: =IF(COUNT($C$6:E29)>=1,TRUNC(SUM($C$6:E29)/COUNT($C$6:E29)),0) -> 123 | N29: =IF(COUNT($C$6:E29)<=6,0,TRUNC((230-M28)*0.9)) -> 96 | O29: =_xlfn.IFS(SUM(C29:E29)<1,"",COUNT($C$6:E29)>9,TRUNC((230-M28)*(0.9)),COUNT($C$6:E29)<=9,0) ->  | P29: =_xlfn.IFS(SUM(C29:E29)<1,"",COUNT($C$6:E29)>9,N29*3+H29,COUNT($C$6:E29)<=9,0) ->  | S29: =IF(COUNT($C$6:E29)>9,IF(P29=MAX($P$6:$P$35),P29," "),"") ->  | T29: 0 | V29: =IF(COUNT(C29:E29)<1,0,IF(COUNT($C$6:E29)>9,C29+N29,0)) -> 0 | W29: =IF(COUNT(C29:E29)<1,0,IF(COUNT($C$6:E29)>9,D29+N29,0)) -> 0 | X29: =IF(COUNT(C29:E29)<1,0,IF(COUNT($C$6:E29)>9,E29+N29,0)) -> 0 | AA29: 0 | AB29: 0 | AC29: 24
A30: wk25 | B30: =Calendar!B30 -> 2019-03-06 | F30: =IF(COUNT(C30:E30)<1," ",IF(AND(C30>M29,D30>M29,E30>M29,COUNT($C$6:E29)>=12),"*"," ")) ->  | G30: =IF(COUNT(C30:E30)<1," ",IF(AND(C30>M28,D30>M28,E30>M28,COUNT($C$6:E28)>=12),"*"," ")) ->  | J30: =_xlfn.IFS(SUM(C30:E30)<1,"",SUM(C30:E30)>=1,SUM($C$6:E30)) ->  | K30: =_xlfn.IFS(COUNT(C30:E30)<1,"",COUNT($C$6:E30)>=1,COUNT($C$6:E30)) ->  | L30: =_xlfn.IFS(COUNT(C30:E30)<1,"",AND(COUNT($C$6:E30)<=9,$C$4>1),$C$4,COUNT(C30:E30)>=1,M30) ->  | M30: =IF(COUNT($C$6:E30)>=1,TRUNC(SUM($C$6:E30)/COUNT($C$6:E30)),0) -> 123 | N30: =IF(COUNT($C$6:E30)<=6,0,TRUNC((230-M29)*0.9)) -> 96 | O30: =_xlfn.IFS(SUM(C30:E30)<1,"",COUNT($C$6:E30)>9,TRUNC((230-M29)*(0.9)),COUNT($C$6:E30)<=9,0) ->  | P30: =_xlfn.IFS(SUM(C30:E30)<1,"",COUNT($C$6:E30)>9,N30*3+H30,COUNT($C$6:E30)<=9,0) ->  | S30: =IF(COUNT($C$6:E30)>9,IF(P30=MAX($P$6:$P$35),P30," "),"") ->  | T30: 0 | V30: =IF(COUNT(C30:E30)<1,0,IF(COUNT($C$6:E30)>9,C30+N30,0)) -> 0 | W30: =IF(COUNT(C30:E30)<1,0,IF(COUNT($C$6:E30)>9,D30+N30,0)) -> 0 | X30: =IF(COUNT(C30:E30)<1,0,IF(COUNT($C$6:E30)>9,E30+N30,0)) -> 0 | AA30: 0 | AB30: 0 | AC30: 25
A31: wk26 | B31: =Calendar!B31 -> 2019-03-13 | F31: =IF(COUNT(C31:E31)<1," ",IF(AND(C31>M30,D31>M30,E31>M30,COUNT($C$6:E30)>=12),"*"," ")) ->  | G31: =IF(COUNT(C31:E31)<1," ",IF(AND(C31>M29,D31>M29,E31>M29,COUNT($C$6:E29)>=12),"*"," ")) ->  | J31: =_xlfn.IFS(SUM(C31:E31)<1,"",SUM(C31:E31)>=1,SUM($C$6:E31)) ->  | K31: =_xlfn.IFS(COUNT(C31:E31)<1,"",COUNT($C$6:E31)>=1,COUNT($C$6:E31)) ->  | L31: =_xlfn.IFS(COUNT(C31:E31)<1,"",AND(COUNT($C$6:E31)<=9,$C$4>1),$C$4,COUNT(C31:E31)>=1,M31) ->  | M31: =IF(COUNT($C$6:E31)>=1,TRUNC(SUM($C$6:E31)/COUNT($C$6:E31)),0) -> 123 | N31: =IF(COUNT($C$6:E31)<=6,0,TRUNC((230-M30)*0.9)) -> 96 | O31: =_xlfn.IFS(SUM(C31:E31)<1,"",COUNT($C$6:E31)>9,TRUNC((230-M30)*(0.9)),COUNT($C$6:E31)<=9,0) ->  | P31: =_xlfn.IFS(SUM(C31:E31)<1,"",COUNT($C$6:E31)>9,N31*3+H31,COUNT($C$6:E31)<=9,0) ->  | S31: =IF(COUNT($C$6:E31)>9,IF(P31=MAX($P$6:$P$35),P31," "),"") ->  | T31: 0 | V31: =IF(COUNT(C31:E31)<1,0,IF(COUNT($C$6:E31)>9,C31+N31,0)) -> 0 | W31: =IF(COUNT(C31:E31)<1,0,IF(COUNT($C$6:E31)>9,D31+N31,0)) -> 0 | X31: =IF(COUNT(C31:E31)<1,0,IF(COUNT($C$6:E31)>9,E31+N31,0)) -> 0 | AA31: 0 | AB31: 0 | AC31: 26
A32: wk27 | B32: =Calendar!B32 -> 2019-03-20 | F32: =IF(COUNT(C32:E32)<1," ",IF(AND(C32>M31,D32>M31,E32>M31,COUNT($C$6:E31)>=12),"*"," ")) ->  | G32: =IF(COUNT(C32:E32)<1," ",IF(AND(C32>M30,D32>M30,E32>M30,COUNT($C$6:E30)>=12),"*"," ")) ->  | J32: =_xlfn.IFS(SUM(C32:E32)<1,"",SUM(C32:E32)>=1,SUM($C$6:E32)) ->  | K32: =_xlfn.IFS(COUNT(C32:E32)<1,"",COUNT($C$6:E32)>=1,COUNT($C$6:E32)) ->  | L32: =_xlfn.IFS(COUNT(C32:E32)<1,"",AND(COUNT($C$6:E32)<=9,$C$4>1),$C$4,COUNT(C32:E32)>=1,M32) ->  | M32: =IF(COUNT($C$6:E32)>=1,TRUNC(SUM($C$6:E32)/COUNT($C$6:E32)),0) -> 123 | N32: =IF(COUNT($C$6:E32)<=6,0,TRUNC((230-M31)*0.9)) -> 96 | O32: =_xlfn.IFS(SUM(C32:E32)<1,"",COUNT($C$6:E32)>9,TRUNC((230-M31)*(0.9)),COUNT($C$6:E32)<=9,0) ->  | P32: =_xlfn.IFS(SUM(C32:E32)<1,"",COUNT($C$6:E32)>9,N32*3+H32,COUNT($C$6:E32)<=9,0) ->  | S32: =IF(COUNT($C$6:E32)>9,IF(P32=MAX($P$6:$P$35),P32," "),"") ->  | T32: 0 | V32: =IF(COUNT(C32:E32)<1,0,IF(COUNT($C$6:E32)>9,C32+N32,0)) -> 0 | W32: =IF(COUNT(C32:E32)<1,0,IF(COUNT($C$6:E32)>9,D32+N32,0)) -> 0 | X32: =IF(COUNT(C32:E32)<1,0,IF(COUNT($C$6:E32)>9,E32+N32,0)) -> 0 | AA32: 0 | AB32: 0 | AC32: 27
A33: wk28 | B33: =Calendar!B33 -> 2019-03-27 | F33: =IF(COUNT(C33:E33)<1," ",IF(AND(C33>M32,D33>M32,E33>M32,COUNT($C$6:E32)>=12),"*"," ")) ->  | G33: =IF(COUNT(C33:E33)<1," ",IF(AND(C33>M31,D33>M31,E33>M31,COUNT($C$6:E31)>=12),"*"," ")) ->  | J33: =_xlfn.IFS(SUM(C33:E33)<1,"",SUM(C33:E33)>=1,SUM($C$6:E33)) ->  | K33: =_xlfn.IFS(COUNT(C33:E33)<1,"",COUNT($C$6:E33)>=1,COUNT($C$6:E33)) ->  | L33: =_xlfn.IFS(COUNT(C33:E33)<1,"",AND(COUNT($C$6:E33)<=9,$C$4>1),$C$4,COUNT(C33:E33)>=1,M33) ->  | M33: =IF(COUNT($C$6:E33)>=1,TRUNC(SUM($C$6:E33)/COUNT($C$6:E33)),0) -> 123 | N33: =IF(COUNT($C$6:E33)<=6,0,TRUNC((230-M32)*0.9)) -> 96 | O33: =_xlfn.IFS(SUM(C33:E33)<1,"",COUNT($C$6:E33)>9,TRUNC((230-M32)*(0.9)),COUNT($C$6:E33)<=9,0) ->  | P33: =_xlfn.IFS(SUM(C33:E33)<1,"",COUNT($C$6:E33)>9,N33*3+H33,COUNT($C$6:E33)<=9,0) ->  | S33: =IF(COUNT($C$6:E33)>9,IF(P33=MAX($P$6:$P$35),P33," "),"") ->  | T33: 0 | V33: =IF(COUNT(C33:E33)<1,0,IF(COUNT($C$6:E33)>9,C33+N33,0)) -> 0 | W33: =IF(COUNT(C33:E33)<1,0,IF(COUNT($C$6:E33)>9,D33+N33,0)) -> 0 | X33: =IF(COUNT(C33:E33)<1,0,IF(COUNT($C$6:E33)>9,E33+N33,0)) -> 0 | AA33: 0 | AB33: 0 | AC33: 28
A34: wk29 | B34: =Calendar!B34 -> 2019-04-03 | F34: =IF(COUNT(C34:E34)<1," ",IF(AND(C34>M33,D34>M33,E34>M33,COUNT($C$6:E33)>=12),"*"," ")) ->  | G34: =IF(COUNT(C34:E34)<1," ",IF(AND(C34>M32,D34>M32,E34>M32,COUNT($C$6:E32)>=12),"*"," ")) ->  | J34: =_xlfn.IFS(SUM(C34:E34)<1,"",SUM(C34:E34)>=1,SUM($C$6:E34)) ->  | K34: =_xlfn.IFS(COUNT(C34:E34)<1,"",COUNT($C$6:E34)>=1,COUNT($C$6:E34)) ->  | L34: =_xlfn.IFS(COUNT(C34:E34)<1,"",AND(COUNT($C$6:E34)<=9,$C$4>1),$C$4,COUNT(C34:E34)>=1,M34) ->  | M34: =IF(COUNT($C$6:E34)>=1,TRUNC(SUM($C$6:E34)/COUNT($C$6:E34)),0) -> 123 | N34: =IF(COUNT($C$6:E34)<=6,0,TRUNC((230-M33)*0.9)) -> 96 | O34: =_xlfn.IFS(SUM(C34:E34)<1,"",COUNT($C$6:E34)>9,TRUNC((230-M33)*(0.9)),COUNT($C$6:E34)<=9,0) ->  | P34: =_xlfn.IFS(SUM(C34:E34)<1,"",COUNT($C$6:E34)>9,N34*3+H34,COUNT($C$6:E34)<=9,0) ->  | S34: =IF(COUNT($C$6:E34)>9,IF(P34=MAX($P$6:$P$35),P34," "),"") ->  | T34: 0 | V34: =IF(COUNT(C34:E34)<1,0,IF(COUNT($C$6:E34)>9,C34+N34,0)) -> 0 | W34: =IF(COUNT(C34:E34)<1,0,IF(COUNT($C$6:E34)>9,D34+N34,0)) -> 0 | X34: =IF(COUNT(C34:E34)<1,0,IF(COUNT($C$6:E34)>9,E34+N34,0)) -> 0 | AA34: 0 | AB34: 0 | AC34: 29
A35: wk30 | B35: =Calendar!B35 -> 2019-04-10 | F35: =IF(COUNT(C35:E35)<1," ",IF(AND(C35>M34,D35>M34,E35>M34,COUNT($C$6:E34)>=12),"*"," ")) ->  | G35: =IF(COUNT(C35:E35)<1," ",IF(AND(C35>M33,D35>M33,E35>M33,COUNT($C$6:E33)>=12),"*"," ")) ->  | J35: =_xlfn.IFS(SUM(C35:E35)<1,"",SUM(C35:E35)>=1,SUM($C$6:E35)) ->  | K35: =_xlfn.IFS(COUNT(C35:E35)<1,"",COUNT($C$6:E35)>=1,COUNT($C$6:E35)) ->  | L35: =_xlfn.IFS(COUNT(C35:E35)<1,"",AND(COUNT($C$6:E35)<=9,$C$4>1),$C$4,COUNT(C35:E35)>=1,M35) ->  | M35: =IF(COUNT($C$6:E35)>=1,TRUNC(SUM($C$6:E35)/COUNT($C$6:E35)),0) -> 123 | N35: =IF(COUNT($C$6:E35)<=6,0,TRUNC((230-M34)*0.9)) -> 96 | O35: =_xlfn.IFS(SUM(C35:E35)<1,"",COUNT($C$6:E35)>9,TRUNC((230-M34)*(0.9)),COUNT($C$6:E35)<=9,0) ->  | P35: =_xlfn.IFS(SUM(C35:E35)<1,"",COUNT($C$6:E35)>9,N35*3+H35,COUNT($C$6:E35)<=9,0) ->  | S35: =IF(COUNT($C$6:E35)>9,IF(P35=MAX($P$6:$P$35),P35," "),"") ->  | T35: 0 | V35: =IF(COUNT(C35:E35)<1,0,IF(COUNT($C$6:E35)>9,C35+N35,0)) -> 0 | W35: =IF(COUNT(C35:E35)<1,0,IF(COUNT($C$6:E35)>9,D35+N35,0)) -> 0 | X35: =IF(COUNT(C35:E35)<1,0,IF(COUNT($C$6:E35)>9,E35+N35,0)) -> 0 | AA35: 0 | AB35: 0 | AC35: 30
C36: =(IF(COUNT(C6:C35)=0," ",(SUM(C6:C35))/COUNT(C6:C35))) -> 122.33 | D36: =(IF(COUNT(D6:D35)=0," ",(SUM(D6:D35))/COUNT(D6:D35))) -> 128.00 | E36: =(IF(COUNT(E6:E35)=0," ",(SUM(E6:E35))/COUNT(E6:E35))) -> 119.67

Sheet MThomas6
H1: =Calendar!H1 -> Wednesday Fun Fours 2018/19 season | R1: 6-over wk:
A2: wk# | B2: =MAX(AB6:AB35) -> 30 | R2: 12
A3: Name: | B3: Morgan Thomas | I3: Perfect Attendance: | K3: =IF(SUM(AA6:AA35)<0.5,"Yes","No") -> No | L3: =_xlfn.IFS(AND(B2=30,K3="Yes"),"good",AND(B2<>30,K3="Yes"),"So Far",AND(B2<>30,K3="No")," ") -> 
A4: book average: | C4: 186 | H4: wky | I4: wky | J4: cumulative | L4: cumulative | P4: hdcp | Q4: high | R4: high | S4: high hcp | T4: high hcp
C5: g1 | D5: g2 | E5: g3 | H5: series | I5: average | J5: score | K5: games | L5: average | O5: hdcp | P5: series | Q5: series | R5: game | S5: series | T5: game | V5: =MAX(C6:E35) -> 251 | W5: =MAX(V6:X35) -> 296
A6: wk1 | B6: =Calendar!B6 -> 2018-09-05 | H6: =IF(COUNT(C6:E6)<1," ",SUM(C6:E6)) ->  | I6: =IF(COUNT(C6:E6)<1," ",TRUNC(H6/COUNT(C6:E6))) ->  | J6: =_xlfn.IFS(SUM(C6:E6)<1,"",SUM(C6:E6)>=1,SUM($C$6:E6)) ->  | K6: =_xlfn.IFS(COUNT(C6:E6)<1,"",COUNT($C$6:E6)>=1,COUNT($C$6:E6)) ->  | L6: =_xlfn.IFS(COUNT(C6:E6)<1,"",AND(COUNT($C$6:E6)<=9,$C$4>1),$C$4,COUNT(C6:E6)>=1,M6) ->  | M6: =IF(COUNT($C$6:E6)>=1,TRUNC(SUM($C$6:E6)/COUNT($C$6:E6)),0) -> 0 | N6: =IF(COUNT($C$6:E6)<=6,0,TRUNC((230-M5)*0.9)) -> 0 | O6: =_xlfn.IFS(SUM(C6:E6)<1,"",COUNT($C$6:E6)>9,TRUNC((230-M5)*(0.9)),COUNT($C$6:E6)<=9,0) ->  | P6: =_xlfn.IFS(SUM(C6:E6)<1,"",COUNT($C$6:E6)>9,N6*3+H6,COUNT($C$6:E6)<=9,0) ->  | Q6: =IF(H6=(MAX($H$6:$H$35)),H6," ") ->  | R6: =IF((OR(C6=$V$5,D6=$V$5,E6=$V$5)),$V$5," ") ->  | S6: =IF(COUNT($C$6:E6)>9,IF(P6=MAX($P$6:$P$35),P6," "),"") ->  | T6: =IF(OR(V6=$W$5,W6=$W$5,X6=$W$5),$W$5," ") ->  | V6: =IF(COUNT(C6:E6)<1,0,IF(COUNT($C$6:E6)>9,C6+N6,0)) -> 0 | W6: =IF(COUNT(C6:E6)<1,0,IF(COUNT($C$6:E6)>9,D6+N6,0)) -> 0 | X6: =IF(COUNT(C6:E6)<1,0,IF(COUNT($C$6:E6)>9,E6+N6,0)) -> 0 | AA6: =IF((MAX($AB$6:$AB$35))<AC6,0,IF(AB6=AC6,0,1)) -> 1 | AB6: =IF(COUNT(C6:E6)>0,AC6,0) -> 0 | AC6: 1
A7: wk2 | B7: =Calendar!B7 -> 2018-09-12 | C7: 156 | D7: 203 | E7: 158 | H7: 517 | I7: =IF(COUNT(C7:E7)<1," ",TRUNC(H7/COUNT(C7:E7))) -> 172 | J7: =_xlfn.IFS(SUM(C7:E7)<1,"",SUM(C7:E7)>=1,SUM($C$6:E7)) -> 517 | K7: =_xlfn.IFS(COUNT(C7:E7)<1,"",COUNT($C$6:E7)>=1,COUNT($C$6:E7)) -> 3 | L7: =_xlfn.IFS(COUNT(C7:E7)<1,"",AND(COUNT($C$6:E7)<=9,$C$4>1),$C$4,COUNT(C7:E7)>=1,M7) -> 186 | M7: =IF(COUNT($C$6:E7)>=1,TRUNC(SUM($C$6:E7)/COUNT($C$6:E7)),0) -> 172 | N7: =IF(COUNT($C$6:E7)<=6,0,TRUNC((230-M6)*0.9)) -> 0 | O7: =_xlfn.IFS(SUM(C7:E7)<1,"",COUNT($C$6:E7)>9,TRUNC((230-M6)*(0.9)),COUNT($C$6:E7)<=9,0) -> 0 | P7: =_xlfn.IFS(SUM(C7:E7)<1,"",COUNT($C$6:E7)>9,N7*3+H7,COUNT($C$6:E7)<=9,0) -> 0 | S7: =IF(COUNT($C$6:E7)>9,IF(P7=MAX($P$6:$P$35),P7," "),"") ->  | V7: =IF(COUNT(C7:E7)<1,0,IF(COUNT($C$6:E7)>9,C7+N7,0)) -> 0 | W7: =IF(COUNT(C7:E7)<1,0,IF(COUNT($C$6:E7)>9,D7+N7,0)) -> 0 | X7: =IF(COUNT(C7:E7)<1,0,IF(COUNT($C$6:E7)>9,E7+N7,0)) -> 0 | AA7: 0 | AB7: =IF(COUNT(C7:E7)>0,AC7,0) -> 2 | AC7: 2
A8: wk3 | B8: =Calendar!B8 -> 2018-09-19 | C8: 162 | D8: 193 | E8: 161 | H8: 516 | I8: 172 | J8: =_xlfn.IFS(SUM(C8:E8)<1,"",SUM(C8:E8)>=1,SUM($C$6:E8)) -> 1033 | K8: =_xlfn.IFS(COUNT(C8:E8)<1,"",COUNT($C$6:E8)>=1,COUNT($C$6:E8)) -> 6 | L8: =_xlfn.IFS(COUNT(C8:E8)<1,"",AND(COUNT($C$6:E8)<=9,$C$4>1),$C$4,COUNT(C8:E8)>=1,M8) -> 186 | M8: =IF(COUNT($C$6:E8)>=1,TRUNC(SUM($C$6:E8)/COUNT($C$6:E8)),0) -> 172 | N8: =IF(COUNT($C$6:E8)<=6,0,TRUNC((230-M7)*0.9)) -> 0 | O8: =_xlfn.IFS(SUM(C8:E8)<1,"",COUNT($C$6:E8)>9,TRUNC((230-M7)*(0.9)),COUNT($C$6:E8)<=9,0) -> 0 | P8: =_xlfn.IFS(SUM(C8:E8)<1,"",COUNT($C$6:E8)>9,N8*3+H8,COUNT($C$6:E8)<=9,0) -> 0 | S8: =IF(COUNT($C$6:E8)>9,IF(P8=MAX($P$6:$P$35),P8," "),"") ->  | V8: =IF(COUNT(C8:E8)<1,0,IF(COUNT($C$6:E8)>9,C8+N8,0)) -> 0 | W8: =IF(COUNT(C8:E8)<1,0,IF(COUNT($C$6:E8)>9,D8+N8,0)) -> 0 | X8: =IF(COUNT(C8:E8)<1,0,IF(COUNT($C$6:E8)>9,E8+N8,0)) -> 0 | AA8: 0 | AB8: 3 | AC8: 3
A9: wk4 | B9: =Calendar!B9 -> 2018-09-26 | C9: 211 | D9: 170 | E9: 181 | H9: 562 | I9: 187 | J9: =_xlfn.IFS(SUM(C9:E9)<1,"",SUM(C9:E9)>=1,SUM($C$6:E9)) -> 1595 | K9: =_xlfn.IFS(COUNT(C9:E9)<1,"",COUNT($C$6:E9)>=1,COUNT($C$6:E9)) -> 9 | L9: =_xlfn.IFS(COUNT(C9:E9)<1,"",AND(COUNT($C$6:E9)<=9,$C$4>1),$C$4,COUNT(C9:E9)>=1,M9) -> 186 | M9: =IF(COUNT($C$6:E9)>=1,TRUNC(SUM($C$6:E9)/COUNT($C$6:E9)),0) -> 177 | N9: =IF(COUNT($C$6:E9)<=6,0,TRUNC((230-M8)*0.9)) -> 52 | O9: =_xlfn.IFS(SUM(C9:E9)<1,"",COUNT($C$6:E9)>9,TRUNC((230-M8)*(0.9)),COUNT($C$6:E9)<=9,0) -> 0 | P9: =_xlfn.IFS(SUM(C9:E9)<1,"",COUNT($C$6:E9)>9,N9*3+H9,COUNT($C$6:E9)<=9,0) -> 0 | S9: =IF(COUNT($C$6:E9)>9,IF(P9=MAX($P$6:$P$35),P9," "),"") ->  | V9: =IF(COUNT(C9:E9)<1,0,IF(COUNT($C$6:E9)>9,C9+N9,0)) -> 0 | W9: =IF(COUNT(C9:E9)<1,0,IF(COUNT($C$6:E9)>9,D9+N9,0)) -> 0 | X9: =IF(COUNT(C9:E9)<1,0,IF(COUNT($C$6:E9)>9,E9+N9,0)) -> 0 | AA9: 0 | AB9: 4 | AC9: 4
A10: wk5 | B10: =Calendar!B10 -> 2018-10-03 | C10: 144 | D10: 177 | E10: 217 | F10: =IF(COUNT(C10:E10)<1," ",IF(AND(C10>M9,D10>M9,E10>M9,COUNT($C$6:E9)>=12),"*"," ")) ->  | H10: 538 | I10: 179 | J10: =_xlfn.IFS(SUM(C10:E10)<1,"",SUM(C10:E10)>=1,SUM($C$6:E10)) -> 2133 | K10: =_xlfn.IFS(COUNT(C10:E10)<1,"",COUNT($C$6:E10)>=1,COUNT($C$6:E10)) -> 12 | L10: =_xlfn.IFS(COUNT(C10:E10)<1,"",AND(COUNT($C$6:E10)<=9,$C$4>1),$C$4,COUNT(C10:E10)>=1,M10) -> 177 | M10: =IF(COUNT($C$6:E10)>=1,TRUNC(SUM($C$6:E10)/COUNT($C$6:E10)),0) -> 177 | N10: =IF(COUNT($C$6:E10)<=6,0,TRUNC((230-M9)*0.9)) -> 47 | O10: =_xlfn.IFS(SUM(C10:E10)<1,"",COUNT($C$6:E10)>9,TRUNC((230-M9)*(0.9)),COUNT($C$6:E10)<=9,0) -> 47 | P10: =_xlfn.IFS(SUM(C10:E10)<1,"",COUNT($C$6:E10)>9,N10*3+H10,COUNT($C$6:E10)<=9,0) -> 679 | S10: =IF(COUNT($C$6:E10)>9,IF(P10=MAX($P$6:$P$35),P10," "),"") ->  | V10: =IF(COUNT(C10:E10)<1,0,IF(COUNT($C$6:E10)>9,C10+N10,0)) -> 191 | W10: =IF(COUNT(C10:E10)<1,0,IF(COUNT($C$6:E10)>9,D10+N10,0)) -> 224 | X10: =IF(COUNT(C10:E10)<1,0,IF(COUNT($C$6:E10)>9,E10+N10,0)) -> 264 | AA10: 0 | AB10: 5 | AC10: 5
A11: wk6 | B11: =Calendar!B11 -> 2018-10-10 | C11: 179 | D11: 137 | E11: 189 | F11: =IF(COUNT(C11:E11)<1," ",IF(AND(C11>M10,D11>M10,E11>M10,COUNT($C$6:E10)>=12),"*"," ")) ->  | G11: =IF(COUNT(C11:E11)<1," ",IF(AND(C11>M9,D11>M9,E11>M9,COUNT($C$6:E9)>=12),"*"," ")) ->  | H11: 505 | I11: 168 | J11: =_xlfn.IFS(SUM(C11:E11)<1,"",SUM(C11:E11)>=1,SUM($C$6:E11)) -> 2638 | K11: =_xlfn.IFS(COUNT(C11:E11)<1,"",COUNT($C$6:E11)>=1,COUNT($C$6:E11)) -> 15 | L11: =_xlfn.IFS(COUNT(C11:E11)<1,"",AND(COUNT($C$6:E11)<=9,$C$4>1),$C$4,COUNT(C11:E11)>=1,M11) -> 175 | M11: =IF(COUNT($C$6:E11)>=1,TRUNC(SUM($C$6:E11)/COUNT($C$6:E11)),0) -> 175 | N11: =IF(COUNT($C$6:E11)<=6,0,TRUNC((230-M10)*0.9)) -> 47 | O11: =_xlfn.IFS(SUM(C11:E11)<1,"",COUNT($C$6:E11)>9,TRUNC((230-M10)*(0.9)),COUNT($C$6:E11)<=9,0) -> 47 | P11: =_xlfn.IFS(SUM(C11:E11)<1,"",COUNT($C$6:E11)>9,N11*3+H11,COUNT($C$6:E11)<=9,0) -> 646 | S11: =IF(COUNT($C$6:E11)>9,IF(P11=MAX($P$6:$P$35),P11," "),"") ->  | V11: =IF(COUNT(C11:E11)<1,0,IF(COUNT($C$6:E11)>9,C11+N11,0)) -> 226 | W11: =IF(COUNT(C11:E11)<1,0,IF(COUNT($C$6:E11)>9,D11+N11,0)) -> 184 | X11: =IF(COUNT(C11:E11)<1,0,IF(COUNT($C$6:E11)>9,E11+N11,0)) -> 236 | AA11: 0 | AB11: 6 | AC11: 6
A12: wk7 | B12: =Calendar!B12 -> 2018-10-17 | C12: 195 | D12: 173 | E12: 147 | F12: =IF(COUNT(C12:E12)<1," ",IF(AND(C12>M11,D12>M11,E12>M11,COUNT($C$6:E11)>=12),"*"," ")) ->  | G12: =IF(COUNT(C12:E12)<1," ",IF(AND(C12>M10,D12>M10,E12>M10,COUNT($C$6:E10)>=12),"*"," ")) ->  | H12: 515 | I12: 171 | J12: =_xlfn.IFS(SUM(C12:E12)<1,"",SUM(C12:E12)>=1,SUM($C$6:E12)) -> 3153 | K12: =_xlfn.IFS(COUNT(C12:E12)<1,"",COUNT($C$6:E12)>=1,COUNT($C$6:E12)) -> 18 | L12: =_xlfn.IFS(COUNT(C12:E12)<1,"",AND(COUNT($C$6:E12)<=9,$C$4>1),$C$4,COUNT(C12:E12)>=1,M12) -> 175 | M12: =IF(COUNT($C$6:E12)>=1,TRUNC(SUM($C$6:E12)/COUNT($C$6:E12)),0) -> 175 | N12: =IF(COUNT($C$6:E12)<=6,0,TRUNC((230-M11)*0.9)) -> 49 | O12: =_xlfn.IFS(SUM(C12:E12)<1,"",COUNT($C$6:E12)>9,TRUNC((230-M11)*(0.9)),COUNT($C$6:E12)<=9,0) -> 49 | P12: =_xlfn.IFS(SUM(C12:E12)<1,"",COUNT($C$6:E12)>9,N12*3+H12,COUNT($C$6:E12)<=9,0) -> 662 | S12: =IF(COUNT($C$6:E12)>9,IF(P12=MAX($P$6:$P$35),P12," "),"") ->  | V12: =IF(COUNT(C12:E12)<1,0,IF(COUNT($C$6:E12)>9,C12+N12,0)) -> 244 | W12: =IF(COUNT(C12:E12)<1,0,IF(COUNT($C$6:E12)>9,D12+N12,0)) -> 222 | X12: =IF(COUNT(C12:E12)<1,0,IF(COUNT($C$6:E12)>9,E12+N12,0)) -> 196 | AA12: 0 | AB12: 7 | AC12: 7
A13: wk8 | B13: =Calendar!B13 -> 2018-10-24 | C13: 176 | D13: 244 | E13: 205 | F13: =IF(COUNT(C13:E13)<1," ",IF(AND(C13>M12,D13>M12,E13>M12,COUNT($C$6:E12)>=12),"*"," ")) -> * | G13: =IF(COUNT(C13:E13)<1," ",IF(AND(C13>M11,D13>M11,E13>M11,COUNT($C$6:E11)>=12),"*"," ")) -> * | H13: 625 | I13: 208 | J13: =_xlfn.IFS(SUM(C13:E13)<1,"",SUM(C13:E13)>=1,SUM($C$6:E13)) -> 3778 | K13: =_xlfn.IFS(COUNT(C13:E13)<1,"",COUNT($C$6:E13)>=1,COUNT($C$6:E13)) -> 21 | L13: =_xlfn.IFS(COUNT(C13:E13)<1,"",AND(COUNT($C$6:E13)<=9,$C$4>1),$C$4,COUNT(C13:E13)>=1,M13) -> 179 | M13: =IF(COUNT($C$6:E13)>=1,TRUNC(SUM($C$6:E13)/COUNT($C$6:E13)),0) -> 179 | N13: =IF(COUNT($C$6:E13)<=6,0,TRUNC((230-M12)*0.9)) -> 49 | O13: =_xlfn.IFS(SUM(C13:E13)<1,"",COUNT($C$6:E13)>9,TRUNC((230-M12)*(0.9)),COUNT($C$6:E13)<=9,0) -> 49 | P13: =_xlfn.IFS(SUM(C13:E13)<1,"",COUNT($C$6:E13)>9,N13*3+H13,COUNT($C$6:E13)<=9,0) -> 772 | S13: =IF(COUNT($C$6:E13)>9,IF(P13=MAX($P$6:$P$35),P13," "),"") ->  | V13: =IF(COUNT(C13:E13)<1,0,IF(COUNT($C$6:E13)>9,C13+N13,0)) -> 225 | W13: =IF(COUNT(C13:E13)<1,0,IF(COUNT($C$6:E13)>9,D13+N13,0)) -> 293 | X13: =IF(COUNT(C13:E13)<1,0,IF(COUNT($C$6:E13)>9,E13+N13,0)) -> 254 | AA13: 0 | AB13: 8 | AC13: 8
A14: wk9 | B14: =Calendar!B14 -> 2018-10-31 | F14: =IF(COUNT(C14:E14)<1," ",IF(AND(C14>M13,D14>M13,E14>M13,COUNT($C$6:E13)>=12),"*"," ")) ->  | G14: =IF(COUNT(C14:E14)<1," ",IF(AND(C14>M12,D14>M12,E14>M12,COUNT($C$6:E12)>=12),"*"," ")) ->  | J14: =_xlfn.IFS(SUM(C14:E14)<1,"",SUM(C14:E14)>=1,SUM($C$6:E14)) ->  | K14: =_xlfn.IFS(COUNT(C14:E14)<1,"",COUNT($C$6:E14)>=1,COUNT($C$6:E14)) ->  | L14: =_xlfn.IFS(COUNT(C14:E14)<1,"",AND(COUNT($C$6:E14)<=9,$C$4>1),$C$4,COUNT(C14:E14)>=1,M14) ->  | M14: =IF(COUNT($C$6:E14)>=1,TRUNC(SUM($C$6:E14)/COUNT($C$6:E14)),0) -> 179 | N14: =IF(COUNT($C$6:E14)<=6,0,TRUNC((230-M13)*0.9)) -> 45 | O14: =_xlfn.IFS(SUM(C14:E14)<1,"",COUNT($C$6:E14)>9,TRUNC((230-M13)*(0.9)),COUNT($C$6:E14)<=9,0) ->  | P14: =_xlfn.IFS(SUM(C14:E14)<1,"",COUNT($C$6:E14)>9,N14*3+H14,COUNT($C$6:E14)<=9,0) ->  | S14: =IF(COUNT($C$6:E14)>9,IF(P14=MAX($P$6:$P$35),P14," "),"") ->  | V14: =IF(COUNT(C14:E14)<1,0,IF(COUNT($C$6:E14)>9,C14+N14,0)) -> 0 | W14: =IF(COUNT(C14:E14)<1,0,IF(COUNT($C$6:E14)>9,D14+N14,0)) -> 0 | X14: =IF(COUNT(C14:E14)<1,0,IF(COUNT($C$6:E14)>9,E14+N14,0)) -> 0 | AA14: 1 | AB14: 0 | AC14: 9
A15: wk10 | B15: =Calendar!B15 -> 2018-11-07 | C15: 161 | D15: 221 | E15: 201 | F15: =IF(COUNT(C15:E15)<1," ",IF(AND(C15>M14,D15>M14,E15>M14,COUNT($C$6:E14)>=12),"*"," ")) ->  | G15: =IF(COUNT(C15:E15)<1," ",IF(AND(C15>M13,D15>M13,E15>M13,COUNT($C$6:E13)>=12),"*"," ")) ->  | H15: 583 | I15: 194 | J15: =_xlfn.IFS(SUM(C15:E15)<1,"",SUM(C15:E15)>=1,SUM($C$6:E15)) -> 4361 | K15: =_xlfn.IFS(COUNT(C15:E15)<1,"",COUNT($C$6:E15)>=1,COUNT($C$6:E15)) -> 24 | L15: =_xlfn.IFS(COUNT(C15:E15)<1,"",AND(COUNT($C$6:E15)<=9,$C$4>1),$C$4,COUNT(C15:E15)>=1,M15) -> 181 | M15: =IF(COUNT($C$6:E15)>=1,TRUNC(SUM($C$6:E15)/COUNT($C$6:E15)),0) -> 181 | N15: =IF(COUNT($C$6:E15)<=6,0,TRUNC((230-M14)*0.9)) -> 45 | O15: =_xlfn.IFS(SUM(C15:E15)<1,"",COUNT($C$6:E15)>9,TRUNC((230-M14)*(0.9)),COUNT($C$6:E15)<=9,0) -> 45 | P15: =_xlfn.IFS(SUM(C15:E15)<1,"",COUNT($C$6:E15)>9,N15*3+H15,COUNT($C$6:E15)<=9,0) -> 718 | S15: =IF(COUNT($C$6:E15)>9,IF(P15=MAX($P$6:$P$35),P15," "),"") ->  | V15: =IF(COUNT(C15:E15)<1,0,IF(COUNT($C$6:E15)>9,C15+N15,0)) -> 206 | W15: =IF(COUNT(C15:E15)<1,0,IF(COUNT($C$6:E15)>9,D15+N15,0)) -> 266 | X15: =IF(COUNT(C15:E15)<1,0,IF(COUNT($C$6:E15)>9,E15+N15,0)) -> 246 | AA15: 0 | AB15: 10 | AC15: 10
A16: wk11 | B16: =Calendar!B16 -> 2018-11-14 | C16: 157 | D16: 150 | E16: 147 | F16: =IF(COUNT(C16:E16)<1," ",IF(AND(C16>M15,D16>M15,E16>M15,COUNT($C$6:E15)>=12),"*"," ")) ->  | G16: =IF(COUNT(C16:E16)<1," ",IF(AND(C16>M14,D16>M14,E16>M14,COUNT($C$6:E14)>=12),"*"," ")) ->  | H16: 454 | I16: 151 | J16: =_xlfn.IFS(SUM(C16:E16)<1,"",SUM(C16:E16)>=1,SUM($C$6:E16)) -> 4815 | K16: =_xlfn.IFS(COUNT(C16:E16)<1,"",COUNT($C$6:E16)>=1,COUNT($C$6:E16)) -> 27 | L16: =_xlfn.IFS(COUNT(C16:E16)<1,"",AND(COUNT($C$6:E16)<=9,$C$4>1),$C$4,COUNT(C16:E16)>=1,M16) -> 178 | M16: =IF(COUNT($C$6:E16)>=1,TRUNC(SUM($C$6:E16)/COUNT($C$6:E16)),0) -> 178 | N16: =IF(COUNT($C$6:E16)<=6,0,TRUNC((230-M15)*0.9)) -> 44 | O16: =_xlfn.IFS(SUM(C16:E16)<1,"",COUNT($C$6:E16)>9,TRUNC((230-M15)*(0.9)),COUNT($C$6:E16)<=9,0) -> 44 | P16: =_xlfn.IFS(SUM(C16:E16)<1,"",COUNT($C$6:E16)>9,N16*3+H16,COUNT($C$6:E16)<=9,0) -> 586 | S16: =IF(COUNT($C$6:E16)>9,IF(P16=MAX($P$6:$P$35),P16," "),"") ->  | V16: =IF(COUNT(C16:E16)<1,0,IF(COUNT($C$6:E16)>9,C16+N16,0)) -> 201 | W16: =IF(COUNT(C16:E16)<1,0,IF(COUNT($C$6:E16)>9,D16+N16,0)) -> 194 | X16: =IF(COUNT(C16:E16)<1,0,IF(COUNT($C$6:E16)>9,E16+N16,0)) -> 191 | AA16: 0 | AB16: 11 | AC16: 11
A17: wk12 | B17: =Calendar!B17 -> 2018-11-28 | C17: 190 | D17: 180 | E17: 197 | F17: =IF(COUNT(C17:E17)<1," ",IF(AND(C17>M16,D17>M16,E17>M16,COUNT($C$6:E16)>=12),"*"," ")) -> * | G17: =IF(COUNT(C17:E17)<1," ",IF(AND(C17>M15,D17>M15,E17>M15,COUNT($C$6:E15)>=12),"*"," ")) ->  | H17: 567 | I17: 189 | J17: =_xlfn.IFS(SUM(C17:E17)<1,"",SUM(C17:E17)>=1,SUM($C$6:E17)) -> 5382 | K17: =_xlfn.IFS(COUNT(C17:E17)<1,"",COUNT($C$6:E17)>=1,COUNT($C$6:E17)) -> 30 | L17: =_xlfn.IFS(COUNT(C17:E17)<1,"",AND(COUNT($C$6:E17)<=9,$C$4>1),$C$4,COUNT(C17:E17)>=1,M17) -> 179 | M17: =IF(COUNT($C$6:E17)>=1,TRUNC(SUM($C$6:E17)/COUNT($C$6:E17)),0) -> 179 | N17: =IF(COUNT($C$6:E17)<=6,0,TRUNC((230-M16)*0.9)) -> 46 | O17: =_xlfn.IFS(SUM(C17:E17)<1,"",COUNT($C$6:E17)>9,TRUNC((230-M16)*(0.9)),COUNT($C$6:E17)<=9,0) -> 46 | P17: =_xlfn.IFS(SUM(C17:E17)<1,"",COUNT($C$6:E17)>9,N17*3+H17,COUNT($C$6:E17)<=9,0) -> 705 | S17: =IF(COUNT($C$6:E17)>9,IF(P17=MAX($P$6:$P$35),P17," "),"") ->  | V17: =IF(COUNT(C17:E17)<1,0,IF(COUNT($C$6:E17)>9,C17+N17,0)) -> 236 | W17: =IF(COUNT(C17:E17)<1,0,IF(COUNT($C$6:E17)>9,D17+N17,0)) -> 226 | X17: =IF(COUNT(C17:E17)<1,0,IF(COUNT($C$6:E17)>9,E17+N17,0)) -> 243 | AA17: 0 | AB17: 12 | AC17: 12
A18: wk13 | B18: =Calendar!B18 -> 2018-12-05 | C18: 251 | D18: 189 | E18: 189 | F18: =IF(COUNT(C18:E18)<1," ",IF(AND(C18>M17,D18>M17,E18>M17,COUNT($C$6:E17)>=12),"*"," ")) -> * | G18: =IF(COUNT(C18:E18)<1," ",IF(AND(C18>M16,D18>M16,E18>M16,COUNT($C$6:E16)>=12),"*"," ")) -> * | H18: 629 | I18: 209 | J18: =_xlfn.IFS(SUM(C18:E18)<1,"",SUM(C18:E18)>=1,SUM($C$6:E18)) -> 6011 | K18: =_xlfn.IFS(COUNT(C18:E18)<1,"",COUNT($C$6:E18)>=1,COUNT($C$6:E18)) -> 33 | L18: =_xlfn.IFS(COUNT(C18:E18)<1,"",AND(COUNT($C$6:E18)<=9,$C$4>1),$C$4,COUNT(C18:E18)>=1,M18) -> 182 | M18: =IF(COUNT($C$6:E18)>=1,TRUNC(SUM($C$6:E18)/COUNT($C$6:E18)),0) -> 182 | N18: =IF(COUNT($C$6:E18)<=6,0,TRUNC((230-M17)*0.9)) -> 45 | O18: =_xlfn.IFS(SUM(C18:E18)<1,"",COUNT($C$6:E18)>9,TRUNC((230-M17)*(0.9)),COUNT($C$6:E18)<=9,0) -> 45 | P18: =_xlfn.IFS(SUM(C18:E18)<1,"",COUNT($C$6:E18)>9,N18*3+H18,COUNT($C$6:E18)<=9,0) -> 764 | R18: 251 | S18: =IF(COUNT($C$6:E18)>9,IF(P18=MAX($P$6:$P$35),P18," "),"") ->  | T18: 296 | V18: =IF(COUNT(C18:E18)<1,0,IF(COUNT($C$6:E18)>9,C18+N18,0)) -> 296 | W18: =IF(COUNT(C18:E18)<1,0,IF(COUNT($C$6:E18)>9,D18+N18,0)) -> 234 | X18: =IF(COUNT(C18:E18)<1,0,IF(COUNT($C$6:E18)>9,E18+N18,0)) -> 234 | AA18: 0 | AB18: 13 | AC18: 13
A19: wk14 | B19: =Calendar!B19 -> 2018-12-12 | C19: 201 | D19: 233 | E19: 215 | F19: =IF(COUNT(C19:E19)<1," ",IF(AND(C19>M18,D19>M18,E19>M18,COUNT($C$6:E18)>=12),"*"," ")) -> * | G19: =IF(COUNT(C19:E19)<1," ",IF(AND(C19>M17,D19>M17,E19>M17,COUNT($C$6:E17)>=12),"*"," ")) -> * | H19: 649 | I19: 216 | J19: =_xlfn.IFS(SUM(C19:E19)<1,"",SUM(C19:E19)>=1,SUM($C$6:E19)) -> 6660 | K19: =_xlfn.IFS(COUNT(C19:E19)<1,"",COUNT($C$6:E19)>=1,COUNT($C$6:E19)) -> 36 | L19: =_xlfn.IFS(COUNT(C19:E19)<1,"",AND(COUNT($C$6:E19)<=9,$C$4>1),$C$4,COUNT(C19:E19)>=1,M19) -> 185 | M19: =IF(COUNT($C$6:E19)>=1,TRUNC(SUM($C$6:E19)/COUNT($C$6:E19)),0) -> 185 | N19: =IF(COUNT($C$6:E19)<=6,0,TRUNC((230-M18)*0.9)) -> 43 | O19: =_xlfn.IFS(SUM(C19:E19)<1,"",COUNT($C$6:E19)>9,TRUNC((230-M18)*(0.9)),COUNT($C$6:E19)<=9,0) -> 43 | P19: =_xlfn.IFS(SUM(C19:E19)<1,"",COUNT($C$6:E19)>9,N19*3+H19,COUNT($C$6:E19)<=9,0) -> 778 | Q19: 649 | S19: =IF(COUNT($C$6:E19)>9,IF(P19=MAX($P$6:$P$35),P19," "),"") ->  | V19: =IF(COUNT(C19:E19)<1,0,IF(COUNT($C$6:E19)>9,C19+N19,0)) -> 244 | W19: =IF(COUNT(C19:E19)<1,0,IF(COUNT($C$6:E19)>9,D19+N19,0)) -> 276 | X19: =IF(COUNT(C19:E19)<1,0,IF(COUNT($C$6:E19)>9,E19+N19,0)) -> 258 | AA19: 0 | AB19: 14 | AC19: 14
A20: wk15 | B20: =Calendar!B20 -> 2018-12-19 | C20: 166 | D20: 133 | E20: 179 | F20: =IF(COUNT(C20:E20)<1," ",IF(AND(C20>M19,D20>M19,E20>M19,COUNT($C$6:E19)>=12),"*"," ")) ->  | G20: =IF(COUNT(C20:E20)<1," ",IF(AND(C20>M18,D20>M18,E20>M18,COUNT($C$6:E18)>=12),"*"," ")) ->  | H20: 478 | I20: 159 | J20: =_xlfn.IFS(SUM(C20:E20)<1,"",SUM(C20:E20)>=1,SUM($C$6:E20)) -> 7138 | K20: =_xlfn.IFS(COUNT(C20:E20)<1,"",COUNT($C$6:E20)>=1,COUNT($C$6:E20)) -> 39 | L20: =_xlfn.IFS(COUNT(C20:E20)<1,"",AND(COUNT($C$6:E20)<=9,$C$4>1),$C$4,COUNT(C20:E20)>=1,M20) -> 183 | M20: =IF(COUNT($C$6:E20)>=1,TRUNC(SUM($C$6:E20)/COUNT($C$6:E20)),0) -> 183 | N20: =IF(COUNT($C$6:E20)<=6,0,TRUNC((230-M19)*0.9)) -> 40 | O20: =_xlfn.IFS(SUM(C20:E20)<1,"",COUNT($C$6:E20)>9,TRUNC((230-M19)*(0.9)),COUNT($C$6:E20)<=9,0) -> 40 | P20: =_xlfn.IFS(SUM(C20:E20)<1,"",COUNT($C$6:E20)>9,N20*3+H20,COUNT($C$6:E20)<=9,0) -> 598 | S20: =IF(COUNT($C$6:E20)>9,IF(P20=MAX($P$6:$P$35),P20," "),"") ->  | V20: =IF(COUNT(C20:E20)<1,0,IF(COUNT($C$6:E20)>9,C20+N20,0)) -> 206 | W20: =IF(COUNT(C20:E20)<1,0,IF(COUNT($C$6:E20)>9,D20+N20,0)) -> 173 | X20: =IF(COUNT(C20:E20)<1,0,IF(COUNT($C$6:E20)>9,E20+N20,0)) -> 219 | AA20: 0 | AB20: 15 | AC20: 15
A21: wk16 | B21: =Calendar!B21 -> 2019-01-02 | C21: 162 | D21: 148 | E21: 159 | F21: =IF(COUNT(C21:E21)<1," ",IF(AND(C21>M20,D21>M20,E21>M20,COUNT($C$6:E20)>=12),"*"," ")) ->  | G21: =IF(COUNT(C21:E21)<1," ",IF(AND(C21>M19,D21>M19,E21>M19,COUNT($C$6:E19)>=12),"*"," ")) ->  | H21: 469 | I21: 156 | J21: =_xlfn.IFS(SUM(C21:E21)<1,"",SUM(C21:E21)>=1,SUM($C$6:E21)) -> 7607 | K21: =_xlfn.IFS(COUNT(C21:E21)<1,"",COUNT($C$6:E21)>=1,COUNT($C$6:E21)) -> 42 | L21: =_xlfn.IFS(COUNT(C21:E21)<1,"",AND(COUNT($C$6:E21)<=9,$C$4>1),$C$4,COUNT(C21:E21)>=1,M21) -> 181 | M21: =IF(COUNT($C$6:E21)>=1,TRUNC(SUM($C$6:E21)/COUNT($C$6:E21)),0) -> 181 | N21: =IF(COUNT($C$6:E21)<=6,0,TRUNC((230-M20)*0.9)) -> 42 | O21: =_xlfn.IFS(SUM(C21:E21)<1,"",COUNT($C$6:E21)>9,TRUNC((230-M20)*(0.9)),COUNT($C$6:E21)<=9,0) -> 42 | P21: =_xlfn.IFS(SUM(C21:E21)<1,"",COUNT($C$6:E21)>9,N21*3+H21,COUNT($C$6:E21)<=9,0) -> 595 | S21: =IF(COUNT($C$6:E21)>9,IF(P21=MAX($P$6:$P$35),P21," "),"") ->  | V21: =IF(COUNT(C21:E21)<1,0,IF(COUNT($C$6:E21)>9,C21+N21,0)) -> 204 | W21: =IF(COUNT(C21:E21)<1,0,IF(COUNT($C$6:E21)>9,D21+N21,0)) -> 190 | X21: =IF(COUNT(C21:E21)<1,0,IF(COUNT($C$6:E21)>9,E21+N21,0)) -> 201 | AA21: 0 | AB21: 16 | AC21: 16
A22: wk17 | B22: =Calendar!B22 -> 2019-01-09 | C22: 190 | D22: 191 | E22: 150 | F22: =IF(COUNT(C22:E22)<1," ",IF(AND(C22>M21,D22>M21,E22>M21,COUNT($C$6:E21)>=12),"*"," ")) ->  | G22: =IF(COUNT(C22:E22)<1," ",IF(AND(C22>M20,D22>M20,E22>M20,COUNT($C$6:E20)>=12),"*"," ")) ->  | H22: 531 | I22: 177 | J22: =_xlfn.IFS(SUM(C22:E22)<1,"",SUM(C22:E22)>=1,SUM($C$6:E22)) -> 8138 | K22: =_xlfn.IFS(COUNT(C22:E22)<1,"",COUNT($C$6:E22)>=1,COUNT($C$6:E22)) -> 45 | L22: =_xlfn.IFS(COUNT(C22:E22)<1,"",AND(COUNT($C$6:E22)<=9,$C$4>1),$C$4,COUNT(C22:E22)>=1,M22) -> 180 | M22: =IF(COUNT($C$6:E22)>=1,TRUNC(SUM($C$6:E22)/COUNT($C$6:E22)),0) -> 180 | N22: =IF(COUNT($C$6:E22)<=6,0,TRUNC((230-M21)*0.9)) -> 44 | O22: =_xlfn.IFS(SUM(C22:E22)<1,"",COUNT($C$6:E22)>9,TRUNC((230-M21)*(0.9)),COUNT($C$6:E22)<=9,0) -> 44 | P22: =_xlfn.IFS(SUM(C22:E22)<1,"",COUNT($C$6:E22)>9,N22*3+H22,COUNT($C$6:E22)<=9,0) -> 663 | S22: =IF(COUNT($C$6:E22)>9,IF(P22=MAX($P$6:$P$35),P22," "),"") ->  | V22: =IF(COUNT(C22:E22)<1,0,IF(COUNT($C$6:E22)>9,C22+N22,0)) -> 234 | W22: =IF(COUNT(C22:E22)<1,0,IF(COUNT($C$6:E22)>9,D22+N22,0)) -> 235 | X22: =IF(COUNT(C22:E22)<1,0,IF(COUNT($C$6:E22)>9,E22+N22,0)) -> 194 | AA22: 0 | AB22: 17 | AC22: 17
A23: wk18 | B23: =Calendar!B23 -> 2019-01-16 | C23: 182 | D23: 133 | E23: 153 | F23: =IF(COUNT(C23:E23)<1," ",IF(AND(C23>M22,D23>M22,E23>M22,COUNT($C$6:E22)>=12),"*"," ")) ->  | G23: =IF(COUNT(C23:E23)<1," ",IF(AND(C23>M21,D23>M21,E23>M21,COUNT($C$6:E21)>=12),"*"," ")) ->  | H23: 468 | I23: 156 | J23: =_xlfn.IFS(SUM(C23:E23)<1,"",SUM(C23:E23)>=1,SUM($C$6:E23)) -> 8606 | K23: =_xlfn.IFS(COUNT(C23:E23)<1,"",COUNT($C$6:E23)>=1,COUNT($C$6:E23)) -> 48 | L23: =_xlfn.IFS(COUNT(C23:E23)<1,"",AND(COUNT($C$6:E23)<=9,$C$4>1),$C$4,COUNT(C23:E23)>=1,M23) -> 179 | M23: =IF(COUNT($C$6:E23)>=1,TRUNC(SUM($C$6:E23)/COUNT($C$6:E23)),0) -> 179 | N23: =IF(COUNT($C$6:E23)<=6,0,TRUNC((230-M22)*0.9)) -> 45 | O23: =_xlfn.IFS(SUM(C23:E23)<1,"",COUNT($C$6:E23)>9,TRUNC((230-M22)*(0.9)),COUNT($C$6:E23)<=9,0) -> 45 | P23: =_xlfn.IFS(SUM(C23:E23)<1,"",COUNT($C$6:E23)>9,N23*3+H23,COUNT($C$6:E23)<=9,0) -> 603 | S23: =IF(COUNT($C$6:E23)>9,IF(P23=MAX($P$6:$P$35),P23," "),"") ->  | V23: =IF(COUNT(C23:E23)<1,0,IF(COUNT($C$6:E23)>9,C23+N23,0)) -> 227 | W23: =IF(COUNT(C23:E23)<1,0,IF(COUNT($C$6:E23)>9,D23+N23,0)) -> 178 | X23: =IF(COUNT(C23:E23)<1,0,IF(COUNT($C$6:E23)>9,E23+N23,0)) -> 198 | AA23: 0 | AB23: 18 | AC23: 18
A24: wk19 | B24: =Calendar!B24 -> 2019-01-23 | C24: 158 | D24: 188 | E24: 193 | F24: =IF(COUNT(C24:E24)<1," ",IF(AND(C24>M23,D24>M23,E24>M23,COUNT($C$6:E23)>=12),"*"," ")) ->  | G24: =IF(COUNT(C24:E24)<1," ",IF(AND(C24>M22,D24>M22,E24>M22,COUNT($C$6:E22)>=12),"*"," ")) ->  | H24: 539 | I24: 179 | J24: =_xlfn.IFS(SUM(C24:E24)<1,"",SUM(C24:E24)>=1,SUM($C$6:E24)) -> 9145 | K24: =_xlfn.IFS(COUNT(C24:E24)<1,"",COUNT($C$6:E24)>=1,COUNT($C$6:E24)) -> 51 | L24: =_xlfn.IFS(COUNT(C24:E24)<1,"",AND(COUNT($C$6:E24)<=9,$C$4>1),$C$4,COUNT(C24:E24)>=1,M24) -> 179 | M24: =IF(COUNT($C$6:E24)>=1,TRUNC(SUM($C$6:E24)/COUNT($C$6:E24)),0) -> 179 | N24: =IF(COUNT($C$6:E24)<=6,0,TRUNC((230-M23)*0.9)) -> 45 | O24: =_xlfn.IFS(SUM(C24:E24)<1,"",COUNT($C$6:E24)>9,TRUNC((230-M23)*(0.9)),COUNT($C$6:E24)<=9,0) -> 45 | P24: =_xlfn.IFS(SUM(C24:E24)<1,"",COUNT($C$6:E24)>9,N24*3+H24,COUNT($C$6:E24)<=9,0) -> 674 | S24: =IF(COUNT($C$6:E24)>9,IF(P24=MAX($P$6:$P$35),P24," "),"") ->  | V24: =IF(COUNT(C24:E24)<1,0,IF(COUNT($C$6:E24)>9,C24+N24,0)) -> 203 | W24: =IF(COUNT(C24:E24)<1,0,IF(COUNT($C$6:E24)>9,D24+N24,0)) -> 233 | X24: =IF(COUNT(C24:E24)<1,0,IF(COUNT($C$6:E24)>9,E24+N24,0)) -> 238 | AA24: 0 | AB24: 19 | AC24: 19
A25: wk20 | B25: =Calendar!B25 -> 2019-01-30 | C25: 160 | D25: 147 | E25: 175 | F25: =IF(COUNT(C25:E25)<1," ",IF(AND(C25>M24,D25>M24,E25>M24,COUNT($C$6:E24)>=12),"*"," ")) ->  | G25: =IF(COUNT(C25:E25)<1," ",IF(AND(C25>M23,D25>M23,E25>M23,COUNT($C$6:E23)>=12),"*"," ")) ->  | H25: 482 | I25: 160 | J25: =_xlfn.IFS(SUM(C25:E25)<1,"",SUM(C25:E25)>=1,SUM($C$6:E25)) -> 9627 | K25: =_xlfn.IFS(COUNT(C25:E25)<1,"",COUNT($C$6:E25)>=1,COUNT($C$6:E25)) -> 54 | L25: =_xlfn.IFS(COUNT(C25:E25)<1,"",AND(COUNT($C$6:E25)<=9,$C$4>1),$C$4,COUNT(C25:E25)>=1,M25) -> 178 | M25: =IF(COUNT($C$6:E25)>=1,TRUNC(SUM($C$6:E25)/COUNT($C$6:E25)),0) -> 178 | N25: =IF(COUNT($C$6:E25)<=6,0,TRUNC((230-M24)*0.9)) -> 45 | O25: =_xlfn.IFS(SUM(C25:E25)<1,"",COUNT($C$6:E25)>9,TRUNC((230-M24)*(0.9)),COUNT($C$6:E25)<=9,0) -> 45 | P25: =_xlfn.IFS(SUM(C25:E25)<1,"",COUNT($C$6:E25)>9,N25*3+H25,COUNT($C$6:E25)<=9,0) -> 617 | S25: =IF(COUNT($C$6:E25)>9,IF(P25=MAX($P$6:$P$35),P25," "),"") ->  | V25: =IF(COUNT(C25:E25)<1,0,IF(COUNT($C$6:E25)>9,C25+N25,0)) -> 205 | W25: =IF(COUNT(C25:E25)<1,0,IF(COUNT($C$6:E25)>9,D25+N25,0)) -> 192 | X25: =IF(COUNT(C25:E25)<1,0,IF(COUNT($C$6:E25)>9,E25+N25,0)) -> 220 | AA25: 0 | AB25: 20 | AC25: 20
A26: wk21 | B26: =Calendar!B26 -> 2019-02-06 | C26: 212 | D26: 201 | E26: 187 | F26: =IF(COUNT(C26:E26)<1," ",IF(AND(C26>M25,D26>M25,E26>M25,COUNT($C$6:E25)>=12),"*"," ")) -> * | G26: =IF(COUNT(C26:E26)<1," ",IF(AND(C26>M24,D26>M24,E26>M24,COUNT($C$6:E24)>=12),"*"," ")) -> * | H26: 600 | I26: 200 | J26: =_xlfn.IFS(SUM(C26:E26)<1,"",SUM(C26:E26)>=1,SUM($C$6:E26)) -> 10227 | K26: =_xlfn.IFS(COUNT(C26:E26)<1,"",COUNT($C$6:E26)>=1,COUNT($C$6:E26)) -> 57 | L26: =_xlfn.IFS(COUNT(C26:E26)<1,"",AND(COUNT($C$6:E26)<=9,$C$4>1),$C$4,COUNT(C26:E26)>=1,M26) -> 179 | M26: =IF(COUNT($C$6:E26)>=1,TRUNC(SUM($C$6:E26)/COUNT($C$6:E26)),0) -> 179 | N26: =IF(COUNT($C$6:E26)<=6,0,TRUNC((230-M25)*0.9)) -> 46 | O26: =_xlfn.IFS(SUM(C26:E26)<1,"",COUNT($C$6:E26)>9,TRUNC((230-M25)*(0.9)),COUNT($C$6:E26)<=9,0) -> 46 | P26: =_xlfn.IFS(SUM(C26:E26)<1,"",COUNT($C$6:E26)>9,N26*3+H26,COUNT($C$6:E26)<=9,0) -> 738 | S26: =IF(COUNT($C$6:E26)>9,IF(P26=MAX($P$6:$P$35),P26," "),"") ->  | V26: =IF(COUNT(C26:E26)<1,0,IF(COUNT($C$6:E26)>9,C26+N26,0)) -> 258 | W26: =IF(COUNT(C26:E26)<1,0,IF(COUNT($C$6:E26)>9,D26+N26,0)) -> 247 | X26: =IF(COUNT(C26:E26)<1,0,IF(COUNT($C$6:E26)>9,E26+N26,0)) -> 233 | AA26: 0 | AB26: 21 | AC26: 21
A27: wk22 | B27: =Calendar!B27 -> 2019-02-13 | C27: 160 | D27: 157 | E27: 170 | F27: =IF(COUNT(C27:E27)<1," ",IF(AND(C27>M26,D27>M26,E27>M26,COUNT($C$6:E26)>=12),"*"," ")) ->  | G27: =IF(COUNT(C27:E27)<1," ",IF(AND(C27>M25,D27>M25,E27>M25,COUNT($C$6:E25)>=12),"*"," ")) ->  | H27: 487 | I27: 162 | J27: =_xlfn.IFS(SUM(C27:E27)<1,"",SUM(C27:E27)>=1,SUM($C$6:E27)) -> 10714 | K27: =_xlfn.IFS(COUNT(C27:E27)<1,"",COUNT($C$6:E27)>=1,COUNT($C$6:E27)) -> 60 | L27: =_xlfn.IFS(COUNT(C27:E27)<1,"",AND(COUNT($C$6:E27)<=9,$C$4>1),$C$4,COUNT(C27:E27)>=1,M27) -> 178 | M27: =IF(COUNT($C$6:E27)>=1,TRUNC(SUM($C$6:E27)/COUNT($C$6:E27)),0) -> 178 | N27: =IF(COUNT($C$6:E27)<=6,0,TRUNC((230-M26)*0.9)) -> 45 | O27: =_xlfn.IFS(SUM(C27:E27)<1,"",COUNT($C$6:E27)>9,TRUNC((230-M26)*(0.9)),COUNT($C$6:E27)<=9,0) -> 45 | P27: =_xlfn.IFS(SUM(C27:E27)<1,"",COUNT($C$6:E27)>9,N27*3+H27,COUNT($C$6:E27)<=9,0) -> 622 | S27: =IF(COUNT($C$6:E27)>9,IF(P27=MAX($P$6:$P$35),P27," "),"") ->  | V27: =IF(COUNT(C27:E27)<1,0,IF(COUNT($C$6:E27)>9,C27+N27,0)) -> 205 | W27: =IF(COUNT(C27:E27)<1,0,IF(COUNT($C$6:E27)>9,D27+N27,0)) -> 202 | X27: =IF(COUNT(C27:E27)<1,0,IF(COUNT($C$6:E27)>9,E27+N27,0)) -> 215 | AA27: 0 | AB27: 22 | AC27: 22
A28: wk23 | B28: =Calendar!B28 -> 2019-02-20 | C28: 216 | D28: 242 | E28: 191 | F28: =IF(COUNT(C28:E28)<1," ",IF(AND(C28>M27,D28>M27,E28>M27,COUNT($C$6:E27)>=12),"*"," ")) -> * | G28: =IF(COUNT(C28:E28)<1," ",IF(AND(C28>M26,D28>M26,E28>M26,COUNT($C$6:E26)>=12),"*"," ")) -> * | H28: 649 | I28: 216 | J28: =_xlfn.IFS(SUM(C28:E28)<1,"",SUM(C28:E28)>=1,SUM($C$6:E28)) -> 11363 | K28: =_xlfn.IFS(COUNT(C28:E28)<1,"",COUNT($C$6:E28)>=1,COUNT($C$6:E28)) -> 63 | L28: =_xlfn.IFS(COUNT(C28:E28)<1,"",AND(COUNT($C$6:E28)<=9,$C$4>1),$C$4,COUNT(C28:E28)>=1,M28) -> 180 | M28: =IF(COUNT($C$6:E28)>=1,TRUNC(SUM($C$6:E28)/COUNT($C$6:E28)),0) -> 180 | N28: =IF(COUNT($C$6:E28)<=6,0,TRUNC((230-M27)*0.9)) -> 46 | O28: =_xlfn.IFS(SUM(C28:E28)<1,"",COUNT($C$6:E28)>9,TRUNC((230-M27)*(0.9)),COUNT($C$6:E28)<=9,0) -> 46 | P28: =_xlfn.IFS(SUM(C28:E28)<1,"",COUNT($C$6:E28)>9,N28*3+H28,COUNT($C$6:E28)<=9,0) -> 787 | Q28: 649 | S28: =IF(COUNT($C$6:E28)>9,IF(P28=MAX($P$6:$P$35),P28," "),"") -> 787 | V28: =IF(COUNT(C28:E28)<1,0,IF(COUNT($C$6:E28)>9,C28+N28,0)) -> 262 | W28: =IF(COUNT(C28:E28)<1,0,IF(COUNT($C$6:E28)>9,D28+N28,0)) -> 288 | X28: =IF(COUNT(C28:E28)<1,0,IF(COUNT($C$6:E28)>9,E28+N28,0)) -> 237 | AA28: 0 | AB28: 23 | AC28: 23
A29: wk24 | B29: =Calendar!B29 -> 2019-02-27 | C29: 188 | D29: 196 | E29: 155 | F29: =IF(COUNT(C29:E29)<1," ",IF(AND(C29>M28,D29>M28,E29>M28,COUNT($C$6:E28)>=12),"*"," ")) ->  | G29: =IF(COUNT(C29:E29)<1," ",IF(AND(C29>M27,D29>M27,E29>M27,COUNT($C$6:E27)>=12),"*"," ")) ->  | H29: 539 | I29: 179 | J29: =_xlfn.IFS(SUM(C29:E29)<1,"",SUM(C29:E29)>=1,SUM($C$6:E29)) -> 11902 | K29: =_xlfn.IFS(COUNT(C29:E29)<1,"",COUNT($C$6:E29)>=1,COUNT($C$6:E29)) -> 66 | L29: =_xlfn.IFS(COUNT(C29:E29)<1,"",AND(COUNT($C$6:E29)<=9,$C$4>1),$C$4,COUNT(C29:E29)>=1,M29) -> 180 | M29: =IF(COUNT($C$6:E29)>=1,TRUNC(SUM($C$6:E29)/COUNT($C$6:E29)),0) -> 180 | N29: =IF(COUNT($C$6:E29)<=6,0,TRUNC((230-M28)*0.9)) -> 45 | O29: =_xlfn.IFS(SUM(C29:E29)<1,"",COUNT($C$6:E29)>9,TRUNC((230-M28)*(0.9)),COUNT($C$6:E29)<=9,0) -> 45 | P29: =_xlfn.IFS(SUM(C29:E29)<1,"",COUNT($C$6:E29)>9,N29*3+H29,COUNT($C$6:E29)<=9,0) -> 674 | S29: =IF(COUNT($C$6:E29)>9,IF(P29=MAX($P$6:$P$35),P29," "),"") ->  | V29: =IF(COUNT(C29:E29)<1,0,IF(COUNT($C$6:E29)>9,C29+N29,0)) -> 233 | W29: =IF(COUNT(C29:E29)<1,0,IF(COUNT($C$6:E29)>9,D29+N29,0)) -> 241 | X29: =IF(COUNT(C29:E29)<1,0,IF(COUNT($C$6:E29)>9,E29+N29,0)) -> 200 | AA29: 0 | AB29: 24 | AC29: 24
A30: wk25 | B30: =Calendar!B30 -> 2019-03-06 | C30: 190 | D30: 164 | E30: 192 | F30: =IF(COUNT(C30:E30)<1," ",IF(AND(C30>M29,D30>M29,E30>M29,COUNT($C$6:E29)>=12),"*"," ")) ->  | G30: =IF(COUNT(C30:E30)<1," ",IF(AND(C30>M28,D30>M28,E30>M28,COUNT($C$6:E28)>=12),"*"," ")) ->  | H30: 546 | I30: 182 | J30: =_xlfn.IFS(SUM(C30:E30)<1,"",SUM(C30:E30)>=1,SUM($C$6:E30)) -> 12448 | K30: =_xlfn.IFS(COUNT(C30:E30)<1,"",COUNT($C$6:E30)>=1,COUNT($C$6:E30)) -> 69 | L30: =_xlfn.IFS(COUNT(C30:E30)<1,"",AND(COUNT($C$6:E30)<=9,$C$4>1),$C$4,COUNT(C30:E30)>=1,M30) -> 180 | M30: =IF(COUNT($C$6:E30)>=1,TRUNC(SUM($C$6:E30)/COUNT($C$6:E30)),0) -> 180 | N30: =IF(COUNT($C$6:E30)<=6,0,TRUNC((230-M29)*0.9)) -> 45 | O30: =_xlfn.IFS(SUM(C30:E30)<1,"",COUNT($C$6:E30)>9,TRUNC((230-M29)*(0.9)),COUNT($C$6:E30)<=9,0) -> 45 | P30: =_xlfn.IFS(SUM(C30:E30)<1,"",COUNT($C$6:E30)>9,N30*3+H30,COUNT($C$6:E30)<=9,0) -> 681 | S30: =IF(COUNT($C$6:E30)>9,IF(P30=MAX($P$6:$P$35),P30," "),"") ->  | V30: =IF(COUNT(C30:E30)<1,0,IF(COUNT($C$6:E30)>9,C30+N30,0)) -> 235 | W30: =IF(COUNT(C30:E30)<1,0,IF(COUNT($C$6:E30)>9,D30+N30,0)) -> 209 | X30: =IF(COUNT(C30:E30)<1,0,IF(COUNT($C$6:E30)>9,E30+N30,0)) -> 237 | AA30: 0 | AB30: 25 | AC30: 25
A31: wk26 | B31: =Calendar!B31 -> 2019-03-13 | C31: 173 | D31: 180 | E31: 234 | F31: =IF(COUNT(C31:E31)<1," ",IF(AND(C31>M30,D31>M30,E31>M30,COUNT($C$6:E30)>=12),"*"," ")) ->  | G31: =IF(COUNT(C31:E31)<1," ",IF(AND(C31>M29,D31>M29,E31>M29,COUNT($C$6:E29)>=12),"*"," ")) ->  | H31: 587 | I31: 195 | J31: =_xlfn.IFS(SUM(C31:E31)<1,"",SUM(C31:E31)>=1,SUM($C$6:E31)) -> 13035 | K31: =_xlfn.IFS(COUNT(C31:E31)<1,"",COUNT($C$6:E31)>=1,COUNT($C$6:E31)) -> 72 | L31: =_xlfn.IFS(COUNT(C31:E31)<1,"",AND(COUNT($C$6:E31)<=9,$C$4>1),$C$4,COUNT(C31:E31)>=1,M31) -> 181 | M31: =IF(COUNT($C$6:E31)>=1,TRUNC(SUM($C$6:E31)/COUNT($C$6:E31)),0) -> 181 | N31: =IF(COUNT($C$6:E31)<=6,0,TRUNC((230-M30)*0.9)) -> 45 | O31: =_xlfn.IFS(SUM(C31:E31)<1,"",COUNT($C$6:E31)>9,TRUNC((230-M30)*(0.9)),COUNT($C$6:E31)<=9,0) -> 45 | P31: =_xlfn.IFS(SUM(C31:E31)<1,"",COUNT($C$6:E31)>9,N31*3+H31,COUNT($C$6:E31)<=9,0) -> 722 | S31: =IF(COUNT($C$6:E31)>9,IF(P31=MAX($P$6:$P$35),P31," "),"") ->  | V31: =IF(COUNT(C31:E31)<1,0,IF(COUNT($C$6:E31)>9,C31+N31,0)) -> 218 | W31: =IF(COUNT(C31:E31)<1,0,IF(COUNT($C$6:E31)>9,D31+N31,0)) -> 225 | X31: =IF(COUNT(C31:E31)<1,0,IF(COUNT($C$6:E31)>9,E31+N31,0)) -> 279 | AA31: 0 | AB31: 26 | AC31: 26
A32: wk27 | B32: =Calendar!B32 -> 2019-03-20 | C32: 178 | D32: 142 | E32: 178 | F32: =IF(COUNT(C32:E32)<1," ",IF(AND(C32>M31,D32>M31,E32>M31,COUNT($C$6:E31)>=12),"*"," ")) ->  | G32: =IF(COUNT(C32:E32)<1," ",IF(AND(C32>M30,D32>M30,E32>M30,COUNT($C$6:E30)>=12),"*"," ")) ->  | H32: 498 | I32: 166 | J32: =_xlfn.IFS(SUM(C32:E32)<1,"",SUM(C32:E32)>=1,SUM($C$6:E32)) -> 13533 | K32: =_xlfn.IFS(COUNT(C32:E32)<1,"",COUNT($C$6:E32)>=1,COUNT($C$6:E32)) -> 75 | L32: =_xlfn.IFS(COUNT(C32:E32)<1,"",AND(COUNT($C$6:E32)<=9,$C$4>1),$C$4,COUNT(C32:E32)>=1,M32) -> 180 | M32: =IF(COUNT($C$6:E32)>=1,TRUNC(SUM($C$6:E32)/COUNT($C$6:E32)),0) -> 180 | N32: =IF(COUNT($C$6:E32)<=6,0,TRUNC((230-M31)*0.9)) -> 44 | O32: =_xlfn.IFS(SUM(C32:E32)<1,"",COUNT($C$6:E32)>9,TRUNC((230-M31)*(0.9)),COUNT($C$6:E32)<=9,0) -> 44 | P32: =_xlfn.IFS(SUM(C32:E32)<1,"",COUNT($C$6:E32)>9,N32*3+H32,COUNT($C$6:E32)<=9,0) -> 630 | S32: =IF(COUNT($C$6:E32)>9,IF(P32=MAX($P$6:$P$35),P32," "),"") ->  | V32: =IF(COUNT(C32:E32)<1,0,IF(COUNT($C$6:E32)>9,C32+N32,0)) -> 222 | W32: =IF(COUNT(C32:E32)<1,0,IF(COUNT($C$6:E32)>9,D32+N32,0)) -> 186 | X32: =IF(COUNT(C32:E32)<1,0,IF(COUNT($C$6:E32)>9,E32+N32,0)) -> 222 | AA32: 0 | AB32: 27 | AC32: 27
A33: wk28 | B33: =Calendar!B33 -> 2019-03-27 | C33: 163 | D33: 173 | E33: 180 | F33: =IF(COUNT(C33:E33)<1," ",IF(AND(C33>M32,D33>M32,E33>M32,COUNT($C$6:E32)>=12),"*"," ")) ->  | G33: =IF(COUNT(C33:E33)<1," ",IF(AND(C33>M31,D33>M31,E33>M31,COUNT($C$6:E31)>=12),"*"," ")) ->  | H33: 516 | I33: 172 | J33: =_xlfn.IFS(SUM(C33:E33)<1,"",SUM(C33:E33)>=1,SUM($C$6:E33)) -> 14049 | K33: =_xlfn.IFS(COUNT(C33:E33)<1,"",COUNT($C$6:E33)>=1,COUNT($C$6:E33)) -> 78 | L33: =_xlfn.IFS(COUNT(C33:E33)<1,"",AND(COUNT($C$6:E33)<=9,$C$4>1),$C$4,COUNT(C33:E33)>=1,M33) -> 180 | M33: =IF(COUNT($C$6:E33)>=1,TRUNC(SUM($C$6:E33)/COUNT($C$6:E33)),0) -> 180 | N33: =IF(COUNT($C$6:E33)<=6,0,TRUNC((230-M32)*0.9)) -> 45 | O33: =_xlfn.IFS(SUM(C33:E33)<1,"",COUNT($C$6:E33)>9,TRUNC((230-M32)*(0.9)),COUNT($C$6:E33)<=9,0) -> 45 | P33: =_xlfn.IFS(SUM(C33:E33)<1,"",COUNT($C$6:E33)>9,N33*3+H33,COUNT($C$6:E33)<=9,0) -> 651 | S33: =IF(COUNT($C$6:E33)>9,IF(P33=MAX($P$6:$P$35),P33," "),"") ->  | V33: =IF(COUNT(C33:E33)<1,0,IF(COUNT($C$6:E33)>9,C33+N33,0)) -> 208 | W33: =IF(COUNT(C33:E33)<1,0,IF(COUNT($C$6:E33)>9,D33+N33,0)) -> 218 | X33: =IF(COUNT(C33:E33)<1,0,IF(COUNT($C$6:E33)>9,E33+N33,0)) -> 225 | AA33: 0 | AB33: 28 | AC33: 28
A34: wk29 | B34: =Calendar!B34 -> 2019-04-03 | C34: 151 | D34: 202 | E34: 218 | F34: =IF(COUNT(C34:E34)<1," ",IF(AND(C34>M33,D34>M33,E34>M33,COUNT($C$6:E33)>=12),"*"," ")) ->  | G34: =IF(COUNT(C34:E34)<1," ",IF(AND(C34>M32,D34>M32,E34>M32,COUNT($C$6:E32)>=12),"*"," ")) ->  | H34: 571 | I34: 190 | J34: =_xlfn.IFS(SUM(C34:E34)<1,"",SUM(C34:E34)>=1,SUM($C$6:E34)) -> 14620 | K34: =_xlfn.IFS(COUNT(C34:E34)<1,"",COUNT($C$6:E34)>=1,COUNT($C$6:E34)) -> 81 | L34: =_xlfn.IFS(COUNT(C34:E34)<1,"",AND(COUNT($C$6:E34)<=9,$C$4>1),$C$4,COUNT(C34:E34)>=1,M34) -> 180 | M34: =IF(COUNT($C$6:E34)>=1,TRUNC(SUM($C$6:E34)/COUNT($C$6:E34)),0) -> 180 | N34: =IF(COUNT($C$6:E34)<=6,0,TRUNC((230-M33)*0.9)) -> 45 | O34: =_xlfn.IFS(SUM(C34:E34)<1,"",COUNT($C$6:E34)>9,TRUNC((230-M33)*(0.9)),COUNT($C$6:E34)<=9,0) -> 45 | P34: =_xlfn.IFS(SUM(C34:E34)<1,"",COUNT($C$6:E34)>9,N34*3+H34,COUNT($C$6:E34)<=9,0) -> 706 | S34: =IF(COUNT($C$6:E34)>9,IF(P34=MAX($P$6:$P$35),P34," "),"") ->  | V34: =IF(COUNT(C34:E34)<1,0,IF(COUNT($C$6:E34)>9,C34+N34,0)) -> 196 | W34: =IF(COUNT(C34:E34)<1,0,IF(COUNT($C$6:E34)>9,D34+N34,0)) -> 247 | X34: =IF(COUNT(C34:E34)<1,0,IF(COUNT($C$6:E34)>9,E34+N34,0)) -> 263 | AA34: 0 | AB34: 29 | AC34: 29
A35: wk30 | B35: =Calendar!B35 -> 2019-04-10 | C35: 138 | D35: 180 | E35: 227 | F35: =IF(COUNT(C35:E35)<1," ",IF(AND(C35>M34,D35>M34,E35>M34,COUNT($C$6:E34)>=12),"*"," ")) ->  | G35: =IF(COUNT(C35:E35)<1," ",IF(AND(C35>M33,D35>M33,E35>M33,COUNT($C$6:E33)>=12),"*"," ")) ->  | H35: 545 | I35: 181 | J35: =_xlfn.IFS(SUM(C35:E35)<1,"",SUM(C35:E35)>=1,SUM($C$6:E35)) -> 15165 | K35: =_xlfn.IFS(COUNT(C35:E35)<1,"",COUNT($C$6:E35)>=1,COUNT($C$6:E35)) -> 84 | L35: =_xlfn.IFS(COUNT(C35:E35)<1,"",AND(COUNT($C$6:E35)<=9,$C$4>1),$C$4,COUNT(C35:E35)>=1,M35) -> 180 | M35: =IF(COUNT($C$6:E35)>=1,TRUNC(SUM($C$6:E35)/COUNT($C$6:E35)),0) -> 180 | N35: =IF(COUNT($C$6:E35)<=6,0,TRUNC((230-M34)*0.9)) -> 45 | O35: =_xlfn.IFS(SUM(C35:E35)<1,"",COUNT($C$6:E35)>9,TRUNC((230-M34)*(0.9)),COUNT($C$6:E35)<=9,0) -> 45 | P35: =_xlfn.IFS(SUM(C35:E35)<1,"",COUNT($C$6:E35)>9,N35*3+H35,COUNT($C$6:E35)<=9,0) -> 680 | S35: =IF(COUNT($C$6:E35)>9,IF(P35=MAX($P$6:$P$35),P35," "),"") ->  | V35: =IF(COUNT(C35:E35)<1,0,IF(COUNT($C$6:E35)>9,C35+N35,0)) -> 183 | W35: =IF(COUNT(C35:E35)<1,0,IF(COUNT($C$6:E35)>9,D35+N35,0)) -> 225 | X35: =IF(COUNT(C35:E35)<1,0,IF(COUNT($C$6:E35)>9,E35+N35,0)) -> 272 | AA35: 0 | AB35: 30 | AC35: 30
C36: =(IF(COUNT(C6:C35)=0," ",(SUM(C6:C35))/COUNT(C6:C35))) -> 177.50 | D36: =(IF(COUNT(D6:D35)=0," ",(SUM(D6:D35))/COUNT(D6:D35))) -> 180.25 | E36: =(IF(COUNT(E6:E35)=0," ",(SUM(E6:E35))/COUNT(E6:E35))) -> 183.86

Sheet MRobles6
H1: =Calendar!H1 -> Wednesday Fun Fours 2018/19 season | R1: 6-over wk:
A2: wk# | B2: =MAX(AB6:AB35) -> 30 | R2: 19
A3: Name: | B3: Mary Robles | I3: Perfect Attendance: | K3: =IF(SUM(AA6:AA35)<0.5,"Yes","No") -> No | L3: =_xlfn.IFS(AND(B2=30,K3="Yes"),"good",AND(B2<>30,K3="Yes"),"So Far",AND(B2<>30,K3="No")," ") -> 
A4: book average: | C4: 150 | H4: wky | I4: wky | J4: cumulative | L4: cumulative | P4: hdcp | Q4: high | R4: high | S4: high hcp | T4: high hcp
C5: g1 | D5: g2 | E5: g3 | H5: series | I5: average | J5: score | K5: games | L5: average | O5: hdcp | P5: series | Q5: series | R5: game | S5: series | T5: game | V5: =MAX(C6:E35) -> 196 | W5: =MAX(V6:X35) -> 282
A6: wk1 | B6: =Calendar!B6 -> 2018-09-05 | C6: 106 | D6: 134 | E6: 132 | H6: =IF(COUNT(C6:E6)<1," ",SUM(C6:E6)) -> 372 | I6: =IF(COUNT(C6:E6)<1," ",TRUNC(H6/COUNT(C6:E6))) -> 124 | J6: =_xlfn.IFS(SUM(C6:E6)<1,"",SUM(C6:E6)>=1,SUM($C$6:E6)) -> 372 | K6: =_xlfn.IFS(COUNT(C6:E6)<1,"",COUNT($C$6:E6)>=1,COUNT($C$6:E6)) -> 3 | L6: =_xlfn.IFS(COUNT(C6:E6)<1,"",AND(COUNT($C$6:E6)<=9,$C$4>1),$C$4,COUNT(C6:E6)>=1,M6) -> 150 | M6: =IF(COUNT($C$6:E6)>=1,TRUNC(SUM($C$6:E6)/COUNT($C$6:E6)),0) -> 124 | N6: =IF(COUNT($C$6:E6)<=6,0,TRUNC((230-M5)*0.9)) -> 0 | O6: =_xlfn.IFS(SUM(C6:E6)<1,"",COUNT($C$6:E6)>9,TRUNC((230-M5)*(0.9)),COUNT($C$6:E6)<=9,0) -> 0 | P6: =_xlfn.IFS(SUM(C6:E6)<1,"",COUNT($C$6:E6)>9,N6*3+H6,COUNT($C$6:E6)<=9,0) -> 0 | Q6: =IF(H6=(MAX($H$6:$H$35)),H6," ") ->  | R6: =IF((OR(C6=$V$5,D6=$V$5,E6=$V$5)),$V$5," ") ->  | S6: =IF(COUNT($C$6:E6)>9,IF(P6=MAX($P$6:$P$35),P6," "),"") ->  | T6: =IF(OR(V6=$W$5,W6=$W$5,X6=$W$5),$W$5," ") ->  | V6: =IF(COUNT(C6:E6)<1,0,IF(COUNT($C$6:E6)>9,C6+N6,0)) -> 0 | W6: =IF(COUNT(C6:E6)<1,0,IF(COUNT($C$6:E6)>9,D6+N6,0)) -> 0 | X6: =IF(COUNT(C6:E6)<1,0,IF(COUNT($C$6:E6)>9,E6+N6,0)) -> 0 | AA6: =IF((MAX($AB$6:$AB$35))<AC6,0,IF(AB6=AC6,0,1)) -> 0 | AB6: =IF(COUNT(C6:E6)>0,AC6,0) -> 1 | AC6: 1
A7: wk2 | B7: =Calendar!B7 -> 2018-09-12 | I7: =IF(COUNT(C7:E7)<1," ",TRUNC(H7/COUNT(C7:E7))) ->  | J7: =_xlfn.IFS(SUM(C7:E7)<1,"",SUM(C7:E7)>=1,SUM($C$6:E7)) ->  | K7: =_xlfn.IFS(COUNT(C7:E7)<1,"",COUNT($C$6:E7)>=1,COUNT($C$6:E7)) ->  | L7: =_xlfn.IFS(COUNT(C7:E7)<1,"",AND(COUNT($C$6:E7)<=9,$C$4>1),$C$4,COUNT(C7:E7)>=1,M7) ->  | M7: =IF(COUNT($C$6:E7)>=1,TRUNC(SUM($C$6:E7)/COUNT($C$6:E7)),0) -> 124 | N7: =IF(COUNT($C$6:E7)<=6,0,TRUNC((230-M6)*0.9)) -> 0 | O7: =_xlfn.IFS(SUM(C7:E7)<1,"",COUNT($C$6:E7)>9,TRUNC((230-M6)*(0.9)),COUNT($C$6:E7)<=9,0) ->  | P7: =_xlfn.IFS(SUM(C7:E7)<1,"",COUNT($C$6:E7)>9,N7*3+H7,COUNT($C$6:E7)<=9,0) ->  | S7: =IF(COUNT($C$6:E7)>9,IF(P7=MAX($P$6:$P$35),P7," "),"") ->  | V7: =IF(COUNT(C7:E7)<1,0,IF(COUNT($C$6:E7)>9,C7+N7,0)) -> 0 | W7: =IF(COUNT(C7:E7)<1,0,IF(COUNT($C$6:E7)>9,D7+N7,0)) -> 0 | X7: =IF(COUNT(C7:E7)<1,0,IF(COUNT($C$6:E7)>9,E7+N7,0)) -> 0 | AA7: 1 | AB7: =IF(COUNT(C7:E7)>0,AC7,0) -> 0 | AC7: 2
A8: wk3 | B8: =Calendar!B8 -> 2018-09-19 | J8: =_xlfn.IFS(SUM(C8:E8)<1,"",SUM(C8:E8)>=1,SUM($C$6:E8)) ->  | K8: =_xlfn.IFS(COUNT(C8:E8)<1,"",COUNT($C$6:E8)>=1,COUNT($C$6:E8)) ->  | L8: =_xlfn.IFS(COUNT(C8:E8)<1,"",AND(COUNT($C$6:E8)<=9,$C$4>1),$C$4,COUNT(C8:E8)>=1,M8) ->  | M8: =IF(COUNT($C$6:E8)>=1,TRUNC(SUM($C$6:E8)/COUNT($C$6:E8)),0) -> 124 | N8: =IF(COUNT($C$6:E8)<=6,0,TRUNC((230-M7)*0.9)) -> 0 | O8: =_xlfn.IFS(SUM(C8:E8)<1,"",COUNT($C$6:E8)>9,TRUNC((230-M7)*(0.9)),COUNT($C$6:E8)<=9,0) ->  | P8: =_xlfn.IFS(SUM(C8:E8)<1,"",COUNT($C$6:E8)>9,N8*3+H8,COUNT($C$6:E8)<=9,0) ->  | S8: =IF(COUNT($C$6:E8)>9,IF(P8=MAX($P$6:$P$35),P8," "),"") ->  | V8: =IF(COUNT(C8:E8)<1,0,IF(COUNT($C$6:E8)>9,C8+N8,0)) -> 0 | W8: =IF(COUNT(C8:E8)<1,0,IF(COUNT($C$6:E8)>9,D8+N8,0)) -> 0 | X8: =IF(COUNT(C8:E8)<1,0,IF(COUNT($C$6:E8)>9,E8+N8,0)) -> 0 | AA8: 1 | AB8: 0 | AC8: 3
A9: wk4 | B9: =Calendar!B9 -> 2018-09-26 | J9: =_xlfn.IFS(SUM(C9:E9)<1,"",SUM(C9:E9)>=1,SUM($C$6:E9)) ->  | K9: =_xlfn.IFS(COUNT(C9:E9)<1,"",COUNT($C$6:E9)>=1,COUNT($C$6:E9)) ->  | L9: =_xlfn.IFS(COUNT(C9:E9)<1,"",AND(COUNT($C$6:E9)<=9,$C$4>1),$C$4,COUNT(C9:E9)>=1,M9) ->  | M9: =IF(COUNT($C$6:E9)>=1,TRUNC(SUM($C$6:E9)/COUNT($C$6:E9)),0) -> 124 | N9: =IF(COUNT($C$6:E9)<=6,0,TRUNC((230-M8)*0.9)) -> 0 | O9: =_xlfn.IFS(SUM(C9:E9)<1,"",COUNT($C$6:E9)>9,TRUNC((230-M8)*(0.9)),COUNT($C$6:E9)<=9,0) ->  | P9: =_xlfn.IFS(SUM(C9:E9)<1,"",COUNT($C$6:E9)>9,N9*3+H9,COUNT($C$6:E9)<=9,0) ->  | S9: =IF(COUNT($C$6:E9)>9,IF(P9=MAX($P$6:$P$35),P9," "),"") ->  | V9: =IF(COUNT(C9:E9)<1,0,IF(COUNT($C$6:E9)>9,C9+N9,0)) -> 0 | W9: =IF(COUNT(C9:E9)<1,0,IF(COUNT($C$6:E9)>9,D9+N9,0)) -> 0 | X9: =IF(COUNT(C9:E9)<1,0,IF(COUNT($C$6:E9)>9,E9+N9,0)) -> 0 | AA9: 1 | AB9: 0 | AC9: 4
A10: wk5 | B10: =Calendar!B10 -> 2018-10-03 | C10: 182 | D10: 187 | E10: 112 | F10: =IF(COUNT(C10:E10)<1," ",IF(AND(C10>M9,D10>M9,E10>M9,COUNT($C$6:E9)>=12),"*"," ")) ->  | H10: 481 | I10: 160 | J10: =_xlfn.IFS(SUM(C10:E10)<1,"",SUM(C10:E10)>=1,SUM($C$6:E10)) -> 853 | K10: =_xlfn.IFS(COUNT(C10:E10)<1,"",COUNT($C$6:E10)>=1,COUNT($C$6:E10)) -> 6 | L10: =_xlfn.IFS(COUNT(C10:E10)<1,"",AND(COUNT($C$6:E10)<=9,$C$4>1),$C$4,COUNT(C10:E10)>=1,M10) -> 150 | M10: =IF(COUNT($C$6:E10)>=1,TRUNC(SUM($C$6:E10)/COUNT($C$6:E10)),0) -> 142 | N10: =IF(COUNT($C$6:E10)<=6,0,TRUNC((230-M9)*0.9)) -> 0 | O10: =_xlfn.IFS(SUM(C10:E10)<1,"",COUNT($C$6:E10)>9,TRUNC((230-M9)*(0.9)),COUNT($C$6:E10)<=9,0) -> 0 | P10: =_xlfn.IFS(SUM(C10:E10)<1,"",COUNT($C$6:E10)>9,N10*3+H10,COUNT($C$6:E10)<=9,0) -> 0 | S10: =IF(COUNT($C$6:E10)>9,IF(P10=MAX($P$6:$P$35),P10," "),"") ->  | V10: =IF(COUNT(C10:E10)<1,0,IF(COUNT($C$6:E10)>9,C10+N10,0)) -> 0 | W10: =IF(COUNT(C10:E10)<1,0,IF(COUNT($C$6:E10)>9,D10+N10,0)) -> 0 | X10: =IF(COUNT(C10:E10)<1,0,IF(COUNT($C$6:E10)>9,E10+N10,0)) -> 0 | AA10: 0 | AB10: 5 | AC10: 5
A11: wk6 | B11: =Calendar!B11 -> 2018-10-10 | C11: 120 | D11: 144 | E11: 148 | F11: =IF(COUNT(C11:E11)<1," ",IF(AND(C11>M10,D11>M10,E11>M10,COUNT($C$6:E10)>=12),"*"," ")) ->  | G11: =IF(COUNT(C11:E11)<1," ",IF(AND(C11>M9,D11>M9,E11>M9,COUNT($C$6:E9)>=12),"*"," ")) ->  | H11: 412 | I11: 137 | J11: =_xlfn.IFS(SUM(C11:E11)<1,"",SUM(C11:E11)>=1,SUM($C$6:E11)) -> 1265 | K11: =_xlfn.IFS(COUNT(C11:E11)<1,"",COUNT($C$6:E11)>=1,COUNT($C$6:E11)) -> 9 | L11: =_xlfn.IFS(COUNT(C11:E11)<1,"",AND(COUNT($C$6:E11)<=9,$C$4>1),$C$4,COUNT(C11:E11)>=1,M11) -> 150 | M11: =IF(COUNT($C$6:E11)>=1,TRUNC(SUM($C$6:E11)/COUNT($C$6:E11)),0) -> 140 | N11: =IF(COUNT($C$6:E11)<=6,0,TRUNC((230-M10)*0.9)) -> 79 | O11: =_xlfn.IFS(SUM(C11:E11)<1,"",COUNT($C$6:E11)>9,TRUNC((230-M10)*(0.9)),COUNT($C$6:E11)<=9,0) -> 0 | P11: =_xlfn.IFS(SUM(C11:E11)<1,"",COUNT($C$6:E11)>9,N11*3+H11,COUNT($C$6:E11)<=9,0) -> 0 | S11: =IF(COUNT($C$6:E11)>9,IF(P11=MAX($P$6:$P$35),P11," "),"") ->  | V11: =IF(COUNT(C11:E11)<1,0,IF(COUNT($C$6:E11)>9,C11+N11,0)) -> 0 | W11: =IF(COUNT(C11:E11)<1,0,IF(COUNT($C$6:E11)>9,D11+N11,0)) -> 0 | X11: =IF(COUNT(C11:E11)<1,0,IF(COUNT($C$6:E11)>9,E11+N11,0)) -> 0 | AA11: 0 | AB11: 6 | AC11: 6
A12: wk7 | B12: =Calendar!B12 -> 2018-10-17 | C12: 116 | D12: 139 | E12: 123 | F12: =IF(COUNT(C12:E12)<1," ",IF(AND(C12>M11,D12>M11,E12>M11,COUNT($C$6:E11)>=12),"*"," ")) ->  | G12: =IF(COUNT(C12:E12)<1," ",IF(AND(C12>M10,D12>M10,E12>M10,COUNT($C$6:E10)>=12),"*"," ")) ->  | H12: 378 | I12: 126 | J12: =_xlfn.IFS(SUM(C12:E12)<1,"",SUM(C12:E12)>=1,SUM($C$6:E12)) -> 1643 | K12: =_xlfn.IFS(COUNT(C12:E12)<1,"",COUNT($C$6:E12)>=1,COUNT($C$6:E12)) -> 12 | L12: =_xlfn.IFS(COUNT(C12:E12)<1,"",AND(COUNT($C$6:E12)<=9,$C$4>1),$C$4,COUNT(C12:E12)>=1,M12) -> 136 | M12: =IF(COUNT($C$6:E12)>=1,TRUNC(SUM($C$6:E12)/COUNT($C$6:E12)),0) -> 136 | N12: =IF(COUNT($C$6:E12)<=6,0,TRUNC((230-M11)*0.9)) -> 81 | O12: =_xlfn.IFS(SUM(C12:E12)<1,"",COUNT($C$6:E12)>9,TRUNC((230-M11)*(0.9)),COUNT($C$6:E12)<=9,0) -> 81 | P12: =_xlfn.IFS(SUM(C12:E12)<1,"",COUNT($C$6:E12)>9,N12*3+H12,COUNT($C$6:E12)<=9,0) -> 621 | S12: =IF(COUNT($C$6:E12)>9,IF(P12=MAX($P$6:$P$35),P12," "),"") ->  | V12: =IF(COUNT(C12:E12)<1,0,IF(COUNT($C$6:E12)>9,C12+N12,0)) -> 197 | W12: =IF(COUNT(C12:E12)<1,0,IF(COUNT($C$6:E12)>9,D12+N12,0)) -> 220 | X12: =IF(COUNT(C12:E12)<1,0,IF(COUNT($C$6:E12)>9,E12+N12,0)) -> 204 | AA12: 0 | AB12: 7 | AC12: 7
A13: wk8 | B13: =Calendar!B13 -> 2018-10-24 | C13: 118 | D13: 126 | E13: 136 | F13: =IF(COUNT(C13:E13)<1," ",IF(AND(C13>M12,D13>M12,E13>M12,COUNT($C$6:E12)>=12),"*"," ")) ->  | G13: =IF(COUNT(C13:E13)<1," ",IF(AND(C13>M11,D13>M11,E13>M11,COUNT($C$6:E11)>=12),"*"," ")) ->  | H13: 380 | I13: 126 | J13: =_xlfn.IFS(SUM(C13:E13)<1,"",SUM(C13:E13)>=1,SUM($C$6:E13)) -> 2023 | K13: =_xlfn.IFS(COUNT(C13:E13)<1,"",COUNT($C$6:E13)>=1,COUNT($C$6:E13)) -> 15 | L13: =_xlfn.IFS(COUNT(C13:E13)<1,"",AND(COUNT($C$6:E13)<=9,$C$4>1),$C$4,COUNT(C13:E13)>=1,M13) -> 134 | M13: =IF(COUNT($C$6:E13)>=1,TRUNC(SUM($C$6:E13)/COUNT($C$6:E13)),0) -> 134 | N13: =IF(COUNT($C$6:E13)<=6,0,TRUNC((230-M12)*0.9)) -> 84 | O13: =_xlfn.IFS(SUM(C13:E13)<1,"",COUNT($C$6:E13)>9,TRUNC((230-M12)*(0.9)),COUNT($C$6:E13)<=9,0) -> 84 | P13: =_xlfn.IFS(SUM(C13:E13)<1,"",COUNT($C$6:E13)>9,N13*3+H13,COUNT($C$6:E13)<=9,0) -> 632 | S13: =IF(COUNT($C$6:E13)>9,IF(P13=MAX($P$6:$P$35),P13," "),"") ->  | V13: =IF(COUNT(C13:E13)<1,0,IF(COUNT($C$6:E13)>9,C13+N13,0)) -> 202 | W13: =IF(COUNT(C13:E13)<1,0,IF(COUNT($C$6:E13)>9,D13+N13,0)) -> 210 | X13: =IF(COUNT(C13:E13)<1,0,IF(COUNT($C$6:E13)>9,E13+N13,0)) -> 220 | AA13: 0 | AB13: 8 | AC13: 8
A14: wk9 | B14: =Calendar!B14 -> 2018-10-31 | C14: 152 | D14: 149 | E14: 196 | F14: =IF(COUNT(C14:E14)<1," ",IF(AND(C14>M13,D14>M13,E14>M13,COUNT($C$6:E13)>=12),"*"," ")) -> * | G14: =IF(COUNT(C14:E14)<1," ",IF(AND(C14>M12,D14>M12,E14>M12,COUNT($C$6:E12)>=12),"*"," ")) -> * | H14: 497 | I14: 165 | J14: =_xlfn.IFS(SUM(C14:E14)<1,"",SUM(C14:E14)>=1,SUM($C$6:E14)) -> 2520 | K14: =_xlfn.IFS(COUNT(C14:E14)<1,"",COUNT($C$6:E14)>=1,COUNT($C$6:E14)) -> 18 | L14: =_xlfn.IFS(COUNT(C14:E14)<1,"",AND(COUNT($C$6:E14)<=9,$C$4>1),$C$4,COUNT(C14:E14)>=1,M14) -> 140 | M14: =IF(COUNT($C$6:E14)>=1,TRUNC(SUM($C$6:E14)/COUNT($C$6:E14)),0) -> 140 | N14: =IF(COUNT($C$6:E14)<=6,0,TRUNC((230-M13)*0.9)) -> 86 | O14: =_xlfn.IFS(SUM(C14:E14)<1,"",COUNT($C$6:E14)>9,TRUNC((230-M13)*(0.9)),COUNT($C$6:E14)<=9,0) -> 86 | P14: =_xlfn.IFS(SUM(C14:E14)<1,"",COUNT($C$6:E14)>9,N14*3+H14,COUNT($C$6:E14)<=9,0) -> 755 | Q14: 497 | R14: 196 | S14: =IF(COUNT($C$6:E14)>9,IF(P14=MAX($P$6:$P$35),P14," "),"") -> 755 | T14: 282 | V14: =IF(COUNT(C14:E14)<1,0,IF(COUNT($C$6:E14)>9,C14+N14,0)) -> 238 | W14: =IF(COUNT(C14:E14)<1,0,IF(COUNT($C$6:E14)>9,D14+N14,0)) -> 235 | X14: =IF(COUNT(C14:E14)<1,0,IF(COUNT($C$6:E14)>9,E14+N14,0)) -> 282 | AA14: 0 | AB14: 9 | AC14: 9
A15: wk10 | B15: =Calendar!B15 -> 2018-11-07 | C15: 154 | D15: 121 | E15: 141 | F15: =IF(COUNT(C15:E15)<1," ",IF(AND(C15>M14,D15>M14,E15>M14,COUNT($C$6:E14)>=12),"*"," ")) ->  | G15: =IF(COUNT(C15:E15)<1," ",IF(AND(C15>M13,D15>M13,E15>M13,COUNT($C$6:E13)>=12),"*"," ")) ->  | H15: 416 | I15: 138 | J15: =_xlfn.IFS(SUM(C15:E15)<1,"",SUM(C15:E15)>=1,SUM($C$6:E15)) -> 2936 | K15: =_xlfn.IFS(COUNT(C15:E15)<1,"",COUNT($C$6:E15)>=1,COUNT($C$6:E15)) -> 21 | L15: =_xlfn.IFS(COUNT(C15:E15)<1,"",AND(COUNT($C$6:E15)<=9,$C$4>1),$C$4,COUNT(C15:E15)>=1,M15) -> 139 | M15: =IF(COUNT($C$6:E15)>=1,TRUNC(SUM($C$6:E15)/COUNT($C$6:E15)),0) -> 139 | N15: =IF(COUNT($C$6:E15)<=6,0,TRUNC((230-M14)*0.9)) -> 81 | O15: =_xlfn.IFS(SUM(C15:E15)<1,"",COUNT($C$6:E15)>9,TRUNC((230-M14)*(0.9)),COUNT($C$6:E15)<=9,0) -> 81 | P15: =_xlfn.IFS(SUM(C15:E15)<1,"",COUNT($C$6:E15)>9,N15*3+H15,COUNT($C$6:E15)<=9,0) -> 659 | S15: =IF(COUNT($C$6:E15)>9,IF(P15=MAX($P$6:$P$35),P15," "),"") ->  | V15: =IF(COUNT(C15:E15)<1,0,IF(COUNT($C$6:E15)>9,C15+N15,0)) -> 235 | W15: =IF(COUNT(C15:E15)<1,0,IF(COUNT($C$6:E15)>9,D15+N15,0)) -> 202 | X15: =IF(COUNT(C15:E15)<1,0,IF(COUNT($C$6:E15)>9,E15+N15,0)) -> 222 | AA15: 0 | AB15: 10 | AC15: 10
A16: wk11 | B16: =Calendar!B16 -> 2018-11-14 | C16: 152 | D16: 184 | E16: 148 | F16: =IF(COUNT(C16:E16)<1," ",IF(AND(C16>M15,D16>M15,E16>M15,COUNT($C$6:E15)>=12),"*"," ")) -> * | G16: =IF(COUNT(C16:E16)<1," ",IF(AND(C16>M14,D16>M14,E16>M14,COUNT($C$6:E14)>=12),"*"," ")) -> * | H16: 484 | I16: 161 | J16: =_xlfn.IFS(SUM(C16:E16)<1,"",SUM(C16:E16)>=1,SUM($C$6:E16)) -> 3420 | K16: =_xlfn.IFS(COUNT(C16:E16)<1,"",COUNT($C$6:E16)>=1,COUNT($C$6:E16)) -> 24 | L16: =_xlfn.IFS(COUNT(C16:E16)<1,"",AND(COUNT($C$6:E16)<=9,$C$4>1),$C$4,COUNT(C16:E16)>=1,M16) -> 142 | M16: =IF(COUNT($C$6:E16)>=1,TRUNC(SUM($C$6:E16)/COUNT($C$6:E16)),0) -> 142 | N16: =IF(COUNT($C$6:E16)<=6,0,TRUNC((230-M15)*0.9)) -> 81 | O16: =_xlfn.IFS(SUM(C16:E16)<1,"",COUNT($C$6:E16)>9,TRUNC((230-M15)*(0.9)),COUNT($C$6:E16)<=9,0) -> 81 | P16: =_xlfn.IFS(SUM(C16:E16)<1,"",COUNT($C$6:E16)>9,N16*3+H16,COUNT($C$6:E16)<=9,0) -> 727 | S16: =IF(COUNT($C$6:E16)>9,IF(P16=MAX($P$6:$P$35),P16," "),"") ->  | V16: =IF(COUNT(C16:E16)<1,0,IF(COUNT($C$6:E16)>9,C16+N16,0)) -> 233 | W16: =IF(COUNT(C16:E16)<1,0,IF(COUNT($C$6:E16)>9,D16+N16,0)) -> 265 | X16: =IF(COUNT(C16:E16)<1,0,IF(COUNT($C$6:E16)>9,E16+N16,0)) -> 229 | AA16: 0 | AB16: 11 | AC16: 11
A17: wk12 | B17: =Calendar!B17 -> 2018-11-28 | C17: 131 | D17: 136 | E17: 100 | F17: =IF(COUNT(C17:E17)<1," ",IF(AND(C17>M16,D17>M16,E17>M16,COUNT($C$6:E16)>=12),"*"," ")) ->  | G17: =IF(COUNT(C17:E17)<1," ",IF(AND(C17>M15,D17>M15,E17>M15,COUNT($C$6:E15)>=12),"*"," ")) ->  | H17: 367 | I17: 122 | J17: =_xlfn.IFS(SUM(C17:E17)<1,"",SUM(C17:E17)>=1,SUM($C$6:E17)) -> 3787 | K17: =_xlfn.IFS(COUNT(C17:E17)<1,"",COUNT($C$6:E17)>=1,COUNT($C$6:E17)) -> 27 | L17: =_xlfn.IFS(COUNT(C17:E17)<1,"",AND(COUNT($C$6:E17)<=9,$C$4>1),$C$4,COUNT(C17:E17)>=1,M17) -> 140 | M17: =IF(COUNT($C$6:E17)>=1,TRUNC(SUM($C$6:E17)/COUNT($C$6:E17)),0) -> 140 | N17: =IF(COUNT($C$6:E17)<=6,0,TRUNC((230-M16)*0.9)) -> 79 | O17: =_xlfn.IFS(SUM(C17:E17)<1,"",COUNT($C$6:E17)>9,TRUNC((230-M16)*(0.9)),COUNT($C$6:E17)<=9,0) -> 79 | P17: =_xlfn.IFS(SUM(C17:E17)<1,"",COUNT($C$6:E17)>9,N17*3+H17,COUNT($C$6:E17)<=9,0) -> 604 | S17: =IF(COUNT($C$6:E17)>9,IF(P17=MAX($P$6:$P$35),P17," "),"") ->  | V17: =IF(COUNT(C17:E17)<1,0,IF(COUNT($C$6:E17)>9,C17+N17,0)) -> 210 | W17: =IF(COUNT(C17:E17)<1,0,IF(COUNT($C$6:E17)>9,D17+N17,0)) -> 215 | X17: =IF(COUNT(C17:E17)<1,0,IF(COUNT($C$6:E17)>9,E17+N17,0)) -> 179 | AA17: 0 | AB17: 12 | AC17: 12
A18: wk13 | B18: =Calendar!B18 -> 2018-12-05 | C18: 139 | D18: 123 | E18: 157 | F18: =IF(COUNT(C18:E18)<1," ",IF(AND(C18>M17,D18>M17,E18>M17,COUNT($C$6:E17)>=12),"*"," ")) ->  | G18: =IF(COUNT(C18:E18)<1," ",IF(AND(C18>M16,D18>M16,E18>M16,COUNT($C$6:E16)>=12),"*"," ")) ->  | H18: 419 | I18: 139 | J18: =_xlfn.IFS(SUM(C18:E18)<1,"",SUM(C18:E18)>=1,SUM($C$6:E18)) -> 4206 | K18: =_xlfn.IFS(COUNT(C18:E18)<1,"",COUNT($C$6:E18)>=1,COUNT($C$6:E18)) -> 30 | L18: =_xlfn.IFS(COUNT(C18:E18)<1,"",AND(COUNT($C$6:E18)<=9,$C$4>1),$C$4,COUNT(C18:E18)>=1,M18) -> 140 | M18: =IF(COUNT($C$6:E18)>=1,TRUNC(SUM($C$6:E18)/COUNT($C$6:E18)),0) -> 140 | N18: =IF(COUNT($C$6:E18)<=6,0,TRUNC((230-M17)*0.9)) -> 81 | O18: =_xlfn.IFS(SUM(C18:E18)<1,"",COUNT($C$6:E18)>9,TRUNC((230-M17)*(0.9)),COUNT($C$6:E18)<=9,0) -> 81 | P18: =_xlfn.IFS(SUM(C18:E18)<1,"",COUNT($C$6:E18)>9,N18*3+H18,COUNT($C$6:E18)<=9,0) -> 662 | S18: =IF(COUNT($C$6:E18)>9,IF(P18=MAX($P$6:$P$35),P18," "),"") ->  | V18: =IF(COUNT(C18:E18)<1,0,IF(COUNT($C$6:E18)>9,C18+N18,0)) -> 220 | W18: =IF(COUNT(C18:E18)<1,0,IF(COUNT($C$6:E18)>9,D18+N18,0)) -> 204 | X18: =IF(COUNT(C18:E18)<1,0,IF(COUNT($C$6:E18)>9,E18+N18,0)) -> 238 | AA18: 0 | AB18: 13 | AC18: 13
A19: wk14 | B19: =Calendar!B19 -> 2018-12-12 | C19: 128 | D19: 174 | E19: 136 | F19: =IF(COUNT(C19:E19)<1," ",IF(AND(C19>M18,D19>M18,E19>M18,COUNT($C$6:E18)>=12),"*"," ")) ->  | G19: =IF(COUNT(C19:E19)<1," ",IF(AND(C19>M17,D19>M17,E19>M17,COUNT($C$6:E17)>=12),"*"," ")) ->  | H19: 438 | I19: 146 | J19: =_xlfn.IFS(SUM(C19:E19)<1,"",SUM(C19:E19)>=1,SUM($C$6:E19)) -> 4644 | K19: =_xlfn.IFS(COUNT(C19:E19)<1,"",COUNT($C$6:E19)>=1,COUNT($C$6:E19)) -> 33 | L19: =_xlfn.IFS(COUNT(C19:E19)<1,"",AND(COUNT($C$6:E19)<=9,$C$4>1),$C$4,COUNT(C19:E19)>=1,M19) -> 140 | M19: =IF(COUNT($C$6:E19)>=1,TRUNC(SUM($C$6:E19)/COUNT($C$6:E19)),0) -> 140 | N19: =IF(COUNT($C$6:E19)<=6,0,TRUNC((230-M18)*0.9)) -> 81 | O19: =_xlfn.IFS(SUM(C19:E19)<1,"",COUNT($C$6:E19)>9,TRUNC((230-M18)*(0.9)),COUNT($C$6:E19)<=9,0) -> 81 | P19: =_xlfn.IFS(SUM(C19:E19)<1,"",COUNT($C$6:E19)>9,N19*3+H19,COUNT($C$6:E19)<=9,0) -> 681 | S19: =IF(COUNT($C$6:E19)>9,IF(P19=MAX($P$6:$P$35),P19," "),"") ->  | V19: =IF(COUNT(C19:E19)<1,0,IF(COUNT($C$6:E19)>9,C19+N19,0)) -> 209 | W19: =IF(COUNT(C19:E19)<1,0,IF(COUNT($C$6:E19)>9,D19+N19,0)) -> 255 | X19: =IF(COUNT(C19:E19)<1,0,IF(COUNT($C$6:E19)>9,E19+N19,0)) -> 217 | AA19: 0 | AB19: 14 | AC19: 14
A20: wk15 | B20: =Calendar!B20 -> 2018-12-19 | C20: 127 | D20: 171 | E20: 126 | F20: =IF(COUNT(C20:E20)<1," ",IF(AND(C20>M19,D20>M19,E20>M19,COUNT($C$6:E19)>=12),"*"," ")) ->  | G20: =IF(COUNT(C20:E20)<1," ",IF(AND(C20>M18,D20>M18,E20>M18,COUNT($C$6:E18)>=12),"*"," ")) ->  | H20: 424 | I20: 141 | J20: =_xlfn.IFS(SUM(C20:E20)<1,"",SUM(C20:E20)>=1,SUM($C$6:E20)) -> 5068 | K20: =_xlfn.IFS(COUNT(C20:E20)<1,"",COUNT($C$6:E20)>=1,COUNT($C$6:E20)) -> 36 | L20: =_xlfn.IFS(COUNT(C20:E20)<1,"",AND(COUNT($C$6:E20)<=9,$C$4>1),$C$4,COUNT(C20:E20)>=1,M20) -> 140 | M20: =IF(COUNT($C$6:E20)>=1,TRUNC(SUM($C$6:E20)/COUNT($C$6:E20)),0) -> 140 | N20: =IF(COUNT($C$6:E20)<=6,0,TRUNC((230-M19)*0.9)) -> 81 | O20: =_xlfn.IFS(SUM(C20:E20)<1,"",COUNT($C$6:E20)>9,TRUNC((230-M19)*(0.9)),COUNT($C$6:E20)<=9,0) -> 81 | P20: =_xlfn.IFS(SUM(C20:E20)<1,"",COUNT($C$6:E20)>9,N20*3+H20,COUNT($C$6:E20)<=9,0) -> 667 | S20: =IF(COUNT($C$6:E20)>9,IF(P20=MAX($P$6:$P$35),P20," "),"") ->  | V20: =IF(COUNT(C20:E20)<1,0,IF(COUNT($C$6:E20)>9,C20+N20,0)) -> 208 | W20: =IF(COUNT(C20:E20)<1,0,IF(COUNT($C$6:E20)>9,D20+N20,0)) -> 252 | X20: =IF(COUNT(C20:E20)<1,0,IF(COUNT($C$6:E20)>9,E20+N20,0)) -> 207 | AA20: 0 | AB20: 15 | AC20: 15
A21: wk16 | B21: =Calendar!B21 -> 2019-01-02 | C21: 167 | D21: 137 | E21: 160 | F21: =IF(COUNT(C21:E21)<1," ",IF(AND(C21>M20,D21>M20,E21>M20,COUNT($C$6:E20)>=12),"*"," ")) ->  | G21: =IF(COUNT(C21:E21)<1," ",IF(AND(C21>M19,D21>M19,E21>M19,COUNT($C$6:E19)>=12),"*"," ")) ->  | H21: 464 | I21: 154 | J21: =_xlfn.IFS(SUM(C21:E21)<1,"",SUM(C21:E21)>=1,SUM($C$6:E21)) -> 5532 | K21: =_xlfn.IFS(COUNT(C21:E21)<1,"",COUNT($C$6:E21)>=1,COUNT($C$6:E21)) -> 39 | L21: =_xlfn.IFS(COUNT(C21:E21)<1,"",AND(COUNT($C$6:E21)<=9,$C$4>1),$C$4,COUNT(C21:E21)>=1,M21) -> 141 | M21: =IF(COUNT($C$6:E21)>=1,TRUNC(SUM($C$6:E21)/COUNT($C$6:E21)),0) -> 141 | N21: =IF(COUNT($C$6:E21)<=6,0,TRUNC((230-M20)*0.9)) -> 81 | O21: =_xlfn.IFS(SUM(C21:E21)<1,"",COUNT($C$6:E21)>9,TRUNC((230-M20)*(0.9)),COUNT($C$6:E21)<=9,0) -> 81 | P21: =_xlfn.IFS(SUM(C21:E21)<1,"",COUNT($C$6:E21)>9,N21*3+H21,COUNT($C$6:E21)<=9,0) -> 707 | S21: =IF(COUNT($C$6:E21)>9,IF(P21=MAX($P$6:$P$35),P21," "),"") ->  | V21: =IF(COUNT(C21:E21)<1,0,IF(COUNT($C$6:E21)>9,C21+N21,0)) -> 248 | W21: =IF(COUNT(C21:E21)<1,0,IF(COUNT($C$6:E21)>9,D21+N21,0)) -> 218 | X21: =IF(COUNT(C21:E21)<1,0,IF(COUNT($C$6:E21)>9,E21+N21,0)) -> 241 | AA21: 0 | AB21: 16 | AC21: 16
A22: wk17 | B22: =Calendar!B22 -> 2019-01-09 | C22: 132 | D22: 153 | E22: 107 | F22: =IF(COUNT(C22:E22)<1," ",IF(AND(C22>M21,D22>M21,E22>M21,COUNT($C$6:E21)>=12),"*"," ")) ->  | G22: =IF(COUNT(C22:E22)<1," ",IF(AND(C22>M20,D22>M20,E22>M20,COUNT($C$6:E20)>=12),"*"," ")) ->  | H22: 392 | I22: 130 | J22: =_xlfn.IFS(SUM(C22:E22)<1,"",SUM(C22:E22)>=1,SUM($C$6:E22)) -> 5924 | K22: =_xlfn.IFS(COUNT(C22:E22)<1,"",COUNT($C$6:E22)>=1,COUNT($C$6:E22)) -> 42 | L22: =_xlfn.IFS(COUNT(C22:E22)<1,"",AND(COUNT($C$6:E22)<=9,$C$4>1),$C$4,COUNT(C22:E22)>=1,M22) -> 141 | M22: =IF(COUNT($C$6:E22)>=1,TRUNC(SUM($C$6:E22)/COUNT($C$6:E22)),0) -> 141 | N22: =IF(COUNT($C$6:E22)<=6,0,TRUNC((230-M21)*0.9)) -> 80 | O22: =_xlfn.IFS(SUM(C22:E22)<1,"",COUNT($C$6:E22)>9,TRUNC((230-M21)*(0.9)),COUNT($C$6:E22)<=9,0) -> 80 | P22: =_xlfn.IFS(SUM(C22:E22)<1,"",COUNT($C$6:E22)>9,N22*3+H22,COUNT($C$6:E22)<=9,0) -> 632 | S22: =IF(COUNT($C$6:E22)>9,IF(P22=MAX($P$6:$P$35),P22," "),"") ->  | V22: =IF(COUNT(C22:E22)<1,0,IF(COUNT($C$6:E22)>9,C22+N22,0)) -> 212 | W22: =IF(COUNT(C22:E22)<1,0,IF(COUNT($C$6:E22)>9,D22+N22,0)) -> 233 | X22: =IF(COUNT(C22:E22)<1,0,IF(COUNT($C$6:E22)>9,E22+N22,0)) -> 187 | AA22: 0 | AB22: 17 | AC22: 17
A23: wk18 | B23: =Calendar!B23 -> 2019-01-16 | F23: =IF(COUNT(C23:E23)<1," ",IF(AND(C23>M22,D23>M22,E23>M22,COUNT($C$6:E22)>=12),"*"," ")) ->  | G23: =IF(COUNT(C23:E23)<1," ",IF(AND(C23>M21,D23>M21,E23>M21,COUNT($C$6:E21)>=12),"*"," ")) ->  | J23: =_xlfn.IFS(SUM(C23:E23)<1,"",SUM(C23:E23)>=1,SUM($C$6:E23)) ->  | K23: =_xlfn.IFS(COUNT(C23:E23)<1,"",COUNT($C$6:E23)>=1,COUNT($C$6:E23)) ->  | L23: =_xlfn.IFS(COUNT(C23:E23)<1,"",AND(COUNT($C$6:E23)<=9,$C$4>1),$C$4,COUNT(C23:E23)>=1,M23) ->  | M23: =IF(COUNT($C$6:E23)>=1,TRUNC(SUM($C$6:E23)/COUNT($C$6:E23)),0) -> 141 | N23: =IF(COUNT($C$6:E23)<=6,0,TRUNC((230-M22)*0.9)) -> 80 | O23: =_xlfn.IFS(SUM(C23:E23)<1,"",COUNT($C$6:E23)>9,TRUNC((230-M22)*(0.9)),COUNT($C$6:E23)<=9,0) ->  | P23: =_xlfn.IFS(SUM(C23:E23)<1,"",COUNT($C$6:E23)>9,N23*3+H23,COUNT($C$6:E23)<=9,0) ->  | S23: =IF(COUNT($C$6:E23)>9,IF(P23=MAX($P$6:$P$35),P23," "),"") ->  | V23: =IF(COUNT(C23:E23)<1,0,IF(COUNT($C$6:E23)>9,C23+N23,0)) -> 0 | W23: =IF(COUNT(C23:E23)<1,0,IF(COUNT($C$6:E23)>9,D23+N23,0)) -> 0 | X23: =IF(COUNT(C23:E23)<1,0,IF(COUNT($C$6:E23)>9,E23+N23,0)) -> 0 | AA23: 1 | AB23: 0 | AC23: 18
A24: wk19 | B24: =Calendar!B24 -> 2019-01-23 | C24: 166 | D24: 154 | E24: 155 | F24: =IF(COUNT(C24:E24)<1," ",IF(AND(C24>M23,D24>M23,E24>M23,COUNT($C$6:E23)>=12),"*"," ")) -> * | G24: =IF(COUNT(C24:E24)<1," ",IF(AND(C24>M22,D24>M22,E24>M22,COUNT($C$6:E22)>=12),"*"," ")) -> * | H24: 475 | I24: 158 | J24: =_xlfn.IFS(SUM(C24:E24)<1,"",SUM(C24:E24)>=1,SUM($C$6:E24)) -> 6399 | K24: =_xlfn.IFS(COUNT(C24:E24)<1,"",COUNT($C$6:E24)>=1,COUNT($C$6:E24)) -> 45 | L24: =_xlfn.IFS(COUNT(C24:E24)<1,"",AND(COUNT($C$6:E24)<=9,$C$4>1),$C$4,COUNT(C24:E24)>=1,M24) -> 142 | M24: =IF(COUNT($C$6:E24)>=1,TRUNC(SUM($C$6:E24)/COUNT($C$6:E24)),0) -> 142 | N24: =IF(COUNT($C$6:E24)<=6,0,TRUNC((230-M23)*0.9)) -> 80 | O24: =_xlfn.IFS(SUM(C24:E24)<1,"",COUNT($C$6:E24)>9,TRUNC((230-M23)*(0.9)),COUNT($C$6:E24)<=9,0) -> 80 | P24: =_xlfn.IFS(SUM(C24:E24)<1,"",COUNT($C$6:E24)>9,N24*3+H24,COUNT($C$6:E24)<=9,0) -> 715 | S24: =IF(COUNT($C$6:E24)>9,IF(P24=MAX($P$6:$P$35),P24," "),"") ->  | V24: =IF(COUNT(C24:E24)<1,0,IF(COUNT($C$6:E24)>9,C24+N24,0)) -> 246 | W24: =IF(COUNT(C24:E24)<1,0,IF(COUNT($C$6:E24)>9,D24+N24,0)) -> 234 | X24: =IF(COUNT(C24:E24)<1,0,IF(COUNT($C$6:E24)>9,E24+N24,0)) -> 235 | AA24: 0 | AB24: 19 | AC24: 19
A25: wk20 | B25: =Calendar!B25 -> 2019-01-30 | C25: 158 | D25: 176 | E25: 161 | F25: =IF(COUNT(C25:E25)<1," ",IF(AND(C25>M24,D25>M24,E25>M24,COUNT($C$6:E24)>=12),"*"," ")) -> * | G25: =IF(COUNT(C25:E25)<1," ",IF(AND(C25>M23,D25>M23,E25>M23,COUNT($C$6:E23)>=12),"*"," ")) -> * | H25: 495 | I25: 165 | J25: =_xlfn.IFS(SUM(C25:E25)<1,"",SUM(C25:E25)>=1,SUM($C$6:E25)) -> 6894 | K25: =_xlfn.IFS(COUNT(C25:E25)<1,"",COUNT($C$6:E25)>=1,COUNT($C$6:E25)) -> 48 | L25: =_xlfn.IFS(COUNT(C25:E25)<1,"",AND(COUNT($C$6:E25)<=9,$C$4>1),$C$4,COUNT(C25:E25)>=1,M25) -> 143 | M25: =IF(COUNT($C$6:E25)>=1,TRUNC(SUM($C$6:E25)/COUNT($C$6:E25)),0) -> 143 | N25: =IF(COUNT($C$6:E25)<=6,0,TRUNC((230-M24)*0.9)) -> 79 | O25: =_xlfn.IFS(SUM(C25:E25)<1,"",COUNT($C$6:E25)>9,TRUNC((230-M24)*(0.9)),COUNT($C$6:E25)<=9,0) -> 79 | P25: =_xlfn.IFS(SUM(C25:E25)<1,"",COUNT($C$6:E25)>9,N25*3+H25,COUNT($C$6:E25)<=9,0) -> 732 | S25: =IF(COUNT($C$6:E25)>9,IF(P25=MAX($P$6:$P$35),P25," "),"") ->  | V25: =IF(COUNT(C25:E25)<1,0,IF(COUNT($C$6:E25)>9,C25+N25,0)) -> 237 | W25: =IF(COUNT(C25:E25)<1,0,IF(COUNT($C$6:E25)>9,D25+N25,0)) -> 255 | X25: =IF(COUNT(C25:E25)<1,0,IF(COUNT($C$6:E25)>9,E25+N25,0)) -> 240 | AA25: 0 | AB25: 20 | AC25: 20
A26: wk21 | B26: =Calendar!B26 -> 2019-02-06 | C26: 135 | D26: 179 | E26: 165 | F26: =IF(COUNT(C26:E26)<1," ",IF(AND(C26>M25,D26>M25,E26>M25,COUNT($C$6:E25)>=12),"*"," ")) ->  | G26: =IF(COUNT(C26:E26)<1," ",IF(AND(C26>M24,D26>M24,E26>M24,COUNT($C$6:E24)>=12),"*"," ")) ->  | H26: 479 | I26: 159 | J26: =_xlfn.IFS(SUM(C26:E26)<1,"",SUM(C26:E26)>=1,SUM($C$6:E26)) -> 7373 | K26: =_xlfn.IFS(COUNT(C26:E26)<1,"",COUNT($C$6:E26)>=1,COUNT($C$6:E26)) -> 51 | L26: =_xlfn.IFS(COUNT(C26:E26)<1,"",AND(COUNT($C$6:E26)<=9,$C$4>1),$C$4,COUNT(C26:E26)>=1,M26) -> 144 | M26: =IF(COUNT($C$6:E26)>=1,TRUNC(SUM($C$6:E26)/COUNT($C$6:E26)),0) -> 144 | N26: =IF(COUNT($C$6:E26)<=6,0,TRUNC((230-M25)*0.9)) -> 78 | O26: =_xlfn.IFS(SUM(C26:E26)<1,"",COUNT($C$6:E26)>9,TRUNC((230-M25)*(0.9)),COUNT($C$6:E26)<=9,0) -> 78 | P26: =_xlfn.IFS(SUM(C26:E26)<1,"",COUNT($C$6:E26)>9,N26*3+H26,COUNT($C$6:E26)<=9,0) -> 713 | S26: =IF(COUNT($C$6:E26)>9,IF(P26=MAX($P$6:$P$35),P26," "),"") ->  | V26: =IF(COUNT(C26:E26)<1,0,IF(COUNT($C$6:E26)>9,C26+N26,0)) -> 213 | W26: =IF(COUNT(C26:E26)<1,0,IF(COUNT($C$6:E26)>9,D26+N26,0)) -> 257 | X26: =IF(COUNT(C26:E26)<1,0,IF(COUNT($C$6:E26)>9,E26+N26,0)) -> 243 | AA26: 0 | AB26: 21 | AC26: 21
A27: wk22 | B27: =Calendar!B27 -> 2019-02-13 | F27: =IF(COUNT(C27:E27)<1," ",IF(AND(C27>M26,D27>M26,E27>M26,COUNT($C$6:E26)>=12),"*"," ")) ->  | G27: =IF(COUNT(C27:E27)<1," ",IF(AND(C27>M25,D27>M25,E27>M25,COUNT($C$6:E25)>=12),"*"," ")) ->  | J27: =_xlfn.IFS(SUM(C27:E27)<1,"",SUM(C27:E27)>=1,SUM($C$6:E27)) ->  | K27: =_xlfn.IFS(COUNT(C27:E27)<1,"",COUNT($C$6:E27)>=1,COUNT($C$6:E27)) ->  | L27: =_xlfn.IFS(COUNT(C27:E27)<1,"",AND(COUNT($C$6:E27)<=9,$C$4>1),$C$4,COUNT(C27:E27)>=1,M27) ->  | M27: =IF(COUNT($C$6:E27)>=1,TRUNC(SUM($C$6:E27)/COUNT($C$6:E27)),0) -> 144 | N27: =IF(COUNT($C$6:E27)<=6,0,TRUNC((230-M26)*0.9)) -> 77 | O27: =_xlfn.IFS(SUM(C27:E27)<1,"",COUNT($C$6:E27)>9,TRUNC((230-M26)*(0.9)),COUNT($C$6:E27)<=9,0) ->  | P27: =_xlfn.IFS(SUM(C27:E27)<1,"",COUNT($C$6:E27)>9,N27*3+H27,COUNT($C$6:E27)<=9,0) ->  | S27: =IF(COUNT($C$6:E27)>9,IF(P27=MAX($P$6:$P$35),P27," "),"") ->  | V27: =IF(COUNT(C27:E27)<1,0,IF(COUNT($C$6:E27)>9,C27+N27,0)) -> 0 | W27: =IF(COUNT(C27:E27)<1,0,IF(COUNT($C$6:E27)>9,D27+N27,0)) -> 0 | X27: =IF(COUNT(C27:E27)<1,0,IF(COUNT($C$6:E27)>9,E27+N27,0)) -> 0 | AA27: 1 | AB27: 0 | AC27: 22
A28: wk23 | B28: =Calendar!B28 -> 2019-02-20 | C28: 144 | D28: 126 | E28: 147 | F28: =IF(COUNT(C28:E28)<1," ",IF(AND(C28>M27,D28>M27,E28>M27,COUNT($C$6:E27)>=12),"*"," ")) ->  | G28: =IF(COUNT(C28:E28)<1," ",IF(AND(C28>M26,D28>M26,E28>M26,COUNT($C$6:E26)>=12),"*"," ")) ->  | H28: 417 | I28: 139 | J28: =_xlfn.IFS(SUM(C28:E28)<1,"",SUM(C28:E28)>=1,SUM($C$6:E28)) -> 7790 | K28: =_xlfn.IFS(COUNT(C28:E28)<1,"",COUNT($C$6:E28)>=1,COUNT($C$6:E28)) -> 54 | L28: =_xlfn.IFS(COUNT(C28:E28)<1,"",AND(COUNT($C$6:E28)<=9,$C$4>1),$C$4,COUNT(C28:E28)>=1,M28) -> 144 | M28: =IF(COUNT($C$6:E28)>=1,TRUNC(SUM($C$6:E28)/COUNT($C$6:E28)),0) -> 144 | N28: =IF(COUNT($C$6:E28)<=6,0,TRUNC((230-M27)*0.9)) -> 77 | O28: =_xlfn.IFS(SUM(C28:E28)<1,"",COUNT($C$6:E28)>9,TRUNC((230-M27)*(0.9)),COUNT($C$6:E28)<=9,0) -> 77 | P28: =_xlfn.IFS(SUM(C28:E28)<1,"",COUNT($C$6:E28)>9,N28*3+H28,COUNT($C$6:E28)<=9,0) -> 648 | S28: =IF(COUNT($C$6:E28)>9,IF(P28=MAX($P$6:$P$35),P28," "),"") ->  | V28: =IF(COUNT(C28:E28)<1,0,IF(COUNT($C$6:E28)>9,C28+N28,0)) -> 221 | W28: =IF(COUNT(C28:E28)<1,0,IF(COUNT($C$6:E28)>9,D28+N28,0)) -> 203 | X28: =IF(COUNT(C28:E28)<1,0,IF(COUNT($C$6:E28)>9,E28+N28,0)) -> 224 | AA28: 0 | AB28: 23 | AC28: 23
A29: wk24 | B29: =Calendar!B29 -> 2019-02-27 | F29: =IF(COUNT(C29:E29)<1," ",IF(AND(C29>M28,D29>M28,E29>M28,COUNT($C$6:E28)>=12),"*"," ")) ->  | G29: =IF(COUNT(C29:E29)<1," ",IF(AND(C29>M27,D29>M27,E29>M27,COUNT($C$6:E27)>=12),"*"," ")) ->  | J29: =_xlfn.IFS(SUM(C29:E29)<1,"",SUM(C29:E29)>=1,SUM($C$6:E29)) ->  | K29: =_xlfn.IFS(COUNT(C29:E29)<1,"",COUNT($C$6:E29)>=1,COUNT($C$6:E29)) ->  | L29: =_xlfn.IFS(COUNT(C29:E29)<1,"",AND(COUNT($C$6:E29)<=9,$C$4>1),$C$4,COUNT(C29:E29)>=1,M29) ->  | M29: =IF(COUNT($C$6:E29)>=1,TRUNC(SUM($C$6:E29)/COUNT($C$6:E29)),0) -> 144 | N29: =IF(COUNT($C$6:E29)<=6,0,TRUNC((230-M28)*0.9)) -> 77 | O29: =_xlfn.IFS(SUM(C29:E29)<1,"",COUNT($C$6:E29)>9,TRUNC((230-M28)*(0.9)),COUNT($C$6:E29)<=9,0) ->  | P29: =_xlfn.IFS(SUM(C29:E29)<1,"",COUNT($C$6:E29)>9,N29*3+H29,COUNT($C$6:E29)<=9,0) ->  | S29: =IF(COUNT($C$6:E29)>9,IF(P29=MAX($P$6:$P$35),P29," "),"") ->  | V29: =IF(COUNT(C29:E29)<1,0,IF(COUNT($C$6:E29)>9,C29+N29,0)) -> 0 | W29: =IF(COUNT(C29:E29)<1,0,IF(COUNT($C$6:E29)>9,D29+N29,0)) -> 0 | X29: =IF(COUNT(C29:E29)<1,0,IF(COUNT($C$6:E29)>9,E29+N29,0)) -> 0 | AA29: 1 | AB29: 0 | AC29: 24
A30: wk25 | B30: =Calendar!B30 -> 2019-03-06 | C30: 94 | D30: 132 | E30: 165 | F30: =IF(COUNT(C30:E30)<1," ",IF(AND(C30>M29,D30>M29,E30>M29,COUNT($C$6:E29)>=12),"*"," ")) ->  | G30: =IF(COUNT(C30:E30)<1," ",IF(AND(C30>M28,D30>M28,E30>M28,COUNT($C$6:E28)>=12),"*"," ")) ->  | H30: 391 | I30: 130 | J30: =_xlfn.IFS(SUM(C30:E30)<1,"",SUM(C30:E30)>=1,SUM($C$6:E30)) -> 8181 | K30: =_xlfn.IFS(COUNT(C30:E30)<1,"",COUNT($C$6:E30)>=1,COUNT($C$6:E30)) -> 57 | L30: =_xlfn.IFS(COUNT(C30:E30)<1,"",AND(COUNT($C$6:E30)<=9,$C$4>1),$C$4,COUNT(C30:E30)>=1,M30) -> 143 | M30: =IF(COUNT($C$6:E30)>=1,TRUNC(SUM($C$6:E30)/COUNT($C$6:E30)),0) -> 143 | N30: =IF(COUNT($C$6:E30)<=6,0,TRUNC((230-M29)*0.9)) -> 77 | O30: =_xlfn.IFS(SUM(C30:E30)<1,"",COUNT($C$6:E30)>9,TRUNC((230-M29)*(0.9)),COUNT($C$6:E30)<=9,0) -> 77 | P30: =_xlfn.IFS(SUM(C30:E30)<1,"",COUNT($C$6:E30)>9,N30*3+H30,COUNT($C$6:E30)<=9,0) -> 622 | S30: =IF(COUNT($C$6:E30)>9,IF(P30=MAX($P$6:$P$35),P30," "),"") ->  | V30: =IF(COUNT(C30:E30)<1,0,IF(COUNT($C$6:E30)>9,C30+N30,0)) -> 171 | W30: =IF(COUNT(C30:E30)<1,0,IF(COUNT($C$6:E30)>9,D30+N30,0)) -> 209 | X30: =IF(COUNT(C30:E30)<1,0,IF(COUNT($C$6:E30)>9,E30+N30,0)) -> 242 | AA30: 0 | AB30: 25 | AC30: 25
A31: wk26 | B31: =Calendar!B31 -> 2019-03-13 | C31: 113 | D31: 157 | E31: 126 | F31: =IF(COUNT(C31:E31)<1," ",IF(AND(C31>M30,D31>M30,E31>M30,COUNT($C$6:E30)>=12),"*"," ")) ->  | G31: =IF(COUNT(C31:E31)<1," ",IF(AND(C31>M29,D31>M29,E31>M29,COUNT($C$6:E29)>=12),"*"," ")) ->  | H31: 396 | I31: 132 | J31: =_xlfn.IFS(SUM(C31:E31)<1,"",SUM(C31:E31)>=1,SUM($C$6:E31)) -> 8577 | K31: =_xlfn.IFS(COUNT(C31:E31)<1,"",COUNT($C$6:E31)>=1,COUNT($C$6:E31)) -> 60 | L31: =_xlfn.IFS(COUNT(C31:E31)<1,"",AND(COUNT($C$6:E31)<=9,$C$4>1),$C$4,COUNT(C31:E31)>=1,M31) -> 142 | M31: =IF(COUNT($C$6:E31)>=1,TRUNC(SUM($C$6:E31)/COUNT($C$6:E31)),0) -> 142 | N31: =IF(COUNT($C$6:E31)<=6,0,TRUNC((230-M30)*0.9)) -> 78 | O31: =_xlfn.IFS(SUM(C31:E31)<1,"",COUNT($C$6:E31)>9,TRUNC((230-M30)*(0.9)),COUNT($C$6:E31)<=9,0) -> 78 | P31: =_xlfn.IFS(SUM(C31:E31)<1,"",COUNT($C$6:E31)>9,N31*3+H31,COUNT($C$6:E31)<=9,0) -> 630 | S31: =IF(COUNT($C$6:E31)>9,IF(P31=MAX($P$6:$P$35),P31," "),"") ->  | V31: =IF(COUNT(C31:E31)<1,0,IF(COUNT($C$6:E31)>9,C31+N31,0)) -> 191 | W31: =IF(COUNT(C31:E31)<1,0,IF(COUNT($C$6:E31)>9,D31+N31,0)) -> 235 | X31: =IF(COUNT(C31:E31)<1,0,IF(COUNT($C$6:E31)>9,E31+N31,0)) -> 204 | AA31: 0 | AB31: 26 | AC31: 26
A32: wk27 | B32: =Calendar!B32 -> 2019-03-20 | C32: 168 | D32: 130 | E32: 136 | F32: =IF(COUNT(C32:E32)<1," ",IF(AND(C32>M31,D32>M31,E32>M31,COUNT($C$6:E31)>=12),"*"," ")) ->  | G32: =IF(COUNT(C32:E32)<1," ",IF(AND(C32>M30,D32>M30,E32>M30,COUNT($C$6:E30)>=12),"*"," ")) ->  | H32: 434 | I32: 144 | J32: =_xlfn.IFS(SUM(C32:E32)<1,"",SUM(C32:E32)>=1,SUM($C$6:E32)) -> 9011 | K32: =_xlfn.IFS(COUNT(C32:E32)<1,"",COUNT($C$6:E32)>=1,COUNT($C$6:E32)) -> 63 | L32: =_xlfn.IFS(COUNT(C32:E32)<1,"",AND(COUNT($C$6:E32)<=9,$C$4>1),$C$4,COUNT(C32:E32)>=1,M32) -> 143 | M32: =IF(COUNT($C$6:E32)>=1,TRUNC(SUM($C$6:E32)/COUNT($C$6:E32)),0) -> 143 | N32: =IF(COUNT($C$6:E32)<=6,0,TRUNC((230-M31)*0.9)) -> 79 | O32: =_xlfn.IFS(SUM(C32:E32)<1,"",COUNT($C$6:E32)>9,TRUNC((230-M31)*(0.9)),COUNT($C$6:E32)<=9,0) -> 79 | P32: =_xlfn.IFS(SUM(C32:E32)<1,"",COUNT($C$6:E32)>9,N32*3+H32,COUNT($C$6:E32)<=9,0) -> 671 | S32: =IF(COUNT($C$6:E32)>9,IF(P32=MAX($P$6:$P$35),P32," "),"") ->  | V32: =IF(COUNT(C32:E32)<1,0,IF(COUNT($C$6:E32)>9,C32+N32,0)) -> 247 | W32: =IF(COUNT(C32:E32)<1,0,IF(COUNT($C$6:E32)>9,D32+N32,0)) -> 209 | X32: =IF(COUNT(C32:E32)<1,0,IF(COUNT($C$6:E32)>9,E32+N32,0)) -> 215 | AA32: 0 | AB32: 27 | AC32: 27
A33: wk28 | B33: =Calendar!B33 -> 2019-03-27 | C33: 127 | D33: 178 | E33: 147 | F33: =IF(COUNT(C33:E33)<1," ",IF(AND(C33>M32,D33>M32,E33>M32,COUNT($C$6:E32)>=12),"*"," ")) ->  | G33: =IF(COUNT(C33:E33)<1," ",IF(AND(C33>M31,D33>M31,E33>M31,COUNT($C$6:E31)>=12),"*"," ")) ->  | H33: 452 | I33: 150 | J33: =_xlfn.IFS(SUM(C33:E33)<1,"",SUM(C33:E33)>=1,SUM($C$6:E33)) -> 9463 | K33: =_xlfn.IFS(COUNT(C33:E33)<1,"",COUNT($C$6:E33)>=1,COUNT($C$6:E33)) -> 66 | L33: =_xlfn.IFS(COUNT(C33:E33)<1,"",AND(COUNT($C$6:E33)<=9,$C$4>1),$C$4,COUNT(C33:E33)>=1,M33) -> 143 | M33: =IF(COUNT($C$6:E33)>=1,TRUNC(SUM($C$6:E33)/COUNT($C$6:E33)),0) -> 143 | N33: =IF(COUNT($C$6:E33)<=6,0,TRUNC((230-M32)*0.9)) -> 78 | O33: =_xlfn.IFS(SUM(C33:E33)<1,"",COUNT($C$6:E33)>9,TRUNC((230-M32)*(0.9)),COUNT($C$6:E33)<=9,0) -> 78 | P33: =_xlfn.IFS(SUM(C33:E33)<1,"",COUNT($C$6:E33)>9,N33*3+H33,COUNT($C$6:E33)<=9,0) -> 686 | S33: =IF(COUNT($C$6:E33)>9,IF(P33=MAX($P$6:$P$35),P33," "),"") ->  | V33: =IF(COUNT(C33:E33)<1,0,IF(COUNT($C$6:E33)>9,C33+N33,0)) -> 205 | W33: =IF(COUNT(C33:E33)<1,0,IF(COUNT($C$6:E33)>9,D33+N33,0)) -> 256 | X33: =IF(COUNT(C33:E33)<1,0,IF(COUNT($C$6:E33)>9,E33+N33,0)) -> 225 | AA33: 0 | AB33: 28 | AC33: 28
A34: wk29 | B34: =Calendar!B34 -> 2019-04-03 | C34: 111 | D34: 151 | E34: 152 | F34: =IF(COUNT(C34:E34)<1," ",IF(AND(C34>M33,D34>M33,E34>M33,COUNT($C$6:E33)>=12),"*"," ")) ->  | G34: =IF(COUNT(C34:E34)<1," ",IF(AND(C34>M32,D34>M32,E34>M32,COUNT($C$6:E32)>=12),"*"," ")) ->  | H34: 414 | I34: 138 | J34: =_xlfn.IFS(SUM(C34:E34)<1,"",SUM(C34:E34)>=1,SUM($C$6:E34)) -> 9877 | K34: =_xlfn.IFS(COUNT(C34:E34)<1,"",COUNT($C$6:E34)>=1,COUNT($C$6:E34)) -> 69 | L34: =_xlfn.IFS(COUNT(C34:E34)<1,"",AND(COUNT($C$6:E34)<=9,$C$4>1),$C$4,COUNT(C34:E34)>=1,M34) -> 143 | M34: =IF(COUNT($C$6:E34)>=1,TRUNC(SUM($C$6:E34)/COUNT($C$6:E34)),0) -> 143 | N34: =IF(COUNT($C$6:E34)<=6,0,TRUNC((230-M33)*0.9)) -> 78 | O34: =_xlfn.IFS(SUM(C34:E34)<1,"",COUNT($C$6:E34)>9,TRUNC((230-M33)*(0.9)),COUNT($C$6:E34)<=9,0) -> 78 | P34: =_xlfn.IFS(SUM(C34:E34)<1,"",COUNT($C$6:E34)>9,N34*3+H34,COUNT($C$6:E34)<=9,0) -> 648 | S34: =IF(COUNT($C$6:E34)>9,IF(P34=MAX($P$6:$P$35),P34," "),"") ->  | V34: =IF(COUNT(C34:E34)<1,0,IF(COUNT($C$6:E34)>9,C34+N34,0)) -> 189 | W34: =IF(COUNT(C34:E34)<1,0,IF(COUNT($C$6:E34)>9,D34+N34,0)) -> 229 | X34: =IF(COUNT(C34:E34)<1,0,IF(COUNT($C$6:E34)>9,E34+N34,0)) -> 230 | AA34: 0 | AB34: 29 | AC34: 29
A35: wk30 | B35: =Calendar!B35 -> 2019-04-10 | C35: 142 | D35: 166 | E35: 181 | F35: =IF(COUNT(C35:E35)<1," ",IF(AND(C35>M34,D35>M34,E35>M34,COUNT($C$6:E34)>=12),"*"," ")) ->  | G35: =IF(COUNT(C35:E35)<1," ",IF(AND(C35>M33,D35>M33,E35>M33,COUNT($C$6:E33)>=12),"*"," ")) ->  | H35: 489 | I35: 163 | J35: =_xlfn.IFS(SUM(C35:E35)<1,"",SUM(C35:E35)>=1,SUM($C$6:E35)) -> 10366 | K35: =_xlfn.IFS(COUNT(C35:E35)<1,"",COUNT($C$6:E35)>=1,COUNT($C$6:E35)) -> 72 | L35: =_xlfn.IFS(COUNT(C35:E35)<1,"",AND(COUNT($C$6:E35)<=9,$C$4>1),$C$4,COUNT(C35:E35)>=1,M35) -> 143 | M35: =IF(COUNT($C$6:E35)>=1,TRUNC(SUM($C$6:E35)/COUNT($C$6:E35)),0) -> 143 | N35: =IF(COUNT($C$6:E35)<=6,0,TRUNC((230-M34)*0.9)) -> 78 | O35: =_xlfn.IFS(SUM(C35:E35)<1,"",COUNT($C$6:E35)>9,TRUNC((230-M34)*(0.9)),COUNT($C$6:E35)<=9,0) -> 78 | P35: =_xlfn.IFS(SUM(C35:E35)<1,"",COUNT($C$6:E35)>9,N35*3+H35,COUNT($C$6:E35)<=9,0) -> 723 | S35: =IF(COUNT($C$6:E35)>9,IF(P35=MAX($P$6:$P$35),P35," "),"") ->  | V35: =IF(COUNT(C35:E35)<1,0,IF(COUNT($C$6:E35)>9,C35+N35,0)) -> 220 | W35: =IF(COUNT(C35:E35)<1,0,IF(COUNT($C$6:E35)>9,D35+N35,0)) -> 244 | X35: =IF(COUNT(C35:E35)<1,0,IF(COUNT($C$6:E35)>9,E35+N35,0)) -> 259 | AA35: 0 | AB35: 30 | AC35: 30
C36: =(IF(COUNT(C6:C35)=0," ",(SUM(C6:C35))/COUNT(C6:C35))) -> 136.75 | D36: =(IF(COUNT(D6:D35)=0," ",(SUM(D6:D35))/COUNT(D6:D35))) -> 151.13 | E36: =(IF(COUNT(E6:E35)=0," ",(SUM(E6:E35))/COUNT(E6:E35))) -> 144.04

Sheet KMosser
H1: =Calendar!H1 -> Wednesday Fun Fours 2018/19 season | R1: 6-over wk:
A2: wk# | B2: =MAX(AB6:AB35) -> 30 | R2: 0
A3: Name: | B3: Kenneth Mosser | I3: Perfect Attendance: | K3: =IF(SUM(AA6:AA35)<0.5,"Yes","No") -> No | L3: =_xlfn.IFS(AND(B2=30,K3="Yes"),"good",AND(B2<>30,K3="Yes"),"So Far",AND(B2<>30,K3="No")," ") -> 
A4: book average: | C4: 187 | H4: wky | I4: wky | J4: cumulative | L4: cumulative | P4: hdcp | Q4: high | R4: high | S4: high hcp | T4: high hcp
C5: g1 | D5: g2 | E5: g3 | H5: series | I5: average | J5: score | K5: games | L5: average | O5: hdcp | P5: series | Q5: series | R5: game | S5: series | T5: game | V5: =MAX(C6:E35) -> 269 | W5: =MAX(V6:X35) -> 312
A6: wk1 | B6: =Calendar!B6 -> 2018-09-05 | C6: 212 | D6: 185 | E6: 159 | H6: =IF(COUNT(C6:E6)<1," ",SUM(C6:E6)) -> 556 | I6: =IF(COUNT(C6:E6)<1," ",TRUNC(H6/COUNT(C6:E6))) -> 185 | J6: =_xlfn.IFS(SUM(C6:E6)<1,"",SUM(C6:E6)>=1,SUM($C$6:E6)) -> 556 | K6: =_xlfn.IFS(COUNT(C6:E6)<1,"",COUNT($C$6:E6)>=1,COUNT($C$6:E6)) -> 3 | L6: =_xlfn.IFS(COUNT(C6:E6)<1,"",AND(COUNT($C$6:E6)<=9,$C$4>1),$C$4,COUNT(C6:E6)>=1,M6) -> 187 | M6: =IF(COUNT($C$6:E6)>=1,TRUNC(SUM($C$6:E6)/COUNT($C$6:E6)),0) -> 185 | N6: =IF(COUNT($C$6:E6)<=6,0,TRUNC((230-M5)*0.9)) -> 0 | O6: =_xlfn.IFS(SUM(C6:E6)<1,"",COUNT($C$6:E6)>9,TRUNC((230-M5)*(0.9)),COUNT($C$6:E6)<=9,0) -> 0 | P6: =_xlfn.IFS(SUM(C6:E6)<1,"",COUNT($C$6:E6)>9,N6*3+H6,COUNT($C$6:E6)<=9,0) -> 0 | Q6: =IF(H6=(MAX($H$6:$H$35)),H6," ") ->  | R6: =IF((OR(C6=$V$5,D6=$V$5,E6=$V$5)),$V$5," ") ->  | S6: =IF(COUNT($C$6:E6)>9,IF(P6=MAX($P$6:$P$35),P6," "),"") ->  | T6: =IF(OR(V6=$W$5,W6=$W$5,X6=$W$5),$W$5," ") ->  | V6: =IF(COUNT(C6:E6)<1,0,IF(COUNT($C$6:E6)>9,C6+N6,0)) -> 0 | W6: =IF(COUNT(C6:E6)<1,0,IF(COUNT($C$6:E6)>9,D6+N6,0)) -> 0 | X6: =IF(COUNT(C6:E6)<1,0,IF(COUNT($C$6:E6)>9,E6+N6,0)) -> 0 | AA6: =IF((MAX($AB$6:$AB$35))<AC6,0,IF(AB6=AC6,0,1)) -> 0 | AB6: =IF(COUNT(C6:E6)>0,AC6,0) -> 1 | AC6: 1
A7: wk2 | B7: =Calendar!B7 -> 2018-09-12 | C7: 193 | D7: 176 | E7: 150 | H7: 519 | I7: =IF(COUNT(C7:E7)<1," ",TRUNC(H7/COUNT(C7:E7))) -> 173 | J7: =_xlfn.IFS(SUM(C7:E7)<1,"",SUM(C7:E7)>=1,SUM($C$6:E7)) -> 1075 | K7: =_xlfn.IFS(COUNT(C7:E7)<1,"",COUNT($C$6:E7)>=1,COUNT($C$6:E7)) -> 6 | L7: =_xlfn.IFS(COUNT(C7:E7)<1,"",AND(COUNT($C$6:E7)<=9,$C$4>1),$C$4,COUNT(C7:E7)>=1,M7) -> 187 | M7: =IF(COUNT($C$6:E7)>=1,TRUNC(SUM($C$6:E7)/COUNT($C$6:E7)),0) -> 179 | N7: =IF(COUNT($C$6:E7)<=6,0,TRUNC((230-M6)*0.9)) -> 0 | O7: =_xlfn.IFS(SUM(C7:E7)<1,"",COUNT($C$6:E7)>9,TRUNC((230-M6)*(0.9)),COUNT($C$6:E7)<=9,0) -> 0 | P7: =_xlfn.IFS(SUM(C7:E7)<1,"",COUNT($C$6:E7)>9,N7*3+H7,COUNT($C$6:E7)<=9,0) -> 0 | S7: =IF(COUNT($C$6:E7)>9,IF(P7=MAX($P$6:$P$35),P7," "),"") ->  | V7: =IF(COUNT(C7:E7)<1,0,IF(COUNT($C$6:E7)>9,C7+N7,0)) -> 0 | W7: =IF(COUNT(C7:E7)<1,0,IF(COUNT($C$6:E7)>9,D7+N7,0)) -> 0 | X7: =IF(COUNT(C7:E7)<1,0,IF(COUNT($C$6:E7)>9,E7+N7,0)) -> 0 | AA7: 0 | AB7: =IF(COUNT(C7:E7)>0,AC7,0) -> 2 | AC7: 2
A8: wk3 | B8: =Calendar!B8 -> 2018-09-19 | C8: 137 | D8: 190 | E8: 147 | H8: 474 | I8: 158 | J8: =_xlfn.IFS(SUM(C8:E8)<1,"",SUM(C8:E8)>=1,SUM($C$6:E8)) -> 1549 | K8: =_xlfn.IFS(COUNT(C8:E8)<1,"",COUNT($C$6:E8)>=1,COUNT($C$6:E8)) -> 9 | L8: =_xlfn.IFS(COUNT(C8:E8)<1,"",AND(COUNT($C$6:E8)<=9,$C$4>1),$C$4,COUNT(C8:E8)>=1,M8) -> 187 | M8: =IF(COUNT($C$6:E8)>=1,TRUNC(SUM($C$6:E8)/COUNT($C$6:E8)),0) -> 172 | N8: =IF(COUNT($C$6:E8)<=6,0,TRUNC((230-M7)*0.9)) -> 45 | O8: =_xlfn.IFS(SUM(C8:E8)<1,"",COUNT($C$6:E8)>9,TRUNC((230-M7)*(0.9)),COUNT($C$6:E8)<=9,0) -> 0 | P8: =_xlfn.IFS(SUM(C8:E8)<1,"",COUNT($C$6:E8)>9,N8*3+H8,COUNT($C$6:E8)<=9,0) -> 0 | S8: =IF(COUNT($C$6:E8)>9,IF(P8=MAX($P$6:$P$35),P8," "),"") ->  | V8: =IF(COUNT(C8:E8)<1,0,IF(COUNT($C$6:E8)>9,C8+N8,0)) -> 0 | W8: =IF(COUNT(C8:E8)<1,0,IF(COUNT($C$6:E8)>9,D8+N8,0)) -> 0 | X8: =IF(COUNT(C8:E8)<1,0,IF(COUNT($C$6:E8)>9,E8+N8,0)) -> 0 | AA8: 0 | AB8: 3 | AC8: 3
A9: wk4 | B9: =Calendar!B9 -> 2018-09-26 | C9: 176 | D9: 210 | E9: 162 | H9: 548 | I9: 182 | J9: =_xlfn.IFS(SUM(C9:E9)<1,"",SUM(C9:E9)>=1,SUM($C$6:E9)) -> 2097 | K9: =_xlfn.IFS(COUNT(C9:E9)<1,"",COUNT($C$6:E9)>=1,COUNT($C$6:E9)) -> 12 | L9: =_xlfn.IFS(COUNT(C9:E9)<1,"",AND(COUNT($C$6:E9)<=9,$C$4>1),$C$4,COUNT(C9:E9)>=1,M9) -> 174 | M9: =IF(COUNT($C$6:E9)>=1,TRUNC(SUM($C$6:E9)/COUNT($C$6:E9)),0) -> 174 | N9: =IF(COUNT($C$6:E9)<=6,0,TRUNC((230-M8)*0.9)) -> 52 | O9: =_xlfn.IFS(SUM(C9:E9)<1,"",COUNT($C$6:E9)>9,TRUNC((230-M8)*(0.9)),COUNT($C$6:E9)<=9,0) -> 52 | P9: =_xlfn.IFS(SUM(C9:E9)<1,"",COUNT($C$6:E9)>9,N9*3+H9,COUNT($C$6:E9)<=9,0) -> 704 | S9: =IF(COUNT($C$6:E9)>9,IF(P9=MAX($P$6:$P$35),P9," "),"") ->  | V9: =IF(COUNT(C9:E9)<1,0,IF(COUNT($C$6:E9)>9,C9+N9,0)) -> 228 | W9: =IF(COUNT(C9:E9)<1,0,IF(COUNT($C$6:E9)>9,D9+N9,0)) -> 262 | X9: =IF(COUNT(C9:E9)<1,0,IF(COUNT($C$6:E9)>9,E9+N9,0)) -> 214 | AA9: 0 | AB9: 4 | AC9: 4
A10: wk5 | B10: =Calendar!B10 -> 2018-10-03 | C10: 206 | D10: 161 | E10: 157 | F10: =IF(COUNT(C10:E10)<1," ",IF(AND(C10>M9,D10>M9,E10>M9,COUNT($C$6:E9)>=12),"*"," ")) ->  | H10: 524 | I10: 174 | J10: =_xlfn.IFS(SUM(C10:E10)<1,"",SUM(C10:E10)>=1,SUM($C$6:E10)) -> 2621 | K10: =_xlfn.IFS(COUNT(C10:E10)<1,"",COUNT($C$6:E10)>=1,COUNT($C$6:E10)) -> 15 | L10: =_xlfn.IFS(COUNT(C10:E10)<1,"",AND(COUNT($C$6:E10)<=9,$C$4>1),$C$4,COUNT(C10:E10)>=1,M10) -> 174 | M10: =IF(COUNT($C$6:E10)>=1,TRUNC(SUM($C$6:E10)/COUNT($C$6:E10)),0) -> 174 | N10: =IF(COUNT($C$6:E10)<=6,0,TRUNC((230-M9)*0.9)) -> 50 | O10: =_xlfn.IFS(SUM(C10:E10)<1,"",COUNT($C$6:E10)>9,TRUNC((230-M9)*(0.9)),COUNT($C$6:E10)<=9,0) -> 50 | P10: =_xlfn.IFS(SUM(C10:E10)<1,"",COUNT($C$6:E10)>9,N10*3+H10,COUNT($C$6:E10)<=9,0) -> 674 | S10: =IF(COUNT($C$6:E10)>9,IF(P10=MAX($P$6:$P$35),P10," "),"") ->  | V10: =IF(COUNT(C10:E10)<1,0,IF(COUNT($C$6:E10)>9,C10+N10,0)) -> 256 | W10: =IF(COUNT(C10:E10)<1,0,IF(COUNT($C$6:E10)>9,D10+N10,0)) -> 211 | X10: =IF(COUNT(C10:E10)<1,0,IF(COUNT($C$6:E10)>9,E10+N10,0)) -> 207 | AA10: 0 | AB10: 5 | AC10: 5
A11: wk6 | B11: =Calendar!B11 -> 2018-10-10 | C11: 192 | D11: 158 | E11: 169 | F11: =IF(COUNT(C11:E11)<1," ",IF(AND(C11>M10,D11>M10,E11>M10,COUNT($C$6:E10)>=12),"*"," ")) ->  | G11: =IF(COUNT(C11:E11)<1," ",IF(AND(C11>M9,D11>M9,E11>M9,COUNT($C$6:E9)>=12),"*"," ")) ->  | H11: 519 | I11: 173 | J11: =_xlfn.IFS(SUM(C11:E11)<1,"",SUM(C11:E11)>=1,SUM($C$6:E11)) -> 3140 | K11: =_xlfn.IFS(COUNT(C11:E11)<1,"",COUNT($C$6:E11)>=1,COUNT($C$6:E11)) -> 18 | L11: =_xlfn.IFS(COUNT(C11:E11)<1,"",AND(COUNT($C$6:E11)<=9,$C$4>1),$C$4,COUNT(C11:E11)>=1,M11) -> 174 | M11: =IF(COUNT($C$6:E11)>=1,TRUNC(SUM($C$6:E11)/COUNT($C$6:E11)),0) -> 174 | N11: =IF(COUNT($C$6:E11)<=6,0,TRUNC((230-M10)*0.9)) -> 50 | O11: =_xlfn.IFS(SUM(C11:E11)<1,"",COUNT($C$6:E11)>9,TRUNC((230-M10)*(0.9)),COUNT($C$6:E11)<=9,0) -> 50 | P11: =_xlfn.IFS(SUM(C11:E11)<1,"",COUNT($C$6:E11)>9,N11*3+H11,COUNT($C$6:E11)<=9,0) -> 669 | S11: =IF(COUNT($C$6:E11)>9,IF(P11=MAX($P$6:$P$35),P11," "),"") ->  | V11: =IF(COUNT(C11:E11)<1,0,IF(COUNT($C$6:E11)>9,C11+N11,0)) -> 242 | W11: =IF(COUNT(C11:E11)<1,0,IF(COUNT($C$6:E11)>9,D11+N11,0)) -> 208 | X11: =IF(COUNT(C11:E11)<1,0,IF(COUNT($C$6:E11)>9,E11+N11,0)) -> 219 | AA11: 0 | AB11: 6 | AC11: 6
A12: wk7 | B12: =Calendar!B12 -> 2018-10-17 | C12: 211 | D12: 231 | E12: 199 | F12: =IF(COUNT(C12:E12)<1," ",IF(AND(C12>M11,D12>M11,E12>M11,COUNT($C$6:E11)>=12),"*"," ")) -> * | G12: =IF(COUNT(C12:E12)<1," ",IF(AND(C12>M10,D12>M10,E12>M10,COUNT($C$6:E10)>=12),"*"," ")) -> * | H12: 641 | I12: 213 | J12: =_xlfn.IFS(SUM(C12:E12)<1,"",SUM(C12:E12)>=1,SUM($C$6:E12)) -> 3781 | K12: =_xlfn.IFS(COUNT(C12:E12)<1,"",COUNT($C$6:E12)>=1,COUNT($C$6:E12)) -> 21 | L12: =_xlfn.IFS(COUNT(C12:E12)<1,"",AND(COUNT($C$6:E12)<=9,$C$4>1),$C$4,COUNT(C12:E12)>=1,M12) -> 180 | M12: =IF(COUNT($C$6:E12)>=1,TRUNC(SUM($C$6:E12)/COUNT($C$6:E12)),0) -> 180 | N12: =IF(COUNT($C$6:E12)<=6,0,TRUNC((230-M11)*0.9)) -> 50 | O12: =_xlfn.IFS(SUM(C12:E12)<1,"",COUNT($C$6:E12)>9,TRUNC((230-M11)*(0.9)),COUNT($C$6:E12)<=9,0) -> 50 | P12: =_xlfn.IFS(SUM(C12:E12)<1,"",COUNT($C$6:E12)>9,N12*3+H12,COUNT($C$6:E12)<=9,0) -> 791 | Q12: 641 | S12: =IF(COUNT($C$6:E12)>9,IF(P12=MAX($P$6:$P$35),P12," "),"") -> 791 | V12: =IF(COUNT(C12:E12)<1,0,IF(COUNT($C$6:E12)>9,C12+N12,0)) -> 261 | W12: =IF(COUNT(C12:E12)<1,0,IF(COUNT($C$6:E12)>9,D12+N12,0)) -> 281 | X12: =IF(COUNT(C12:E12)<1,0,IF(COUNT($C$6:E12)>9,E12+N12,0)) -> 249 | AA12: 0 | AB12: 7 | AC12: 7
A13: wk8 | B13: =Calendar!B13 -> 2018-10-24 | C13: 266 | D13: 189 | E13: 150 | F13: =IF(COUNT(C13:E13)<1," ",IF(AND(C13>M12,D13>M12,E13>M12,COUNT($C$6:E12)>=12),"*"," ")) ->  | G13: =IF(COUNT(C13:E13)<1," ",IF(AND(C13>M11,D13>M11,E13>M11,COUNT($C$6:E11)>=12),"*"," ")) ->  | H13: 605 | I13: 201 | J13: =_xlfn.IFS(SUM(C13:E13)<1,"",SUM(C13:E13)>=1,SUM($C$6:E13)) -> 4386 | K13: =_xlfn.IFS(COUNT(C13:E13)<1,"",COUNT($C$6:E13)>=1,COUNT($C$6:E13)) -> 24 | L13: =_xlfn.IFS(COUNT(C13:E13)<1,"",AND(COUNT($C$6:E13)<=9,$C$4>1),$C$4,COUNT(C13:E13)>=1,M13) -> 182 | M13: =IF(COUNT($C$6:E13)>=1,TRUNC(SUM($C$6:E13)/COUNT($C$6:E13)),0) -> 182 | N13: =IF(COUNT($C$6:E13)<=6,0,TRUNC((230-M12)*0.9)) -> 45 | O13: =_xlfn.IFS(SUM(C13:E13)<1,"",COUNT($C$6:E13)>9,TRUNC((230-M12)*(0.9)),COUNT($C$6:E13)<=9,0) -> 45 | P13: =_xlfn.IFS(SUM(C13:E13)<1,"",COUNT($C$6:E13)>9,N13*3+H13,COUNT($C$6:E13)<=9,0) -> 740 | S13: =IF(COUNT($C$6:E13)>9,IF(P13=MAX($P$6:$P$35),P13," "),"") ->  | V13: =IF(COUNT(C13:E13)<1,0,IF(COUNT($C$6:E13)>9,C13+N13,0)) -> 311 | W13: =IF(COUNT(C13:E13)<1,0,IF(COUNT($C$6:E13)>9,D13+N13,0)) -> 234 | X13: =IF(COUNT(C13:E13)<1,0,IF(COUNT($C$6:E13)>9,E13+N13,0)) -> 195 | AA13: 0 | AB13: 8 | AC13: 8
A14: wk9 | B14: =Calendar!B14 -> 2018-10-31 | F14: =IF(COUNT(C14:E14)<1," ",IF(AND(C14>M13,D14>M13,E14>M13,COUNT($C$6:E13)>=12),"*"," ")) ->  | G14: =IF(COUNT(C14:E14)<1," ",IF(AND(C14>M12,D14>M12,E14>M12,COUNT($C$6:E12)>=12),"*"," ")) ->  | J14: =_xlfn.IFS(SUM(C14:E14)<1,"",SUM(C14:E14)>=1,SUM($C$6:E14)) ->  | K14: =_xlfn.IFS(COUNT(C14:E14)<1,"",COUNT($C$6:E14)>=1,COUNT($C$6:E14)) ->  | L14: =_xlfn.IFS(COUNT(C14:E14)<1,"",AND(COUNT($C$6:E14)<=9,$C$4>1),$C$4,COUNT(C14:E14)>=1,M14) ->  | M14: =IF(COUNT($C$6:E14)>=1,TRUNC(SUM($C$6:E14)/COUNT($C$6:E14)),0) -> 182 | N14: =IF(COUNT($C$6:E14)<=6,0,TRUNC((230-M13)*0.9)) -> 43 | O14: =_xlfn.IFS(SUM(C14:E14)<1,"",COUNT($C$6:E14)>9,TRUNC((230-M13)*(0.9)),COUNT($C$6:E14)<=9,0) ->  | P14: =_xlfn.IFS(SUM(C14:E14)<1,"",COUNT($C$6:E14)>9,N14*3+H14,COUNT($C$6:E14)<=9,0) ->  | S14: =IF(COUNT($C$6:E14)>9,IF(P14=MAX($P$6:$P$35),P14," "),"") ->  | V14: =IF(COUNT(C14:E14)<1,0,IF(COUNT($C$6:E14)>9,C14+N14,0)) -> 0 | W14: =IF(COUNT(C14:E14)<1,0,IF(COUNT($C$6:E14)>9,D14+N14,0)) -> 0 | X14: =IF(COUNT(C14:E14)<1,0,IF(COUNT($C$6:E14)>9,E14+N14,0)) -> 0 | AA14: 1 | AB14: 0 | AC14: 9
A15: wk10 | B15: =Calendar!B15 -> 2018-11-07 | C15: 171 | D15: 189 | E15: 184 | F15: =IF(COUNT(C15:E15)<1," ",IF(AND(C15>M14,D15>M14,E15>M14,COUNT($C$6:E14)>=12),"*"," ")) ->  | G15: =IF(COUNT(C15:E15)<1," ",IF(AND(C15>M13,D15>M13,E15>M13,COUNT($C$6:E13)>=12),"*"," ")) ->  | H15: 544 | I15: 181 | J15: =_xlfn.IFS(SUM(C15:E15)<1,"",SUM(C15:E15)>=1,SUM($C$6:E15)) -> 4930 | K15: =_xlfn.IFS(COUNT(C15:E15)<1,"",COUNT($C$6:E15)>=1,COUNT($C$6:E15)) -> 27 | L15: =_xlfn.IFS(COUNT(C15:E15)<1,"",AND(COUNT($C$6:E15)<=9,$C$4>1),$C$4,COUNT(C15:E15)>=1,M15) -> 182 | M15: =IF(COUNT($C$6:E15)>=1,TRUNC(SUM($C$6:E15)/COUNT($C$6:E15)),0) -> 182 | N15: =IF(COUNT($C$6:E15)<=6,0,TRUNC((230-M14)*0.9)) -> 43 | O15: =_xlfn.IFS(SUM(C15:E15)<1,"",COUNT($C$6:E15)>9,TRUNC((230-M14)*(0.9)),COUNT($C$6:E15)<=9,0) -> 43 | P15: =_xlfn.IFS(SUM(C15:E15)<1,"",COUNT($C$6:E15)>9,N15*3+H15,COUNT($C$6:E15)<=9,0) -> 673 | S15: =IF(COUNT($C$6:E15)>9,IF(P15=MAX($P$6:$P$35),P15," "),"") ->  | V15: =IF(COUNT(C15:E15)<1,0,IF(COUNT($C$6:E15)>9,C15+N15,0)) -> 214 | W15: =IF(COUNT(C15:E15)<1,0,IF(COUNT($C$6:E15)>9,D15+N15,0)) -> 232 | X15: =IF(COUNT(C15:E15)<1,0,IF(COUNT($C$6:E15)>9,E15+N15,0)) -> 227 | AA15: 0 | AB15: 10 | AC15: 10
A16: wk11 | B16: =Calendar!B16 -> 2018-11-14 | C16: 172 | D16: 205 | E16: 168 | F16: =IF(COUNT(C16:E16)<1," ",IF(AND(C16>M15,D16>M15,E16>M15,COUNT($C$6:E15)>=12),"*"," ")) ->  | G16: =IF(COUNT(C16:E16)<1," ",IF(AND(C16>M14,D16>M14,E16>M14,COUNT($C$6:E14)>=12),"*"," ")) ->  | H16: 545 | I16: 181 | J16: =_xlfn.IFS(SUM(C16:E16)<1,"",SUM(C16:E16)>=1,SUM($C$6:E16)) -> 5475 | K16: =_xlfn.IFS(COUNT(C16:E16)<1,"",COUNT($C$6:E16)>=1,COUNT($C$6:E16)) -> 30 | L16: =_xlfn.IFS(COUNT(C16:E16)<1,"",AND(COUNT($C$6:E16)<=9,$C$4>1),$C$4,COUNT(C16:E16)>=1,M16) -> 182 | M16: =IF(COUNT($C$6:E16)>=1,TRUNC(SUM($C$6:E16)/COUNT($C$6:E16)),0) -> 182 | N16: =IF(COUNT($C$6:E16)<=6,0,TRUNC((230-M15)*0.9)) -> 43 | O16: =_xlfn.IFS(SUM(C16:E16)<1,"",COUNT($C$6:E16)>9,TRUNC((230-M15)*(0.9)),COUNT($C$6:E16)<=9,0) -> 43 | P16: =_xlfn.IFS(SUM(C16:E16)<1,"",COUNT($C$6:E16)>9,N16*3+H16,COUNT($C$6:E16)<=9,0) -> 674 | S16: =IF(COUNT($C$6:E16)>9,IF(P16=MAX($P$6:$P$35),P16," "),"") ->  | V16: =IF(COUNT(C16:E16)<1,0,IF(COUNT($C$6:E16)>9,C16+N16,0)) -> 215 | W16: =IF(COUNT(C16:E16)<1,0,IF(COUNT($C$6:E16)>9,D16+N16,0)) -> 248 | X16: =IF(COUNT(C16:E16)<1,0,IF(COUNT($C$6:E16)>9,E16+N16,0)) -> 211 | AA16: 0 | AB16: 11 | AC16: 11
A17: wk12 | B17: =Calendar!B17 -> 2018-11-28 | C17: 269 | D17: 150 | E17: 170 | F17: =IF(COUNT(C17:E17)<1," ",IF(AND(C17>M16,D17>M16,E17>M16,COUNT($C$6:E16)>=12),"*"," ")) ->  | G17: =IF(COUNT(C17:E17)<1," ",IF(AND(C17>M15,D17>M15,E17>M15,COUNT($C$6:E15)>=12),"*"," ")) ->  | H17: 589 | I17: 196 | J17: =_xlfn.IFS(SUM(C17:E17)<1,"",SUM(C17:E17)>=1,SUM($C$6:E17)) -> 6064 | K17: =_xlfn.IFS(COUNT(C17:E17)<1,"",COUNT($C$6:E17)>=1,COUNT($C$6:E17)) -> 33 | L17: =_xlfn.IFS(COUNT(C17:E17)<1,"",AND(COUNT($C$6:E17)<=9,$C$4>1),$C$4,COUNT(C17:E17)>=1,M17) -> 183 | M17: =IF(COUNT($C$6:E17)>=1,TRUNC(SUM($C$6:E17)/COUNT($C$6:E17)),0) -> 183 | N17: =IF(COUNT($C$6:E17)<=6,0,TRUNC((230-M16)*0.9)) -> 43 | O17: =_xlfn.IFS(SUM(C17:E17)<1,"",COUNT($C$6:E17)>9,TRUNC((230-M16)*(0.9)),COUNT($C$6:E17)<=9,0) -> 43 | P17: =_xlfn.IFS(SUM(C17:E17)<1,"",COUNT($C$6:E17)>9,N17*3+H17,COUNT($C$6:E17)<=9,0) -> 718 | R17: 269 | S17: =IF(COUNT($C$6:E17)>9,IF(P17=MAX($P$6:$P$35),P17," "),"") ->  | T17: 312 | V17: =IF(COUNT(C17:E17)<1,0,IF(COUNT($C$6:E17)>9,C17+N17,0)) -> 312 | W17: =IF(COUNT(C17:E17)<1,0,IF(COUNT($C$6:E17)>9,D17+N17,0)) -> 193 | X17: =IF(COUNT(C17:E17)<1,0,IF(COUNT($C$6:E17)>9,E17+N17,0)) -> 213 | AA17: 0 | AB17: 12 | AC17: 12
A18: wk13 | B18: =Calendar!B18 -> 2018-12-05 | C18: 190 | D18: 224 | E18: 157 | F18: =IF(COUNT(C18:E18)<1," ",IF(AND(C18>M17,D18>M17,E18>M17,COUNT($C$6:E17)>=12),"*"," ")) ->  | G18: =IF(COUNT(C18:E18)<1," ",IF(AND(C18>M16,D18>M16,E18>M16,COUNT($C$6:E16)>=12),"*"," ")) ->  | H18: 571 | I18: 190 | J18: =_xlfn.IFS(SUM(C18:E18)<1,"",SUM(C18:E18)>=1,SUM($C$6:E18)) -> 6635 | K18: =_xlfn.IFS(COUNT(C18:E18)<1,"",COUNT($C$6:E18)>=1,COUNT($C$6:E18)) -> 36 | L18: =_xlfn.IFS(COUNT(C18:E18)<1,"",AND(COUNT($C$6:E18)<=9,$C$4>1),$C$4,COUNT(C18:E18)>=1,M18) -> 184 | M18: =IF(COUNT($C$6:E18)>=1,TRUNC(SUM($C$6:E18)/COUNT($C$6:E18)),0) -> 184 | N18: =IF(COUNT($C$6:E18)<=6,0,TRUNC((230-M17)*0.9)) -> 42 | O18: =_xlfn.IFS(SUM(C18:E18)<1,"",COUNT($C$6:E18)>9,TRUNC((230-M17)*(0.9)),COUNT($C$6:E18)<=9,0) -> 42 | P18: =_xlfn.IFS(SUM(C18:E18)<1,"",COUNT($C$6:E18)>9,N18*3+H18,COUNT($C$6:E18)<=9,0) -> 697 | S18: =IF(COUNT($C$6:E18)>9,IF(P18=MAX($P$6:$P$35),P18," "),"") ->  | V18: =IF(COUNT(C18:E18)<1,0,IF(COUNT($C$6:E18)>9,C18+N18,0)) -> 232 | W18: =IF(COUNT(C18:E18)<1,0,IF(COUNT($C$6:E18)>9,D18+N18,0)) -> 266 | X18: =IF(COUNT(C18:E18)<1,0,IF(COUNT($C$6:E18)>9,E18+N18,0)) -> 199 | AA18: 0 | AB18: 13 | AC18: 13
A19: wk14 | B19: =Calendar!B19 -> 2018-12-12 | F19: =IF(COUNT(C19:E19)<1," ",IF(AND(C19>M18,D19>M18,E19>M18,COUNT($C$6:E18)>=12),"*"," ")) ->  | G19: =IF(COUNT(C19:E19)<1," ",IF(AND(C19>M17,D19>M17,E19>M17,COUNT($C$6:E17)>=12),"*"," ")) ->  | J19: =_xlfn.IFS(SUM(C19:E19)<1,"",SUM(C19:E19)>=1,SUM($C$6:E19)) ->  | K19: =_xlfn.IFS(COUNT(C19:E19)<1,"",COUNT($C$6:E19)>=1,COUNT($C$6:E19)) ->  | L19: =_xlfn.IFS(COUNT(C19:E19)<1,"",AND(COUNT($C$6:E19)<=9,$C$4>1),$C$4,COUNT(C19:E19)>=1,M19) ->  | M19: =IF(COUNT($C$6:E19)>=1,TRUNC(SUM($C$6:E19)/COUNT($C$6:E19)),0) -> 184 | N19: =IF(COUNT($C$6:E19)<=6,0,TRUNC((230-M18)*0.9)) -> 41 | O19: =_xlfn.IFS(SUM(C19:E19)<1,"",COUNT($C$6:E19)>9,TRUNC((230-M18)*(0.9)),COUNT($C$6:E19)<=9,0) ->  | P19: =_xlfn.IFS(SUM(C19:E19)<1,"",COUNT($C$6:E19)>9,N19*3+H19,COUNT($C$6:E19)<=9,0) ->  | S19: =IF(COUNT($C$6:E19)>9,IF(P19=MAX($P$6:$P$35),P19," "),"") ->  | V19: =IF(COUNT(C19:E19)<1,0,IF(COUNT($C$6:E19)>9,C19+N19,0)) -> 0 | W19: =IF(COUNT(C19:E19)<1,0,IF(COUNT($C$6:E19)>9,D19+N19,0)) -> 0 | X19: =IF(COUNT(C19:E19)<1,0,IF(COUNT($C$6:E19)>9,E19+N19,0)) -> 0 | AA19: 1 | AB19: 0 | AC19: 14
A20: wk15 | B20: =Calendar!B20 -> 2018-12-19 | C20: 181 | D20: 158 | E20: 148 | F20: =IF(COUNT(C20:E20)<1," ",IF(AND(C20>M19,D20>M19,E20>M19,COUNT($C$6:E19)>=12),"*"," ")) ->  | G20: =IF(COUNT(C20:E20)<1," ",IF(AND(C20>M18,D20>M18,E20>M18,COUNT($C$6:E18)>=12),"*"," ")) ->  | H20: 487 | I20: 162 | J20: =_xlfn.IFS(SUM(C20:E20)<1,"",SUM(C20:E20)>=1,SUM($C$6:E20)) -> 7122 | K20: =_xlfn.IFS(COUNT(C20:E20)<1,"",COUNT($C$6:E20)>=1,COUNT($C$6:E20)) -> 39 | L20: =_xlfn.IFS(COUNT(C20:E20)<1,"",AND(COUNT($C$6:E20)<=9,$C$4>1),$C$4,COUNT(C20:E20)>=1,M20) -> 182 | M20: =IF(COUNT($C$6:E20)>=1,TRUNC(SUM($C$6:E20)/COUNT($C$6:E20)),0) -> 182 | N20: =IF(COUNT($C$6:E20)<=6,0,TRUNC((230-M19)*0.9)) -> 41 | O20: =_xlfn.IFS(SUM(C20:E20)<1,"",COUNT($C$6:E20)>9,TRUNC((230-M19)*(0.9)),COUNT($C$6:E20)<=9,0) -> 41 | P20: =_xlfn.IFS(SUM(C20:E20)<1,"",COUNT($C$6:E20)>9,N20*3+H20,COUNT($C$6:E20)<=9,0) -> 610 | S20: =IF(COUNT($C$6:E20)>9,IF(P20=MAX($P$6:$P$35),P20," "),"") ->  | V20: =IF(COUNT(C20:E20)<1,0,IF(COUNT($C$6:E20)>9,C20+N20,0)) -> 222 | W20: =IF(COUNT(C20:E20)<1,0,IF(COUNT($C$6:E20)>9,D20+N20,0)) -> 199 | X20: =IF(COUNT(C20:E20)<1,0,IF(COUNT($C$6:E20)>9,E20+N20,0)) -> 189 | AA20: 0 | AB20: 15 | AC20: 15
A21: wk16 | B21: =Calendar!B21 -> 2019-01-02 | F21: =IF(COUNT(C21:E21)<1," ",IF(AND(C21>M20,D21>M20,E21>M20,COUNT($C$6:E20)>=12),"*"," ")) ->  | G21: =IF(COUNT(C21:E21)<1," ",IF(AND(C21>M19,D21>M19,E21>M19,COUNT($C$6:E19)>=12),"*"," ")) ->  | J21: =_xlfn.IFS(SUM(C21:E21)<1,"",SUM(C21:E21)>=1,SUM($C$6:E21)) ->  | K21: =_xlfn.IFS(COUNT(C21:E21)<1,"",COUNT($C$6:E21)>=1,COUNT($C$6:E21)) ->  | L21: =_xlfn.IFS(COUNT(C21:E21)<1,"",AND(COUNT($C$6:E21)<=9,$C$4>1),$C$4,COUNT(C21:E21)>=1,M21) ->  | M21: =IF(COUNT($C$6:E21)>=1,TRUNC(SUM($C$6:E21)/COUNT($C$6:E21)),0) -> 182 | N21: =IF(COUNT($C$6:E21)<=6,0,TRUNC((230-M20)*0.9)) -> 43 | O21: =_xlfn.IFS(SUM(C21:E21)<1,"",COUNT($C$6:E21)>9,TRUNC((230-M20)*(0.9)),COUNT($C$6:E21)<=9,0) ->  | P21: =_xlfn.IFS(SUM(C21:E21)<1,"",COUNT($C$6:E21)>9,N21*3+H21,COUNT($C$6:E21)<=9,0) ->  | S21: =IF(COUNT($C$6:E21)>9,IF(P21=MAX($P$6:$P$35),P21," "),"") ->  | V21: =IF(COUNT(C21:E21)<1,0,IF(COUNT($C$6:E21)>9,C21+N21,0)) -> 0 | W21: =IF(COUNT(C21:E21)<1,0,IF(COUNT($C$6:E21)>9,D21+N21,0)) -> 0 | X21: =IF(COUNT(C21:E21)<1,0,IF(COUNT($C$6:E21)>9,E21+N21,0)) -> 0 | AA21: 1 | AB21: 0 | AC21: 16
A22: wk17 | B22: =Calendar!B22 -> 2019-01-09 | F22: =IF(COUNT(C22:E22)<1," ",IF(AND(C22>M21,D22>M21,E22>M21,COUNT($C$6:E21)>=12),"*"," ")) ->  | G22: =IF(COUNT(C22:E22)<1," ",IF(AND(C22>M20,D22>M20,E22>M20,COUNT($C$6:E20)>=12),"*"," ")) ->  | J22: =_xlfn.IFS(SUM(C22:E22)<1,"",SUM(C22:E22)>=1,SUM($C$6:E22)) ->  | K22: =_xlfn.IFS(COUNT(C22:E22)<1,"",COUNT($C$6:E22)>=1,COUNT($C$6:E22)) ->  | L22: =_xlfn.IFS(COUNT(C22:E22)<1,"",AND(COUNT($C$6:E22)<=9,$C$4>1),$C$4,COUNT(C22:E22)>=1,M22) ->  | M22: =IF(COUNT($C$6:E22)>=1,TRUNC(SUM($C$6:E22)/COUNT($C$6:E22)),0) -> 182 | N22: =IF(COUNT($C$6:E22)<=6,0,TRUNC((230-M21)*0.9)) -> 43 | O22: =_xlfn.IFS(SUM(C22:E22)<1,"",COUNT($C$6:E22)>9,TRUNC((230-M21)*(0.9)),COUNT($C$6:E22)<=9,0) ->  | P22: =_xlfn.IFS(SUM(C22:E22)<1,"",COUNT($C$6:E22)>9,N22*3+H22,COUNT($C$6:E22)<=9,0) ->  | S22: =IF(COUNT($C$6:E22)>9,IF(P22=MAX($P$6:$P$35),P22," "),"") ->  | V22: =IF(COUNT(C22:E22)<1,0,IF(COUNT($C$6:E22)>9,C22+N22,0)) -> 0 | W22: =IF(COUNT(C22:E22)<1,0,IF(COUNT($C$6:E22)>9,D22+N22,0)) -> 0 | X22: =IF(COUNT(C22:E22)<1,0,IF(COUNT($C$6:E22)>9,E22+N22,0)) -> 0 | AA22: 1 | AB22: 0 | AC22: 17
A23: wk18 | B23: =Calendar!B23 -> 2019-01-16 | F23: =IF(COUNT(C23:E23)<1," ",IF(AND(C23>M22,D23>M22,E23>M22,COUNT($C$6:E22)>=12),"*"," ")) ->  | G23: =IF(COUNT(C23:E23)<1," ",IF(AND(C23>M21,D23>M21,E23>M21,COUNT($C$6:E21)>=12),"*"," ")) ->  | J23: =_xlfn.IFS(SUM(C23:E23)<1,"",SUM(C23:E23)>=1,SUM($C$6:E23)) ->  | K23: =_xlfn.IFS(COUNT(C23:E23)<1,"",COUNT($C$6:E23)>=1,COUNT($C$6:E23)) ->  | L23: =_xlfn.IFS(COUNT(C23:E23)<1,"",AND(COUNT($C$6:E23)<=9,$C$4>1),$C$4,COUNT(C23:E23)>=1,M23) ->  | M23: =IF(COUNT($C$6:E23)>=1,TRUNC(SUM($C$6:E23)/COUNT($C$6:E23)),0) -> 182 | N23: =IF(COUNT($C$6:E23)<=6,0,TRUNC((230-M22)*0.9)) -> 43 | O23: =_xlfn.IFS(SUM(C23:E23)<1,"",COUNT($C$6:E23)>9,TRUNC((230-M22)*(0.9)),COUNT($C$6:E23)<=9,0) ->  | P23: =_xlfn.IFS(SUM(C23:E23)<1,"",COUNT($C$6:E23)>9,N23*3+H23,COUNT($C$6:E23)<=9,0) ->  | S23: =IF(COUNT($C$6:E23)>9,IF(P23=MAX($P$6:$P$35),P23," "),"") ->  | V23: =IF(COUNT(C23:E23)<1,0,IF(COUNT($C$6:E23)>9,C23+N23,0)) -> 0 | W23: =IF(COUNT(C23:E23)<1,0,IF(COUNT($C$6:E23)>9,D23+N23,0)) -> 0 | X23: =IF(COUNT(C23:E23)<1,0,IF(COUNT($C$6:E23)>9,E23+N23,0)) -> 0 | AA23: 1 | AB23: 0 | AC23: 18
A24: wk19 | B24: =Calendar!B24 -> 2019-01-23 | F24: =IF(COUNT(C24:E24)<1," ",IF(AND(C24>M23,D24>M23,E24>M23,COUNT($C$6:E23)>=12),"*"," ")) ->  | G24: =IF(COUNT(C24:E24)<1," ",IF(AND(C24>M22,D24>M22,E24>M22,COUNT($C$6:E22)>=12),"*"," ")) ->  | J24: =_xlfn.IFS(SUM(C24:E24)<1,"",SUM(C24:E24)>=1,SUM($C$6:E24)) ->  | K24: =_xlfn.IFS(COUNT(C24:E24)<1,"",COUNT($C$6:E24)>=1,COUNT($C$6:E24)) ->  | L24: =_xlfn.IFS(COUNT(C24:E24)<1,"",AND(COUNT($C$6:E24)<=9,$C$4>1),$C$4,COUNT(C24:E24)>=1,M24) ->  | M24: =IF(COUNT($C$6:E24)>=1,TRUNC(SUM($C$6:E24)/COUNT($C$6:E24)),0) -> 182 | N24: =IF(COUNT($C$6:E24)<=6,0,TRUNC((230-M23)*0.9)) -> 43 | O24: =_xlfn.IFS(SUM(C24:E24)<1,"",COUNT($C$6:E24)>9,TRUNC((230-M23)*(0.9)),COUNT($C$6:E24)<=9,0) ->  | P24: =_xlfn.IFS(SUM(C24:E24)<1,"",COUNT($C$6:E24)>9,N24*3+H24,COUNT($C$6:E24)<=9,0) ->  | S24: =IF(COUNT($C$6:E24)>9,IF(P24=MAX($P$6:$P$35),P24," "),"") ->  | V24: =IF(COUNT(C24:E24)<1,0,IF(COUNT($C$6:E24)>9,C24+N24,0)) -> 0 | W24: =IF(COUNT(C24:E24)<1,0,IF(COUNT($C$6:E24)>9,D24+N24,0)) -> 0 | X24: =IF(COUNT(C24:E24)<1,0,IF(COUNT($C$6:E24)>9,E24+N24,0)) -> 0 | AA24: 1 | AB24: 0 | AC24: 19
A25: wk20 | B25: =Calendar!B25 -> 2019-01-30 | F25: =IF(COUNT(C25:E25)<1," ",IF(AND(C25>M24,D25>M24,E25>M24,COUNT($C$6:E24)>=12),"*"," ")) ->  | G25: =IF(COUNT(C25:E25)<1," ",IF(AND(C25>M23,D25>M23,E25>M23,COUNT($C$6:E23)>=12),"*"," ")) ->  | J25: =_xlfn.IFS(SUM(C25:E25)<1,"",SUM(C25:E25)>=1,SUM($C$6:E25)) ->  | K25: =_xlfn.IFS(COUNT(C25:E25)<1,"",COUNT($C$6:E25)>=1,COUNT($C$6:E25)) ->  | L25: =_xlfn.IFS(COUNT(C25:E25)<1,"",AND(COUNT($C$6:E25)<=9,$C$4>1),$C$4,COUNT(C25:E25)>=1,M25) ->  | M25: =IF(COUNT($C$6:E25)>=1,TRUNC(SUM($C$6:E25)/COUNT($C$6:E25)),0) -> 182 | N25: =IF(COUNT($C$6:E25)<=6,0,TRUNC((230-M24)*0.9)) -> 43 | O25: =_xlfn.IFS(SUM(C25:E25)<1,"",COUNT($C$6:E25)>9,TRUNC((230-M24)*(0.9)),COUNT($C$6:E25)<=9,0) ->  | P25: =_xlfn.IFS(SUM(C25:E25)<1,"",COUNT($C$6:E25)>9,N25*3+H25,COUNT($C$6:E25)<=9,0) ->  | S25: =IF(COUNT($C$6:E25)>9,IF(P25=MAX($P$6:$P$35),P25," "),"") ->  | V25: =IF(COUNT(C25:E25)<1,0,IF(COUNT($C$6:E25)>9,C25+N25,0)) -> 0 | W25: =IF(COUNT(C25:E25)<1,0,IF(COUNT($C$6:E25)>9,D25+N25,0)) -> 0 | X25: =IF(COUNT(C25:E25)<1,0,IF(COUNT($C$6:E25)>9,E25+N25,0)) -> 0 | AA25: 1 | AB25: 0 | AC25: 20
A26: wk21 | B26: =Calendar!B26 -> 2019-02-06 | C26: 183 | D26: 194 | E26: 178 | F26: =IF(COUNT(C26:E26)<1," ",IF(AND(C26>M25,D26>M25,E26>M25,COUNT($C$6:E25)>=12),"*"," ")) ->  | G26: =IF(COUNT(C26:E26)<1," ",IF(AND(C26>M24,D26>M24,E26>M24,COUNT($C$6:E24)>=12),"*"," ")) ->  | H26: 555 | I26: 185 | J26: =_xlfn.IFS(SUM(C26:E26)<1,"",SUM(C26:E26)>=1,SUM($C$6:E26)) -> 7677 | K26: =_xlfn.IFS(COUNT(C26:E26)<1,"",COUNT($C$6:E26)>=1,COUNT($C$6:E26)) -> 42 | L26: =_xlfn.IFS(COUNT(C26:E26)<1,"",AND(COUNT($C$6:E26)<=9,$C$4>1),$C$4,COUNT(C26:E26)>=1,M26) -> 182 | M26: =IF(COUNT($C$6:E26)>=1,TRUNC(SUM($C$6:E26)/COUNT($C$6:E26)),0) -> 182 | N26: =IF(COUNT($C$6:E26)<=6,0,TRUNC((230-M25)*0.9)) -> 43 | O26: =_xlfn.IFS(SUM(C26:E26)<1,"",COUNT($C$6:E26)>9,TRUNC((230-M25)*(0.9)),COUNT($C$6:E26)<=9,0) -> 43 | P26: =_xlfn.IFS(SUM(C26:E26)<1,"",COUNT($C$6:E26)>9,N26*3+H26,COUNT($C$6:E26)<=9,0) -> 684 | S26: =IF(COUNT($C$6:E26)>9,IF(P26=MAX($P$6:$P$35),P26," "),"") ->  | V26: =IF(COUNT(C26:E26)<1,0,IF(COUNT($C$6:E26)>9,C26+N26,0)) -> 226 | W26: =IF(COUNT(C26:E26)<1,0,IF(COUNT($C$6:E26)>9,D26+N26,0)) -> 237 | X26: =IF(COUNT(C26:E26)<1,0,IF(COUNT($C$6:E26)>9,E26+N26,0)) -> 221 | AA26: 0 | AB26: 21 | AC26: 21
A27: wk22 | B27: =Calendar!B27 -> 2019-02-13 | C27: 135 | D27: 147 | E27: 161 | F27: =IF(COUNT(C27:E27)<1," ",IF(AND(C27>M26,D27>M26,E27>M26,COUNT($C$6:E26)>=12),"*"," ")) ->  | G27: =IF(COUNT(C27:E27)<1," ",IF(AND(C27>M25,D27>M25,E27>M25,COUNT($C$6:E25)>=12),"*"," ")) ->  | H27: 443 | I27: 147 | J27: =_xlfn.IFS(SUM(C27:E27)<1,"",SUM(C27:E27)>=1,SUM($C$6:E27)) -> 8120 | K27: =_xlfn.IFS(COUNT(C27:E27)<1,"",COUNT($C$6:E27)>=1,COUNT($C$6:E27)) -> 45 | L27: =_xlfn.IFS(COUNT(C27:E27)<1,"",AND(COUNT($C$6:E27)<=9,$C$4>1),$C$4,COUNT(C27:E27)>=1,M27) -> 180 | M27: =IF(COUNT($C$6:E27)>=1,TRUNC(SUM($C$6:E27)/COUNT($C$6:E27)),0) -> 180 | N27: =IF(COUNT($C$6:E27)<=6,0,TRUNC((230-M26)*0.9)) -> 43 | O27: =_xlfn.IFS(SUM(C27:E27)<1,"",COUNT($C$6:E27)>9,TRUNC((230-M26)*(0.9)),COUNT($C$6:E27)<=9,0) -> 43 | P27: =_xlfn.IFS(SUM(C27:E27)<1,"",COUNT($C$6:E27)>9,N27*3+H27,COUNT($C$6:E27)<=9,0) -> 572 | S27: =IF(COUNT($C$6:E27)>9,IF(P27=MAX($P$6:$P$35),P27," "),"") ->  | V27: =IF(COUNT(C27:E27)<1,0,IF(COUNT($C$6:E27)>9,C27+N27,0)) -> 178 | W27: =IF(COUNT(C27:E27)<1,0,IF(COUNT($C$6:E27)>9,D27+N27,0)) -> 190 | X27: =IF(COUNT(C27:E27)<1,0,IF(COUNT($C$6:E27)>9,E27+N27,0)) -> 204 | AA27: 0 | AB27: 22 | AC27: 22
A28: wk23 | B28: =Calendar!B28 -> 2019-02-20 | F28: =IF(COUNT(C28:E28)<1," ",IF(AND(C28>M27,D28>M27,E28>M27,COUNT($C$6:E27)>=12),"*"," ")) ->  | G28: =IF(COUNT(C28:E28)<1," ",IF(AND(C28>M26,D28>M26,E28>M26,COUNT($C$6:E26)>=12),"*"," ")) ->  | J28: =_xlfn.IFS(SUM(C28:E28)<1,"",SUM(C28:E28)>=1,SUM($C$6:E28)) ->  | K28: =_xlfn.IFS(COUNT(C28:E28)<1,"",COUNT($C$6:E28)>=1,COUNT($C$6:E28)) ->  | L28: =_xlfn.IFS(COUNT(C28:E28)<1,"",AND(COUNT($C$6:E28)<=9,$C$4>1),$C$4,COUNT(C28:E28)>=1,M28) ->  | M28: =IF(COUNT($C$6:E28)>=1,TRUNC(SUM($C$6:E28)/COUNT($C$6:E28)),0) -> 180 | N28: =IF(COUNT($C$6:E28)<=6,0,TRUNC((230-M27)*0.9)) -> 45 | O28: =_xlfn.IFS(SUM(C28:E28)<1,"",COUNT($C$6:E28)>9,TRUNC((230-M27)*(0.9)),COUNT($C$6:E28)<=9,0) ->  | P28: =_xlfn.IFS(SUM(C28:E28)<1,"",COUNT($C$6:E28)>9,N28*3+H28,COUNT($C$6:E28)<=9,0) ->  | S28: =IF(COUNT($C$6:E28)>9,IF(P28=MAX($P$6:$P$35),P28," "),"") ->  | V28: =IF(COUNT(C28:E28)<1,0,IF(COUNT($C$6:E28)>9,C28+N28,0)) -> 0 | W28: =IF(COUNT(C28:E28)<1,0,IF(COUNT($C$6:E28)>9,D28+N28,0)) -> 0 | X28: =IF(COUNT(C28:E28)<1,0,IF(COUNT($C$6:E28)>9,E28+N28,0)) -> 0 | AA28: 1 | AB28: 0 | AC28: 23
A29: wk24 | B29: =Calendar!B29 -> 2019-02-27 | C29: 202 | D29: 192 | E29: 162 | F29: =IF(COUNT(C29:E29)<1," ",IF(AND(C29>M28,D29>M28,E29>M28,COUNT($C$6:E28)>=12),"*"," ")) ->  | G29: =IF(COUNT(C29:E29)<1," ",IF(AND(C29>M27,D29>M27,E29>M27,COUNT($C$6:E27)>=12),"*"," ")) ->  | H29: 556 | I29: 185 | J29: =_xlfn.IFS(SUM(C29:E29)<1,"",SUM(C29:E29)>=1,SUM($C$6:E29)) -> 8676 | K29: =_xlfn.IFS(COUNT(C29:E29)<1,"",COUNT($C$6:E29)>=1,COUNT($C$6:E29)) -> 48 | L29: =_xlfn.IFS(COUNT(C29:E29)<1,"",AND(COUNT($C$6:E29)<=9,$C$4>1),$C$4,COUNT(C29:E29)>=1,M29) -> 180 | M29: =IF(COUNT($C$6:E29)>=1,TRUNC(SUM($C$6:E29)/COUNT($C$6:E29)),0) -> 180 | N29: =IF(COUNT($C$6:E29)<=6,0,TRUNC((230-M28)*0.9)) -> 45 | O29: =_xlfn.IFS(SUM(C29:E29)<1,"",COUNT($C$6:E29)>9,TRUNC((230-M28)*(0.9)),COUNT($C$6:E29)<=9,0) -> 45 | P29: =_xlfn.IFS(SUM(C29:E29)<1,"",COUNT($C$6:E29)>9,N29*3+H29,COUNT($C$6:E29)<=9,0) -> 691 | S29: =IF(COUNT($C$6:E29)>9,IF(P29=MAX($P$6:$P$35),P29," "),"") ->  | V29: =IF(COUNT(C29:E29)<1,0,IF(COUNT($C$6:E29)>9,C29+N29,0)) -> 247 | W29: =IF(COUNT(C29:E29)<1,0,IF(COUNT($C$6:E29)>9,D29+N29,0)) -> 237 | X29: =IF(COUNT(C29:E29)<1,0,IF(COUNT($C$6:E29)>9,E29+N29,0)) -> 207 | AA29: 0 | AB29: 24 | AC29: 24
A30: wk25 | B30: =Calendar!B30 -> 2019-03-06 | C30: 137 | D30: 177 | E30: 137 | F30: =IF(COUNT(C30:E30)<1," ",IF(AND(C30>M29,D30>M29,E30>M29,COUNT($C$6:E29)>=12),"*"," ")) ->  | G30: =IF(COUNT(C30:E30)<1," ",IF(AND(C30>M28,D30>M28,E30>M28,COUNT($C$6:E28)>=12),"*"," ")) ->  | H30: 451 | I30: 150 | J30: =_xlfn.IFS(SUM(C30:E30)<1,"",SUM(C30:E30)>=1,SUM($C$6:E30)) -> 9127 | K30: =_xlfn.IFS(COUNT(C30:E30)<1,"",COUNT($C$6:E30)>=1,COUNT($C$6:E30)) -> 51 | L30: =_xlfn.IFS(COUNT(C30:E30)<1,"",AND(COUNT($C$6:E30)<=9,$C$4>1),$C$4,COUNT(C30:E30)>=1,M30) -> 178 | M30: =IF(COUNT($C$6:E30)>=1,TRUNC(SUM($C$6:E30)/COUNT($C$6:E30)),0) -> 178 | N30: =IF(COUNT($C$6:E30)<=6,0,TRUNC((230-M29)*0.9)) -> 45 | O30: =_xlfn.IFS(SUM(C30:E30)<1,"",COUNT($C$6:E30)>9,TRUNC((230-M29)*(0.9)),COUNT($C$6:E30)<=9,0) -> 45 | P30: =_xlfn.IFS(SUM(C30:E30)<1,"",COUNT($C$6:E30)>9,N30*3+H30,COUNT($C$6:E30)<=9,0) -> 586 | S30: =IF(COUNT($C$6:E30)>9,IF(P30=MAX($P$6:$P$35),P30," "),"") ->  | V30: =IF(COUNT(C30:E30)<1,0,IF(COUNT($C$6:E30)>9,C30+N30,0)) -> 182 | W30: =IF(COUNT(C30:E30)<1,0,IF(COUNT($C$6:E30)>9,D30+N30,0)) -> 222 | X30: =IF(COUNT(C30:E30)<1,0,IF(COUNT($C$6:E30)>9,E30+N30,0)) -> 182 | AA30: 0 | AB30: 25 | AC30: 25
A31: wk26 | B31: =Calendar!B31 -> 2019-03-13 | C31: 159 | D31: 172 | E31: 209 | F31: =IF(COUNT(C31:E31)<1," ",IF(AND(C31>M30,D31>M30,E31>M30,COUNT($C$6:E30)>=12),"*"," ")) ->  | G31: =IF(COUNT(C31:E31)<1," ",IF(AND(C31>M29,D31>M29,E31>M29,COUNT($C$6:E29)>=12),"*"," ")) ->  | H31: 540 | I31: 180 | J31: =_xlfn.IFS(SUM(C31:E31)<1,"",SUM(C31:E31)>=1,SUM($C$6:E31)) -> 9667 | K31: =_xlfn.IFS(COUNT(C31:E31)<1,"",COUNT($C$6:E31)>=1,COUNT($C$6:E31)) -> 54 | L31: =_xlfn.IFS(COUNT(C31:E31)<1,"",AND(COUNT($C$6:E31)<=9,$C$4>1),$C$4,COUNT(C31:E31)>=1,M31) -> 179 | M31: =IF(COUNT($C$6:E31)>=1,TRUNC(SUM($C$6:E31)/COUNT($C$6:E31)),0) -> 179 | N31: =IF(COUNT($C$6:E31)<=6,0,TRUNC((230-M30)*0.9)) -> 46 | O31: =_xlfn.IFS(SUM(C31:E31)<1,"",COUNT($C$6:E31)>9,TRUNC((230-M30)*(0.9)),COUNT($C$6:E31)<=9,0) -> 46 | P31: =_xlfn.IFS(SUM(C31:E31)<1,"",COUNT($C$6:E31)>9,N31*3+H31,COUNT($C$6:E31)<=9,0) -> 678 | S31: =IF(COUNT($C$6:E31)>9,IF(P31=MAX($P$6:$P$35),P31," "),"") ->  | V31: =IF(COUNT(C31:E31)<1,0,IF(COUNT($C$6:E31)>9,C31+N31,0)) -> 205 | W31: =IF(COUNT(C31:E31)<1,0,IF(COUNT($C$6:E31)>9,D31+N31,0)) -> 218 | X31: =IF(COUNT(C31:E31)<1,0,IF(COUNT($C$6:E31)>9,E31+N31,0)) -> 255 | AA31: 0 | AB31: 26 | AC31: 26
A32: wk27 | B32: =Calendar!B32 -> 2019-03-20 | F32: =IF(COUNT(C32:E32)<1," ",IF(AND(C32>M31,D32>M31,E32>M31,COUNT($C$6:E31)>=12),"*"," ")) ->  | G32: =IF(COUNT(C32:E32)<1," ",IF(AND(C32>M30,D32>M30,E32>M30,COUNT($C$6:E30)>=12),"*"," ")) ->  | J32: =_xlfn.IFS(SUM(C32:E32)<1,"",SUM(C32:E32)>=1,SUM($C$6:E32)) ->  | K32: =_xlfn.IFS(COUNT(C32:E32)<1,"",COUNT($C$6:E32)>=1,COUNT($C$6:E32)) ->  | L32: =_xlfn.IFS(COUNT(C32:E32)<1,"",AND(COUNT($C$6:E32)<=9,$C$4>1),$C$4,COUNT(C32:E32)>=1,M32) ->  | M32: =IF(COUNT($C$6:E32)>=1,TRUNC(SUM($C$6:E32)/COUNT($C$6:E32)),0) -> 179 | N32: =IF(COUNT($C$6:E32)<=6,0,TRUNC((230-M31)*0.9)) -> 45 | O32: =_xlfn.IFS(SUM(C32:E32)<1,"",COUNT($C$6:E32)>9,TRUNC((230-M31)*(0.9)),COUNT($C$6:E32)<=9,0) ->  | P32: =_xlfn.IFS(SUM(C32:E32)<1,"",COUNT($C$6:E32)>9,N32*3+H32,COUNT($C$6:E32)<=9,0) ->  | S32: =IF(COUNT($C$6:E32)>9,IF(P32=MAX($P$6:$P$35),P32," "),"") ->  | V32: =IF(COUNT(C32:E32)<1,0,IF(COUNT($C$6:E32)>9,C32+N32,0)) -> 0 | W32: =IF(COUNT(C32:E32)<1,0,IF(COUNT($C$6:E32)>9,D32+N32,0)) -> 0 | X32: =IF(COUNT(C32:E32)<1,0,IF(COUNT($C$6:E32)>9,E32+N32,0)) -> 0 | AA32: 1 | AB32: 0 | AC32: 27
A33: wk28 | B33: =Calendar!B33 -> 2019-03-27 | C33: 141 | D33: 166 | E33: 186 | F33: =IF(COUNT(C33:E33)<1," ",IF(AND(C33>M32,D33>M32,E33>M32,COUNT($C$6:E32)>=12),"*"," ")) ->  | G33: =IF(COUNT(C33:E33)<1," ",IF(AND(C33>M31,D33>M31,E33>M31,COUNT($C$6:E31)>=12),"*"," ")) ->  | H33: 493 | I33: 164 | J33: =_xlfn.IFS(SUM(C33:E33)<1,"",SUM(C33:E33)>=1,SUM($C$6:E33)) -> 10160 | K33: =_xlfn.IFS(COUNT(C33:E33)<1,"",COUNT($C$6:E33)>=1,COUNT($C$6:E33)) -> 57 | L33: =_xlfn.IFS(COUNT(C33:E33)<1,"",AND(COUNT($C$6:E33)<=9,$C$4>1),$C$4,COUNT(C33:E33)>=1,M33) -> 178 | M33: =IF(COUNT($C$6:E33)>=1,TRUNC(SUM($C$6:E33)/COUNT($C$6:E33)),0) -> 178 | N33: =IF(COUNT($C$6:E33)<=6,0,TRUNC((230-M32)*0.9)) -> 45 | O33: =_xlfn.IFS(SUM(C33:E33)<1,"",COUNT($C$6:E33)>9,TRUNC((230-M32)*(0.9)),COUNT($C$6:E33)<=9,0) -> 45 | P33: =_xlfn.IFS(SUM(C33:E33)<1,"",COUNT($C$6:E33)>9,N33*3+H33,COUNT($C$6:E33)<=9,0) -> 628 | S33: =IF(COUNT($C$6:E33)>9,IF(P33=MAX($P$6:$P$35),P33," "),"") ->  | V33: =IF(COUNT(C33:E33)<1,0,IF(COUNT($C$6:E33)>9,C33+N33,0)) -> 186 | W33: =IF(COUNT(C33:E33)<1,0,IF(COUNT($C$6:E33)>9,D33+N33,0)) -> 211 | X33: =IF(COUNT(C33:E33)<1,0,IF(COUNT($C$6:E33)>9,E33+N33,0)) -> 231 | AA33: 0 | AB33: 28 | AC33: 28
A34: wk29 | B34: =Calendar!B34 -> 2019-04-03 | C34: 223 | D34: 212 | E34: 160 | F34: =IF(COUNT(C34:E34)<1," ",IF(AND(C34>M33,D34>M33,E34>M33,COUNT($C$6:E33)>=12),"*"," ")) ->  | G34: =IF(COUNT(C34:E34)<1," ",IF(AND(C34>M32,D34>M32,E34>M32,COUNT($C$6:E32)>=12),"*"," ")) ->  | H34: 595 | I34: 198 | J34: =_xlfn.IFS(SUM(C34:E34)<1,"",SUM(C34:E34)>=1,SUM($C$6:E34)) -> 10755 | K34: =_xlfn.IFS(COUNT(C34:E34)<1,"",COUNT($C$6:E34)>=1,COUNT($C$6:E34)) -> 60 | L34: =_xlfn.IFS(COUNT(C34:E34)<1,"",AND(COUNT($C$6:E34)<=9,$C$4>1),$C$4,COUNT(C34:E34)>=1,M34) -> 179 | M34: =IF(COUNT($C$6:E34)>=1,TRUNC(SUM($C$6:E34)/COUNT($C$6:E34)),0) -> 179 | N34: =IF(COUNT($C$6:E34)<=6,0,TRUNC((230-M33)*0.9)) -> 46 | O34: =_xlfn.IFS(SUM(C34:E34)<1,"",COUNT($C$6:E34)>9,TRUNC((230-M33)*(0.9)),COUNT($C$6:E34)<=9,0) -> 46 | P34: =_xlfn.IFS(SUM(C34:E34)<1,"",COUNT($C$6:E34)>9,N34*3+H34,COUNT($C$6:E34)<=9,0) -> 733 | S34: =IF(COUNT($C$6:E34)>9,IF(P34=MAX($P$6:$P$35),P34," "),"") ->  | V34: =IF(COUNT(C34:E34)<1,0,IF(COUNT($C$6:E34)>9,C34+N34,0)) -> 269 | W34: =IF(COUNT(C34:E34)<1,0,IF(COUNT($C$6:E34)>9,D34+N34,0)) -> 258 | X34: =IF(COUNT(C34:E34)<1,0,IF(COUNT($C$6:E34)>9,E34+N34,0)) -> 206 | AA34: 0 | AB34: 29 | AC34: 29
A35: wk30 | B35: =Calendar!B35 -> 2019-04-10 | C35: 166 | D35: 169 | E35: 253 | F35: =IF(COUNT(C35:E35)<1," ",IF(AND(C35>M34,D35>M34,E35>M34,COUNT($C$6:E34)>=12),"*"," ")) ->  | G35: =IF(COUNT(C35:E35)<1," ",IF(AND(C35>M33,D35>M33,E35>M33,COUNT($C$6:E33)>=12),"*"," ")) ->  | H35: 588 | I35: 196 | J35: =_xlfn.IFS(SUM(C35:E35)<1,"",SUM(C35:E35)>=1,SUM($C$6:E35)) -> 11343 | K35: =_xlfn.IFS(COUNT(C35:E35)<1,"",COUNT($C$6:E35)>=1,COUNT($C$6:E35)) -> 63 | L35: =_xlfn.IFS(COUNT(C35:E35)<1,"",AND(COUNT($C$6:E35)<=9,$C$4>1),$C$4,COUNT(C35:E35)>=1,M35) -> 180 | M35: =IF(COUNT($C$6:E35)>=1,TRUNC(SUM($C$6:E35)/COUNT($C$6:E35)),0) -> 180 | N35: =IF(COUNT($C$6:E35)<=6,0,TRUNC((230-M34)*0.9)) -> 45 | O35: =_xlfn.IFS(SUM(C35:E35)<1,"",COUNT($C$6:E35)>9,TRUNC((230-M34)*(0.9)),COUNT($C$6:E35)<=9,0) -> 45 | P35: =_xlfn.IFS(SUM(C35:E35)<1,"",COUNT($C$6:E35)>9,N35*3+H35,COUNT($C$6:E35)<=9,0) -> 723 | S35: =IF(COUNT($C$6:E35)>9,IF(P35=MAX($P$6:$P$35),P35," "),"") ->  | V35: =IF(COUNT(C35:E35)<1,0,IF(COUNT($C$6:E35)>9,C35+N35,0)) -> 211 | W35: =IF(COUNT(C35:E35)<1,0,IF(COUNT($C$6:E35)>9,D35+N35,0)) -> 214 | X35: =IF(COUNT(C35:E35)<1,0,IF(COUNT($C$6:E35)>9,E35+N35,0)) -> 298 | AA35: 0 | AB35: 30 | AC35: 30
C36: =(IF(COUNT(C6:C35)=0," ",(SUM(C6:C35))/COUNT(C6:C35))) -> 186.76 | D36: =(IF(COUNT(D6:D35)=0," ",(SUM(D6:D35))/COUNT(D6:D35))) -> 183.57 | E36: =(IF(COUNT(E6:E35)=0," ",(SUM(E6:E35))/COUNT(E6:E35))) -> 169.81

Sheet ADennis
H1: =Calendar!H1 -> Wednesday Fun Fours 2018/19 season | R1: 6-over wk:
A2: wk# | B2: =MAX(AB6:AB35) -> 29 | R2: 0
A3: Name: | B3: Alan Dennis | I3: Perfect Attendance: | K3: =IF(SUM(AA6:AA35)<0.5,"Yes","No") -> No | L3: =_xlfn.IFS(AND(B2=30,K3="Yes"),"good",AND(B2<>30,K3="Yes"),"So Far",AND(B2<>30,K3="No")," ") -> 
A4: book average: | C4: 171 | H4: wky | I4: wky | J4: cumulative | L4: cumulative | P4: hdcp | Q4: high | R4: high | S4: high hcp | T4: high hcp
C5: g1 | D5: g2 | E5: g3 | H5: series | I5: average | J5: score | K5: games | L5: average | O5: hdcp | P5: series | Q5: series | R5: game | S5: series | T5: game | V5: =MAX(C6:E35) -> 234 | W5: =MAX(V6:X35) -> 288
A6: wk1 | B6: =Calendar!B6 -> 2018-09-05 | C6: 138 | D6: 199 | E6: 159 | H6: =IF(COUNT(C6:E6)<1," ",SUM(C6:E6)) -> 496 | I6: =IF(COUNT(C6:E6)<1," ",TRUNC(H6/COUNT(C6:E6))) -> 165 | J6: =_xlfn.IFS(SUM(C6:E6)<1,"",SUM(C6:E6)>=1,SUM($C$6:E6)) -> 496 | K6: =_xlfn.IFS(COUNT(C6:E6)<1,"",COUNT($C$6:E6)>=1,COUNT($C$6:E6)) -> 3 | L6: =_xlfn.IFS(COUNT(C6:E6)<1,"",AND(COUNT($C$6:E6)<=9,$C$4>1),$C$4,COUNT(C6:E6)>=1,M6) -> 171 | M6: =IF(COUNT($C$6:E6)>=1,TRUNC(SUM($C$6:E6)/COUNT($C$6:E6)),0) -> 165 | N6: =IF(COUNT($C$6:E6)<=6,0,TRUNC((230-M5)*0.9)) -> 0 | O6: =_xlfn.IFS(SUM(C6:E6)<1,"",COUNT($C$6:E6)>9,TRUNC((230-M5)*(0.9)),COUNT($C$6:E6)<=9,0) -> 0 | P6: =_xlfn.IFS(SUM(C6:E6)<1,"",COUNT($C$6:E6)>9,N6*3+H6,COUNT($C$6:E6)<=9,0) -> 0 | Q6: =IF(H6=(MAX($H$6:$H$35)),H6," ") ->  | R6: =IF((OR(C6=$V$5,D6=$V$5,E6=$V$5)),$V$5," ") ->  | S6: =IF(COUNT($C$6:E6)>9,IF(P6=MAX($P$6:$P$35),P6," "),"") ->  | T6: =IF(OR(V6=$W$5,W6=$W$5,X6=$W$5),$W$5," ") ->  | V6: =IF(COUNT(C6:E6)<1,0,IF(COUNT($C$6:E6)>9,C6+N6,0)) -> 0 | W6: =IF(COUNT(C6:E6)<1,0,IF(COUNT($C$6:E6)>9,D6+N6,0)) -> 0 | X6: =IF(COUNT(C6:E6)<1,0,IF(COUNT($C$6:E6)>9,E6+N6,0)) -> 0 | AA6: =IF((MAX($AB$6:$AB$35))<AC6,0,IF(AB6=AC6,0,1)) -> 0 | AB6: =IF(COUNT(C6:E6)>0,AC6,0) -> 1 | AC6: 1
A7: wk2 | B7: =Calendar!B7 -> 2018-09-12 | C7: 159 | D7: 165 | E7: 207 | H7: 531 | I7: =IF(COUNT(C7:E7)<1," ",TRUNC(H7/COUNT(C7:E7))) -> 177 | J7: =_xlfn.IFS(SUM(C7:E7)<1,"",SUM(C7:E7)>=1,SUM($C$6:E7)) -> 1027 | K7: =_xlfn.IFS(COUNT(C7:E7)<1,"",COUNT($C$6:E7)>=1,COUNT($C$6:E7)) -> 6 | L7: =_xlfn.IFS(COUNT(C7:E7)<1,"",AND(COUNT($C$6:E7)<=9,$C$4>1),$C$4,COUNT(C7:E7)>=1,M7) -> 171 | M7: =IF(COUNT($C$6:E7)>=1,TRUNC(SUM($C$6:E7)/COUNT($C$6:E7)),0) -> 171 | N7: =IF(COUNT($C$6:E7)<=6,0,TRUNC((230-M6)*0.9)) -> 0 | O7: =_xlfn.IFS(SUM(C7:E7)<1,"",COUNT($C$6:E7)>9,TRUNC((230-M6)*(0.9)),COUNT($C$6:E7)<=9,0) -> 0 | P7: =_xlfn.IFS(SUM(C7:E7)<1,"",COUNT($C$6:E7)>9,N7*3+H7,COUNT($C$6:E7)<=9,0) -> 0 | S7: =IF(COUNT($C$6:E7)>9,IF(P7=MAX($P$6:$P$35),P7," "),"") ->  | V7: =IF(COUNT(C7:E7)<1,0,IF(COUNT($C$6:E7)>9,C7+N7,0)) -> 0 | W7: =IF(COUNT(C7:E7)<1,0,IF(COUNT($C$6:E7)>9,D7+N7,0)) -> 0 | X7: =IF(COUNT(C7:E7)<1,0,IF(COUNT($C$6:E7)>9,E7+N7,0)) -> 0 | AA7: 0 | AB7: =IF(COUNT(C7:E7)>0,AC7,0) -> 2 | AC7: 2
A8: wk3 | B8: =Calendar!B8 -> 2018-09-19 | C8: 160 | D8: 155 | E8: 144 | H8: 459 | I8: 153 | J8: =_xlfn.IFS(SUM(C8:E8)<1,"",SUM(C8:E8)>=1,SUM($C$6:E8)) -> 1486 | K8: =_xlfn.IFS(COUNT(C8:E8)<1,"",COUNT($C$6:E8)>=1,COUNT($C$6:E8)) -> 9 | L8: =_xlfn.IFS(COUNT(C8:E8)<1,"",AND(COUNT($C$6:E8)<=9,$C$4>1),$C$4,COUNT(C8:E8)>=1,M8) -> 171 | M8: =IF(COUNT($C$6:E8)>=1,TRUNC(SUM($C$6:E8)/COUNT($C$6:E8)),0) -> 165 | N8: =IF(COUNT($C$6:E8)<=6,0,TRUNC((230-M7)*0.9)) -> 53 | O8: =_xlfn.IFS(SUM(C8:E8)<1,"",COUNT($C$6:E8)>9,TRUNC((230-M7)*(0.9)),COUNT($C$6:E8)<=9,0) -> 0 | P8: =_xlfn.IFS(SUM(C8:E8)<1,"",COUNT($C$6:E8)>9,N8*3+H8,COUNT($C$6:E8)<=9,0) -> 0 | S8: =IF(COUNT($C$6:E8)>9,IF(P8=MAX($P$6:$P$35),P8," "),"") ->  | V8: =IF(COUNT(C8:E8)<1,0,IF(COUNT($C$6:E8)>9,C8+N8,0)) -> 0 | W8: =IF(COUNT(C8:E8)<1,0,IF(COUNT($C$6:E8)>9,D8+N8,0)) -> 0 | X8: =IF(COUNT(C8:E8)<1,0,IF(COUNT($C$6:E8)>9,E8+N8,0)) -> 0 | AA8: 0 | AB8: 3 | AC8: 3
A9: wk4 | B9: =Calendar!B9 -> 2018-09-26 | C9: 115 | D9: 171 | E9: 212 | H9: 498 | I9: 166 | J9: =_xlfn.IFS(SUM(C9:E9)<1,"",SUM(C9:E9)>=1,SUM($C$6:E9)) -> 1984 | K9: =_xlfn.IFS(COUNT(C9:E9)<1,"",COUNT($C$6:E9)>=1,COUNT($C$6:E9)) -> 12 | L9: =_xlfn.IFS(COUNT(C9:E9)<1,"",AND(COUNT($C$6:E9)<=9,$C$4>1),$C$4,COUNT(C9:E9)>=1,M9) -> 165 | M9: =IF(COUNT($C$6:E9)>=1,TRUNC(SUM($C$6:E9)/COUNT($C$6:E9)),0) -> 165 | N9: =IF(COUNT($C$6:E9)<=6,0,TRUNC((230-M8)*0.9)) -> 58 | O9: =_xlfn.IFS(SUM(C9:E9)<1,"",COUNT($C$6:E9)>9,TRUNC((230-M8)*(0.9)),COUNT($C$6:E9)<=9,0) -> 58 | P9: =_xlfn.IFS(SUM(C9:E9)<1,"",COUNT($C$6:E9)>9,N9*3+H9,COUNT($C$6:E9)<=9,0) -> 672 | S9: =IF(COUNT($C$6:E9)>9,IF(P9=MAX($P$6:$P$35),P9," "),"") ->  | V9: =IF(COUNT(C9:E9)<1,0,IF(COUNT($C$6:E9)>9,C9+N9,0)) -> 173 | W9: =IF(COUNT(C9:E9)<1,0,IF(COUNT($C$6:E9)>9,D9+N9,0)) -> 229 | X9: =IF(COUNT(C9:E9)<1,0,IF(COUNT($C$6:E9)>9,E9+N9,0)) -> 270 | AA9: 0 | AB9: 4 | AC9: 4
A10: wk5 | B10: =Calendar!B10 -> 2018-10-03 | C10: 224 | D10: 161 | E10: 188 | F10: =IF(COUNT(C10:E10)<1," ",IF(AND(C10>M9,D10>M9,E10>M9,COUNT($C$6:E9)>=12),"*"," ")) ->  | H10: 573 | I10: 191 | J10: =_xlfn.IFS(SUM(C10:E10)<1,"",SUM(C10:E10)>=1,SUM($C$6:E10)) -> 2557 | K10: =_xlfn.IFS(COUNT(C10:E10)<1,"",COUNT($C$6:E10)>=1,COUNT($C$6:E10)) -> 15 | L10: =_xlfn.IFS(COUNT(C10:E10)<1,"",AND(COUNT($C$6:E10)<=9,$C$4>1),$C$4,COUNT(C10:E10)>=1,M10) -> 170 | M10: =IF(COUNT($C$6:E10)>=1,TRUNC(SUM($C$6:E10)/COUNT($C$6:E10)),0) -> 170 | N10: =IF(COUNT($C$6:E10)<=6,0,TRUNC((230-M9)*0.9)) -> 58 | O10: =_xlfn.IFS(SUM(C10:E10)<1,"",COUNT($C$6:E10)>9,TRUNC((230-M9)*(0.9)),COUNT($C$6:E10)<=9,0) -> 58 | P10: =_xlfn.IFS(SUM(C10:E10)<1,"",COUNT($C$6:E10)>9,N10*3+H10,COUNT($C$6:E10)<=9,0) -> 747 | S10: =IF(COUNT($C$6:E10)>9,IF(P10=MAX($P$6:$P$35),P10," "),"") ->  | V10: =IF(COUNT(C10:E10)<1,0,IF(COUNT($C$6:E10)>9,C10+N10,0)) -> 282 | W10: =IF(COUNT(C10:E10)<1,0,IF(COUNT($C$6:E10)>9,D10+N10,0)) -> 219 | X10: =IF(COUNT(C10:E10)<1,0,IF(COUNT($C$6:E10)>9,E10+N10,0)) -> 246 | AA10: 0 | AB10: 5 | AC10: 5
A11: wk6 | B11: =Calendar!B11 -> 2018-10-10 | C11: 159 | D11: 223 | E11: 234 | F11: =IF(COUNT(C11:E11)<1," ",IF(AND(C11>M10,D11>M10,E11>M10,COUNT($C$6:E10)>=12),"*"," ")) ->  | G11: =IF(COUNT(C11:E11)<1," ",IF(AND(C11>M9,D11>M9,E11>M9,COUNT($C$6:E9)>=12),"*"," ")) ->  | H11: 616 | I11: 205 | J11: =_xlfn.IFS(SUM(C11:E11)<1,"",SUM(C11:E11)>=1,SUM($C$6:E11)) -> 3173 | K11: =_xlfn.IFS(COUNT(C11:E11)<1,"",COUNT($C$6:E11)>=1,COUNT($C$6:E11)) -> 18 | L11: =_xlfn.IFS(COUNT(C11:E11)<1,"",AND(COUNT($C$6:E11)<=9,$C$4>1),$C$4,COUNT(C11:E11)>=1,M11) -> 176 | M11: =IF(COUNT($C$6:E11)>=1,TRUNC(SUM($C$6:E11)/COUNT($C$6:E11)),0) -> 176 | N11: =IF(COUNT($C$6:E11)<=6,0,TRUNC((230-M10)*0.9)) -> 54 | O11: =_xlfn.IFS(SUM(C11:E11)<1,"",COUNT($C$6:E11)>9,TRUNC((230-M10)*(0.9)),COUNT($C$6:E11)<=9,0) -> 54 | P11: =_xlfn.IFS(SUM(C11:E11)<1,"",COUNT($C$6:E11)>9,N11*3+H11,COUNT($C$6:E11)<=9,0) -> 778 | R11: 234 | S11: =IF(COUNT($C$6:E11)>9,IF(P11=MAX($P$6:$P$35),P11," "),"") ->  | T11: 288 | V11: =IF(COUNT(C11:E11)<1,0,IF(COUNT($C$6:E11)>9,C11+N11,0)) -> 213 | W11: =IF(COUNT(C11:E11)<1,0,IF(COUNT($C$6:E11)>9,D11+N11,0)) -> 277 | X11: =IF(COUNT(C11:E11)<1,0,IF(COUNT($C$6:E11)>9,E11+N11,0)) -> 288 | AA11: 0 | AB11: 6 | AC11: 6
